Workbook

Sheet DATOS
D4: Ministerio de Hacienda
D5: Dirección General de Contabilidad Nacional
D6: Anexo de Notas a los Estados Financieros Entidades
D7: =IFERROR(PROPER(D17),"") -> Diciembre 2024
C10: NOMBRE_ARCHIVO | D10: =MID(CELL("filename"),FIND("[",CELL("filename"))+1, FIND("]", CELL("filename"))-(FIND("[",CELL("filename"))+1)) -> 15603_T04_2024_Anexo_Estado_Notas_Contables_Vinculadas.xlsm
C11: GRUPO_INSTITUCIONAL | D11: =IFERROR(VLOOKUP(D12,PARAMETROS!F:I,4,0),"") -> SECTOR_MUNICIPAL
C12: CODIGO_ENTIDAD | D12: =IFERROR(IF(MID(D10,1,5)="XXXXX","",MID(D10,1,5)),"") -> 15603
C13: NOMBRE_INSTITUCION | D13: =IFERROR(IF(MID(D10,1,5)="XXXXX","",VLOOKUP(D12,PARAMETROS!F:G,2,0)),"") -> Municipalidad de Buenos Aires
C14: PERIODO | D14: =IFERROR(IF(MID(D10,7,3)="PXX","",MID(D10,7,3)),"") -> T04
C15: PERIODO_CONTABLE | D15: =IFERROR(IF(MID(D10,1,5)="XXXXX","","Del"&" "&"01"&" "&"de"&" "&"Enero"&" "&"al"&" "&IF(MID(D10,7,3)="PXX","",VLOOKUP(MID(D10,7,3),PARAMETROS!M:O,3,0))),"") -> Del 01 de Enero al 31 de Diciembre
C16: AÑO | D16: =IFERROR(IF(MID(D10,1,5)="XXXXX","",MID(D10,11,4)),"") -> 2024
C17: PERIODO_ACTUAL | D17: =IFERROR(IF(MID(D10,1,5)="XXXXX","",VLOOKUP(MID(D10,7,3),PARAMETROS!M:N,2,0)&" "&MID(D10,11,4)),"") -> DICIEMBRE 2024
C18: PERIODO_ANTERIOR | D18: =IFERROR(IF(MID(D10,1,5)="XXXXX","",VLOOKUP(MID(D10,7,3),PARAMETROS!M:N,2,0)&" "&((TEXT(MID(D10,11,4),0)))-1),"") -> DICIEMBRE 2023
D25: Firma Digital del Representante Legal
D26: Nombre del Representante Legal:
D32: Firma Digital del Jerarca Institucional
D33: Nombre del Jerarca:
D39: Firma Digital del Contador
D40: Nombre del Contador:

Sheet BC_ACTUAL
A9: CODIGO SEGMENTO | B9: CUENTA (REPORTAR MÁXIMO A NIVEL 8) | C9: NOMBRE CUENTA | D9: SALDO INICIAL | E9: DEBITOS PERIODO | F9: CREDITOS PERIODO | G9: SALDO FINAL
A10: 3.1 | B10: 1. | C10: ACTIVO | D10: 1.658328453e+11 | E10: 1.624236699e+10 | F10: 1.507627462e+10 | G10: 1.669989377e+11
A11: 3.1 | B11: 1.1. | C11: Activo Corriente | D11: 2822037062 | E11: 1.569702102e+10 | F11: 1.472452183e+10 | G11: 3794536252
A12: 3.1 | B12: 1.1.1. | C12: Efectivo equivalentes de efectivo | D12: 2106811911 | E12: 9422554090 | F12: 8750020341 | G12: 2779345660
A13: 3.1 | B13: 1.1.1.01. | C13: Efectivo | D13: 2106811911 | E13: 8745712417 | F13: 8073178669 | G13: 2779345660
A14: 3.1 | B14: 1.1.1.01.02. | C14: Depósitos bancarios | D14: 2103561911 | E14: 8745712417 | F14: 8073178669 | G14: 2776095660
A15: 3.1 | B15: 1.1.1.01.02.02. | C15: Depósitos bancarios en el sector público interno | D15: 2103561911 | E15: 8745712417 | F15: 8073178669 | G15: 2776095660
A16: 3.1 | B16: 1.1.1.01.02.02.2. | C16: Cuentas corrientes en el sector público interno | D16: 687233539.5 | E16: 2547700925 | F16: 2526729835 | G16: 708204629.8
A17: 3.1 | B17: 1.1.1.01.02.02.2.21101 | C17: Banco Costa Rica | D17: 372598001.7 | E17: 637228013.8 | F17: 611062670.2 | G17: 398763345.3
A18: 3.1 | B18: 1.1.1.01.02.02.2.21103 | C18: Banco Nacional de Costa Rica | D18: 314635537.9 | E18: 1910472911 | F18: 1915667164 | G18: 309441284.6
A19: 3.1 | B19: 1.1.1.01.02.02.3. | C19: Caja Única | D19: 1416328372 | E19: 6198011492 | F19: 5546448834 | G19: 2067891030
A20: 3.1 | B20: 1.1.1.01.02.02.3.11206 | C20: Ministerio de Hacienda | D20: 1416328372 | E20: 6198011492 | F20: 5546448834 | G20: 2067891030
A21: 3.1 | B21: 1.1.1.01.03. | C21: Cajas chicas fondos rotatorios | D21: 3250000 | E21: 0 | F21: 0 | G21: 3250000
A22: 3.1 | B22: 1.1.1.01.03.01. | C22: Cajas chicas | D22: 2250000 | E22: 0 | F22: 0 | G22: 2250000
A23: 3.1 | B23: 1.1.1.01.03.01.2. | C23: Cajas chicas en el país | D23: 2250000 | E23: 0 | F23: 0 | G23: 2250000
A24: 3.1 | B24: 1.1.1.01.03.01.2.99999 | C24: Cajas chicas en el país | D24: 2250000 | E24: 0 | F24: 0 | G24: 2250000
A25: 3.1 | B25: 1.1.1.01.03.02. | C25: Fondos rotatorios | D25: 1000000 | E25: 0 | F25: 0 | G25: 1000000
A26: 3.1 | B26: 1.1.1.01.03.02.2. | C26: Fondos rotatorios en el sector público interno | D26: 1000000 | E26: 0 | F26: 0 | G26: 1000000
A27: 3.1 | B27: 1.1.1.01.03.02.2.99999 | C27: Fondos rotatorios en el sector público interno | D27: 1000000 | E27: 0 | F27: 0 | G27: 1000000
A28: 3.1 | B28: 1.1.1.02. | C28: Equivalentes de efectivo | D28: 0 | E28: 676841672.1 | F28: 676841672.1 | G28: 0
A29: 3.1 | B29: 1.1.1.02.99. | C29: Otros equivalentes de efectivo | D29: 0 | E29: 676841672.1 | F29: 676841672.1 | G29: 0
A30: 3.1 | B30: 1.1.1.02.99.02. | C30: Otros equivalentes de efectivo en el sector público interno | D30: 0 | E30: 676841672.1 | F30: 676841672.1 | G30: 0
A31: 3.1 | B31: 1.1.1.02.99.02.0. | C31: Otros equivalentes de efectivo en el sector público interno | D31: 0 | E31: 676841672.1 | F31: 676841672.1 | G31: 0
A32: 3.1 | B32: 1.1.1.02.99.02.0.21101 | C32: Banco Costa Rica | D32: 0 | E32: 338511155.3 | F32: 338511155.3 | G32: 0
A33: 3.1 | B33: 1.1.1.02.99.02.0.21103 | C33: Banco Nacional de Costa Rica | D33: 0 | E33: 338330516.8 | F33: 338330516.8 | G33: 0
A34: 3.1 | B34: 1.1.3. | C34: Cuentas a cobrar a c/p | D34: 495942436.4 | E34: 6145790066 | F34: 5852415109 | G34: 789317393.4
A35: 3.1 | B35: 1.1.3.01. | C35: Impuestos a cobrar a c/p | D35: 488369513.4 | E35: 1213889629 | F35: 1262553330 | G35: 439705811.6
A36: 3.1 | B36: 1.1.3.01.02. | C36: Impuestos sobre la propiedad a cobrar c/p | D36: 454864572.4 | E36: 904401251 | F36: 934814967.4 | G36: 424450856
A37: 3.1 | B37: 1.1.3.01.02.01. | C37: Impuesto sobre la propiedad de bienes inmuebles a cobrar c/p | D37: 454864572.4 | E37: 904401251 | F37: 934814967.4 | G37: 424450856
A38: 3.1 | B38: 1.1.3.01.02.01.0. | C38: Impuesto sobre la propiedad de bienes inmuebles a cobrar c/p | D38: 454864572.4 | E38: 904401251 | F38: 934814967.4 | G38: 424450856
A39: 3.1 | B39: 1.1.3.01.02.01.0.99999 | C39: Impuesto sobre la propiedad de bienes inmuebles a cobrar c/p | D39: 454864572.4 | E39: 904401251 | F39: 934814967.4 | G39: 424450856
A40: 3.1 | B40: 1.1.3.01.03. | C40: Impuestos sobre bienes y servicios a cobrar c/p | D40: 33504940.95 | E40: 309488377.7 | F40: 327738363.1 | G40: 15254955.62
A41: 3.1 | B41: 1.1.3.01.03.99. | C41: Otros Impuestos sobre bienes y servicios a cobrar c/p | D41: 33504940.95 | E41: 309488377.7 | F41: 327738363.1 | G41: 15254955.62
A42: 3.1 | B42: 1.1.3.01.03.99.1. | C42: Licencias profesionales, comerciales y otros permisos a cobrar c/p | D42: 30044160.51 | E42: 296000636.6 | F42: 315584420.3 | G42: 10460376.82
A43: 3.1 | B43: 1.1.3.01.03.99.1.99999 | C43: Licencias profesionales, comerciales y otros permisos a cobrar c/p | D43: 30044160.51 | E43: 296000636.6 | F43: 315584420.3 | G43: 10460376.82
A44: 3.1 | B44: 1.1.3.01.03.99.9. | C44: Otros impuestos varios sobre bienes y servicios a cobrar c/p | D44: 3460780.44 | E44: 13487741.16 | F44: 12153942.8 | G44: 4794578.8
A45: 3.1 | B45: 1.1.3.01.03.99.9.99999 | C45: Otros impuestos varios sobre bienes y servicios a cobrar c/p | D45: 3460780.44 | E45: 13487741.16 | F45: 12153942.8 | G45: 4794578.8
A46: 3.1 | B46: 1.1.3.04. | C46: Servicios y derechos a cobrar a corto plazo | D46: 180183637.8 | E46: 771071312.2 | F46: 776835380.5 | G46: 174419569.5
A47: 3.1 | B47: 1.1.3.04.01. | C47: Servicios a cobrar c/p | D47: 179741182.8 | E47: 770126247.2 | F47: 775998890.5 | G47: 173868539.5
A48: 3.1 | B48: 1.1.3.04.01.04. | C48: Servicios comunitarios a cobrar c/p | D48: 179741182.8 | E48: 770126247.2 | F48: 775998890.5 | G48: 173868539.5
A49: 3.1 | B49: 1.1.3.04.01.04.0. | C49: Servicios comunitarios a cobrar c/p | D49: 179741182.8 | E49: 770126247.2 | F49: 775998890.5 | G49: 173868539.5
A50: 3.1 | B50: 1.1.3.04.01.04.0.99999 | C50: Servicios comunitarios a cobrar c/p | D50: 179741182.8 | E50: 770126247.2 | F50: 775998890.5 | G50: 173868539.5
A51: 3.1 | B51: 1.1.3.04.02. | C51: Derechos administrativos a cobrar c/p | D51: 442455 | E51: 945064.99 | F51: 836490 | G51: 551029.99
A52: 3.1 | B52: 1.1.3.04.02.01. | C52: Derechos administrativos a los servicios de transporte a cobrar c/p | D52: 50000 | E52: 630000 | F52: 610000 | G52: 70000
A53: 3.1 | B53: 1.1.3.04.02.01.0. | C53: Derechos administrativos a los servicios de transporte a cobrar c/p | D53: 50000 | E53: 630000 | F53: 610000 | G53: 70000
A54: 3.1 | B54: 1.1.3.04.02.01.0.99999 | C54: Derechos administrativos a los servicios de transporte a cobrar c/p Derecho de piso uso terminal | D54: 50000 | E54: 630000 | F54: 610000 | G54: 70000
A55: 3.1 | B55: 1.1.3.04.02.99. | C55: Otros derechos administrativos a cobrar c/p | D55: 392455 | E55: 315064.99 | F55: 226490 | G55: 481029.99
A56: 3.1 | B56: 1.1.3.04.02.99.0. | C56: Otros derechos administrativos a cobrar c/p | D56: 392455 | E56: 315064.99 | F56: 226490 | G56: 481029.99
A57: 3.1 | B57: 1.1.3.04.02.99.0.99999 | C57: Otros derechos administrativos a cobrar c/p Derecho cementerio | D57: 392455 | E57: 315064.99 | F57: 226490 | G57: 481029.99
A58: 3.1 | B58: 1.1.3.06. | C58: Transferencias a cobrar a c/p | D58: 0 | E58: 4147407457 | F58: 3805573071 | G58: 341834386.5
A59: 3.1 | B59: 1.1.3.06.02. | C59: Transferencias del sector público interno a cobrar c/p | D59: 0 | E59: 4147407457 | F59: 3805573071 | G59: 341834386.5
A60: 3.1 | B60: 1.1.3.06.02.01. | C60: Transferencias del Gobierno Central a cobrar c/p | D60: 0 | E60: 4129623703 | F60: 3787789316 | G60: 341834386.5
A61: 3.1 | B61: 1.1.3.06.02.01.0. | C61: Transferencias del Gobierno Central a cobrar c/p | D61: 0 | E61: 4129623703 | F61: 3787789316 | G61: 341834386.5
A62: 3.1 | B62: 1.1.3.06.02.01.0.11203 | C62: Ministerio de Gobernación y Policía | D62: 0 | E62: 27611065 | F62: 27611065 | G62: 0
A63: 3.1 | B63: 1.1.3.06.02.01.0.11206 | C63: Ministerio de Hacienda | D63: 0 | E63: 4102012638 | F63: 3760178251 | G63: 341834386.5
A64: 3.1 | B64: 1.1.3.06.02.02. | C64: Transferencias de Órganos Desconcentrados a cobrar c/p | D64: 0 | E64: 6460924 | F64: 6460924 | G64: 0
A65: 3.1 | B65: 1.1.3.06.02.02.0. | C65: Transferencias de Órganos Desconcentrados a cobrar c/p | D65: 0 | E65: 6460924 | F65: 6460924 | G65: 0
A66: 3.1 | B66: 1.1.3.06.02.02.0.12583 | C66: Transfrencias de Organos desconcentrados a cobrar.Consejo Nacional de la Política Pública de la Persona Joven (CPJ) | D66: 0 | E66: 6460924 | F66: 6460924 | G66: 0
A67: 3.1 | B67: 1.1.3.06.02.03. | C67: Transferencias de Instituciones Descentralizadas no Empresariales a cobrar c/p | D67: 0 | E67: 11322830.07 | F67: 11322830.07 | G67: 0
A68: 3.1 | B68: 1.1.3.06.02.03.0. | C68: Transferencias de Instituciones Descentralizadas no Empresariales a cobrar c/p | D68: 0 | E68: 11322830.07 | F68: 11322830.07 | G68: 0
A69: 3.1 | B69: 1.1.3.06.02.03.0.14226 | C69: Transferencias de Instituciones Descentralizadas no Empresariales a cobrar c/p (Aporte IFAM Licores Nacionales y Ext) | D69: 0 | E69: 11322830.07 | F69: 11322830.07 | G69: 0
A70: 3.1 | B70: 1.1.3.98. | C70: Otras cuentas a cobrar a corto plazo | D70: 2767182.6 | E70: 13421668.1 | F70: 7453327.58 | G70: 8735523.12
A71: 3.1 | B71: 1.1.3.98.01. | C71: Multas, sanciones, remates y confiscaciones de origen no tributario a cobrar c/p | D71: 2267182.6 | E71: 7682065.1 | F71: 7453327.58 | G71: 2495920.12
A72: 3.1 | B72: 1.1.3.98.01.01. | C72: Multas y sanciones administrativas a cobrar c/p | D72: 2267182.6 | E72: 7682065.1 | F72: 7453327.58 | G72: 2495920.12
A73: 3.1 | B73: 1.1.3.98.01.01.0. | C73: Multas y sanciones administrativas a cobrar c/p | D73: 2267182.6 | E73: 7682065.1 | F73: 7453327.58 | G73: 2495920.12
A74: 3.1 | B74: 1.1.3.98.01.01.0.99999 | C74: Multas y sanciones administrativas a cobrar c/p | D74: 2267182.6 | E74: 7682065.1 | F74: 7453327.58 | G74: 2495920.12
A75: 3.1 | B75: 1.1.3.98.03. | C75: Depósitos en garantía c/p | D75: 500000 | E75: 5739603 | F75: 0 | G75: 6239603
A76: 3.1 | B76: 1.1.3.98.03.02. | C76: Depósitos en garantía en el sector público interno c/p | D76: 500000 | E76: 5739603 | F76: 0 | G76: 6239603
A77: 3.1 | B77: 1.1.3.98.03.02.0. | C77: Depósitos en garantía en el sector público interno c/p | D77: 500000 | E77: 5739603 | F77: 0 | G77: 6239603
A78: 3.1 | B78: 1.1.3.98.03.02.0.99999 | C78: Depósitos en garantía en el sector público interno c/p | D78: 500000 | E78: 5739603 | F78: 0 | G78: 6239603
A79: 3.1 | B79: 1.1.3.99. | C79: Previsiones para deterioro de cuentas a cobrar a corto plazo * | D79: -175377897.4 | E79: 0 | F79: 0 | G79: -175377897.4
A80: 3.1 | B80: 1.1.3.99.01. | C80: Previsiones para impuestos a cobrar c/p * | D80: -116983004.6 | E80: 0 | F80: 0 | G80: -116983004.6
A81: 3.1 | B81: 1.1.3.99.01.02. | C81: Previsiones para impuestos sobre la propiedad a cobrar c/p * | D81: -106283608.3 | E81: 0 | F81: 0 | G81: -106283608.3
A82: 3.1 | B82: 1.1.3.99.01.02.0. | C82: Previsiones para impuestos sobre la propiedad a cobrar c/p * | D82: -106283608.3 | E82: 0 | F82: 0 | G82: -106283608.3
A83: 3.1 | B83: 1.1.3.99.01.02.0.99999 | C83: Previsiones para impuestos sobre la propiedad a cobrar c/p * | D83: -106283608.3 | E83: 0 | F83: 0 | G83: -106283608.3
A84: 3.1 | B84: 1.1.3.99.01.03. | C84: Previsiones para impuestos sobre bienes y servicios a cobrar c/p * | D84: -9270015.01 | E84: 0 | F84: 0 | G84: -9270015.01
A85: 3.1 | B85: 1.1.3.99.01.03.0. | C85: Previsiones para impuestos sobre bienes y servicios a cobrar c/p * | D85: -9270015.01 | E85: 0 | F85: 0 | G85: -9270015.01
A86: 3.1 | B86: 1.1.3.99.01.03.0.99999 | C86: Previsiones para impuestos sobre bienes y servicios a cobrar c/p * | D86: -9270015.01 | E86: 0 | F86: 0 | G86: -9270015.01
A87: 3.1 | B87: 1.1.3.99.01.99. | C87: Previsiones para otros impuestos a cobrar c/p * | D87: -1429381.33 | E87: 0 | F87: 0 | G87: -1429381.33
A88: 3.1 | B88: 1.1.3.99.01.99.0. | C88: Previsiones para otros impuestos a cobrar c/p * | D88: -1429381.33 | E88: 0 | F88: 0 | G88: -1429381.33
A89: 3.1 | B89: 1.1.3.99.01.99.0.99999 | C89: Previsiones para otros impuestos a cobrar c/p * | D89: -1429381.33 | E89: 0 | F89: 0 | G89: -1429381.33
A90: 3.1 | B90: 1.1.3.99.04. | C90: Previsiones para servicios a cobrar c/p * | D90: -51378929.55 | E90: 0 | F90: 0 | G90: -51378929.55
A91: 3.1 | B91: 1.1.3.99.04.01. | C91: Previsiones para ventas de servicios a cobrar c/p * | D91: -50738208.69 | E91: 0 | F91: 0 | G91: -50738208.69
A92: 3.1 | B92: 1.1.3.99.04.01.0. | C92: Previsiones para ventas de servicios a cobrar c/p * | D92: -50738208.69 | E92: 0 | F92: 0 | G92: -50738208.69
A93: 3.1 | B93: 1.1.3.99.04.01.0.99999 | C93: Previsiones para ventas de servicios a cobrar c/p * | D93: -50738208.69 | E93: 0 | F93: 0 | G93: -50738208.69
A94: 3.1 | B94: 1.1.3.99.04.02. | C94: Previsiones para derechos administrativos a cobrar c/p * | D94: -640720.86 | E94: 0 | F94: 0 | G94: -640720.86
A95: 3.1 | B95: 1.1.3.99.04.02.0. | C95: Previsiones para derechos administrativos a cobrar c/p * | D95: -640720.86 | E95: 0 | F95: 0 | G95: -640720.86
A96: 3.1 | B96: 1.1.3.99.04.02.0.99999 | C96: Previsiones para derechos administrativos a cobrar c/p * | D96: -640720.86 | E96: 0 | F96: 0 | G96: -640720.86
A97: 3.1 | B97: 1.1.3.99.05. | C97: Previsiones para ingresos de la propiedad a cobrar c/p * | D97: -7015963.19 | E97: 0 | F97: 0 | G97: -7015963.19
A98: 3.1 | B98: 1.1.3.99.05.01. | C98: Previsiones para alquileres y derechos sobre bienes a cobrar c/p * | D98: -7015963.19 | E98: 0 | F98: 0 | G98: -7015963.19
A99: 3.1 | B99: 1.1.3.99.05.01.0. | C99: Previsiones para alquileres y derechos sobre bienes a cobrar c/p * | D99: -7015963.19 | E99: 0 | F99: 0 | G99: -7015963.19
A100: 3.1 | B100: 1.1.3.99.05.01.0.99999 | C100: Previsiones para alquileres y derechos sobre bienes a cobrar c/p * | D100: -7015963.19 | E100: 0 | F100: 0 | G100: -7015963.19
A101: 3.1 | B101: 1.1.4. | C101: Inventarios | D101: 192987092.2 | E101: 72388964.91 | F101: 64668201.09 | G101: 200707856
A102: 3.1 | B102: 1.1.4.01. | C102: Materiales y suministros para consumo y prestación de servicios | D102: 192987092.2 | E102: 72388964.91 | F102: 64668201.09 | G102: 200707856
A103: 3.1 | B103: 1.1.4.01.01. | C103: Productos químicos y conexos | D103: 21280495.09 | E103: 1943368.79 | F103: 10707449.77 | G103: 12516414.11
A104: 3.1 | B104: 1.1.4.01.01.01. | C104: Combustibles y lubricantes | D104: 17684339.46 | E104: 210230.78 | F104: 8666612.85 | G104: 9227957.39
A105: 3.1 | B105: 1.1.4.01.01.01.0. | C105: Combustibles y lubricantes | D105: 17684339.46 | E105: 210230.78 | F105: 8666612.85 | G105: 9227957.39
A106: 3.1 | B106: 1.1.4.01.01.01.0.99999 | C106: Combustibles y lubricantes | D106: 17684339.46 | E106: 210230.78 | F106: 8666612.85 | G106: 9227957.39
A107: 3.1 | B107: 1.1.4.01.01.02. | C107: Productos farmacéuticos y medicinales | D107: 6400 | E107: 0 | F107: 6400 | G107: 0
A108: 3.1 | B108: 1.1.4.01.01.02.0. | C108: Productos farmacéuticos y medicinales | D108: 6400 | E108: 0 | F108: 6400 | G108: 0
A109: 3.1 | B109: 1.1.4.01.01.02.0.99999 | C109: Productos farmacéuticos y medicinales | D109: 6400 | E109: 0 | F109: 6400 | G109: 0
A110: 3.1 | B110: 1.1.4.01.01.04. | C110: Tintas, pinturas y diluyentes | D110: 2775593.63 | E110: 1372291.7 | F110: 1367135.89 | G110: 2780749.44
A111: 3.1 | B111: 1.1.4.01.01.04.0. | C111: Tintas, pinturas y diluyentes | D111: 2775593.63 | E111: 1372291.7 | F111: 1367135.89 | G111: 2780749.44
A112: 3.1 | B112: 1.1.4.01.01.04.0.99999 | C112: Tintas, pinturas y diluyentes | D112: 2775593.63 | E112: 1372291.7 | F112: 1367135.89 | G112: 2780749.44
A113: 3.1 | B113: 1.1.4.01.01.99. | C113: Otros productos químicos y conexos | D113: 814162 | E113: 360846.31 | F113: 667301.03 | G113: 507707.28
A114: 3.1 | B114: 1.1.4.01.01.99.0. | C114: Otros productos químicos y conexos | D114: 814162 | E114: 360846.31 | F114: 667301.03 | G114: 507707.28
A115: 3.1 | B115: 1.1.4.01.01.99.0.99999 | C115: Otros productos químicos y conexos | D115: 814162 | E115: 360846.31 | F115: 667301.03 | G115: 507707.28
A116: 3.1 | B116: 1.1.4.01.03. | C116: Materiales y productos de uso en la construcción y mantenimiento | D116: 30127789.25 | E116: 11469946.47 | F116: 13411536.8 | G116: 28186198.92
A117: 3.1 | B117: 1.1.4.01.03.01. | C117: Materiales y productos metálicos | D117: 25238704.2 | E117: 6210556.42 | F117: 6074045.39 | G117: 25375215.23
A118: 3.1 | B118: 1.1.4.01.03.01.0. | C118: Materiales y productos metálicos | D118: 25238704.2 | E118: 6210556.42 | F118: 6074045.39 | G118: 25375215.23
A119: 3.1 | B119: 1.1.4.01.03.01.0.99999 | C119: Materiales y productos metálicos | D119: 25238704.2 | E119: 6210556.42 | F119: 6074045.39 | G119: 25375215.23
A120: 3.1 | B120: 1.1.4.01.03.02. | C120: Materiales y productos minerales y asfálticos | D120: 3708677 | E120: 4248745.2 | F120: 5979503.1 | G120: 1977919.1
A121: 3.1 | B121: 1.1.4.01.03.02.0. | C121: Materiales y productos minerales y asfálticos | D121: 3708677 | E121: 4248745.2 | F121: 5979503.1 | G121: 1977919.1
A122: 3.1 | B122: 1.1.4.01.03.02.0.99999 | C122: Materiales y productos minerales y asfálticos | D122: 3708677 | E122: 4248745.2 | F122: 5979503.1 | G122: 1977919.1
A123: 3.1 | B123: 1.1.4.01.03.03. | C123: Madera y sus derivados | D123: 896515 | E123: 915675 | F123: 1221460 | G123: 590730
A124: 3.1 | B124: 1.1.4.01.03.03.0. | C124: Madera y sus derivados | D124: 896515 | E124: 915675 | F124: 1221460 | G124: 590730
A125: 3.1 | B125: 1.1.4.01.03.03.0.99999 | C125: Madera y sus derivados | D125: 896515 | E125: 915675 | F125: 1221460 | G125: 590730
A126: 3.1 | B126: 1.1.4.01.03.04. | C126: Materiales y productos eléctricos, telefónicos y de cómputo | D126: 135171.56 | E126: 54603.85 | F126: 100090.01 | G126: 89685.4
A127: 3.1 | B127: 1.1.4.01.03.04.0. | C127: Materiales y productos eléctricos, telefónicos y de cómputo | D127: 135171.56 | E127: 54603.85 | F127: 100090.01 | G127: 89685.4
A128: 3.1 | B128: 1.1.4.01.03.04.0.99999 | C128: Materiales y productos eléctricos, telefónicos y de cómputo | D128: 135171.56 | E128: 54603.85 | F128: 100090.01 | G128: 89685.4
A129: 3.1 | B129: 1.1.4.01.03.06. | C129: Materiales y productos de plástico | D129: 148721.49 | E129: 40366 | F129: 36438.3 | G129: 152649.19
A130: 3.1 | B130: 1.1.4.01.03.06.0. | C130: Materiales y productos de plástico | D130: 148721.49 | E130: 40366 | F130: 36438.3 | G130: 152649.19
A131: 3.1 | B131: 1.1.4.01.03.06.0.99999 | C131: Materiales y productos de plástico | D131: 148721.49 | E131: 40366 | F131: 36438.3 | G131: 152649.19
A132: 3.1 | B132: 1.1.4.01.04. | C132: Herramientas, repuestos y accesorios | D132: 131278007.8 | E132: 40855161.84 | F132: 24841209.85 | G132: 147291959.8
A133: 3.1 | B133: 1.1.4.01.04.01. | C133: Herramientas e instrumentos | D133: 1233641.5 | E133: 796940.45 | F133: 709310.91 | G133: 1321271.04
A134: 3.1 | B134: 1.1.4.01.04.01.0. | C134: Herramientas e instrumentos | D134: 1233641.5 | E134: 796940.45 | F134: 709310.91 | G134: 1321271.04
A135: 3.1 | B135: 1.1.4.01.04.01.0.99999 | C135: Herramientas e instrumentos | D135: 1233641.5 | E135: 796940.45 | F135: 709310.91 | G135: 1321271.04
A136: 3.1 | B136: 1.1.4.01.04.02. | C136: Repuestos y accesorios Nuevos | D136: 130044366.3 | E136: 40058221.39 | F136: 24131898.94 | G136: 145970688.7
A137: 3.1 | B137: 1.1.4.01.04.02.0. | C137: Repuestos y accesorios Nuevos | D137: 130044366.3 | E137: 40058221.39 | F137: 24131898.94 | G137: 145970688.7
A138: 3.1 | B138: 1.1.4.01.04.02.0.99999 | C138: Repuestos y accesorios Nuevos | D138: 130044366.3 | E138: 40058221.39 | F138: 24131898.94 | G138: 145970688.7
A139: 3.1 | B139: 1.1.4.01.99. | C139: Útiles, materiales y suministros diversos | D139: 10300800.1 | E139: 18120487.81 | F139: 15708004.67 | G139: 12713283.24
A140: 3.1 | B140: 1.1.4.01.99.01. | C140: Útiles y materiales de oficina y cómputo | D140: 1943168.61 | E140: 1711681.71 | F140: 1456171.75 | G140: 2198678.57
A141: 3.1 | B141: 1.1.4.01.99.01.0. | C141: Útiles y materiales de oficina y cómputo | D141: 1943168.61 | E141: 1711681.71 | F141: 1456171.75 | G141: 2198678.57
A142: 3.1 | B142: 1.1.4.01.99.01.0.99999 | C142: Útiles y materiales de oficina y cómputo | D142: 1943168.61 | E142: 1711681.71 | F142: 1456171.75 | G142: 2198678.57
A143: 3.1 | B143: 1.1.4.01.99.02. | C143: Útiles y materiales médico, hospitalario y de investigación | D143: 0 | E143: 675000 | F143: 486000 | G143: 189000
A144: 3.1 | B144: 1.1.4.01.99.02.0. | C144: Útiles y materiales médico, hospitalario y de investigación | D144: 0 | E144: 675000 | F144: 486000 | G144: 189000
A145: 3.1 | B145: 1.1.4.01.99.02.0.99999 | C145: Útiles y materiales médico, hospitalario y de investigación | D145: 0 | E145: 675000 | F145: 486000 | G145: 189000
A146: 3.1 | B146: 1.1.4.01.99.03. | C146: Productos de papel, cartón e impresos | D146: 2730589.18 | E146: 1487939.28 | F146: 1358617.99 | G146: 2859910.47
A147: 3.1 | B147: 1.1.4.01.99.03.0. | C147: Productos de papel, cartón e impresos | D147: 2730589.18 | E147: 1487939.28 | F147: 1358617.99 | G147: 2859910.47
A148: 3.1 | B148: 1.1.4.01.99.03.0.99999 | C148: Productos de papel, cartón e impresos | D148: 2730589.18 | E148: 1487939.28 | F148: 1358617.99 | G148: 2859910.47
A149: 3.1 | B149: 1.1.4.01.99.04. | C149: Textiles y vestuario | D149: 306936.35 | E149: 5355174.05 | F149: 5450742.95 | G149: 211367.45
A150: 3.1 | B150: 1.1.4.01.99.04.0. | C150: Textiles y vestuario | D150: 306936.35 | E150: 5355174.05 | F150: 5450742.95 | G150: 211367.45
A151: 3.1 | B151: 1.1.4.01.99.04.0.99999 | C151: Textiles y vestuario | D151: 306936.35 | E151: 5355174.05 | F151: 5450742.95 | G151: 211367.45
A152: 3.1 | B152: 1.1.4.01.99.05. | C152: Útiles y materiales de limpieza | D152: 2737377.74 | E152: 3527891.33 | F152: 2480766.98 | G152: 3784502.09
A153: 3.1 | B153: 1.1.4.01.99.05.0. | C153: Útiles y materiales de limpieza | D153: 2737377.74 | E153: 3527891.33 | F153: 2480766.98 | G153: 3784502.09
A154: 3.1 | B154: 1.1.4.01.99.05.0.99999 | C154: Útiles y materiales de limpieza | D154: 2737377.74 | E154: 3527891.33 | F154: 2480766.98 | G154: 3784502.09
A155: 3.1 | B155: 1.1.4.01.99.06. | C155: Útiles y materiales de resguardo y seguridad | D155: 2042904.22 | E155: 5083437.44 | F155: 4342687 | G155: 2783654.66
A156: 3.1 | B156: 1.1.4.01.99.06.0. | C156: Útiles y materiales de resguardo y seguridad | D156: 2042904.22 | E156: 5083437.44 | F156: 4342687 | G156: 2783654.66
A157: 3.1 | B157: 1.1.4.01.99.06.0.99999 | C157: Útiles y materiales de resguardo y seguridad | D157: 2042904.22 | E157: 5083437.44 | F157: 4342687 | G157: 2783654.66
A158: 3.1 | B158: 1.1.4.01.99.99. | C158: Otros útiles, materiales y suministros diversos | D158: 539824 | E158: 279364 | F158: 133018 | G158: 686170
A159: 3.1 | B159: 1.1.4.01.99.99.0. | C159: Otros útiles, materiales y suministros diversos | D159: 539824 | E159: 279364 | F159: 133018 | G159: 686170
A160: 3.1 | B160: 1.1.4.01.99.99.0.99999 | C160: Otros útiles, materiales y suministros diversos | D160: 539824 | E160: 279364 | F160: 133018 | G160: 686170
A161: 3.1 | B161: 1.1.9. | C161: Otros activos a corto plazo | D161: 26295622.24 | E161: 56287900.36 | F161: 57418180.43 | G161: 25165342.17
A162: 3.1 | B162: 1.1.9.01. | C162: Gastos a devengar a corto plazo | D162: 26295622.24 | E162: 56287900.36 | F162: 57418180.43 | G162: 25165342.17
A163: 3.1 | B163: 1.1.9.01.01. | C163: Servicios a devengar c/p | D163: 26295622.24 | E163: 56287900.36 | F163: 57418180.43 | G163: 25165342.17
A164: 3.1 | B164: 1.1.9.01.01.01. | C164: Primas y gastos de seguros a devengar c/p | D164: 26295622.24 | E164: 56287900.36 | F164: 57418180.43 | G164: 25165342.17
A165: 3.1 | B165: 1.1.9.01.01.01.0. | C165: Primas y gastos de seguros a devengar c/p | D165: 26295622.24 | E165: 56287900.36 | F165: 57418180.43 | G165: 25165342.17
A166: 3.1 | B166: 1.1.9.01.01.01.0.99999 | C166: Primas y gastos de seguros a devengar c/p | D166: 26295622.24 | E166: 56287900.36 | F166: 57418180.43 | G166: 25165342.17
A167: 3.1 | B167: 1.2. | C167: Activo No Corriente | D167: 1.630108083e+11 | E167: 545345968.2 | F167: 351752789.4 | G167: 1.632044014e+11
A168: 3.1 | B168: 1.2.5. | C168: Bienes no concesionados | D168: 1.630108083e+11 | E168: 545345968.2 | F168: 351752789.4 | G168: 1.632044014e+11
A169: 3.1 | B169: 1.2.5.01. | C169: Propiedades, planta y equipos explotados | D169: 2155163988 | E169: 426685739 | F169: 341135270.9 | G169: 2240714457
A170: 3.1 | B170: 1.2.5.01.02. | C170: Edificios | D170: 1250873081 | E170: 46566425.89 | F170: 54667808.01 | G170: 1242771699
A171: 3.1 | B171: 1.2.5.01.02.01. | C171: Edificios de oficinas atención al públ | D171: 439702157.1 | E171: 2226968.22 | F171: 9088808.1 | G171: 432840317.2
A172: 3.1 | B172: 1.2.5.01.02.01.1. | C172: Edificios de oficinas y atención público Valores Origen | D172: 258127776.8 | E172: 0 | F172: 0 | G172: 258127776.8
A173: 3.1 | B173: 1.2.5.01.02.01.1.99999 | C173: Edificios de oficinas y atención público Valores Origen | D173: 258127776.8 | E173: 0 | F173: 0 | G173: 258127776.8
A174: 3.1 | B174: 1.2.5.01.02.01.3. | C174: Edificios oficinas y atención público Depreciación Acumulada | D174: -9149119.74 | E174: 1436968.18 | F174: 8298808.06 | G174: -16010959.62
A175: 3.1 | B175: 1.2.5.01.02.01.3.99999 | C175: Edificios oficinas y atención público Depreciación Acumulada | D175: -9149119.74 | E175: 1436968.18 | F175: 8298808.06 | G175: -16010959.62
A176: 3.1 | B176: 1.2.5.01.02.01.4. | C176: Edificios oficinas y atención público Pérdidas por Deterioro | D176: 0 | E176: 790000.04 | F176: 790000.04 | G176: 0
A177: 3.1 | B177: 1.2.5.01.02.01.4.99999 | C177: Edificios oficinas y atención público Pérdidas por Deterioro | D177: 0 | E177: 790000.04 | F177: 790000.04 | G177: 0
A178: 3.1 | B178: 1.2.5.01.02.01.6. | C178: Edificios oficinas y atención público Porción Terreno Valores Origen | D178: 190723500 | E178: 0 | F178: 0 | G178: 190723500
A179: 3.1 | B179: 1.2.5.01.02.01.6.99999 | C179: Edificios oficinas y atención público Porción Terreno Valores Origen | D179: 190723500 | E179: 0 | F179: 0 | G179: 190723500
A180: 3.1 | B180: 1.2.5.01.02.04. | C180: Bodegas | D180: 0 | E180: 16326666.69 | F180: 9875000.06 | G180: 6451666.63
A181: 3.1 | B181: 1.2.5.01.02.04.1. | C181: Bodegas Valores de origen | D181: 0 | E181: 15800000 | F181: 0 | G181: 15800000
A182: 3.1 | B182: 1.2.5.01.02.04.1.99999 | C182: Bodegas Valores de origen | D182: 0 | E182: 15800000 | F182: 0 | G182: 15800000
A183: 3.1 | B183: 1.2.5.01.02.04.3. | C183: Bodegas Depreciaciones acumuladas * | D183: 0 | E183: 526666.69 | F183: 9875000.06 | G183: -9348333.37
A184: 3.1 | B184: 1.2.5.01.02.04.3.99999 | C184: Bodegas Depreciaciones acumuladas * | D184: 0 | E184: 526666.69 | F184: 9875000.06 | G184: -9348333.37
A185: 3.1 | B185: 1.2.5.01.02.05. | C185: Locales | D185: 297585392.3 | E185: 7750489.01 | F185: 7505554.45 | G185: 297830326.9
A186: 3.1 | B186: 1.2.5.01.02.05.1. | C186: Locales Valores de origen | D186: 198576095.4 | E186: 0 | F186: 0 | G186: 198576095.4
A187: 3.1 | B187: 1.2.5.01.02.05.1.99999 | C187: Locales Valores de origen | D187: 198576095.4 | E187: 0 | F187: 0 | G187: 198576095.4
A188: 3.1 | B188: 1.2.5.01.02.05.3. | C188: Locales Depreciaciones acumuladas * | D188: -6823353.09 | E188: 2180339.01 | F188: 7505554.45 | G188: -12148568.53
A189: 3.1 | B189: 1.2.5.01.02.05.3.99999 | C189: Locales Depreciaciones acumuladas * | D189: -6823353.09 | E189: 2180339.01 | F189: 7505554.45 | G189: -12148568.53
A190: 3.1 | B190: 1.2.5.01.02.05.5. | C190: Locales Mejoras | D190: 0 | E190: 5570150 | F190: 0 | G190: 5570150
A191: 3.1 | B191: 1.2.5.01.02.05.5.99999 | C191: Locales Mejoras | D191: 0 | E191: 5570150 | F191: 0 | G191: 5570150
A192: 3.1 | B192: 1.2.5.01.02.05.6. | C192: Locales Porción terreno: valores de origen | D192: 105832650 | E192: 0 | F192: 0 | G192: 105832650
A193: 3.1 | B193: 1.2.5.01.02.05.6.99999 | C193: Locales Porción terreno: valores de origen | D193: 105832650 | E193: 0 | F193: 0 | G193: 105832650
A194: 3.1 | B194: 1.2.5.01.02.99. | C194: Otros edificios | D194: 513585531.3 | E194: 20262301.97 | F194: 28198445.4 | G194: 505649387.9
A195: 3.1 | B195: 1.2.5.01.02.99.1. | C195: Otros edificios Valores de origen | D195: 362322050.9 | E195: 20205550 | F195: 20205550 | G195: 362322050.9
A196: 3.1 | B196: 1.2.5.01.02.99.1.99999 | C196: Otros edificios Valores de origen | D196: 362322050.9 | E196: 20205550 | F196: 20205550 | G196: 362322050.9
A197: 3.1 | B197: 1.2.5.01.02.99.3. | C197: Otros edificios Depreciaciones acumuladas * | D197: -10193719.61 | E197: 56751.97 | F197: 7992895.4 | G197: -18129863.04
A198: 3.1 | B198: 1.2.5.01.02.99.3.99999 | C198: Otros edificios Depreciaciones acumuladas * | D198: -10193719.61 | E198: 56751.97 | F198: 7992895.4 | G198: -18129863.04
A199: 3.1 | B199: 1.2.5.01.02.99.6. | C199: Otros edificios Porción terreno: valores de origen | D199: 161457200 | E199: 0 | F199: 0 | G199: 161457200
A200: 3.1 | B200: 1.2.5.01.02.99.6.99999 | C200: Otros edificios Porción terreno: valores de origen | D200: 161457200 | E200: 0 | F200: 0 | G200: 161457200
A201: 3.1 | B201: 1.2.5.01.03. | C201: Maquinaria equipos para la producción | D201: 786374546 | E201: 285154795.2 | F201: 217484274.9 | G201: 854045066.3
A202: 3.1 | B202: 1.2.5.01.03.01. | C202: Maquinaria para la construcción | D202: 754306983.3 | E202: 276720926.2 | F202: 209996952.7 | G202: 821030956.8
A203: 3.1 | B203: 1.2.5.01.03.01.1. | C203: Maquinaria para la construcción Valores de origen | D203: 1997638164 | E203: 276048832.1 | F203: 0 | G203: 2273686996
A204: 3.1 | B204: 1.2.5.01.03.01.1.99999 | C204: Maquinaria para la construcción Valores de origen | D204: 1997638164 | E204: 276048832.1 | F204: 0 | G204: 2273686996
A205: 3.1 | B205: 1.2.5.01.03.01.3. | C205: Maq para la construcción Depreciaciones acumuladas | D205: -1243331181 | E205: 672094.13 | F205: 209996952.7 | G205: -1452656039
A206: 3.1 | B206: 1.2.5.01.03.01.3.99999 | C206: Maq para la construcción Depreciaciones acumuladas | D206: -1243331181 | E206: 672094.13 | F206: 209996952.7 | G206: -1452656039
A207: 3.1 | B207: 1.2.5.01.03.03. | C207: Planta eléctrica | D207: 3500057.28 | E207: 0 | F207: 345978.96 | G207: 3154078.32
A208: 3.1 | B208: 1.2.5.01.03.03.1. | C208: Planta eléctrica Valores de origen | D208: 5189684.8 | E208: 0 | F208: 0 | G208: 5189684.8
... 831 more rows

Sheet BC_ANTERIOR
A9: CODIGO SEGMENTO | B9: CUENTA (REPORTAR MÁXIMO A NIVEL 8) | C9: NOMBRE CUENTA | D9: SALDO INICIAL | E9: DEBITOS PERIODO | F9: CREDITOS PERIODO | G9: SALDO FINAL
A10: 3.1 | B10: 1. | C10: ACTIVO | D10: 1.662327302e+11 | E10: 1.557370486e+10 | F10: 1.597358975e+10 | G10: 1.658328453e+11
A11: 3.1 | B11: 1.1. | C11: Activo Corriente | D11: 3349699858 | E11: 1.498015259e+10 | F11: 1.550781538e+10 | G11: 2822037062
A12: 3.1 | B12: 1.1.1. | C12: Efectivo equivalentes de efectivo | D12: 2705767389 | E12: 8620068481 | F12: 9219023959 | G12: 2106811911
A13: 3.1 | B13: 1.1.1.01. | C13: Efectivo | D13: 2705767389 | E13: 7941797205 | F13: 8540752683 | G13: 2106811911
A14: 3.1 | B14: 1.1.1.01.02. | C14: Depósitos bancarios | D14: 2704317389 | E14: 7938047205 | F14: 8538802683 | G14: 2103561911
A15: 3.1 | B15: 1.1.1.01.02.02. | C15: Depósitos bancarios en el sector público interno | D15: 2704317389 | E15: 7938047205 | F15: 8538802683 | G15: 2103561911
A16: 3.1 | B16: 1.1.1.01.02.02.2. | C16: Cuentas corrientes en el sector público interno | D16: 600136255.9 | E16: 2619932502 | F16: 2532835218 | G16: 687233539.5
A17: 3.1 | B17: 1.1.1.01.02.02.2.21101 | C17: Banco Costa Rica | D17: 478691142.3 | E17: 608687986.8 | F17: 714781127.4 | G17: 372598001.7
A18: 3.1 | B18: 1.1.1.01.02.02.2.21103 | C18: Banco Nacional de Costa Rica | D18: 121445113.7 | E18: 2011244515 | F18: 1818054091 | G18: 314635537.9
A19: 3.1 | B19: 1.1.1.01.02.02.3. | C19: Caja Única | D19: 2104181133 | E19: 5318114703 | F19: 6005967464 | G19: 1416328372
A20: 3.1 | B20: 1.1.1.01.02.02.3.11206 | C20: Ministerio de Hacienda | D20: 2104181133 | E20: 5318114703 | F20: 6005967464 | G20: 1416328372
A21: 3.1 | B21: 1.1.1.01.03. | C21: Cajas chicas fondos rotatorios | D21: 1450000 | E21: 3750000 | F21: 1950000 | G21: 3250000
A22: 3.1 | B22: 1.1.1.01.03.01. | C22: Cajas chicas | D22: 450000 | E22: 3750000 | F22: 1950000 | G22: 2250000
A23: 3.1 | B23: 1.1.1.01.03.01.2. | C23: Cajas chicas en el país | D23: 450000 | E23: 3750000 | F23: 1950000 | G23: 2250000
A24: 3.1 | B24: 1.1.1.01.03.01.2.99999 | C24: Cajas chicas en el país | D24: 450000 | E24: 3750000 | F24: 1950000 | G24: 2250000
A25: 3.1 | B25: 1.1.1.01.03.02. | C25: Fondos rotatorios | D25: 1000000 | E25: 0 | F25: 0 | G25: 1000000
A26: 3.1 | B26: 1.1.1.01.03.02.2. | C26: Fondos rotatorios en el sector público interno | D26: 1000000 | E26: 0 | F26: 0 | G26: 1000000
A27: 3.1 | B27: 1.1.1.01.03.02.2.99999 | C27: Fondos rotatorios en el sector público interno | D27: 1000000 | E27: 0 | F27: 0 | G27: 1000000
A28: 3.1 | B28: 1.1.1.02. | C28: Equivalentes de efectivo | D28: 0 | E28: 678271275.7 | F28: 678271275.7 | G28: 0
A29: 3.1 | B29: 1.1.1.02.99. | C29: Otros equivalentes de efectivo | D29: 0 | E29: 678271275.7 | F29: 678271275.7 | G29: 0
A30: 3.1 | B30: 1.1.1.02.99.02. | C30: Otros equivalentes de efectivo en el sector público interno | D30: 0 | E30: 678271275.7 | F30: 678271275.7 | G30: 0
A31: 3.1 | B31: 1.1.1.02.99.02.0. | C31: Otros equivalentes de efectivo en el sector público interno | D31: 0 | E31: 678271275.7 | F31: 678271275.7 | G31: 0
A32: 3.1 | B32: 1.1.1.02.99.02.0.21101 | C32: Banco Costa Rica | D32: 0 | E32: 311624057.2 | F32: 311624057.2 | G32: 0
A33: 3.1 | B33: 1.1.1.02.99.02.0.21103 | C33: Banco Nacional de Costa Rica | D33: 0 | E33: 366647218.5 | F33: 366647218.5 | G33: 0
A34: 3.1 | B34: 1.1.3. | C34: Cuentas a cobrar a c/p | D34: 616617332.2 | E34: 6100237757 | F34: 6220912653 | G34: 495942436.4
A35: 3.1 | B35: 1.1.3.01. | C35: Impuestos a cobrar a c/p | D35: 619441745.8 | E35: 1404350721 | F35: 1535422953 | G35: 488369513.4
A36: 3.1 | B36: 1.1.3.01.02. | C36: Impuestos sobre la propiedad a cobrar c/p | D36: 583097545.6 | E36: 1097625125 | F36: 1225858098 | G36: 454864572.4
A37: 3.1 | B37: 1.1.3.01.02.01. | C37: Impuesto sobre la propiedad de bienes inmuebles a cobrar c/p | D37: 583097545.6 | E37: 1097625125 | F37: 1225858098 | G37: 454864572.4
A38: 3.1 | B38: 1.1.3.01.02.01.0. | C38: Impuesto sobre la propiedad de bienes inmuebles a cobrar c/p | D38: 583097545.6 | E38: 1097625125 | F38: 1225858098 | G38: 454864572.4
A39: 3.1 | B39: 1.1.3.01.02.01.0.99999 | C39: Impuesto sobre la propiedad de bienes inmuebles a cobrar c/p | D39: 583097545.6 | E39: 1097625125 | F39: 1225858098 | G39: 454864572.4
A40: 3.1 | B40: 1.1.3.01.03. | C40: Impuestos sobre bienes y servicios a cobrar c/p | D40: 36344200.19 | E40: 306725595.6 | F40: 309564854.9 | G40: 33504940.95
A41: 3.1 | B41: 1.1.3.01.03.99. | C41: Otros Impuestos sobre bienes y servicios a cobrar c/p | D41: 36344200.19 | E41: 306725595.6 | F41: 309564854.9 | G41: 33504940.95
A42: 3.1 | B42: 1.1.3.01.03.99.1. | C42: Licencias profesionales, comerciales y otros permisos a cobrar c/p | D42: 34052862.94 | E42: 294079923.4 | F42: 298088625.8 | G42: 30044160.51
A43: 3.1 | B43: 1.1.3.01.03.99.1.99999 | C43: Licencias profesionales, comerciales y otros permisos a cobrar c/p | D43: 34052862.94 | E43: 294079923.4 | F43: 298088625.8 | G43: 30044160.51
A44: 3.1 | B44: 1.1.3.01.03.99.9. | C44: Otros impuestos varios sobre bienes y servicios a cobrar c/p | D44: 2291337.25 | E44: 12645672.25 | F44: 11476229.06 | G44: 3460780.44
A45: 3.1 | B45: 1.1.3.01.03.99.9.99999 | C45: Otros impuestos varios sobre bienes y servicios a cobrar c/p | D45: 2291337.25 | E45: 12645672.25 | F45: 11476229.06 | G45: 3460780.44
A46: 3.1 | B46: 1.1.3.04. | C46: Servicios y derechos a cobrar a corto plazo | D46: 171480251.5 | E46: 525369525.2 | F46: 516666138.9 | G46: 180183637.8
A47: 3.1 | B47: 1.1.3.04.01. | C47: Servicios a cobrar c/p | D47: 170633251.5 | E47: 524387525.2 | F47: 515279593.9 | G47: 179741182.8
A48: 3.1 | B48: 1.1.3.04.01.04. | C48: Servicios comunitarios a cobrar c/p | D48: 170633251.5 | E48: 524387525.2 | F48: 515279593.9 | G48: 179741182.8
A49: 3.1 | B49: 1.1.3.04.01.04.0. | C49: Servicios comunitarios a cobrar c/p | D49: 170633251.5 | E49: 524387525.2 | F49: 515279593.9 | G49: 179741182.8
A50: 3.1 | B50: 1.1.3.04.01.04.0.99999 | C50: Servicios comunitarios a cobrar c/p | D50: 170633251.5 | E50: 524387525.2 | F50: 515279593.9 | G50: 179741182.8
A51: 3.1 | B51: 1.1.3.04.02. | C51: Derechos administrativos a cobrar c/p | D51: 847000 | E51: 982000 | F51: 1386545 | G51: 442455
A52: 3.1 | B52: 1.1.3.04.02.01. | C52: Derechos administrativos a los servicios de transporte a cobrar c/p | D52: 340000 | E52: 660000 | F52: 950000 | G52: 50000
A53: 3.1 | B53: 1.1.3.04.02.01.0. | C53: Derechos administrativos a los servicios de transporte a cobrar c/p | D53: 340000 | E53: 660000 | F53: 950000 | G53: 50000
A54: 3.1 | B54: 1.1.3.04.02.01.0.99999 | C54: Derechos administrativos a los servicios de transporte a cobrar c/p Derecho de piso uso terminal | D54: 340000 | E54: 660000 | F54: 950000 | G54: 50000
A55: 3.1 | B55: 1.1.3.04.02.99. | C55: Otros derechos administrativos a cobrar c/p | D55: 507000 | E55: 322000 | F55: 436545 | G55: 392455
A56: 3.1 | B56: 1.1.3.04.02.99.0. | C56: Otros derechos administrativos a cobrar c/p | D56: 507000 | E56: 322000 | F56: 436545 | G56: 392455
A57: 3.1 | B57: 1.1.3.04.02.99.0.99999 | C57: Otros derechos administrativos a cobrar c/p Derecho cementerio | D57: 507000 | E57: 322000 | F57: 436545 | G57: 392455
A58: 3.1 | B58: 1.1.3.06. | C58: Transferencias a cobrar a c/p | D58: 0 | E58: 4157821709 | F58: 4157821709 | G58: 0
A59: 3.1 | B59: 1.1.3.06.02. | C59: Transferencias del sector público interno a cobrar c/p | D59: 0 | E59: 4157821709 | F59: 4157821709 | G59: 0
A60: 3.1 | B60: 1.1.3.06.02.01. | C60: Transferencias del Gobierno Central a cobrar c/p | D60: 0 | E60: 4139431351 | F60: 4139431351 | G60: 0
A61: 3.1 | B61: 1.1.3.06.02.01.0. | C61: Transferencias del Gobierno Central a cobrar c/p | D61: 0 | E61: 4139431351 | F61: 4139431351 | G61: 0
A62: 3.1 | B62: 1.1.3.06.02.01.0.11206 | C62: Ministerio de Hacienda | D62: 0 | E62: 4139431351 | F62: 4139431351 | G62: 0
A63: 3.1 | B63: 1.1.3.06.02.02. | C63: Transferencias de Órganos Desconcentrados a cobrar c/p | D63: 0 | E63: 6428232 | F63: 6428232 | G63: 0
A64: 3.1 | B64: 1.1.3.06.02.02.0. | C64: Transferencias de Órganos Desconcentrados a cobrar c/p | D64: 0 | E64: 6428232 | F64: 6428232 | G64: 0
A65: 3.1 | B65: 1.1.3.06.02.02.0.12583 | C65: Transfrencias de Organos desconcentrados a cobrar.Consejo Nacional de la Política Pública de la Persona Joven (CPJ) | D65: 0 | E65: 6428232 | F65: 6428232 | G65: 0
A66: 3.1 | B66: 1.1.3.06.02.03. | C66: Transferencias de Instituciones Descentralizadas no Empresariales a cobrar c/p | D66: 0 | E66: 11962125.78 | F66: 11962125.78 | G66: 0
A67: 3.1 | B67: 1.1.3.06.02.03.0. | C67: Transferencias de Instituciones Descentralizadas no Empresariales a cobrar c/p | D67: 0 | E67: 11962125.78 | F67: 11962125.78 | G67: 0
A68: 3.1 | B68: 1.1.3.06.02.03.0.14226 | C68: Transferencias de Instituciones Descentralizadas no Empresariales a cobrar c/p (Aporte IFAM Licores Nacionales y Ext) | D68: 0 | E68: 11962125.78 | F68: 11962125.78 | G68: 0
A69: 3.1 | B69: 1.1.3.98. | C69: Otras cuentas a cobrar a corto plazo | D69: 1073232.35 | E69: 12695802.65 | F69: 11001852.4 | G69: 2767182.6
A70: 3.1 | B70: 1.1.3.98.01. | C70: Multas, sanciones, remates y confiscaciones de origen no tributario a cobrar c/p | D70: 1073232.35 | E70: 12195802.65 | F70: 11001852.4 | G70: 2267182.6
A71: 3.1 | B71: 1.1.3.98.01.01. | C71: Multas y sanciones administrativas a cobrar c/p | D71: 1073232.35 | E71: 12195802.65 | F71: 11001852.4 | G71: 2267182.6
A72: 3.1 | B72: 1.1.3.98.01.01.0. | C72: Multas y sanciones administrativas a cobrar c/p | D72: 1073232.35 | E72: 12195802.65 | F72: 11001852.4 | G72: 2267182.6
A73: 3.1 | B73: 1.1.3.98.01.01.0.99999 | C73: Multas y sanciones administrativas a cobrar c/p | D73: 1073232.35 | E73: 12195802.65 | F73: 11001852.4 | G73: 2267182.6
A74: 3.1 | B74: 1.1.3.98.03. | C74: Depósitos en garantía c/p | D74: 0 | E74: 500000 | F74: 0 | G74: 500000
A75: 3.1 | B75: 1.1.3.98.03.02. | C75: Depósitos en garantía en el sector público interno c/p | D75: 0 | E75: 500000 | F75: 0 | G75: 500000
A76: 3.1 | B76: 1.1.3.98.03.02.0. | C76: Depósitos en garantía en el sector público interno c/p | D76: 0 | E76: 500000 | F76: 0 | G76: 500000
A77: 3.1 | B77: 1.1.3.98.03.02.0.99999 | C77: Depósitos en garantía en el sector público interno c/p | D77: 0 | E77: 500000 | F77: 0 | G77: 500000
A78: 3.1 | B78: 1.1.3.99. | C78: Previsiones para deterioro de cuentas a cobrar a corto plazo * | D78: -175377897.4 | E78: 0 | F78: 0 | G78: -175377897.4
A79: 3.1 | B79: 1.1.3.99.01. | C79: Previsiones para impuestos a cobrar c/p * | D79: -116983004.6 | E79: 0 | F79: 0 | G79: -116983004.6
A80: 3.1 | B80: 1.1.3.99.01.02. | C80: Previsiones para impuestos sobre la propiedad a cobrar c/p * | D80: -106283608.3 | E80: 0 | F80: 0 | G80: -106283608.3
A81: 3.1 | B81: 1.1.3.99.01.02.0. | C81: Previsiones para impuestos sobre la propiedad a cobrar c/p * | D81: -106283608.3 | E81: 0 | F81: 0 | G81: -106283608.3
A82: 3.1 | B82: 1.1.3.99.01.02.0.99999 | C82: Previsiones para impuestos sobre la propiedad a cobrar c/p * | D82: -106283608.3 | E82: 0 | F82: 0 | G82: -106283608.3
A83: 3.1 | B83: 1.1.3.99.01.03. | C83: Previsiones para impuestos sobre bienes y servicios a cobrar c/p * | D83: -9270015.01 | E83: 0 | F83: 0 | G83: -9270015.01
A84: 3.1 | B84: 1.1.3.99.01.03.0. | C84: Previsiones para impuestos sobre bienes y servicios a cobrar c/p * | D84: -9270015.01 | E84: 0 | F84: 0 | G84: -9270015.01
A85: 3.1 | B85: 1.1.3.99.01.03.0.99999 | C85: Previsiones para impuestos sobre bienes y servicios a cobrar c/p * | D85: -9270015.01 | E85: 0 | F85: 0 | G85: -9270015.01
A86: 3.1 | B86: 1.1.3.99.01.99. | C86: Previsiones para otros impuestos a cobrar c/p * | D86: -1429381.33 | E86: 0 | F86: 0 | G86: -1429381.33
A87: 3.1 | B87: 1.1.3.99.01.99.0. | C87: Previsiones para otros impuestos a cobrar c/p * | D87: -1429381.33 | E87: 0 | F87: 0 | G87: -1429381.33
A88: 3.1 | B88: 1.1.3.99.01.99.0.99999 | C88: Previsiones para otros impuestos a cobrar c/p * | D88: -1429381.33 | E88: 0 | F88: 0 | G88: -1429381.33
A89: 3.1 | B89: 1.1.3.99.04. | C89: Previsiones para servicios a cobrar c/p * | D89: -51378929.55 | E89: 0 | F89: 0 | G89: -51378929.55
A90: 3.1 | B90: 1.1.3.99.04.01. | C90: Previsiones para ventas de servicios a cobrar c/p * | D90: -50738208.69 | E90: 0 | F90: 0 | G90: -50738208.69
A91: 3.1 | B91: 1.1.3.99.04.01.0. | C91: Previsiones para ventas de servicios a cobrar c/p * | D91: -50738208.69 | E91: 0 | F91: 0 | G91: -50738208.69
A92: 3.1 | B92: 1.1.3.99.04.01.0.99999 | C92: Previsiones para ventas de servicios a cobrar c/p * | D92: -50738208.69 | E92: 0 | F92: 0 | G92: -50738208.69
A93: 3.1 | B93: 1.1.3.99.04.02. | C93: Previsiones para derechos administrativos a cobrar c/p * | D93: -640720.86 | E93: 0 | F93: 0 | G93: -640720.86
A94: 3.1 | B94: 1.1.3.99.04.02.0. | C94: Previsiones para derechos administrativos a cobrar c/p * | D94: -640720.86 | E94: 0 | F94: 0 | G94: -640720.86
A95: 3.1 | B95: 1.1.3.99.04.02.0.99999 | C95: Previsiones para derechos administrativos a cobrar c/p * | D95: -640720.86 | E95: 0 | F95: 0 | G95: -640720.86
A96: 3.1 | B96: 1.1.3.99.05. | C96: Previsiones para ingresos de la propiedad a cobrar c/p * | D96: -7015963.19 | E96: 0 | F96: 0 | G96: -7015963.19
A97: 3.1 | B97: 1.1.3.99.05.01. | C97: Previsiones para alquileres y derechos sobre bienes a cobrar c/p * | D97: -7015963.19 | E97: 0 | F97: 0 | G97: -7015963.19
A98: 3.1 | B98: 1.1.3.99.05.01.0. | C98: Previsiones para alquileres y derechos sobre bienes a cobrar c/p * | D98: -7015963.19 | E98: 0 | F98: 0 | G98: -7015963.19
A99: 3.1 | B99: 1.1.3.99.05.01.0.99999 | C99: Previsiones para alquileres y derechos sobre bienes a cobrar c/p * | D99: -7015963.19 | E99: 0 | F99: 0 | G99: -7015963.19
A100: 3.1 | B100: 1.1.4. | C100: Inventarios | D100: 4559673.55 | E100: 202605131.2 | F100: 14177712.56 | G100: 192987092.2
A101: 3.1 | B101: 1.1.4.01. | C101: Materiales y suministros para consumo y prestación de servicios | D101: 4559673.55 | E101: 202605131.2 | F101: 14177712.56 | G101: 192987092.2
A102: 3.1 | B102: 1.1.4.01.01. | C102: Productos químicos y conexos | D102: 1195234.05 | E102: 23083581.78 | F102: 2998320.74 | G102: 21280495.09
A103: 3.1 | B103: 1.1.4.01.01.01. | C103: Combustibles y lubricantes | D103: 0 | E103: 19372089.25 | F103: 1687749.79 | G103: 17684339.46
A104: 3.1 | B104: 1.1.4.01.01.01.0. | C104: Combustibles y lubricantes | D104: 0 | E104: 19372089.25 | F104: 1687749.79 | G104: 17684339.46
A105: 3.1 | B105: 1.1.4.01.01.01.0.99999 | C105: Combustibles y lubricantes | D105: 0 | E105: 19372089.25 | F105: 1687749.79 | G105: 17684339.46
A106: 3.1 | B106: 1.1.4.01.01.02. | C106: Productos farmacéuticos y medicinales | D106: 0 | E106: 6400 | F106: 0 | G106: 6400
A107: 3.1 | B107: 1.1.4.01.01.02.0. | C107: Productos farmacéuticos y medicinales | D107: 0 | E107: 6400 | F107: 0 | G107: 6400
A108: 3.1 | B108: 1.1.4.01.01.02.0.99999 | C108: Productos farmacéuticos y medicinales | D108: 0 | E108: 6400 | F108: 0 | G108: 6400
A109: 3.1 | B109: 1.1.4.01.01.04. | C109: Tintas, pinturas y diluyentes | D109: 1195234.05 | E109: 2516936.53 | F109: 936576.95 | G109: 2775593.63
A110: 3.1 | B110: 1.1.4.01.01.04.0. | C110: Tintas, pinturas y diluyentes | D110: 1195234.05 | E110: 2516936.53 | F110: 936576.95 | G110: 2775593.63
A111: 3.1 | B111: 1.1.4.01.01.04.0.99999 | C111: Tintas, pinturas y diluyentes | D111: 1195234.05 | E111: 2516936.53 | F111: 936576.95 | G111: 2775593.63
A112: 3.1 | B112: 1.1.4.01.01.99. | C112: Otros productos químicos y conexos | D112: 0 | E112: 1188156 | F112: 373994 | G112: 814162
A113: 3.1 | B113: 1.1.4.01.01.99.0. | C113: Otros productos químicos y conexos | D113: 0 | E113: 1188156 | F113: 373994 | G113: 814162
A114: 3.1 | B114: 1.1.4.01.01.99.0.99999 | C114: Otros productos químicos y conexos | D114: 0 | E114: 1188156 | F114: 373994 | G114: 814162
A115: 3.1 | B115: 1.1.4.01.03. | C115: Materiales y productos de uso en la construcción y mantenimiento | D115: 0 | E115: 34189729.49 | F115: 4061940.24 | G115: 30127789.25
A116: 3.1 | B116: 1.1.4.01.03.01. | C116: Materiales y productos metálicos | D116: 0 | E116: 26486657.62 | F116: 1247953.42 | G116: 25238704.2
A117: 3.1 | B117: 1.1.4.01.03.01.0. | C117: Materiales y productos metálicos | D117: 0 | E117: 26486657.62 | F117: 1247953.42 | G117: 25238704.2
A118: 3.1 | B118: 1.1.4.01.03.01.0.99999 | C118: Materiales y productos metálicos | D118: 0 | E118: 26486657.62 | F118: 1247953.42 | G118: 25238704.2
A119: 3.1 | B119: 1.1.4.01.03.02. | C119: Materiales y productos minerales y asfálticos | D119: 0 | E119: 5475775.81 | F119: 1767098.81 | G119: 3708677
A120: 3.1 | B120: 1.1.4.01.03.02.0. | C120: Materiales y productos minerales y asfálticos | D120: 0 | E120: 5475775.81 | F120: 1767098.81 | G120: 3708677
A121: 3.1 | B121: 1.1.4.01.03.02.0.99999 | C121: Materiales y productos minerales y asfálticos | D121: 0 | E121: 5475775.81 | F121: 1767098.81 | G121: 3708677
A122: 3.1 | B122: 1.1.4.01.03.03. | C122: Madera y sus derivados | D122: 0 | E122: 1836820 | F122: 940305 | G122: 896515
A123: 3.1 | B123: 1.1.4.01.03.03.0. | C123: Madera y sus derivados | D123: 0 | E123: 1836820 | F123: 940305 | G123: 896515
A124: 3.1 | B124: 1.1.4.01.03.03.0.99999 | C124: Madera y sus derivados | D124: 0 | E124: 1836820 | F124: 940305 | G124: 896515
A125: 3.1 | B125: 1.1.4.01.03.04. | C125: Materiales y productos eléctricos, telefónicos y de cómputo | D125: 0 | E125: 204931.56 | F125: 69760 | G125: 135171.56
A126: 3.1 | B126: 1.1.4.01.03.04.0. | C126: Materiales y productos eléctricos, telefónicos y de cómputo | D126: 0 | E126: 204931.56 | F126: 69760 | G126: 135171.56
A127: 3.1 | B127: 1.1.4.01.03.04.0.99999 | C127: Materiales y productos eléctricos, telefónicos y de cómputo | D127: 0 | E127: 204931.56 | F127: 69760 | G127: 135171.56
A128: 3.1 | B128: 1.1.4.01.03.06. | C128: Materiales y productos de plástico | D128: 0 | E128: 185544.5 | F128: 36823.01 | G128: 148721.49
A129: 3.1 | B129: 1.1.4.01.03.06.0. | C129: Materiales y productos de plástico | D129: 0 | E129: 185544.5 | F129: 36823.01 | G129: 148721.49
A130: 3.1 | B130: 1.1.4.01.03.06.0.99999 | C130: Materiales y productos de plástico | D130: 0 | E130: 185544.5 | F130: 36823.01 | G130: 148721.49
A131: 3.1 | B131: 1.1.4.01.04. | C131: Herramientas, repuestos y accesorios | D131: 0 | E131: 134450344.9 | F131: 3172337.09 | G131: 131278007.8
A132: 3.1 | B132: 1.1.4.01.04.01. | C132: Herramientas e instrumentos | D132: 0 | E132: 1296662.5 | F132: 63021 | G132: 1233641.5
A133: 3.1 | B133: 1.1.4.01.04.01.0. | C133: Herramientas e instrumentos | D133: 0 | E133: 1296662.5 | F133: 63021 | G133: 1233641.5
A134: 3.1 | B134: 1.1.4.01.04.01.0.99999 | C134: Herramientas e instrumentos | D134: 0 | E134: 1296662.5 | F134: 63021 | G134: 1233641.5
A135: 3.1 | B135: 1.1.4.01.04.02. | C135: Repuestos y accesorios Nuevos | D135: 0 | E135: 133153682.4 | F135: 3109316.09 | G135: 130044366.3
A136: 3.1 | B136: 1.1.4.01.04.02.0. | C136: Repuestos y accesorios Nuevos | D136: 0 | E136: 133153682.4 | F136: 3109316.09 | G136: 130044366.3
A137: 3.1 | B137: 1.1.4.01.04.02.0.99999 | C137: Repuestos y accesorios Nuevos | D137: 0 | E137: 133153682.4 | F137: 3109316.09 | G137: 130044366.3
A138: 3.1 | B138: 1.1.4.01.99. | C138: Útiles, materiales y suministros diversos | D138: 3364439.5 | E138: 10881475.09 | F138: 3945114.49 | G138: 10300800.1
A139: 3.1 | B139: 1.1.4.01.99.01. | C139: Útiles y materiales de oficina y cómputo | D139: 788819.78 | E139: 1830273.57 | F139: 675924.74 | G139: 1943168.61
A140: 3.1 | B140: 1.1.4.01.99.01.0. | C140: Útiles y materiales de oficina y cómputo | D140: 788819.78 | E140: 1830273.57 | F140: 675924.74 | G140: 1943168.61
A141: 3.1 | B141: 1.1.4.01.99.01.0.99999 | C141: Útiles y materiales de oficina y cómputo | D141: 788819.78 | E141: 1830273.57 | F141: 675924.74 | G141: 1943168.61
A142: 3.1 | B142: 1.1.4.01.99.03. | C142: Productos de papel, cartón e impresos | D142: 2511724.72 | E142: 1520826.08 | F142: 1301961.62 | G142: 2730589.18
A143: 3.1 | B143: 1.1.4.01.99.03.0. | C143: Productos de papel, cartón e impresos | D143: 2511724.72 | E143: 1520826.08 | F143: 1301961.62 | G143: 2730589.18
A144: 3.1 | B144: 1.1.4.01.99.03.0.99999 | C144: Productos de papel, cartón e impresos | D144: 2511724.72 | E144: 1520826.08 | F144: 1301961.62 | G144: 2730589.18
A145: 3.1 | B145: 1.1.4.01.99.04. | C145: Textiles y vestuario | D145: 0 | E145: 764454.3 | F145: 457517.95 | G145: 306936.35
A146: 3.1 | B146: 1.1.4.01.99.04.0. | C146: Textiles y vestuario | D146: 0 | E146: 764454.3 | F146: 457517.95 | G146: 306936.35
A147: 3.1 | B147: 1.1.4.01.99.04.0.99999 | C147: Textiles y vestuario | D147: 0 | E147: 764454.3 | F147: 457517.95 | G147: 306936.35
A148: 3.1 | B148: 1.1.4.01.99.05. | C148: Útiles y materiales de limpieza | D148: 0 | E148: 3392470.05 | F148: 655092.31 | G148: 2737377.74
A149: 3.1 | B149: 1.1.4.01.99.05.0. | C149: Útiles y materiales de limpieza | D149: 0 | E149: 3392470.05 | F149: 655092.31 | G149: 2737377.74
A150: 3.1 | B150: 1.1.4.01.99.05.0.99999 | C150: Útiles y materiales de limpieza | D150: 0 | E150: 3392470.05 | F150: 655092.31 | G150: 2737377.74
A151: 3.1 | B151: 1.1.4.01.99.06. | C151: Útiles y materiales de resguardo y seguridad | D151: 0 | E151: 2842535.09 | F151: 799630.87 | G151: 2042904.22
A152: 3.1 | B152: 1.1.4.01.99.06.0. | C152: Útiles y materiales de resguardo y seguridad | D152: 0 | E152: 2842535.09 | F152: 799630.87 | G152: 2042904.22
A153: 3.1 | B153: 1.1.4.01.99.06.0.99999 | C153: Útiles y materiales de resguardo y seguridad | D153: 0 | E153: 2842535.09 | F153: 799630.87 | G153: 2042904.22
A154: 3.1 | B154: 1.1.4.01.99.99. | C154: Otros útiles, materiales y suministros diversos | D154: 63895 | E154: 530916 | F154: 54987 | G154: 539824
A155: 3.1 | B155: 1.1.4.01.99.99.0. | C155: Otros útiles, materiales y suministros diversos | D155: 63895 | E155: 530916 | F155: 54987 | G155: 539824
A156: 3.1 | B156: 1.1.4.01.99.99.0.99999 | C156: Otros útiles, materiales y suministros diversos | D156: 63895 | E156: 530916 | F156: 54987 | G156: 539824
A157: 3.1 | B157: 1.1.9. | C157: Otros activos a corto plazo | D157: 22755462.51 | E157: 57241219 | F157: 53701059.27 | G157: 26295622.24
A158: 3.1 | B158: 1.1.9.01. | C158: Gastos a devengar a corto plazo | D158: 22755462.51 | E158: 57241219 | F158: 53701059.27 | G158: 26295622.24
A159: 3.1 | B159: 1.1.9.01.01. | C159: Servicios a devengar c/p | D159: 22755462.51 | E159: 57241219 | F159: 53701059.27 | G159: 26295622.24
A160: 3.1 | B160: 1.1.9.01.01.01. | C160: Primas y gastos de seguros a devengar c/p | D160: 22755462.51 | E160: 57241219 | F160: 53701059.27 | G160: 26295622.24
A161: 3.1 | B161: 1.1.9.01.01.01.0. | C161: Primas y gastos de seguros a devengar c/p | D161: 22755462.51 | E161: 57241219 | F161: 53701059.27 | G161: 26295622.24
A162: 3.1 | B162: 1.1.9.01.01.01.0.99999 | C162: Primas y gastos de seguros a devengar c/p | D162: 22755462.51 | E162: 57241219 | F162: 53701059.27 | G162: 26295622.24
A163: 3.1 | B163: 1.2. | C163: Activo No Corriente | D163: 1.628830304e+11 | E163: 593552272.8 | F163: 465774368.6 | G163: 1.630108083e+11
A164: 3.1 | B164: 1.2.5. | C164: Bienes no concesionados | D164: 1.628830304e+11 | E164: 593552272.8 | F164: 465774368.6 | G164: 1.630108083e+11
A165: 3.1 | B165: 1.2.5.01. | C165: Propiedades, planta y equipos explotados | D165: 2087610295 | E165: 506820609 | F165: 439266916.1 | G165: 2155163988
A166: 3.1 | B166: 1.2.5.01.02. | C166: Edificios | D166: 1191815588 | E166: 276356468.2 | F166: 217298976 | G166: 1250873081
A167: 3.1 | B167: 1.2.5.01.02.01. | C167: Edificios de oficinas atención al públ | D167: 421403917.5 | E167: 94350297.7 | F167: 76052058.12 | G167: 439702157.1
A168: 3.1 | B168: 1.2.5.01.02.01.1. | C168: Edificios de oficinas y atención público Valores Origen | D168: 258127776.8 | E168: 0 | F168: 0 | G168: 258127776.8
A169: 3.1 | B169: 1.2.5.01.02.01.1.99999 | C169: Edificios de oficinas y atención público Valores Origen | D169: 258127776.8 | E169: 0 | F169: 0 | G169: 258127776.8
A170: 3.1 | B170: 1.2.5.01.02.01.3. | C170: Edificios oficinas y atención público Depreciación Acumulada | D170: -27447359.32 | E170: 94350297.7 | F170: 76052058.12 | G170: -9149119.74
A171: 3.1 | B171: 1.2.5.01.02.01.3.99999 | C171: Edificios oficinas y atención público Depreciación Acumulada | D171: -27447359.32 | E171: 94350297.7 | F171: 76052058.12 | G171: -9149119.74
A172: 3.1 | B172: 1.2.5.01.02.01.6. | C172: Edificios oficinas y atención público Porción Terreno Valores Origen | D172: 190723500 | E172: 0 | F172: 0 | G172: 190723500
A173: 3.1 | B173: 1.2.5.01.02.01.6.99999 | C173: Edificios oficinas y atención público Porción Terreno Valores Origen | D173: 190723500 | E173: 0 | F173: 0 | G173: 190723500
A174: 3.1 | B174: 1.2.5.01.02.05. | C174: Locales | D174: 283938685.9 | E174: 70365829.54 | F174: 56719123.15 | G174: 297585392.3
A175: 3.1 | B175: 1.2.5.01.02.05.1. | C175: Locales Valores de origen | D175: 198576095.4 | E175: 0 | F175: 0 | G175: 198576095.4
A176: 3.1 | B176: 1.2.5.01.02.05.1.99999 | C176: Locales Valores de origen | D176: 198576095.4 | E176: 0 | F176: 0 | G176: 198576095.4
A177: 3.1 | B177: 1.2.5.01.02.05.3. | C177: Locales Depreciaciones acumuladas * | D177: -20470059.48 | E177: 70365829.54 | F177: 56719123.15 | G177: -6823353.09
A178: 3.1 | B178: 1.2.5.01.02.05.3.99999 | C178: Locales Depreciaciones acumuladas * | D178: -20470059.48 | E178: 70365829.54 | F178: 56719123.15 | G178: -6823353.09
A179: 3.1 | B179: 1.2.5.01.02.05.6. | C179: Locales Porción terreno: valores de origen | D179: 105832650 | E179: 0 | F179: 0 | G179: 105832650
A180: 3.1 | B180: 1.2.5.01.02.05.6.99999 | C180: Locales Porción terreno: valores de origen | D180: 105832650 | E180: 0 | F180: 0 | G180: 105832650
A181: 3.1 | B181: 1.2.5.01.02.99. | C181: Otros edificios | D181: 486472985.1 | E181: 111640341 | F181: 84527794.76 | G181: 513585531.3
A182: 3.1 | B182: 1.2.5.01.02.99.1. | C182: Otros edificios Valores de origen | D182: 355511815.9 | E182: 6810235 | F182: 0 | G182: 362322050.9
A183: 3.1 | B183: 1.2.5.01.02.99.1.99999 | C183: Otros edificios Valores de origen | D183: 355511815.9 | E183: 6810235 | F183: 0 | G183: 362322050.9
A184: 3.1 | B184: 1.2.5.01.02.99.3. | C184: Otros edificios Depreciaciones acumuladas * | D184: -30496030.84 | E184: 104830106 | F184: 84527794.76 | G184: -10193719.61
A185: 3.1 | B185: 1.2.5.01.02.99.3.99999 | C185: Otros edificios Depreciaciones acumuladas * | D185: -30496030.84 | E185: 104830106 | F185: 84527794.76 | G185: -10193719.61
A186: 3.1 | B186: 1.2.5.01.02.99.6. | C186: Otros edificios Porción terreno: valores de origen | D186: 161457200 | E186: 0 | F186: 0 | G186: 161457200
A187: 3.1 | B187: 1.2.5.01.02.99.6.99999 | C187: Otros edificios Porción terreno: valores de origen | D187: 161457200 | E187: 0 | F187: 0 | G187: 161457200
A188: 3.1 | B188: 1.2.5.01.03. | C188: Maquinaria equipos para la producción | D188: 772667317.1 | E188: 203222482.7 | F188: 189515253.9 | G188: 786374546
A189: 3.1 | B189: 1.2.5.01.03.01. | C189: Maquinaria para la construcción | D189: 743342363.6 | E189: 195959201.5 | F189: 184994581.7 | G189: 754306983.3
A190: 3.1 | B190: 1.2.5.01.03.01.1. | C190: Maquinaria para la construcción Valores de origen | D190: 1801678962 | E190: 195959201.5 | F190: 0 | G190: 1997638164
A191: 3.1 | B191: 1.2.5.01.03.01.1.99999 | C191: Maquinaria para la construcción Valores de origen | D191: 1801678962 | E191: 195959201.5 | F191: 0 | G191: 1997638164
A192: 3.1 | B192: 1.2.5.01.03.01.3. | C192: Maq para la construcción Depreciaciones acumuladas | D192: -1058336599 | E192: 0 | F192: 184994581.7 | G192: -1243331181
A193: 3.1 | B193: 1.2.5.01.03.01.3.99999 | C193: Maq para la construcción Depreciaciones acumuladas | D193: -1058336599 | E193: 0 | F193: 184994581.7 | G193: -1243331181
A194: 3.1 | B194: 1.2.5.01.03.03. | C194: Planta eléctrica | D194: 3846036.26 | E194: 65652.08 | F194: 411631.06 | G194: 3500057.28
A195: 3.1 | B195: 1.2.5.01.03.03.1. | C195: Planta eléctrica Valores de origen | D195: 5189684.8 | E195: 0 | F195: 0 | G195: 5189684.8
A196: 3.1 | B196: 1.2.5.01.03.03.1.99999 | C196: Planta eléctrica Valores de origen | D196: 5189684.8 | E196: 0 | F196: 0 | G196: 5189684.8
A197: 3.1 | B197: 1.2.5.01.03.03.3. | C197: Planta eléctrica Depreciaciones acumuladas * | D197: -1343648.54 | E197: 65652.08 | F197: 411631.06 | G197: -1689627.52
A198: 3.1 | B198: 1.2.5.01.03.03.3.99999 | C198: Planta eléctrica Depreciaciones acumuladas * | D198: -1343648.54 | E198: 65652.08 | F198: 411631.06 | G198: -1689627.52
A199: 3.1 | B199: 1.2.5.01.03.06. | C199: Equipos hidráulicos | D199: 202795.79 | E199: 127510.46 | F199: 148671.75 | G199: 181634.5
A200: 3.1 | B200: 1.2.5.01.03.06.1. | C200: Equipos hidráulicos Valores de origen | D200: 280058 | E200: 0 | F200: 0 | G200: 280058
A201: 3.1 | B201: 1.2.5.01.03.06.1.99999 | C201: Equipos hidráulicos Valores de origen | D201: 280058 | E201: 0 | F201: 0 | G201: 280058
A202: 3.1 | B202: 1.2.5.01.03.06.3. | C202: Equipos hidráulicos Depreciaciones acumuladas * | D202: -77262.21 | E202: 127510.46 | F202: 148671.75 | G202: -98423.5
A203: 3.1 | B203: 1.2.5.01.03.06.3.99999 | C203: Equipos hidráulicos Depreciaciones acumuladas * | D203: -77262.21 | E203: 127510.46 | F203: 148671.75 | G203: -98423.5
A204: 3.1 | B204: 1.2.5.01.03.08. | C204: Equipos de medición | D204: 1274259.18 | E204: 282500 | F204: 608587.32 | G204: 948171.86
A205: 3.1 | B205: 1.2.5.01.03.08.1. | C205: Equipos de medición Valores de origen | D205: 6452398.73 | E205: 282500 | F205: 0 | G205: 6734898.73
A206: 3.1 | B206: 1.2.5.01.03.08.1.99999 | C206: Equipos de medición Valores de origen | D206: 6452398.73 | E206: 282500 | F206: 0 | G206: 6734898.73
A207: 3.1 | B207: 1.2.5.01.03.08.3. | C207: Equipos de medición Depreciaciones acumuladas * | D207: -5178139.55 | E207: 0 | F207: 608587.32 | G207: -5786726.87
A208: 3.1 | B208: 1.2.5.01.03.08.3.99999 | C208: Equipos de medición Depreciaciones acumuladas * | D208: -5178139.55 | E208: 0 | F208: 608587.32 | G208: -5786726.87
... 812 more rows

Sheet EEFF_SITUACION
A1: =DATOS!D13 -> Municipalidad de Buenos Aires
A2: Estado de Situación Financiera o Balance General | G2: Estado de Situación Financiera o Balance General
A3: =DATOS!D15&" "&RIGHT(D6,4) -> Del 01 de Enero al 31 de Diciembre 2024 | G3: Análisis de Variaciones
A4: - En miles de colones - | G4: =DATOS!D15&" "&RIGHT(D6,4) -> Del 01 de Enero al 31 de Diciembre 2024
A6: Cuenta | B6: Descripción | C6: Nota | D6: =PROPER(DATOS!D17) -> Diciembre 2024 | E6: =PROPER(DATOS!D18) -> Diciembre 2023 | G6: Análisis Vertical (%) Periodo Actual | H6: Análisis Vertical (%) Periodo Anterior | I6: Monto Variación Absoluta | J6: Variación relativa (%)
A8: 1. | B8: ACTIVO
A9: 1.1. | B9: Activo Corriente
A10: 1.1.1. | B10: Efectivo y equivalentes de efectivo | C10: 03 | D10: =SUM(D11:D12) -> 2779345.66 | E10: =SUM(E11:E12) -> 2106811.911 | G10: =IFERROR(D10/$D$91,0) -> 0.01664289425 | H10: =IFERROR(E10/$E$91,0) -> 0.01270443082 | I10: =IFERROR(D10-E10,0) -> 672533.7488 | J10: =IFERROR(I10/E10,0) -> 0.3192186949 | L10: ="La"&" "&"cuenta"&" "&B10&","&" "&"representa"&" "&"el"&" "&TEXT(G10,"0,00%")&" "&"del"&" "&"total"&" "&"del"&" "&IF(MID(A10,1,2)="1.","Activo",IF(MID(A10,1,2)="2.","Pasivo",IF(MID(A10,1,2)="3.","Capital",IF(MID(A10,1,2)="4.","Ingresos",IF(MID(A10,1,2)="5.","Gastos","")))))&","&" "&"que"&" "&"comparado"&" "&"al"&" "&"periodo"&" "&"anterior"&" "&"genera"&" "&"una"&" "&"variación"&" "&"absoluta"&" "&"de"&" "&TEXT(I10,"0 000,00")&" "&"que"&" "&"corresponde"&" "&"a"&" "&"un"&" "&IF(I10<0,"Disminución","Aumento")&" "&"del"&" "&TEXT(J10,"0,00%")&" "&"de"&" "&"recursos"&" "&"disponibles"&"." -> La cuenta Efectivo y equivalentes de efectivo, representa el 1,66% del total del Activo, que comparado al periodo anterior genera una variación absoluta de 672 533,75 que corresponde a un Aumento del 31,92% de recursos disponibles.
A11: 1.1.1.01. | B11: Efectivo | D11: =IFERROR(VLOOKUP(A11,BC_ACTUAL!B:G,6,0)/1000,0) -> 2779345.66 | E11: =IFERROR(VLOOKUP(A11,BC_ANTERIOR!B:G,6,0)/1000,0) -> 2106811.911 | G11: =IFERROR(D11/$D$91,0) -> 0.01664289425 | H11: =IFERROR(E11/$E$91,0) -> 0.01270443082 | I11: =IFERROR(D11-E11,0) -> 672533.7488 | J11: =IFERROR(I11/E11,0) -> 0.3192186949 | L11: ="La"&" "&"cuenta"&" "&B11&","&" "&"representa"&" "&"el"&" "&TEXT(G11,"0,00%")&" "&"del"&" "&"total"&" "&"del"&" "&IF(MID(A11,1,2)="1.","Activo",IF(MID(A11,1,2)="2.","Pasivo",IF(MID(A11,1,2)="3.","Capital",IF(MID(A11,1,2)="4.","Ingresos",IF(MID(A11,1,2)="5.","Gastos","")))))&","&" "&"que"&" "&"comparado"&" "&"al"&" "&"periodo"&" "&"anterior"&" "&"genera"&" "&"una"&" "&"variación"&" "&"absoluta"&" "&"de"&" "&TEXT(I11,"0 000,00")&" "&"que"&" "&"corresponde"&" "&"a"&" "&"un"&" "&IF(I11<0,"Disminución","Aumento")&" "&"del"&" "&TEXT(J11,"0,00%")&" "&"de"&" "&"recursos"&" "&"disponibles"&"." -> La cuenta Efectivo, representa el 1,66% del total del Activo, que comparado al periodo anterior genera una variación absoluta de 672 533,75 que corresponde a un Aumento del 31,92% de recursos disponibles.
A12: 1.1.1.02. | B12: Equivalentes de efectivo | D12: =IFERROR(VLOOKUP(A12,BC_ACTUAL!B:G,6,0)/1000,0) -> 0 | E12: =IFERROR(VLOOKUP(A12,BC_ANTERIOR!B:G,6,0)/1000,0) -> 0 | G12: 0 | H12: 0 | I12: 0 | J12: 0 | L12: La cuenta Equivalentes de efectivo, representa el 0,00% del total del Activo, que comparado al periodo anterior genera una variación absoluta de 0 000,00 que corresponde a un Aumento del 0,00% de recursos disponibles.
A13: 1.1.2. | B13: Inversiones a corto plazo | C13: 04 | D13: =SUM(D14:D18) -> 0 | E13: =SUM(E14:E18) -> 0 | G13: 0 | H13: 0 | I13: 0 | J13: 0 | L13: La cuenta Inversiones a corto plazo, representa el 0,00% del total del Activo, que comparado al periodo anterior genera una variación absoluta de 0 000,00 que corresponde a un Aumento del 0,00% de recursos disponibles.
A14: 1.1.2.01. | B14: Títulos y valores a valor razonable a corto plazo | D14: =IFERROR(VLOOKUP(A14,BC_ACTUAL!B:G,6,0)/1000,0) -> 0 | E14: =IFERROR(VLOOKUP(A14,BC_ANTERIOR!B:G,6,0)/1000,0) -> 0 | G14: 0 | H14: 0 | I14: 0 | J14: =IFERROR(I14/E14,0) -> 0 | L14: La cuenta Títulos y valores a valor razonable a corto plazo, representa el 0,00% del total del Activo, que comparado al periodo anterior genera una variación absoluta de 0 000,00 que corresponde a un Aumento del 0,00% de recursos disponibles.
A15: 1.1.2.02. | B15: Títulos y valores a costo amortizado a corto plazo | D15: =IFERROR(VLOOKUP(A15,BC_ACTUAL!B:G,6,0)/1000,0) -> 0 | E15: =IFERROR(VLOOKUP(A15,BC_ANTERIOR!B:G,6,0)/1000,0) -> 0 | G15: 0 | H15: 0 | I15: 0 | J15: 0 | L15: La cuenta Títulos y valores a costo amortizado a corto plazo, representa el 0,00% del total del Activo, que comparado al periodo anterior genera una variación absoluta de 0 000,00 que corresponde a un Aumento del 0,00% de recursos disponibles.
A16: 1.1.2.03. | B16: Instrumentos Derivados a corto plazo | D16: =IFERROR(VLOOKUP(A16,BC_ACTUAL!B:G,6,0)/1000,0) -> 0 | E16: =IFERROR(VLOOKUP(A16,BC_ANTERIOR!B:G,6,0)/1000,0) -> 0 | G16: 0 | H16: 0 | I16: 0 | J16: 0 | L16: La cuenta Instrumentos Derivados a corto plazo, representa el 0,00% del total del Activo, que comparado al periodo anterior genera una variación absoluta de 0 000,00 que corresponde a un Aumento del 0,00% de recursos disponibles.
A17: 1.1.2.98. | B17: Otras inversiones a corto plazo | D17: =IFERROR(VLOOKUP(A17,BC_ACTUAL!B:G,6,0)/1000,0) -> 0 | E17: =IFERROR(VLOOKUP(A17,BC_ANTERIOR!B:G,6,0)/1000,0) -> 0 | G17: 0 | H17: 0 | I17: 0 | J17: 0 | L17: La cuenta Otras inversiones a corto plazo, representa el 0,00% del total del Activo, que comparado al periodo anterior genera una variación absoluta de 0 000,00 que corresponde a un Aumento del 0,00% de recursos disponibles.
A18: 1.1.2.99. | B18: Previsiones para deterioro de inversiones a corto plazo * | D18: =IFERROR(VLOOKUP(A18,BC_ACTUAL!B:G,6,0)/1000,0) -> 0 | E18: =IFERROR(VLOOKUP(A18,BC_ANTERIOR!B:G,6,0)/1000,0) -> 0 | G18: 0 | H18: 0 | I18: 0 | J18: 0 | L18: La cuenta Previsiones para deterioro de inversiones a corto plazo *, representa el 0,00% del total del Activo, que comparado al periodo anterior genera una variación absoluta de 0 000,00 que corresponde a un Aumento del 0,00% de recursos disponibles.
A19: 1.1.3. | B19: Cuentas a cobrar a corto plazo | C19: 05 | D19: =SUM(D20:D36) -> 789317.3934 | E19: =SUM(E20:E36) -> 495942.4364 | G19: 0.004726481523 | H19: 0.002990616457 | I19: 293374.957 | J19: 0.5915504209 | L19: La cuenta Cuentas a cobrar a corto plazo, representa el 0,47% del total del Activo, que comparado al periodo anterior genera una variación absoluta de 293 374,96 que corresponde a un Aumento del 59,16% de recursos disponibles.
A20: 1.1.3.01. | B20: Impuestos a cobrar a corto plazo | D20: =IFERROR(VLOOKUP(A20,BC_ACTUAL!B:G,6,0)/1000,0) -> 439705.8116 | E20: =IFERROR(VLOOKUP(A20,BC_ANTERIOR!B:G,6,0)/1000,0) -> 488369.5134 | G20: 0.002632985681 | H20: 0.002944950455 | I20: -48663.70172 | J20: -0.09964524891 | L20: La cuenta Impuestos a cobrar a corto plazo, representa el 0,26% del total del Activo, que comparado al periodo anterior genera una variación absoluta de -48 663,70 que corresponde a un Disminución del -9,96% de recursos disponibles.
A21: 1.1.3.02. | B21: Contribuciones sociales a cobrar a corto plazo | D21: =IFERROR(VLOOKUP(A21,BC_ACTUAL!B:G,6,0)/1000,0) -> 0 | E21: =IFERROR(VLOOKUP(A21,BC_ANTERIOR!B:G,6,0)/1000,0) -> 0 | G21: 0 | H21: 0 | I21: 0 | J21: 0 | L21: La cuenta Contribuciones sociales a cobrar a corto plazo, representa el 0,00% del total del Activo, que comparado al periodo anterior genera una variación absoluta de 0 000,00 que corresponde a un Aumento del 0,00% de recursos disponibles.
A22: 1.1.3.03. | B22: Ventas a cobrar a corto plazo | D22: =IFERROR(VLOOKUP(A22,BC_ACTUAL!B:G,6,0)/1000,0) -> 0 | E22: =IFERROR(VLOOKUP(A22,BC_ANTERIOR!B:G,6,0)/1000,0) -> 0 | G22: 0 | H22: 0 | I22: 0 | J22: 0 | L22: La cuenta Ventas a cobrar a corto plazo, representa el 0,00% del total del Activo, que comparado al periodo anterior genera una variación absoluta de 0 000,00 que corresponde a un Aumento del 0,00% de recursos disponibles.
A23: 1.1.3.04. | B23: Servicios y derechos a cobrar a corto plazo | D23: =IFERROR(VLOOKUP(A23,BC_ACTUAL!B:G,6,0)/1000,0) -> 174419.5695 | E23: =IFERROR(VLOOKUP(A23,BC_ANTERIOR!B:G,6,0)/1000,0) -> 180183.6378 | G23: 0.001044435203 | H23: 0.001086537697 | I23: -5764.06833 | J23: -0.03198996535 | L23: La cuenta Servicios y derechos a cobrar a corto plazo, representa el 0,10% del total del Activo, que comparado al periodo anterior genera una variación absoluta de -5 764,07 que corresponde a un Disminución del -3,20% de recursos disponibles.
A24: 1.1.3.05. | B24: Ingresos de la propiedad a cobrar a corto plazo | D24: =IFERROR(VLOOKUP(A24,BC_ACTUAL!B:G,6,0)/1000,0) -> 0 | E24: =IFERROR(VLOOKUP(A24,BC_ANTERIOR!B:G,6,0)/1000,0) -> 0 | G24: 0 | H24: 0 | I24: 0 | J24: 0 | L24: La cuenta Ingresos de la propiedad a cobrar a corto plazo, representa el 0,00% del total del Activo, que comparado al periodo anterior genera una variación absoluta de 0 000,00 que corresponde a un Aumento del 0,00% de recursos disponibles.
A25: 1.1.3.06. | B25: Transferencias a cobrar a corto plazo | D25: =IFERROR(VLOOKUP(A25,BC_ACTUAL!B:G,6,0)/1000,0) -> 341834.3865 | E25: =IFERROR(VLOOKUP(A25,BC_ANTERIOR!B:G,6,0)/1000,0) -> 0 | G25: 0.002046925515 | H25: 0 | I25: 341834.3865 | J25: 0 | L25: La cuenta Transferencias a cobrar a corto plazo, representa el 0,20% del total del Activo, que comparado al periodo anterior genera una variación absoluta de 341 834,39 que corresponde a un Aumento del 0,00% de recursos disponibles.
A26: 1.1.3.07. | B26: Préstamos a corto plazo | D26: =IFERROR(VLOOKUP(A26,BC_ACTUAL!B:G,6,0)/1000,0) -> 0 | E26: =IFERROR(VLOOKUP(A26,BC_ANTERIOR!B:G,6,0)/1000,0) -> 0 | G26: 0 | H26: 0 | I26: 0 | J26: 0 | L26: La cuenta Préstamos a corto plazo, representa el 0,00% del total del Activo, que comparado al periodo anterior genera una variación absoluta de 0 000,00 que corresponde a un Aumento del 0,00% de recursos disponibles.
A27: 1.1.3.08. | B27: Documentos a cobrar a corto plazo | D27: =IFERROR(VLOOKUP(A27,BC_ACTUAL!B:G,6,0)/1000,0) -> 0 | E27: =IFERROR(VLOOKUP(A27,BC_ANTERIOR!B:G,6,0)/1000,0) -> 0 | G27: 0 | H27: 0 | I27: 0 | J27: 0 | L27: La cuenta Documentos a cobrar a corto plazo, representa el 0,00% del total del Activo, que comparado al periodo anterior genera una variación absoluta de 0 000,00 que corresponde a un Aumento del 0,00% de recursos disponibles.
A28: 1.1.3.09. | B28: Anticipos a corto plazo | D28: =IFERROR(VLOOKUP(A28,BC_ACTUAL!B:G,6,0)/1000,0) -> 0 | E28: =IFERROR(VLOOKUP(A28,BC_ANTERIOR!B:G,6,0)/1000,0) -> 0 | G28: 0 | H28: 0 | I28: 0 | J28: 0 | L28: La cuenta Anticipos a corto plazo, representa el 0,00% del total del Activo, que comparado al periodo anterior genera una variación absoluta de 0 000,00 que corresponde a un Aumento del 0,00% de recursos disponibles.
A29: 1.1.3.10. | B29: Deudores por avales ejecutados a corto plazo | D29: =IFERROR(VLOOKUP(A29,BC_ACTUAL!B:G,6,0)/1000,0) -> 0 | E29: =IFERROR(VLOOKUP(A29,BC_ANTERIOR!B:G,6,0)/1000,0) -> 0 | G29: 0 | H29: 0 | I29: 0 | J29: 0 | L29: La cuenta Deudores por avales ejecutados a corto plazo, representa el 0,00% del total del Activo, que comparado al periodo anterior genera una variación absoluta de 0 000,00 que corresponde a un Aumento del 0,00% de recursos disponibles.
A30: 1.1.3.11. | B30: Planillas salariales | D30: =IFERROR(VLOOKUP(A30,BC_ACTUAL!B:G,6,0)/1000,0) -> 0 | E30: =IFERROR(VLOOKUP(A30,BC_ANTERIOR!B:G,6,0)/1000,0) -> 0 | G30: 0 | H30: 0 | I30: 0 | J30: 0 | L30: La cuenta Planillas salariales, representa el 0,00% del total del Activo, que comparado al periodo anterior genera una variación absoluta de 0 000,00 que corresponde a un Aumento del 0,00% de recursos disponibles.
A31: 1.1.3.12. | B31: Beneficios Sociales | D31: =IFERROR(VLOOKUP(A31,BC_ACTUAL!B:G,6,0)/1000,0) -> 0 | E31: =IFERROR(VLOOKUP(A31,BC_ANTERIOR!B:G,6,0)/1000,0) -> 0 | G31: 0 | H31: 0 | I31: 0 | J31: 0 | L31: La cuenta Beneficios Sociales, representa el 0,00% del total del Activo, que comparado al periodo anterior genera una variación absoluta de 0 000,00 que corresponde a un Aumento del 0,00% de recursos disponibles.
A32: 1.1.3.13. | B32: Cuentas por Cobrar Cajas Únicas | D32: =IFERROR(VLOOKUP(A32,BC_ACTUAL!B:G,6,0)/1000,0) -> 0 | E32: =IFERROR(VLOOKUP(A32,BC_ANTERIOR!B:G,6,0)/1000,0) -> 0 | G32: 0 | H32: 0 | I32: 0 | J32: 0 | L32: La cuenta Cuentas por Cobrar Cajas Únicas, representa el 0,00% del total del Activo, que comparado al periodo anterior genera una variación absoluta de 0 000,00 que corresponde a un Aumento del 0,00% de recursos disponibles.
A33: 1.1.3.50. | B33: Registro transitorio de transacción de activo fijo | D33: =IFERROR(VLOOKUP(A33,BC_ACTUAL!B:G,6,0)/1000,0) -> 0 | E33: =IFERROR(VLOOKUP(A33,BC_ANTERIOR!B:G,6,0)/1000,0) -> 0 | G33: 0 | H33: 0 | I33: 0 | J33: 0 | L33: La cuenta Registro transitorio de transacción de activo fijo, representa el 0,00% del total del Activo, que comparado al periodo anterior genera una variación absoluta de 0 000,00 que corresponde a un Aumento del 0,00% de recursos disponibles.
A34: 1.1.3.97. | B34: Cuentas a cobrar en gestión judicial | D34: =IFERROR(VLOOKUP(A34,BC_ACTUAL!B:G,6,0)/1000,0) -> 0 | E34: =IFERROR(VLOOKUP(A34,BC_ANTERIOR!B:G,6,0)/1000,0) -> 0 | G34: 0 | H34: 0 | I34: 0 | J34: 0 | L34: La cuenta Cuentas a cobrar en gestión judicial, representa el 0,00% del total del Activo, que comparado al periodo anterior genera una variación absoluta de 0 000,00 que corresponde a un Aumento del 0,00% de recursos disponibles.
A35: 1.1.3.98. | B35: Otras cuentas a cobrar a corto plazo | D35: =IFERROR(VLOOKUP(A35,BC_ACTUAL!B:G,6,0)/1000,0) -> 8735.52312 | E35: =IFERROR(VLOOKUP(A35,BC_ANTERIOR!B:G,6,0)/1000,0) -> 2767.1826 | G35: 5.230885442e-05 | H35: 1.668657735e-05 | I35: 5968.34052 | J35: 2.156829304 | L35: La cuenta Otras cuentas a cobrar a corto plazo, representa el 0,01% del total del Activo, que comparado al periodo anterior genera una variación absoluta de 5 968,34 que corresponde a un Aumento del 215,68% de recursos disponibles.
A36: 1.1.3.99. | B36: Previsiones para deterioro de cuentas a cobrar a corto plazo * | D36: =IFERROR(VLOOKUP(A36,BC_ACTUAL!B:G,6,0)/1000,0) -> -175377.8974 | E36: =IFERROR(VLOOKUP(A36,BC_ANTERIOR!B:G,6,0)/1000,0) -> -175377.8974 | G36: -0.00105017373 | H36: -0.001057558272 | I36: 0 | J36: 0 | L36: La cuenta Previsiones para deterioro de cuentas a cobrar a corto plazo *, representa el -0,11% del total del Activo, que comparado al periodo anterior genera una variación absoluta de 0 000,00 que corresponde a un Aumento del 0,00% de recursos disponibles.
A37: 1.1.4. | B37: Inventarios | C37: 06 | D37: =SUM(D38:D42) -> 200707.856 | E37: =SUM(E38:E42) -> 192987.0922 | G37: 0.001201851094 | H37: 0.001163744684 | I37: 7720.76382 | J37: 0.04000663325 | L37: La cuenta Inventarios, representa el 0,12% del total del Activo, que comparado al periodo anterior genera una variación absoluta de 7 720,76 que corresponde a un Aumento del 4,00% de recursos disponibles.
A38: 1.1.4.01. | B38: Materiales y suministros para consumo y prestación de servicios | D38: =IFERROR(VLOOKUP(A38,BC_ACTUAL!B:G,6,0)/1000,0) -> 200707.856 | E38: =IFERROR(VLOOKUP(A38,BC_ANTERIOR!B:G,6,0)/1000,0) -> 192987.0922 | G38: 0.001201851094 | H38: 0.001163744684 | I38: 7720.76382 | J38: 0.04000663325 | L38: La cuenta Materiales y suministros para consumo y prestación de servicios, representa el 0,12% del total del Activo, que comparado al periodo anterior genera una variación absoluta de 7 720,76 que corresponde a un Aumento del 4,00% de recursos disponibles.
A39: 1.1.4.02. | B39: Bienes para la venta | D39: =IFERROR(VLOOKUP(A39,BC_ACTUAL!B:G,6,0)/1000,0) -> 0 | E39: =IFERROR(VLOOKUP(A39,BC_ANTERIOR!B:G,6,0)/1000,0) -> 0 | G39: 0 | H39: 0 | I39: 0 | J39: 0 | L39: La cuenta Bienes para la venta, representa el 0,00% del total del Activo, que comparado al periodo anterior genera una variación absoluta de 0 000,00 que corresponde a un Aumento del 0,00% de recursos disponibles.
A40: 1.1.4.03. | B40: Materias primas y bienes en producción | D40: =IFERROR(VLOOKUP(A40,BC_ACTUAL!B:G,6,0)/1000,0) -> 0 | E40: =IFERROR(VLOOKUP(A40,BC_ANTERIOR!B:G,6,0)/1000,0) -> 0 | G40: 0 | H40: 0 | I40: 0 | J40: 0 | L40: La cuenta Materias primas y bienes en producción, representa el 0,00% del total del Activo, que comparado al periodo anterior genera una variación absoluta de 0 000,00 que corresponde a un Aumento del 0,00% de recursos disponibles.
A41: 1.1.4.04. | B41: Bienes a Transferir sin contraprestación - Donaciones | D41: =IFERROR(VLOOKUP(A41,BC_ACTUAL!B:G,6,0)/1000,0) -> 0 | E41: =IFERROR(VLOOKUP(A41,BC_ANTERIOR!B:G,6,0)/1000,0) -> 0 | G41: 0 | H41: 0 | I41: 0 | J41: 0 | L41: La cuenta Bienes a Transferir sin contraprestación - Donaciones, representa el 0,00% del total del Activo, que comparado al periodo anterior genera una variación absoluta de 0 000,00 que corresponde a un Aumento del 0,00% de recursos disponibles.
A42: 1.1.4.99. | B42: Previsiones para deterioro y pérdidas de inventario * | D42: =IFERROR(VLOOKUP(A42,BC_ACTUAL!B:G,6,0)/1000,0) -> 0 | E42: =IFERROR(VLOOKUP(A42,BC_ANTERIOR!B:G,6,0)/1000,0) -> 0 | G42: 0 | H42: 0 | I42: 0 | J42: 0 | L42: La cuenta Previsiones para deterioro y pérdidas de inventario *, representa el 0,00% del total del Activo, que comparado al periodo anterior genera una variación absoluta de 0 000,00 que corresponde a un Aumento del 0,00% de recursos disponibles.
A43: 1.1.9. | B43: Otros activos a corto plazo | C43: 07 | D43: =SUM(D44:D46) -> 25165.34217 | E43: =SUM(E44:E46) -> 26295.62224 | G43: 0.0001506916302 | H43: 0.0001585670329 | I43: -1130.28007 | J43: -0.04298358334 | L43: La cuenta Otros activos a corto plazo, representa el 0,02% del total del Activo, que comparado al periodo anterior genera una variación absoluta de -1 130,28 que corresponde a un Disminución del -4,30% de recursos disponibles.
A44: 1.1.9.01. | B44: Gastos a devengar a corto plazo | D44: =IFERROR(VLOOKUP(A44,BC_ACTUAL!B:G,6,0)/1000,0) -> 25165.34217 | E44: =IFERROR(VLOOKUP(A44,BC_ANTERIOR!B:G,6,0)/1000,0) -> 26295.62224 | G44: 0.0001506916302 | H44: 0.0001585670329 | I44: -1130.28007 | J44: -0.04298358334 | L44: La cuenta Gastos a devengar a corto plazo, representa el 0,02% del total del Activo, que comparado al periodo anterior genera una variación absoluta de -1 130,28 que corresponde a un Disminución del -4,30% de recursos disponibles.
A45: 1.1.9.02. | B45: Cuentas transitorias | D45: =IFERROR(VLOOKUP(A45,BC_ACTUAL!B:G,6,0)/1000,0) -> 0 | E45: =IFERROR(VLOOKUP(A45,BC_ANTERIOR!B:G,6,0)/1000,0) -> 0 | G45: 0 | H45: 0 | I45: 0 | J45: 0 | L45: La cuenta Cuentas transitorias, representa el 0,00% del total del Activo, que comparado al periodo anterior genera una variación absoluta de 0 000,00 que corresponde a un Aumento del 0,00% de recursos disponibles.
A46: 1.1.9.99. | B46: Activos a corto plazo sujetos a depuración contable | D46: =IFERROR(VLOOKUP(A46,BC_ACTUAL!B:G,6,0)/1000,0) -> 0 | E46: =IFERROR(VLOOKUP(A46,BC_ANTERIOR!B:G,6,0)/1000,0) -> 0 | G46: 0 | H46: 0 | I46: 0 | J46: 0 | L46: La cuenta Activos a corto plazo sujetos a depuración contable, representa el 0,00% del total del Activo, que comparado al periodo anterior genera una variación absoluta de 0 000,00 que corresponde a un Aumento del 0,00% de recursos disponibles.
B47: Total del Activo Corriente | D47: =+D43++D37+D19+D13+D10 -> 3794536.252 | E47: =+E43++E37+E19+E13+E10 -> 2822037.062 | G47: =+G43++G37+G19+G13+G10 -> 0.0227219185 | H47: =+H43++H37+H19+H13+H10 -> 0.017017359 | I47: =+I43++I37+I19+I13+I10 -> 972499.1895 | J47: 0.3446089361
A49: 1.2. | B49: Activo No Corriente
A50: 1.2.2. | B50: Inversiones a largo plazo | C50: 08 | D50: =SUM(D51:D55) -> 0 | E50: =SUM(E51:E55) -> 0 | G50: 0 | H50: =IFERROR(E50/$E$91,0) -> 0 | I50: 0 | J50: 0 | L50: La cuenta Inversiones a largo plazo, representa el 0,00% del total del Activo, que comparado al periodo anterior genera una variación absoluta de 0 000,00 que corresponde a un Aumento del 0,00% de recursos disponibles.
A51: 1.2.2.01. | B51: Títulos y valores a valor razonable a largo plazo | D51: =IFERROR(VLOOKUP(A51,BC_ACTUAL!B:G,6,0)/1000,0) -> 0 | E51: =IFERROR(VLOOKUP(A51,BC_ANTERIOR!B:G,6,0)/1000,0) -> 0 | G51: 0 | H51: 0 | I51: 0 | J51: 0 | L51: La cuenta Títulos y valores a valor razonable a largo plazo, representa el 0,00% del total del Activo, que comparado al periodo anterior genera una variación absoluta de 0 000,00 que corresponde a un Aumento del 0,00% de recursos disponibles.
A52: 1.2.2.02. | B52: Títulos y valores a costo amortizado a largo plazo | D52: =IFERROR(VLOOKUP(A52,BC_ACTUAL!B:G,6,0)/1000,0) -> 0 | E52: =IFERROR(VLOOKUP(A52,BC_ANTERIOR!B:G,6,0)/1000,0) -> 0 | G52: 0 | H52: 0 | I52: 0 | J52: 0 | L52: La cuenta Títulos y valores a costo amortizado a largo plazo, representa el 0,00% del total del Activo, que comparado al periodo anterior genera una variación absoluta de 0 000,00 que corresponde a un Aumento del 0,00% de recursos disponibles.
A53: 1.2.2.03. | B53: Instrumentos Derivados a largo plazo | D53: =IFERROR(VLOOKUP(A53,BC_ACTUAL!B:G,6,0)/1000,0) -> 0 | E53: =IFERROR(VLOOKUP(A53,BC_ANTERIOR!B:G,6,0)/1000,0) -> 0 | G53: 0 | H53: 0 | I53: 0 | J53: 0 | L53: La cuenta Instrumentos Derivados a largo plazo, representa el 0,00% del total del Activo, que comparado al periodo anterior genera una variación absoluta de 0 000,00 que corresponde a un Aumento del 0,00% de recursos disponibles.
A54: 1.2.2.98. | B54: Otras inversiones a largo plazo | D54: =IFERROR(VLOOKUP(A54,BC_ACTUAL!B:G,6,0)/1000,0) -> 0 | E54: =IFERROR(VLOOKUP(A54,BC_ANTERIOR!B:G,6,0)/1000,0) -> 0 | G54: 0 | H54: 0 | I54: 0 | J54: 0 | L54: La cuenta Otras inversiones a largo plazo, representa el 0,00% del total del Activo, que comparado al periodo anterior genera una variación absoluta de 0 000,00 que corresponde a un Aumento del 0,00% de recursos disponibles.
A55: 1.2.2.99. | B55: Previsiones para deterioro de inversiones a largo plazo * | D55: =IFERROR(VLOOKUP(A55,BC_ACTUAL!B:G,6,0)/1000,0) -> 0 | E55: =IFERROR(VLOOKUP(A55,BC_ANTERIOR!B:G,6,0)/1000,0) -> 0 | G55: 0 | H55: 0 | I55: 0 | J55: 0 | L55: La cuenta Previsiones para deterioro de inversiones a largo plazo *, representa el 0,00% del total del Activo, que comparado al periodo anterior genera una variación absoluta de 0 000,00 que corresponde a un Aumento del 0,00% de recursos disponibles.
A56: 1.2.3. | B56: Cuentas a cobrar a largo plazo | C56: 09 | D56: =SUM(D57:D63) -> 0 | E56: =SUM(E57:E63) -> 0 | G56: 0 | H56: 0 | I56: 0 | J56: 0 | L56: La cuenta Cuentas a cobrar a largo plazo, representa el 0,00% del total del Activo, que comparado al periodo anterior genera una variación absoluta de 0 000,00 que corresponde a un Aumento del 0,00% de recursos disponibles.
A57: 1.2.3.03. | B57: Ventas a cobrar a largo plazo | D57: =IFERROR(VLOOKUP(A57,BC_ACTUAL!B:G,6,0)/1000,0) -> 0 | E57: =IFERROR(VLOOKUP(A57,BC_ANTERIOR!B:G,6,0)/1000,0) -> 0 | G57: 0 | H57: 0 | I57: 0 | J57: 0 | L57: La cuenta Ventas a cobrar a largo plazo, representa el 0,00% del total del Activo, que comparado al periodo anterior genera una variación absoluta de 0 000,00 que corresponde a un Aumento del 0,00% de recursos disponibles.
A58: 1.2.3.07. | B58: Préstamos a largo plazo | D58: =IFERROR(VLOOKUP(A58,BC_ACTUAL!B:G,6,0)/1000,0) -> 0 | E58: =IFERROR(VLOOKUP(A58,BC_ANTERIOR!B:G,6,0)/1000,0) -> 0 | G58: 0 | H58: 0 | I58: 0 | J58: 0 | L58: La cuenta Préstamos a largo plazo, representa el 0,00% del total del Activo, que comparado al periodo anterior genera una variación absoluta de 0 000,00 que corresponde a un Aumento del 0,00% de recursos disponibles.
A59: 1.2.3.08. | B59: Documentos a cobrar a largo plazo | D59: =IFERROR(VLOOKUP(A59,BC_ACTUAL!B:G,6,0)/1000,0) -> 0 | E59: =IFERROR(VLOOKUP(A59,BC_ANTERIOR!B:G,6,0)/1000,0) -> 0 | G59: 0 | H59: 0 | I59: 0 | J59: 0 | L59: La cuenta Documentos a cobrar a largo plazo, representa el 0,00% del total del Activo, que comparado al periodo anterior genera una variación absoluta de 0 000,00 que corresponde a un Aumento del 0,00% de recursos disponibles.
A60: 1.2.3.09. | B60: Anticipos a largo plazo | D60: =IFERROR(VLOOKUP(A60,BC_ACTUAL!B:G,6,0)/1000,0) -> 0 | E60: =IFERROR(VLOOKUP(A60,BC_ANTERIOR!B:G,6,0)/1000,0) -> 0 | G60: 0 | H60: 0 | I60: 0 | J60: 0 | L60: La cuenta Anticipos a largo plazo, representa el 0,00% del total del Activo, que comparado al periodo anterior genera una variación absoluta de 0 000,00 que corresponde a un Aumento del 0,00% de recursos disponibles.
A61: 1.2.3.10. | B61: Deudores por avales ejecutados a largo plazo | D61: =IFERROR(VLOOKUP(A61,BC_ACTUAL!B:G,6,0)/1000,0) -> 0 | E61: =IFERROR(VLOOKUP(A61,BC_ANTERIOR!B:G,6,0)/1000,0) -> 0 | G61: 0 | H61: 0 | I61: 0 | J61: 0 | L61: La cuenta Deudores por avales ejecutados a largo plazo, representa el 0,00% del total del Activo, que comparado al periodo anterior genera una variación absoluta de 0 000,00 que corresponde a un Aumento del 0,00% de recursos disponibles.
A62: 1.2.3.98. | B62: Otras cuentas a cobrar a largo plazo | D62: =IFERROR(VLOOKUP(A62,BC_ACTUAL!B:G,6,0)/1000,0) -> 0 | E62: =IFERROR(VLOOKUP(A62,BC_ANTERIOR!B:G,6,0)/1000,0) -> 0 | G62: 0 | H62: 0 | I62: 0 | J62: 0 | L62: La cuenta Otras cuentas a cobrar a largo plazo, representa el 0,00% del total del Activo, que comparado al periodo anterior genera una variación absoluta de 0 000,00 que corresponde a un Aumento del 0,00% de recursos disponibles.
A63: 1.2.3.99. | B63: Previsiones para deterioro de cuentas a cobrar a largo plazo * | D63: =IFERROR(VLOOKUP(A63,BC_ACTUAL!B:G,6,0)/1000,0) -> 0 | E63: =IFERROR(VLOOKUP(A63,BC_ANTERIOR!B:G,6,0)/1000,0) -> 0 | G63: 0 | H63: 0 | I63: 0 | J63: 0 | L63: La cuenta Previsiones para deterioro de cuentas a cobrar a largo plazo *, representa el 0,00% del total del Activo, que comparado al periodo anterior genera una variación absoluta de 0 000,00 que corresponde a un Aumento del 0,00% de recursos disponibles.
A64: 1.2.5. | B64: Bienes no concesionados | C64: 10 | D64: =SUM(D65:D73) -> 163204401.4 | E64: =SUM(E65:E73) -> 163010808.3 | G64: 0.9772780815 | H64: 0.982982641 | I64: 193593.1788 | J64: 0.001187609465 | L64: La cuenta Bienes no concesionados, representa el 97,73% del total del Activo, que comparado al periodo anterior genera una variación absoluta de 193 593,18 que corresponde a un Aumento del 0,12% de recursos disponibles.
A65: 1.2.5.01. | B65: Propiedades, planta y equipos explotados | D65: =IFERROR(VLOOKUP(A65,BC_ACTUAL!B:G,6,0)/1000,0) -> 2240714.457 | E65: =IFERROR(VLOOKUP(A65,BC_ANTERIOR!B:G,6,0)/1000,0) -> 2155163.988 | G65: 0.01341753719 | H65: 0.01299600199 | I65: 85550.46818 | J65: 0.03969557242 | L65: La cuenta Propiedades, planta y equipos explotados, representa el 1,34% del total del Activo, que comparado al periodo anterior genera una variación absoluta de 85 550,47 que corresponde a un Aumento del 3,97% de recursos disponibles.
A66: 1.2.5.02. | B66: Propiedades de inversión | D66: =IFERROR(VLOOKUP(A66,BC_ACTUAL!B:G,6,0)/1000,0) -> 0 | E66: =IFERROR(VLOOKUP(A66,BC_ANTERIOR!B:G,6,0)/1000,0) -> 0 | G66: 0 | H66: 0 | I66: 0 | J66: 0 | L66: La cuenta Propiedades de inversión, representa el 0,00% del total del Activo, que comparado al periodo anterior genera una variación absoluta de 0 000,00 que corresponde a un Aumento del 0,00% de recursos disponibles.
A67: 1.2.5.03. | B67: Activos biológicos no concesionados | D67: =IFERROR(VLOOKUP(A67,BC_ACTUAL!B:G,6,0)/1000,0) -> 0 | E67: =IFERROR(VLOOKUP(A67,BC_ANTERIOR!B:G,6,0)/1000,0) -> 0 | G67: 0 | H67: 0 | I67: 0 | J67: 0 | L67: La cuenta Activos biológicos no concesionados, representa el 0,00% del total del Activo, que comparado al periodo anterior genera una variación absoluta de 0 000,00 que corresponde a un Aumento del 0,00% de recursos disponibles.
A68: 1.2.5.04. | B68: Bienes de infraestructura y de beneficio y uso público en servicio | D68: =IFERROR(VLOOKUP(A68,BC_ACTUAL!B:G,6,0)/1000,0) -> 160856258.3 | E68: =IFERROR(VLOOKUP(A68,BC_ANTERIOR!B:G,6,0)/1000,0) -> 160765498.1 | G68: 0.9632172549 | H68: 0.9694430423 | I68: 90760.25079 | J68: 0.0005645505527 | L68: La cuenta Bienes de infraestructura y de beneficio y uso público en servicio, representa el 96,32% del total del Activo, que comparado al periodo anterior genera una variación absoluta de 90 760,25 que corresponde a un Aumento del 0,06% de recursos disponibles.
A69: 1.2.5.05. | B69: Bienes históricos y culturales | D69: =IFERROR(VLOOKUP(A69,BC_ACTUAL!B:G,6,0)/1000,0) -> 0 | E69: =IFERROR(VLOOKUP(A69,BC_ANTERIOR!B:G,6,0)/1000,0) -> 0 | G69: 0 | H69: 0 | I69: 0 | J69: 0 | L69: La cuenta Bienes históricos y culturales, representa el 0,00% del total del Activo, que comparado al periodo anterior genera una variación absoluta de 0 000,00 que corresponde a un Aumento del 0,00% de recursos disponibles.
A70: 1.2.5.06. | B70: Recursos naturales en explotación | D70: =IFERROR(VLOOKUP(A70,BC_ACTUAL!B:G,6,0)/1000,0) -> 0 | E70: =IFERROR(VLOOKUP(A70,BC_ANTERIOR!B:G,6,0)/1000,0) -> 0 | G70: 0 | H70: 0 | I70: 0 | J70: 0 | L70: La cuenta Recursos naturales en explotación, representa el 0,00% del total del Activo, que comparado al periodo anterior genera una variación absoluta de 0 000,00 que corresponde a un Aumento del 0,00% de recursos disponibles.
A71: 1.2.5.07. | B71: Recursos naturales en conservación | D71: =IFERROR(VLOOKUP(A71,BC_ACTUAL!B:G,6,0)/1000,0) -> 0 | E71: =IFERROR(VLOOKUP(A71,BC_ANTERIOR!B:G,6,0)/1000,0) -> 0 | G71: 0 | H71: 0 | I71: 0 | J71: 0 | L71: La cuenta Recursos naturales en conservación, representa el 0,00% del total del Activo, que comparado al periodo anterior genera una variación absoluta de 0 000,00 que corresponde a un Aumento del 0,00% de recursos disponibles.
A72: 1.2.5.08. | B72: Bienes intangibles no concesionados | D72: =IFERROR(VLOOKUP(A72,BC_ACTUAL!B:G,6,0)/1000,0) -> 9849.50849 | E72: =IFERROR(VLOOKUP(A72,BC_ANTERIOR!B:G,6,0)/1000,0) -> 12565.23546 | G72: 5.897946793e-05 | H72: 7.577048705e-05 | I72: -2715.72697 | J72: -0.2161302093 | L72: La cuenta Bienes intangibles no concesionados, representa el 0,01% del total del Activo, que comparado al periodo anterior genera una variación absoluta de -2 715,73 que corresponde a un Disminución del -21,61% de recursos disponibles.
A73: 1.2.5.99. | B73: Bienes no concesionados en proceso de producción | D73: =IFERROR(VLOOKUP(A73,BC_ACTUAL!B:G,6,0)/1000,0) -> 97579.14782 | E73: =IFERROR(VLOOKUP(A73,BC_ANTERIOR!B:G,6,0)/1000,0) -> 77580.96105 | G73: 0.0005843099912 | H73: 0.0004678262674 | I73: 19998.18677 | J73: 0.257771836 | L73: La cuenta Bienes no concesionados en proceso de producción, representa el 0,06% del total del Activo, que comparado al periodo anterior genera una variación absoluta de 19 998,19 que corresponde a un Aumento del 25,78% de recursos disponibles.
A74: 1.2.6. | B74: Bienes concesionados | C74: 11 | D74: =SUM(D75:D80) -> 0 | E74: =SUM(E75:E80) -> 0 | G74: 0 | H74: 0 | I74: 0 | J74: 0 | L74: La cuenta Bienes concesionados, representa el 0,00% del total del Activo, que comparado al periodo anterior genera una variación absoluta de 0 000,00 que corresponde a un Aumento del 0,00% de recursos disponibles.
A75: 1.2.6.01. | B75: Propiedades, planta y equipos concesionados | D75: =IFERROR(VLOOKUP(A75,BC_ACTUAL!B:G,6,0)/1000,0) -> 0 | E75: =IFERROR(VLOOKUP(A75,BC_ANTERIOR!B:G,6,0)/1000,0) -> 0 | G75: =IFERROR(D75/$D$91,0) -> 0 | H75: 0 | I75: =IFERROR(D75-E75,0) -> 0 | J75: =IFERROR(I75/E75,0) -> 0 | L75: ="La"&" "&"cuenta"&" "&B75&","&" "&"representa"&" "&"el"&" "&TEXT(G75,"0,00%")&" "&"del"&" "&"total"&" "&"del"&" "&IF(MID(A75,1,2)="1.","Activo",IF(MID(A75,1,2)="2.","Pasivo",IF(MID(A75,1,2)="3.","Capital",IF(MID(A75,1,2)="4.","Ingresos",IF(MID(A75,1,2)="5.","Gastos","")))))&","&" "&"que"&" "&"comparado"&" "&"al"&" "&"periodo"&" "&"anterior"&" "&"genera"&" "&"una"&" "&"variación"&" "&"absoluta"&" "&"de"&" "&TEXT(I75,"0 000,00")&" "&"que"&" "&"corresponde"&" "&"a"&" "&"un"&" "&IF(I75<0,"Disminución","Aumento")&" "&"del"&" "&TEXT(J75,"0,00%")&" "&"de"&" "&"recursos"&" "&"disponibles"&"." -> La cuenta Propiedades, planta y equipos concesionados, representa el 0,00% del total del Activo, que comparado al periodo anterior genera una variación absoluta de 0 000,00 que corresponde a un Aumento del 0,00% de recursos disponibles.
A76: 1.2.6.03. | B76: Activos biológicos concesionados | D76: =IFERROR(VLOOKUP(A76,BC_ACTUAL!B:G,6,0)/1000,0) -> 0 | E76: =IFERROR(VLOOKUP(A76,BC_ANTERIOR!B:G,6,0)/1000,0) -> 0 | G76: 0 | H76: 0 | I76: 0 | J76: 0 | L76: La cuenta Activos biológicos concesionados, representa el 0,00% del total del Activo, que comparado al periodo anterior genera una variación absoluta de 0 000,00 que corresponde a un Aumento del 0,00% de recursos disponibles.
A77: 1.2.6.04. | B77: Bienes de infraestructura y de beneficio y uso público concesionados | D77: =IFERROR(VLOOKUP(A77,BC_ACTUAL!B:G,6,0)/1000,0) -> 0 | E77: =IFERROR(VLOOKUP(A77,BC_ANTERIOR!B:G,6,0)/1000,0) -> 0 | G77: 0 | H77: 0 | I77: 0 | J77: 0 | L77: La cuenta Bienes de infraestructura y de beneficio y uso público concesionados, representa el 0,00% del total del Activo, que comparado al periodo anterior genera una variación absoluta de 0 000,00 que corresponde a un Aumento del 0,00% de recursos disponibles.
A78: 1.2.6.06. | B78: Recursos naturales concesionados | D78: =IFERROR(VLOOKUP(A78,BC_ACTUAL!B:G,6,0)/1000,0) -> 0 | E78: =IFERROR(VLOOKUP(A78,BC_ANTERIOR!B:G,6,0)/1000,0) -> 0 | G78: 0 | H78: 0 | I78: 0 | J78: 0 | L78: La cuenta Recursos naturales concesionados, representa el 0,00% del total del Activo, que comparado al periodo anterior genera una variación absoluta de 0 000,00 que corresponde a un Aumento del 0,00% de recursos disponibles.
A79: 1.2.6.08. | B79: Bienes intangibles concesionados | D79: =IFERROR(VLOOKUP(A79,BC_ACTUAL!B:G,6,0)/1000,0) -> 0 | E79: =IFERROR(VLOOKUP(A79,BC_ANTERIOR!B:G,6,0)/1000,0) -> 0 | G79: 0 | H79: 0 | I79: 0 | J79: 0 | L79: La cuenta Bienes intangibles concesionados, representa el 0,00% del total del Activo, que comparado al periodo anterior genera una variación absoluta de 0 000,00 que corresponde a un Aumento del 0,00% de recursos disponibles.
A80: 1.2.6.99. | B80: Bienes concesionados en proceso de producción | D80: =IFERROR(VLOOKUP(A80,BC_ACTUAL!B:G,6,0)/1000,0) -> 0 | E80: =IFERROR(VLOOKUP(A80,BC_ANTERIOR!B:G,6,0)/1000,0) -> 0 | G80: 0 | H80: 0 | I80: 0 | J80: 0 | L80: La cuenta Bienes concesionados en proceso de producción, representa el 0,00% del total del Activo, que comparado al periodo anterior genera una variación absoluta de 0 000,00 que corresponde a un Aumento del 0,00% de recursos disponibles.
A81: 1.2.7. | B81: Inversiones patrimoniales - Método de participación | C81: 12 | D81: =SUM(D82:D85) -> 0 | E81: =SUM(E82:E85) -> 0 | G81: 0 | H81: 0 | I81: 0 | J81: 0 | L81: La cuenta Inversiones patrimoniales - Método de participación, representa el 0,00% del total del Activo, que comparado al periodo anterior genera una variación absoluta de 0 000,00 que corresponde a un Aumento del 0,00% de recursos disponibles.
A82: 1.2.7.01. | B82: Inversiones patrimoniales en el sector privado interno | D82: =IFERROR(VLOOKUP(A82,BC_ACTUAL!B:G,6,0)/1000,0) -> 0 | E82: =IFERROR(VLOOKUP(A82,BC_ANTERIOR!B:G,6,0)/1000,0) -> 0 | G82: 0 | H82: 0 | I82: 0 | J82: 0 | L82: La cuenta Inversiones patrimoniales en el sector privado interno, representa el 0,00% del total del Activo, que comparado al periodo anterior genera una variación absoluta de 0 000,00 que corresponde a un Aumento del 0,00% de recursos disponibles.
A83: 1.2.7.02. | B83: Inversiones patrimoniales en el sector público interno | D83: =IFERROR(VLOOKUP(A83,BC_ACTUAL!B:G,6,0)/1000,0) -> 0 | E83: =IFERROR(VLOOKUP(A83,BC_ANTERIOR!B:G,6,0)/1000,0) -> 0 | G83: 0 | H83: 0 | I83: 0 | J83: 0 | L83: La cuenta Inversiones patrimoniales en el sector público interno, representa el 0,00% del total del Activo, que comparado al periodo anterior genera una variación absoluta de 0 000,00 que corresponde a un Aumento del 0,00% de recursos disponibles.
A84: 1.2.7.03. | B84: Inversiones patrimoniales en el sector externo | D84: =IFERROR(VLOOKUP(A84,BC_ACTUAL!B:G,6,0)/1000,0) -> 0 | E84: =IFERROR(VLOOKUP(A84,BC_ANTERIOR!B:G,6,0)/1000,0) -> 0 | G84: 0 | H84: 0 | I84: 0 | J84: 0 | L84: La cuenta Inversiones patrimoniales en el sector externo, representa el 0,00% del total del Activo, que comparado al periodo anterior genera una variación absoluta de 0 000,00 que corresponde a un Aumento del 0,00% de recursos disponibles.
A85: 1.2.7.04. | B85: Inversiones patrimoniales en fideicomisos | D85: =IFERROR(VLOOKUP(A85,BC_ACTUAL!B:G,6,0)/1000,0) -> 0 | E85: =IFERROR(VLOOKUP(A85,BC_ANTERIOR!B:G,6,0)/1000,0) -> 0 | G85: 0 | H85: 0 | I85: 0 | J85: 0 | L85: La cuenta Inversiones patrimoniales en fideicomisos, representa el 0,00% del total del Activo, que comparado al periodo anterior genera una variación absoluta de 0 000,00 que corresponde a un Aumento del 0,00% de recursos disponibles.
A86: 1.2.9. | B86: Otros activos a largo plazo | C86: 13 | D86: =SUM(D87:D89) -> 0 | E86: =SUM(E87:E89) -> 0 | G86: 0 | H86: 0 | I86: 0 | J86: 0 | L86: La cuenta Otros activos a largo plazo, representa el 0,00% del total del Activo, que comparado al periodo anterior genera una variación absoluta de 0 000,00 que corresponde a un Aumento del 0,00% de recursos disponibles.
A87: 1.2.9.01. | B87: Gastos a devengar a largo plazo | D87: =IFERROR(VLOOKUP(A87,BC_ACTUAL!B:G,6,0)/1000,0) -> 0 | E87: =IFERROR(VLOOKUP(A87,BC_ANTERIOR!B:G,6,0)/1000,0) -> 0 | G87: 0 | H87: 0 | I87: 0 | J87: 0 | L87: La cuenta Gastos a devengar a largo plazo, representa el 0,00% del total del Activo, que comparado al periodo anterior genera una variación absoluta de 0 000,00 que corresponde a un Aumento del 0,00% de recursos disponibles.
A88: 1.2.9.03. | B88: Objetos de valor | D88: =IFERROR(VLOOKUP(A88,BC_ACTUAL!B:G,6,0)/1000,0) -> 0 | E88: =IFERROR(VLOOKUP(A88,BC_ANTERIOR!B:G,6,0)/1000,0) -> 0 | G88: =IFERROR(D88/$D$91,0) -> 0 | H88: 0 | I88: 0 | J88: 0 | L88: La cuenta Objetos de valor, representa el 0,00% del total del Activo, que comparado al periodo anterior genera una variación absoluta de 0 000,00 que corresponde a un Aumento del 0,00% de recursos disponibles.
A89: 1.2.9.99. | B89: Activos a largo plazo sujetos a depuración contable | D89: =IFERROR(VLOOKUP(A89,BC_ACTUAL!B:G,6,0)/1000,0) -> 0 | E89: =IFERROR(VLOOKUP(A89,BC_ANTERIOR!B:G,6,0)/1000,0) -> 0 | G89: 0 | H89: 0 | I89: 0 | J89: 0 | L89: La cuenta Activos a largo plazo sujetos a depuración contable, representa el 0,00% del total del Activo, que comparado al periodo anterior genera una variación absoluta de 0 000,00 que corresponde a un Aumento del 0,00% de recursos disponibles.
B90: Total del Activo no Corriente | D90: =+D86+D81+D74+D64+D56+D50 -> 163204401.4 | E90: =+E86+E81+E74+E64+E56+E50 -> 163010808.3 | G90: =+G86+G81+G74+G64+G56+G50 -> 0.9772780815 | H90: =+H86+H81+H74+H64+H56+H50 -> 0.982982641 | I90: =+I86+I81+I74+I64+I56+I50 -> 193593.1788 | J90: 0.001187609465 | L90: La cuenta Total del Activo no Corriente, representa el 97,73% del total del , que comparado al periodo anterior genera una variación absoluta de 193 593,18 que corresponde a un Aumento del 0,12% de recursos disponibles.
B91: TOTAL DEL ACTIVO | D91: =+D90+D47 -> 166998937.7 | E91: =+E90+E47 -> 165832845.3 | G91: =+G90+G47 -> 1 | H91: =+H90+H47 -> 1 | I91: =+I90+I47 -> 1166092.368 | J91: 0.007031733466
A93: 2. | B93: PASIVO
A94: 2.1. | B94: Pasivo Corriente
A95: 2.1.1. | B95: Deudas a corto plazo | C95: 14 | D95: =SUM(D96:D105) -> 100143.2682 | E95: =SUM(E96:E105) -> 86261.73254 | G95: =IFERROR(D95/$D$151,0) -> 0.04278422485 | H95: =IFERROR(E95/$E$151,0) -> 0.05078622764 | I95: 13881.53565 | J95: 0.1609234505 | L95: La cuenta Deudas a corto plazo, representa el 4,28% del total del Pasivo, que comparado al periodo anterior genera una variación absoluta de 13 881,54 que corresponde a un Aumento del 16,09% de recursos disponibles.
A96: 2.1.1.01. | B96: Deudas comerciales a corto plazo | D96: =IFERROR(VLOOKUP(A96,BC_ACTUAL!B:G,6,0)/1000,0) -> 0 | E96: =IFERROR(VLOOKUP(A96,BC_ANTERIOR!B:G,6,0)/1000,0) -> 1108.9857 | G96: =IFERROR(D96/$D$151,0) -> 0 | H96: =IFERROR(E96/$E$151,0) -> 0.0006529106077 | I96: -1108.9857 | J96: -1 | L96: La cuenta Deudas comerciales a corto plazo, representa el 0,00% del total del Pasivo, que comparado al periodo anterior genera una variación absoluta de -1 108,99 que corresponde a un Disminución del -100,00% de recursos disponibles.
A97: 2.1.1.02. | B97: Deudas sociales y fiscales a corto plazo | D97: =IFERROR(VLOOKUP(A97,BC_ACTUAL!B:G,6,0)/1000,0) -> 28252.87655 | E97: =IFERROR(VLOOKUP(A97,BC_ANTERIOR!B:G,6,0)/1000,0) -> 21545.67241 | G97: 0.01207048107 | H97: 0.01268492287 | I97: 6707.20414 | J97: 0.3113016857 | L97: La cuenta Deudas sociales y fiscales a corto plazo, representa el 1,21% del total del Pasivo, que comparado al periodo anterior genera una variación absoluta de 6 707,20 que corresponde a un Aumento del 31,13% de recursos disponibles.
A98: 2.1.1.03. | B98: Transferencias a pagar a corto plazo | D98: =IFERROR(VLOOKUP(A98,BC_ACTUAL!B:G,6,0)/1000,0) -> 71890.39164 | E98: =IFERROR(VLOOKUP(A98,BC_ANTERIOR!B:G,6,0)/1000,0) -> 63607.07443 | G98: 0.03071374378 | H98: 0.03744839417 | I98: 8283.31721 | J98: 0.1302263511 | L98: La cuenta Transferencias a pagar a corto plazo, representa el 3,07% del total del Pasivo, que comparado al periodo anterior genera una variación absoluta de 8 283,32 que corresponde a un Aumento del 13,02% de recursos disponibles.
A99: 2.1.1.04. | B99: Documentos a pagar a corto plazo | D99: =IFERROR(VLOOKUP(A99,BC_ACTUAL!B:G,6,0)/1000,0) -> 0 | E99: =IFERROR(VLOOKUP(A99,BC_ANTERIOR!B:G,6,0)/1000,0) -> 0 | G99: 0 | H99: 0 | I99: 0 | J99: 0 | L99: La cuenta Documentos a pagar a corto plazo, representa el 0,00% del total del Pasivo, que comparado al periodo anterior genera una variación absoluta de 0 000,00 que corresponde a un Aumento del 0,00% de recursos disponibles.
A100: 2.1.1.05. | B100: Inversiones patrimoniales a pagar a corto plazo | D100: =IFERROR(VLOOKUP(A100,BC_ACTUAL!B:G,6,0)/1000,0) -> 0 | E100: =IFERROR(VLOOKUP(A100,BC_ANTERIOR!B:G,6,0)/1000,0) -> 0 | G100: 0 | H100: 0 | I100: 0 | J100: 0 | L100: La cuenta Inversiones patrimoniales a pagar a corto plazo, representa el 0,00% del total del Pasivo, que comparado al periodo anterior genera una variación absoluta de 0 000,00 que corresponde a un Aumento del 0,00% de recursos disponibles.
A101: 2.1.1.06. | B101: Deudas por avales ejecutados a corto plazo | D101: =IFERROR(VLOOKUP(A101,BC_ACTUAL!B:G,6,0)/1000,0) -> 0 | E101: =IFERROR(VLOOKUP(A101,BC_ANTERIOR!B:G,6,0)/1000,0) -> 0 | G101: 0 | H101: 0 | I101: 0 | J101: 0 | L101: La cuenta Deudas por avales ejecutados a corto plazo, representa el 0,00% del total del Pasivo, que comparado al periodo anterior genera una variación absoluta de 0 000,00 que corresponde a un Aumento del 0,00% de recursos disponibles.
A102: 2.1.1.07. | B102: Deudas por anticipos a corto plazo | D102: =IFERROR(VLOOKUP(A102,BC_ACTUAL!B:G,6,0)/1000,0) -> 0 | E102: =IFERROR(VLOOKUP(A102,BC_ANTERIOR!B:G,6,0)/1000,0) -> 0 | G102: 0 | H102: 0 | I102: 0 | J102: 0 | L102: La cuenta Deudas por anticipos a corto plazo, representa el 0,00% del total del Pasivo, que comparado al periodo anterior genera una variación absoluta de 0 000,00 que corresponde a un Aumento del 0,00% de recursos disponibles.
A103: 2.1.1.08. | B103: Deudas por Planillas salariales | D103: =IFERROR(VLOOKUP(A103,BC_ACTUAL!B:G,6,0)/1000,0) -> 0 | E103: =IFERROR(VLOOKUP(A103,BC_ANTERIOR!B:G,6,0)/1000,0) -> 0 | G103: 0 | H103: 0 | I103: 0 | J103: 0 | L103: La cuenta Deudas por Planillas salariales, representa el 0,00% del total del Pasivo, que comparado al periodo anterior genera una variación absoluta de 0 000,00 que corresponde a un Aumento del 0,00% de recursos disponibles.
A104: 2.1.1.13. | B104: Deudas por Créditos Fiscales a favor de terceros c/p | D104: =IFERROR(VLOOKUP(A104,BC_ACTUAL!B:G,6,0)/1000,0) -> 0 | E104: =IFERROR(VLOOKUP(A104,BC_ANTERIOR!B:G,6,0)/1000,0) -> 0 | G104: 0 | H104: 0 | I104: 0 | J104: 0 | L104: La cuenta Deudas por Créditos Fiscales a favor de terceros c/p, representa el 0,00% del total del Pasivo, que comparado al periodo anterior genera una variación absoluta de 0 000,00 que corresponde a un Aumento del 0,00% de recursos disponibles.
A105: 2.1.1.99. | B105: Otras deudas a corto plazo | D105: =IFERROR(VLOOKUP(A105,BC_ACTUAL!B:G,6,0)/1000,0) -> 0 | E105: =IFERROR(VLOOKUP(A105,BC_ANTERIOR!B:G,6,0)/1000,0) -> 0 | G105: 0 | H105: 0 | I105: 0 | J105: 0 | L105: La cuenta Otras deudas a corto plazo, representa el 0,00% del total del Pasivo, que comparado al periodo anterior genera una variación absoluta de 0 000,00 que corresponde a un Aumento del 0,00% de recursos disponibles.
A106: 2.1.2. | B106: Endeudamiento público a corto plazo | C106: 15 | D106: =SUM(D107:D111) -> 0 | E106: =SUM(E107:E111) -> 0 | G106: 0 | H106: 0 | I106: 0 | J106: 0 | L106: La cuenta Endeudamiento público a corto plazo, representa el 0,00% del total del Pasivo, que comparado al periodo anterior genera una variación absoluta de 0 000,00 que corresponde a un Aumento del 0,00% de recursos disponibles.
A107: 2.1.2.01. | B107: Títulos y valores de la deuda pública a pagar a corto plazo | D107: =IFERROR(VLOOKUP(A107,BC_ACTUAL!B:G,6,0)/1000,0) -> 0 | E107: =IFERROR(VLOOKUP(A107,BC_ANTERIOR!B:G,6,0)/1000,0) -> 0 | G107: 0 | H107: 0 | I107: 0 | J107: 0 | L107: La cuenta Títulos y valores de la deuda pública a pagar a corto plazo, representa el 0,00% del total del Pasivo, que comparado al periodo anterior genera una variación absoluta de 0 000,00 que corresponde a un Aumento del 0,00% de recursos disponibles.
A108: 2.1.2.02. | B108: Préstamos a pagar a corto plazo | D108: =IFERROR(VLOOKUP(A108,BC_ACTUAL!B:G,6,0)/1000,0) -> 0 | E108: =IFERROR(VLOOKUP(A108,BC_ANTERIOR!B:G,6,0)/1000,0) -> 0 | G108: 0 | H108: 0 | I108: 0 | J108: 0 | L108: La cuenta Préstamos a pagar a corto plazo, representa el 0,00% del total del Pasivo, que comparado al periodo anterior genera una variación absoluta de 0 000,00 que corresponde a un Aumento del 0,00% de recursos disponibles.
A109: 2.1.2.03. | B109: Deudas asumidas a corto plazo | D109: =IFERROR(VLOOKUP(A109,BC_ACTUAL!B:G,6,0)/1000,0) -> 0 | E109: =IFERROR(VLOOKUP(A109,BC_ANTERIOR!B:G,6,0)/1000,0) -> 0 | G109: 0 | H109: 0 | I109: 0 | J109: 0 | L109: La cuenta Deudas asumidas a corto plazo, representa el 0,00% del total del Pasivo, que comparado al periodo anterior genera una variación absoluta de 0 000,00 que corresponde a un Aumento del 0,00% de recursos disponibles.
A110: 2.1.2.04. | B110: Endeudamiento de Tesorería a corto plazo | D110: =IFERROR(VLOOKUP(A110,BC_ACTUAL!B:G,6,0)/1000,0) -> 0 | E110: =IFERROR(VLOOKUP(A110,BC_ANTERIOR!B:G,6,0)/1000,0) -> 0 | G110: 0 | H110: 0 | I110: 0 | J110: 0 | L110: La cuenta Endeudamiento de Tesorería a corto plazo, representa el 0,00% del total del Pasivo, que comparado al periodo anterior genera una variación absoluta de 0 000,00 que corresponde a un Aumento del 0,00% de recursos disponibles.
A111: 2.1.2.05. | B111: Endeudamiento público a valor razonable | D111: =IFERROR(VLOOKUP(A111,BC_ACTUAL!B:G,6,0)/1000,0) -> 0 | E111: =IFERROR(VLOOKUP(A111,BC_ANTERIOR!B:G,6,0)/1000,0) -> 0 | G111: 0 | H111: 0 | I111: 0 | J111: 0 | L111: La cuenta Endeudamiento público a valor razonable, representa el 0,00% del total del Pasivo, que comparado al periodo anterior genera una variación absoluta de 0 000,00 que corresponde a un Aumento del 0,00% de recursos disponibles.
A112: 2.1.3. | B112: Fondos de terceros y en garantía | C112: 16 | D112: =SUM(D113:D117) -> 62540.80804 | E112: =SUM(E113:E117) -> 66225.24686 | G112: 0.02671931965 | H112: 0.03898983203 | I112: -3684.43882 | J112: -0.05563495789 | L112: La cuenta Fondos de terceros y en garantía, representa el 2,67% del total del Pasivo, que comparado al periodo anterior genera una variación absoluta de -3 684,44 que corresponde a un Disminución del -5,56% de recursos disponibles.
A113: 2.1.3.01. | B113: Fondos de terceros en la Caja Única | D113: =IFERROR(VLOOKUP(A113,BC_ACTUAL!B:G,6,0)/1000,0) -> 0 | E113: =IFERROR(VLOOKUP(A113,BC_ANTERIOR!B:G,6,0)/1000,0) -> 0 | G113: 0 | H113: 0 | I113: 0 | J113: 0 | L113: La cuenta Fondos de terceros en la Caja Única, representa el 0,00% del total del Pasivo, que comparado al periodo anterior genera una variación absoluta de 0 000,00 que corresponde a un Aumento del 0,00% de recursos disponibles.
A114: 2.1.3.02. | B114: Recaudación por cuenta de terceros | D114: =IFERROR(VLOOKUP(A114,BC_ACTUAL!B:G,6,0)/1000,0) -> 0 | E114: =IFERROR(VLOOKUP(A114,BC_ANTERIOR!B:G,6,0)/1000,0) -> 0 | G114: 0 | H114: 0 | I114: 0 | J114: 0 | L114: La cuenta Recaudación por cuenta de terceros, representa el 0,00% del total del Pasivo, que comparado al periodo anterior genera una variación absoluta de 0 000,00 que corresponde a un Aumento del 0,00% de recursos disponibles.
A115: 2.1.3.03. | B115: Depósitos en garantía | D115: =IFERROR(VLOOKUP(A115,BC_ACTUAL!B:G,6,0)/1000,0) -> 62540.80804 | E115: =IFERROR(VLOOKUP(A115,BC_ANTERIOR!B:G,6,0)/1000,0) -> 66225.24686 | G115: 0.02671931965 | H115: 0.03898983203 | I115: -3684.43882 | J115: -0.05563495789 | L115: La cuenta Depósitos en garantía, representa el 2,67% del total del Pasivo, que comparado al periodo anterior genera una variación absoluta de -3 684,44 que corresponde a un Disminución del -5,56% de recursos disponibles.
A116: 2.1.3.90. | B116: Cuentas Asociadas ( Deudores ) CP | D116: =IFERROR(VLOOKUP(A116,BC_ACTUAL!B:G,6,0)/1000,0) -> 0 | E116: =IFERROR(VLOOKUP(A116,BC_ANTERIOR!B:G,6,0)/1000,0) -> 0 | G116: 0 | H116: 0 | I116: 0 | J116: 0 | L116: La cuenta Cuentas Asociadas ( Deudores ) CP, representa el 0,00% del total del Pasivo, que comparado al periodo anterior genera una variación absoluta de 0 000,00 que corresponde a un Aumento del 0,00% de recursos disponibles.
A117: 2.1.3.99. | B117: Otros fondos de terceros | D117: =IFERROR(VLOOKUP(A117,BC_ACTUAL!B:G,6,0)/1000,0) -> 0 | E117: =IFERROR(VLOOKUP(A117,BC_ANTERIOR!B:G,6,0)/1000,0) -> 0 | G117: 0 | H117: 0 | I117: 0 | J117: 0 | L117: La cuenta Otros fondos de terceros, representa el 0,00% del total del Pasivo, que comparado al periodo anterior genera una variación absoluta de 0 000,00 que corresponde a un Aumento del 0,00% de recursos disponibles.
A118: 2.1.4. | B118: Provisiones y reservas técnicas a corto plazo | C118: 17 | D118: =SUM(D119:D120) -> 0 | E118: =SUM(E119:E120) -> 0 | G118: 0 | H118: 0 | I118: 0 | J118: 0 | L118: La cuenta Provisiones y reservas técnicas a corto plazo, representa el 0,00% del total del Pasivo, que comparado al periodo anterior genera una variación absoluta de 0 000,00 que corresponde a un Aumento del 0,00% de recursos disponibles.
A119: 2.1.4.01. | B119: Provisiones a corto plazo | D119: =IFERROR(VLOOKUP(A119,BC_ACTUAL!B:G,6,0)/1000,0) -> 0 | E119: =IFERROR(VLOOKUP(A119,BC_ANTERIOR!B:G,6,0)/1000,0) -> 0 | G119: 0 | H119: 0 | I119: 0 | J119: 0 | L119: La cuenta Provisiones a corto plazo, representa el 0,00% del total del Pasivo, que comparado al periodo anterior genera una variación absoluta de 0 000,00 que corresponde a un Aumento del 0,00% de recursos disponibles.
A120: 2.1.4.02. | B120: Reservas técnicas a corto plazo | D120: =IFERROR(VLOOKUP(A120,BC_ACTUAL!B:G,6,0)/1000,0) -> 0 | E120: =IFERROR(VLOOKUP(A120,BC_ANTERIOR!B:G,6,0)/1000,0) -> 0 | G120: 0 | H120: 0 | I120: 0 | J120: 0 | L120: La cuenta Reservas técnicas a corto plazo, representa el 0,00% del total del Pasivo, que comparado al periodo anterior genera una variación absoluta de 0 000,00 que corresponde a un Aumento del 0,00% de recursos disponibles.
A121: 2.1.9. | B121: Otros pasivos a corto plazo | C121: 18 | D121: =SUM(D122:D124) -> 0 | E121: =SUM(E122:E124) -> 0 | G121: 0 | H121: 0 | I121: 0 | J121: 0 | L121: La cuenta Otros pasivos a corto plazo, representa el 0,00% del total del Pasivo, que comparado al periodo anterior genera una variación absoluta de 0 000,00 que corresponde a un Aumento del 0,00% de recursos disponibles.
A122: 2.1.9.01. | B122: Ingresos a devengar a corto plazo | D122: =IFERROR(VLOOKUP(A122,BC_ACTUAL!B:G,6,0)/1000,0) -> 0 | E122: =IFERROR(VLOOKUP(A122,BC_ANTERIOR!B:G,6,0)/1000,0) -> 0 | G122: 0 | H122: 0 | I122: 0 | J122: 0 | L122: La cuenta Ingresos a devengar a corto plazo, representa el 0,00% del total del Pasivo, que comparado al periodo anterior genera una variación absoluta de 0 000,00 que corresponde a un Aumento del 0,00% de recursos disponibles.
A123: 2.1.9.02. | B123: Instrumentos Derivados a pagar a corto plazo | D123: =IFERROR(VLOOKUP(A123,BC_ACTUAL!B:G,6,0)/1000,0) -> 0 | E123: =IFERROR(VLOOKUP(A123,BC_ANTERIOR!B:G,6,0)/1000,0) -> 0 | G123: 0 | H123: 0 | I123: 0 | J123: 0 | L123: La cuenta Instrumentos Derivados a pagar a corto plazo, representa el 0,00% del total del Pasivo, que comparado al periodo anterior genera una variación absoluta de 0 000,00 que corresponde a un Aumento del 0,00% de recursos disponibles.
A124: 2.1.9.99. | B124: Pasivos a corto plazo sujetos a depuración contable | D124: =IFERROR(VLOOKUP(A124,BC_ACTUAL!B:G,6,0)/1000,0) -> 0 | E124: =IFERROR(VLOOKUP(A124,BC_ANTERIOR!B:G,6,0)/1000,0) -> 0 | G124: 0 | H124: 0 | I124: 0 | J124: 0 | L124: La cuenta Pasivos a corto plazo sujetos a depuración contable, representa el 0,00% del total del Pasivo, que comparado al periodo anterior genera una variación absoluta de 0 000,00 que corresponde a un Aumento del 0,00% de recursos disponibles.
B125: Total del Pasivo Corriente | D125: =+D121+D118+D112+D106+D95 -> 162684.0762 | E125: =+E121+E118+E112+E106+E95 -> 152486.9794 | G125: =+G121+G118+G112+G106+G95 -> 0.06950354451 | H125: =+H121+H118+H112+H106+H95 -> 0.08977605967 | I125: =+I121+I118+I112+I106+I95 -> 10197.09683 | J125: 0.06687191831
A127: 2.2. | B127: Pasivo No Corriente
A128: 2.2.1. | B128: Deudas a largo plazo | C128: 19 | D128: =SUM(D129:D135) -> 0 | E128: =SUM(E129:E135) -> 0 | G128: 0 | H128: =IFERROR(E128/$E$151,0) -> 0 | I128: 0 | J128: 0 | L128: La cuenta Deudas a largo plazo, representa el 0,00% del total del Pasivo, que comparado al periodo anterior genera una variación absoluta de 0 000,00 que corresponde a un Aumento del 0,00% de recursos disponibles.
A129: 2.2.1.01. | B129: Deudas comerciales a largo plazo | D129: =IFERROR(VLOOKUP(A129,BC_ACTUAL!B:G,6,0)/1000,0) -> 0 | E129: =IFERROR(VLOOKUP(A129,BC_ANTERIOR!B:G,6,0)/1000,0) -> 0 | G129: 0 | H129: 0 | I129: 0 | J129: 0 | L129: La cuenta Deudas comerciales a largo plazo, representa el 0,00% del total del Pasivo, que comparado al periodo anterior genera una variación absoluta de 0 000,00 que corresponde a un Aumento del 0,00% de recursos disponibles.
A130: 2.2.1.02. | B130: Deudas sociales y fiscales a largo plazo | D130: =IFERROR(VLOOKUP(A130,BC_ACTUAL!B:G,6,0)/1000,0) -> 0 | E130: =IFERROR(VLOOKUP(A130,BC_ANTERIOR!B:G,6,0)/1000,0) -> 0 | G130: 0 | H130: 0 | I130: 0 | J130: 0 | L130: La cuenta Deudas sociales y fiscales a largo plazo, representa el 0,00% del total del Pasivo, que comparado al periodo anterior genera una variación absoluta de 0 000,00 que corresponde a un Aumento del 0,00% de recursos disponibles.
A131: 2.2.1.04. | B131: Documentos a pagar a largo plazo | D131: =IFERROR(VLOOKUP(A131,BC_ACTUAL!B:G,6,0)/1000,0) -> 0 | E131: =IFERROR(VLOOKUP(A131,BC_ANTERIOR!B:G,6,0)/1000,0) -> 0 | G131: 0 | H131: 0 | I131: 0 | J131: 0 | L131: La cuenta Documentos a pagar a largo plazo, representa el 0,00% del total del Pasivo, que comparado al periodo anterior genera una variación absoluta de 0 000,00 que corresponde a un Aumento del 0,00% de recursos disponibles.
A132: 2.2.1.05. | B132: Inversiones patrimoniales a pagar a largo plazo | D132: =IFERROR(VLOOKUP(A132,BC_ACTUAL!B:G,6,0)/1000,0) -> 0 | E132: =IFERROR(VLOOKUP(A132,BC_ANTERIOR!B:G,6,0)/1000,0) -> 0 | G132: 0 | H132: 0 | I132: 0 | J132: 0 | L132: La cuenta Inversiones patrimoniales a pagar a largo plazo, representa el 0,00% del total del Pasivo, que comparado al periodo anterior genera una variación absoluta de 0 000,00 que corresponde a un Aumento del 0,00% de recursos disponibles.
A133: 2.2.1.06. | B133: Deudas por avales ejecutados a largo plazo | D133: =IFERROR(VLOOKUP(A133,BC_ACTUAL!B:G,6,0)/1000,0) -> 0 | E133: =IFERROR(VLOOKUP(A133,BC_ANTERIOR!B:G,6,0)/1000,0) -> 0 | G133: 0 | H133: 0 | I133: 0 | J133: 0 | L133: La cuenta Deudas por avales ejecutados a largo plazo, representa el 0,00% del total del Pasivo, que comparado al periodo anterior genera una variación absoluta de 0 000,00 que corresponde a un Aumento del 0,00% de recursos disponibles.
A134: 2.2.1.07. | B134: Deudas por anticipos a largo plazo | D134: =IFERROR(VLOOKUP(A134,BC_ACTUAL!B:G,6,0)/1000,0) -> 0 | E134: =IFERROR(VLOOKUP(A134,BC_ANTERIOR!B:G,6,0)/1000,0) -> 0 | G134: 0 | H134: 0 | I134: 0 | J134: 0 | L134: La cuenta Deudas por anticipos a largo plazo, representa el 0,00% del total del Pasivo, que comparado al periodo anterior genera una variación absoluta de 0 000,00 que corresponde a un Aumento del 0,00% de recursos disponibles.
A135: 2.2.1.99. | B135: Otras deudas a largo plazo | D135: =IFERROR(VLOOKUP(A135,BC_ACTUAL!B:G,6,0)/1000,0) -> 0 | E135: =IFERROR(VLOOKUP(A135,BC_ANTERIOR!B:G,6,0)/1000,0) -> 0 | G135: 0 | H135: 0 | I135: 0 | J135: 0 | L135: La cuenta Otras deudas a largo plazo, representa el 0,00% del total del Pasivo, que comparado al periodo anterior genera una variación absoluta de 0 000,00 que corresponde a un Aumento del 0,00% de recursos disponibles.
A136: 2.2.2. | B136: Endeudamiento público a largo plazo | C136: 20 | D136: =SUM(D137:D139) -> 2115032.765 | E136: =SUM(E137:E139) -> 1522925.878 | G136: 0.9036057943 | H136: 0.8966161246 | I136: 592106.887 | J136: 0.3887956042 | L136: La cuenta Endeudamiento público a largo plazo, representa el 90,36% del total del Pasivo, que comparado al periodo anterior genera una variación absoluta de 592 106,89 que corresponde a un Aumento del 38,88% de recursos disponibles.
A137: 2.2.2.01. | B137: Títulos y valores de la deuda pública a pagar a largo plazo | D137: =IFERROR(VLOOKUP(A137,BC_ACTUAL!B:G,6,0)/1000,0) -> 0 | E137: =IFERROR(VLOOKUP(A137,BC_ANTERIOR!B:G,6,0)/1000,0) -> 0 | G137: 0 | H137: 0 | I137: 0 | J137: 0 | L137: La cuenta Títulos y valores de la deuda pública a pagar a largo plazo, representa el 0,00% del total del Pasivo, que comparado al periodo anterior genera una variación absoluta de 0 000,00 que corresponde a un Aumento del 0,00% de recursos disponibles.
A138: 2.2.2.02. | B138: Préstamos a pagar a largo plazo | D138: =IFERROR(VLOOKUP(A138,BC_ACTUAL!B:G,6,0)/1000,0) -> 2115032.765 | E138: =IFERROR(VLOOKUP(A138,BC_ANTERIOR!B:G,6,0)/1000,0) -> 1522925.878 | G138: 0.9036057943 | H138: 0.8966161246 | I138: 592106.887 | J138: 0.3887956042 | L138: La cuenta Préstamos a pagar a largo plazo, representa el 90,36% del total del Pasivo, que comparado al periodo anterior genera una variación absoluta de 592 106,89 que corresponde a un Aumento del 38,88% de recursos disponibles.
A139: 2.2.2.03. | B139: Deudas asumidas a largo plazo | D139: =IFERROR(VLOOKUP(A139,BC_ACTUAL!B:G,6,0)/1000,0) -> 0 | E139: =IFERROR(VLOOKUP(A139,BC_ANTERIOR!B:G,6,0)/1000,0) -> 0 | G139: 0 | H139: 0 | I139: =IFERROR(D139-E139,0) -> 0 | J139: =IFERROR(I139/E139,0) -> 0 | L139: ="La"&" "&"cuenta"&" "&B139&","&" "&"representa"&" "&"el"&" "&TEXT(G139,"0,00%")&" "&"del"&" "&"total"&" "&"del"&" "&IF(MID(A139,1,2)="1.","Activo",IF(MID(A139,1,2)="2.","Pasivo",IF(MID(A139,1,2)="3.","Capital",IF(MID(A139,1,2)="4.","Ingresos",IF(MID(A139,1,2)="5.","Gastos","")))))&","&" "&"que"&" "&"comparado"&" "&"al"&" "&"periodo"&" "&"anterior"&" "&"genera"&" "&"una"&" "&"variación"&" "&"absoluta"&" "&"de"&" "&TEXT(I139,"0 000,00")&" "&"que"&" "&"corresponde"&" "&"a"&" "&"un"&" "&IF(I139<0,"Disminución","Aumento")&" "&"del"&" "&TEXT(J139,"0,00%")&" "&"de"&" "&"recursos"&" "&"disponibles"&"." -> La cuenta Deudas asumidas a largo plazo, representa el 0,00% del total del Pasivo, que comparado al periodo anterior genera una variación absoluta de 0 000,00 que corresponde a un Aumento del 0,00% de recursos disponibles.
A140: 2.2.3. | B140: Fondos de terceros y en garantía | C140: 21 | D140: =SUM(D141:D142) -> 0 | E140: =SUM(E141:E142) -> 0 | G140: 0 | H140: 0 | I140: 0 | J140: 0 | L140: La cuenta Fondos de terceros y en garantía, representa el 0,00% del total del Pasivo, que comparado al periodo anterior genera una variación absoluta de 0 000,00 que corresponde a un Aumento del 0,00% de recursos disponibles.
A141: 2.2.3.01. | B141: Fondos de terceros en la Caja Única | D141: =IFERROR(VLOOKUP(A141,BC_ACTUAL!B:G,6,0)/1000,0) -> 0 | E141: =IFERROR(VLOOKUP(A141,BC_ANTERIOR!B:G,6,0)/1000,0) -> 0 | G141: 0 | H141: 0 | I141: 0 | J141: 0 | L141: La cuenta Fondos de terceros en la Caja Única, representa el 0,00% del total del Pasivo, que comparado al periodo anterior genera una variación absoluta de 0 000,00 que corresponde a un Aumento del 0,00% de recursos disponibles.
A142: 2.2.3.99. | B142: Otros fondos de terceros | D142: =IFERROR(VLOOKUP(A142,BC_ACTUAL!B:G,6,0)/1000,0) -> 0 | E142: =IFERROR(VLOOKUP(A142,BC_ANTERIOR!B:G,6,0)/1000,0) -> 0 | G142: 0 | H142: 0 | I142: 0 | J142: 0 | L142: La cuenta Otros fondos de terceros, representa el 0,00% del total del Pasivo, que comparado al periodo anterior genera una variación absoluta de 0 000,00 que corresponde a un Aumento del 0,00% de recursos disponibles.
A143: 2.2.4. | B143: Provisiones y reservas técnicas a largo plazo | C143: 22 | D143: =SUM(D144:D145) -> 62941.86 | E143: =SUM(E144:E145) -> 23113.23 | G143: 0.02689066115 | H143: 0.01360781572 | I143: 39828.63 | J143: 1.723196195 | L143: La cuenta Provisiones y reservas técnicas a largo plazo, representa el 2,69% del total del Pasivo, que comparado al periodo anterior genera una variación absoluta de 39 828,63 que corresponde a un Aumento del 172,32% de recursos disponibles.
A144: 2.2.4.01. | B144: Provisiones a largo plazo | D144: =IFERROR(VLOOKUP(A144,BC_ACTUAL!B:G,6,0)/1000,0) -> 62941.86 | E144: =IFERROR(VLOOKUP(A144,BC_ANTERIOR!B:G,6,0)/1000,0) -> 23113.23 | G144: 0.02689066115 | H144: 0.01360781572 | I144: 39828.63 | J144: 1.723196195 | L144: La cuenta Provisiones a largo plazo, representa el 2,69% del total del Pasivo, que comparado al periodo anterior genera una variación absoluta de 39 828,63 que corresponde a un Aumento del 172,32% de recursos disponibles.
A145: 2.2.4.02. | B145: Reservas técnicas a largo plazo | D145: =IFERROR(VLOOKUP(A145,BC_ACTUAL!B:G,6,0)/1000,0) -> 0 | E145: =IFERROR(VLOOKUP(A145,BC_ANTERIOR!B:G,6,0)/1000,0) -> 0 | G145: 0 | H145: 0 | I145: 0 | J145: 0 | L145: La cuenta Reservas técnicas a largo plazo, representa el 0,00% del total del Pasivo, que comparado al periodo anterior genera una variación absoluta de 0 000,00 que corresponde a un Aumento del 0,00% de recursos disponibles.
A146: 2.2.9. | B146: Otros pasivos a largo plazo | C146: 23 | D146: =SUM(D147:D149) -> 0 | E146: =SUM(E147:E149) -> 0 | G146: 0 | H146: 0 | I146: 0 | J146: 0 | L146: La cuenta Otros pasivos a largo plazo, representa el 0,00% del total del Pasivo, que comparado al periodo anterior genera una variación absoluta de 0 000,00 que corresponde a un Aumento del 0,00% de recursos disponibles.
A147: 2.2.9.01. | B147: Ingresos a devengar a largo plazo | D147: =IFERROR(VLOOKUP(A147,BC_ACTUAL!B:G,6,0)/1000,0) -> 0 | E147: =IFERROR(VLOOKUP(A147,BC_ANTERIOR!B:G,6,0)/1000,0) -> 0 | G147: 0 | H147: 0 | I147: 0 | J147: 0 | L147: La cuenta Ingresos a devengar a largo plazo, representa el 0,00% del total del Pasivo, que comparado al periodo anterior genera una variación absoluta de 0 000,00 que corresponde a un Aumento del 0,00% de recursos disponibles.
A148: 2.2.9.02. | B148: Instrumentos Derivados a pagar a largo plazo | D148: =IFERROR(VLOOKUP(A148,BC_ACTUAL!B:G,6,0)/1000,0) -> 0 | E148: =IFERROR(VLOOKUP(A148,BC_ANTERIOR!B:G,6,0)/1000,0) -> 0 | G148: 0 | H148: 0 | I148: 0 | J148: 0 | L148: La cuenta Instrumentos Derivados a pagar a largo plazo, representa el 0,00% del total del Pasivo, que comparado al periodo anterior genera una variación absoluta de 0 000,00 que corresponde a un Aumento del 0,00% de recursos disponibles.
A149: 2.2.9.99. | B149: Pasivos a largo plazo sujetos a depuración contable | D149: =IFERROR(VLOOKUP(A149,BC_ACTUAL!B:G,6,0)/1000,0) -> 0 | E149: =IFERROR(VLOOKUP(A149,BC_ANTERIOR!B:G,6,0)/1000,0) -> 0 | G149: 0 | H149: 0 | I149: 0 | J149: 0 | L149: La cuenta Pasivos a largo plazo sujetos a depuración contable, representa el 0,00% del total del Pasivo, que comparado al periodo anterior genera una variación absoluta de 0 000,00 que corresponde a un Aumento del 0,00% de recursos disponibles.
B150: Total del Pasivo no Corriente | D150: =+D146+D143+D140+D136+D128 -> 2177974.625 | E150: =+E146+E143+E140+E136+E128 -> 1546039.108 | G150: =+G146+G143+G140+G136+G128 -> 0.9304964555 | H150: =+H146+H143+H140+H136+H128 -> 0.9102239403 | I150: =+I146+I143+I140+I136+I128 -> 631935.517 | J150: 0.4087448459
B151: TOTAL DEL PASIVO | D151: =+D150+D125 -> 2340658.701 | E151: =+E150+E125 -> 1698526.088 | G151: =+G150+G125 -> 1 | H151: =+H150+H125 -> 1 | I151: =+I150+I125 -> 642132.6138 | J151: 0.3780528415
A153: 3. | B153: PATRIMONIO
A154: 3.1. | B154: Patrimonio público
A155: 3.1.1. | B155: Capital | C155: 24 | D155: =SUM(D156:D157) -> 0.5248 | E155: =SUM(E156:E157) -> 0.5248 | G155: =IFERROR(D155/$D$181,0) -> 3.187206882e-09 | H155: =IFERROR(E155/$E$181,0) -> 3.197381282e-09 | I155: 0 | J155: 0 | L155: La cuenta Capital, representa el 0,00% del total del Capital, que comparado al periodo anterior genera una variación absoluta de 0 000,00 que corresponde a un Aumento del 0,00% de recursos disponibles.
A156: 3.1.1.01. | B156: Capital inicial | D156: =IFERROR(VLOOKUP(A156,BC_ACTUAL!B:G,6,0)/1000,0) -> 0.5248 | E156: =IFERROR(VLOOKUP(A156,BC_ANTERIOR!B:G,6,0)/1000,0) -> 0.5248 | G156: =IFERROR(D156/$D$181,0) -> 3.187206882e-09 | H156: =IFERROR(E156/$E$181,0) -> 3.197381282e-09 | I156: 0 | J156: 0 | L156: La cuenta Capital inicial, representa el 0,00% del total del Capital, que comparado al periodo anterior genera una variación absoluta de 0 000,00 que corresponde a un Aumento del 0,00% de recursos disponibles.
A157: 3.1.1.02. | B157: Incorporaciones al capital | D157: =IFERROR(VLOOKUP(A157,BC_ACTUAL!B:G,6,0)/1000,0) -> 0 | E157: =IFERROR(VLOOKUP(A157,BC_ANTERIOR!B:G,6,0)/1000,0) -> 0 | G157: 0 | H157: 0 | I157: 0 | J157: 0 | L157: La cuenta Incorporaciones al capital, representa el 0,00% del total del Capital, que comparado al periodo anterior genera una variación absoluta de 0 000,00 que corresponde a un Aumento del 0,00% de recursos disponibles.
A158: 3.1.2. | B158: Transferencias de capital | C158: 25 | D158: =SUM(D159:D160) -> 0 | E158: =SUM(E159:E160) -> 0 | G158: 0 | H158: 0 | I158: 0 | J158: 0 | L158: La cuenta Transferencias de capital, representa el 0,00% del total del Capital, que comparado al periodo anterior genera una variación absoluta de 0 000,00 que corresponde a un Aumento del 0,00% de recursos disponibles.
A159: 3.1.2.01. | B159: Donaciones de capital | D159: =IFERROR(VLOOKUP(A159,BC_ACTUAL!B:G,6,0)/1000,0) -> 0 | E159: =IFERROR(VLOOKUP(A159,BC_ANTERIOR!B:G,6,0)/1000,0) -> 0 | G159: 0 | H159: 0 | I159: 0 | J159: 0 | L159: La cuenta Donaciones de capital, representa el 0,00% del total del Capital, que comparado al periodo anterior genera una variación absoluta de 0 000,00 que corresponde a un Aumento del 0,00% de recursos disponibles.
A160: 3.1.2.99. | B160: Otras transferencias de capital | D160: =IFERROR(VLOOKUP(A160,BC_ACTUAL!B:G,6,0)/1000,0) -> 0 | E160: =IFERROR(VLOOKUP(A160,BC_ANTERIOR!B:G,6,0)/1000,0) -> 0 | G160: 0 | H160: 0 | I160: 0 | J160: 0 | L160: La cuenta Otras transferencias de capital, representa el 0,00% del total del Capital, que comparado al periodo anterior genera una variación absoluta de 0 000,00 que corresponde a un Aumento del 0,00% de recursos disponibles.
A161: 3.1.3. | B161: Reservas | C161: 26 | D161: =SUM(D162:D163) -> 0 | E161: =SUM(E162:E163) -> 0 | G161: 0 | H161: 0 | I161: 0 | J161: 0 | L161: La cuenta Reservas, representa el 0,00% del total del Capital, que comparado al periodo anterior genera una variación absoluta de 0 000,00 que corresponde a un Aumento del 0,00% de recursos disponibles.
A162: 3.1.3.01. | B162: Revaluación de bienes | D162: =IFERROR(VLOOKUP(A162,BC_ACTUAL!B:G,6,0)/1000,0) -> 0 | E162: =IFERROR(VLOOKUP(A162,BC_ANTERIOR!B:G,6,0)/1000,0) -> 0 | G162: 0 | H162: 0 | I162: 0 | J162: 0 | L162: La cuenta Revaluación de bienes, representa el 0,00% del total del Capital, que comparado al periodo anterior genera una variación absoluta de 0 000,00 que corresponde a un Aumento del 0,00% de recursos disponibles.
A163: 3.1.3.99. | B163: Otras reservas | D163: =IFERROR(VLOOKUP(A163,BC_ACTUAL!B:G,6,0)/1000,0) -> 0 | E163: =IFERROR(VLOOKUP(A163,BC_ANTERIOR!B:G,6,0)/1000,0) -> 0 | G163: 0 | H163: 0 | I163: 0 | J163: 0 | L163: La cuenta Otras reservas, representa el 0,00% del total del Capital, que comparado al periodo anterior genera una variación absoluta de 0 000,00 que corresponde a un Aumento del 0,00% de recursos disponibles.
A164: 3.1.4. | B164: Variaciones no asignables a reservas | C164: 27 | D164: =SUM(D165:D168) -> 0 | E164: =SUM(E165:E168) -> 0 | G164: 0 | H164: 0 | I164: 0 | J164: 0 | L164: La cuenta Variaciones no asignables a reservas, representa el 0,00% del total del Capital, que comparado al periodo anterior genera una variación absoluta de 0 000,00 que corresponde a un Aumento del 0,00% de recursos disponibles.
A165: 3.1.4.01. | B165: Diferencias de conversión de moneda extranjera | D165: =IFERROR(VLOOKUP(A165,BC_ACTUAL!B:G,6,0)/1000,0) -> 0 | E165: =IFERROR(VLOOKUP(A165,BC_ANTERIOR!B:G,6,0)/1000,0) -> 0 | G165: 0 | H165: 0 | I165: 0 | J165: 0 | L165: La cuenta Diferencias de conversión de moneda extranjera, representa el 0,00% del total del Capital, que comparado al periodo anterior genera una variación absoluta de 0 000,00 que corresponde a un Aumento del 0,00% de recursos disponibles.
A166: 3.1.4.02. | B166: Diferencias de valor razonable de activos financieros destinados a la venta | D166: =IFERROR(VLOOKUP(A166,BC_ACTUAL!B:G,6,0)/1000,0) -> 0 | E166: =IFERROR(VLOOKUP(A166,BC_ANTERIOR!B:G,6,0)/1000,0) -> 0 | G166: 0 | H166: 0 | I166: 0 | J166: 0 | L166: La cuenta Diferencias de valor razonable de activos financieros destinados a la venta, representa el 0,00% del total del Capital, que comparado al periodo anterior genera una variación absoluta de 0 000,00 que corresponde a un Aumento del 0,00% de recursos disponibles.
A167: 3.1.4.03. | B167: Diferencias de valor razonable de instrumentos financieros designados como cobertura | D167: =IFERROR(VLOOKUP(A167,BC_ACTUAL!B:G,6,0)/1000,0) -> 0 | E167: =IFERROR(VLOOKUP(A167,BC_ANTERIOR!B:G,6,0)/1000,0) -> 0 | G167: 0 | H167: 0 | I167: 0 | J167: 0 | L167: La cuenta Diferencias de valor razonable de instrumentos financieros designados como cobertura, representa el 0,00% del total del Capital, que comparado al periodo anterior genera una variación absoluta de 0 000,00 que corresponde a un Aumento del 0,00% de recursos disponibles.
A168: 3.1.4.99. | B168: Otras variaciones no asignables a reservas | D168: =IFERROR(VLOOKUP(A168,BC_ACTUAL!B:G,6,0)/1000,0) -> 0 | E168: =IFERROR(VLOOKUP(A168,BC_ANTERIOR!B:G,6,0)/1000,0) -> 0 | G168: 0 | H168: 0 | I168: 0 | J168: 0 | L168: La cuenta Otras variaciones no asignables a reservas, representa el 0,00% del total del Capital, que comparado al periodo anterior genera una variación absoluta de 0 000,00 que corresponde a un Aumento del 0,00% de recursos disponibles.
A169: 3.1.5. | B169: Resultados acumulados | C169: 28 | D169: =SUM(D170:D171) -> 164658278.5 | E169: =SUM(E170:E171) -> 164134318.7 | G169: 0.9999999968 | H169: 0.9999999968 | I169: 523959.7545 | J169: 0.003192262037 | L169: La cuenta Resultados acumulados, representa el 100,00% del total del Capital, que comparado al periodo anterior genera una variación absoluta de 523 959,75 que corresponde a un Aumento del 0,32% de recursos disponibles.
A170: 3.1.5.01. | B170: Resultados acumulados de ejercicios anteriores | D170: =IFERROR(VLOOKUP(A170,BC_ACTUAL!B:G,6,0)/1000,0) -> 164115700.7 | E170: =IFERROR(VLOOKUP(A170,BC_ANTERIOR!B:G,6,0)/1000,0) -> 164277816 | G170: 0.9967048225 | H170: 1.000874264 | I170: -162115.2913 | J170: -0.0009868361728 | L170: La cuenta Resultados acumulados de ejercicios anteriores, representa el 99,67% del total del Capital, que comparado al periodo anterior genera una variación absoluta de -162 115,29 que corresponde a un Disminución del -0,10% de recursos disponibles.
A171: 3.1.5.02. | B171: Resultado del ejercicio | D171: =IFERROR((VLOOKUP("4.",BC_ACTUAL!B:G,6,FALSE))-(VLOOKUP("5.",BC_ACTUAL!B:G,6,0)),0)/1000 -> 542577.7243 | E171: =IFERROR((VLOOKUP("4.",BC_ANTERIOR!B:G,6,FALSE))-(VLOOKUP("5.",BC_ANTERIOR!B:G,6,0)),0)/1000 -> -143497.3215 | G171: 0.00329517427 | H171: -0.0008742676253 | I171: 686075.0458 | J171: -4.781100013 | L171: La cuenta Resultado del ejercicio, representa el 0,33% del total del Capital, que comparado al periodo anterior genera una variación absoluta de 686 075,05 que corresponde a un Aumento del -478,11% de recursos disponibles.
A172: 3.2. | B172: Intereses minoritarios
A173: 3.2.1. | B173: Intereses minoritarios - Participaciones en el patrimonio de entidades controladas | C173: 29 | D173: =SUM(D174:D175) -> 0 | E173: =SUM(E174:E175) -> 0 | G173: =IFERROR(D173/$D$181,0) -> 0 | H173: =IFERROR(E173/$E$181,0) -> 0 | I173: 0 | J173: 0 | L173: La cuenta Intereses minoritarios - Participaciones en el patrimonio de entidades controladas, representa el 0,00% del total del Capital, que comparado al periodo anterior genera una variación absoluta de 0 000,00 que corresponde a un Aumento del 0,00% de recursos disponibles.
A174: 3.2.1.01. | B174: Intereses minoritarios - Participaciones en el patrimonio de entidades del sector gobierno general | D174: =IFERROR(VLOOKUP(A174,BC_ACTUAL!B:G,6,0)/1000,0) -> 0 | E174: =IFERROR(VLOOKUP(A174,BC_ANTERIOR!B:G,6,0)/1000,0) -> 0 | G174: 0 | H174: 0 | I174: 0 | J174: 0 | L174: La cuenta Intereses minoritarios - Participaciones en el patrimonio de entidades del sector gobierno general, representa el 0,00% del total del Capital, que comparado al periodo anterior genera una variación absoluta de 0 000,00 que corresponde a un Aumento del 0,00% de recursos disponibles.
A175: 3.2.1.02. | B175: Intereses minoritarios - Participaciones en el patrimonio de empresas públicas e instituciones públicas financieras | D175: =IFERROR(VLOOKUP(A175,BC_ACTUAL!B:G,6,0)/1000,0) -> 0 | E175: =IFERROR(VLOOKUP(A175,BC_ANTERIOR!B:G,6,0)/1000,0) -> 0 | G175: 0 | H175: 0 | I175: 0 | J175: 0 | L175: La cuenta Intereses minoritarios - Participaciones en el patrimonio de empresas públicas e instituciones públicas financieras, representa el 0,00% del total del Capital, que comparado al periodo anterior genera una variación absoluta de 0 000,00 que corresponde a un Aumento del 0,00% de recursos disponibles.
A176: 3.2.2. | B176: Intereses minoritarios - Evolución | C176: 30 | D176: =SUM(D177:D180) -> 0 | E176: =SUM(E177:E180) -> 0 | G176: 0 | H176: 0 | I176: 0 | J176: 0 | L176: La cuenta Intereses minoritarios - Evolución, representa el 0,00% del total del Capital, que comparado al periodo anterior genera una variación absoluta de 0 000,00 que corresponde a un Aumento del 0,00% de recursos disponibles.
A177: 3.2.2.01. | B177: Intereses minoritarios - Evolución por reservas | D177: =IFERROR(VLOOKUP(A177,BC_ACTUAL!B:G,6,0)/1000,0) -> 0 | E177: =IFERROR(VLOOKUP(A177,BC_ANTERIOR!B:G,6,0)/1000,0) -> 0 | G177: 0 | H177: 0 | I177: 0 | J177: 0 | L177: La cuenta Intereses minoritarios - Evolución por reservas, representa el 0,00% del total del Capital, que comparado al periodo anterior genera una variación absoluta de 0 000,00 que corresponde a un Aumento del 0,00% de recursos disponibles.
A178: 3.2.2.02. | B178: Intereses minoritarios - Evolución por variaciones no asignables a reservas | D178: =IFERROR(VLOOKUP(A178,BC_ACTUAL!B:G,6,0)/1000,0) -> 0 | E178: =IFERROR(VLOOKUP(A178,BC_ANTERIOR!B:G,6,0)/1000,0) -> 0 | G178: 0 | H178: 0 | I178: 0 | J178: 0 | L178: La cuenta Intereses minoritarios - Evolución por variaciones no asignables a reservas, representa el 0,00% del total del Capital, que comparado al periodo anterior genera una variación absoluta de 0 000,00 que corresponde a un Aumento del 0,00% de recursos disponibles.
A179: 3.2.2.03. | B179: Intereses minoritarios - Evolución por resultados acumulados | D179: =IFERROR(VLOOKUP(A179,BC_ACTUAL!B:G,6,0)/1000,0) -> 0 | E179: =IFERROR(VLOOKUP(A179,BC_ANTERIOR!B:G,6,0)/1000,0) -> 0 | G179: 0 | H179: 0 | I179: 0 | J179: 0 | L179: La cuenta Intereses minoritarios - Evolución por resultados acumulados, representa el 0,00% del total del Capital, que comparado al periodo anterior genera una variación absoluta de 0 000,00 que corresponde a un Aumento del 0,00% de recursos disponibles.
A180: 3.2.2.99. | B180: Intereses minoritarios - Evolución por otros componentes del patrimonio | D180: =IFERROR(VLOOKUP(A180,BC_ACTUAL!B:G,6,0)/1000,0) -> 0 | E180: =IFERROR(VLOOKUP(A180,BC_ANTERIOR!B:G,6,0)/1000,0) -> 0 | G180: 0 | H180: 0 | I180: 0 | J180: 0 | L180: La cuenta Intereses minoritarios - Evolución por otros componentes del patrimonio, representa el 0,00% del total del Capital, que comparado al periodo anterior genera una variación absoluta de 0 000,00 que corresponde a un Aumento del 0,00% de recursos disponibles.
B181: TOTAL DEL PATRIMONIO | D181: =+D176+D173+D169+D164+D161+D158+D155 -> 164658279 | E181: =+E176+E173+E169+E164+E161+E158+E155 -> 164134319.2 | G181: =+G176+G173+G169+G164+G161+G158+G155 -> 1 | H181: =+H176+H173+H169+H164+H161+H158+H155 -> 1 | I181: =+I176+I173+I169+I164+I161+I158+I155 -> 523959.7545 | J181: 0.003192262026
B182: TOTAL DEL PASIVO Y PATRIMONIO | D182: =+D181+D151 -> 166998937.7 | E182: =+E181+E151 -> 165832845.3 | G182: =+G181+G151 -> 2 | H182: =+H181+H151 -> 2 | I182: =+I181+I151 -> 1166092.368 | J182: 0.007031733467
D183: =+D182-D91 -> 8.001923561e-05 | E183: =+E182-E91 -> 9.983778e-06 | G183: =+G182-G91 -> 1 | H183: =+H182-H91 -> 1 | I183: =IFERROR(D183-E183,0) -> 7.003545761e-05 | J183: 7.014925373

Sheet EEFF_RENDIMIENTOS
A1: =DATOS!D13 -> Municipalidad de Buenos Aires
A2: Estado de Rendimiento Financiera | G2: Estado de Rendimiento Financiera
A3: =DATOS!D15&" "&RIGHT(D6,4) -> Del 01 de Enero al 31 de Diciembre 2024 | G3: Análisis de Variaciones
A4: - En miles de colones - | G4: =DATOS!D15&" "&RIGHT(D6,4) -> Del 01 de Enero al 31 de Diciembre 2024
A6: Cuenta | B6: Descripción | C6: Nota | D6: =PROPER(DATOS!D17) -> Diciembre 2024 | E6: =PROPER(DATOS!D18) -> Diciembre 2023 | G6: Análisis Vertical (%) | H6: % | I6: Monto Variación Absoluta | J6: Variación relativa (%)
A8: 4. | B8: INGRESOS
A9: 4.1. | B9: Impuestos
A10: 4.1.1. | B10: Impuestos sobre los ingresos, las utilidades y las ganancias de capital | C10: 31 | D10: =SUM(D11:D14) -> 0 | E10: =SUM(E11:E14) -> 0 | G10: =IFERROR(D10/$D$133,0) -> 0 | H10: =IFERROR(E10/$E$133,0) -> 0 | I10: =IFERROR(D10-E10,0) -> 0 | J10: =IFERROR(I10/E10,0) -> 0 | L10: ="La"&" "&"cuenta"&" "&B10&","&" "&"representa"&" "&"el"&" "&TEXT(G10,"0,00%")&" "&"del"&" "&"total"&" "&"del"&" "&IF(MID(A10,1,2)="1.","Activo",IF(MID(A10,1,2)="2.","Pasivo",IF(MID(A10,1,2)="3.","Capital",IF(MID(A10,1,2)="4.","Ingresos",IF(MID(A10,1,2)="5.","Gastos","")))))&","&" "&"que"&" "&"comparado"&" "&"al"&" "&"periodo"&" "&"anterior"&" "&"genera"&" "&"una"&" "&"variación"&" "&"absoluta"&" "&"de"&" "&TEXT(I10,"0 000,00")&" "&"que"&" "&"corresponde"&" "&"a"&" "&"un"&" "&IF(I10<0,"Disminución","Aumento")&" "&"del"&" "&TEXT(J10,"0,00%")&" "&"de"&" "&"recursos"&" "&"disponibles"&"." -> La cuenta Impuestos sobre los ingresos, las utilidades y las ganancias de capital, representa el 0,00% del total del Ingresos, que comparado al periodo anterior genera una variación absoluta de 0 000,00 que corresponde a un Aumento del 0,00% de recursos disponibles.
A11: 4.1.1.01. | B11: Impuestos sobre los ingresos y utilidades de personas físicas | D11: =IFERROR(VLOOKUP(A11,BC_ACTUAL!B:G,6,0)/1000,0) -> 0 | E11: =IFERROR(VLOOKUP(A11,BC_ANTERIOR!B:G,6,0)/1000,0) -> 0 | G11: =IFERROR(D11/$D$133,0) -> 0 | H11: =IFERROR(E11/$E$133,0) -> 0 | I11: =IFERROR(D11-E11,0) -> 0 | J11: =IFERROR(I11/E11,0) -> 0 | L11: ="La"&" "&"cuenta"&" "&B11&","&" "&"representa"&" "&"el"&" "&TEXT(G11,"0,00%")&" "&"del"&" "&"total"&" "&"del"&" "&IF(MID(A11,1,2)="1.","Activo",IF(MID(A11,1,2)="2.","Pasivo",IF(MID(A11,1,2)="3.","Capital",IF(MID(A11,1,2)="4.","Ingresos",IF(MID(A11,1,2)="5.","Gastos","")))))&","&" "&"que"&" "&"comparado"&" "&"al"&" "&"periodo"&" "&"anterior"&" "&"genera"&" "&"una"&" "&"variación"&" "&"absoluta"&" "&"de"&" "&TEXT(I11,"0 000,00")&" "&"que"&" "&"corresponde"&" "&"a"&" "&"un"&" "&IF(I11<0,"Disminución","Aumento")&" "&"del"&" "&TEXT(J11,"0,00%")&" "&"de"&" "&"recursos"&" "&"disponibles"&"." -> La cuenta Impuestos sobre los ingresos y utilidades de personas físicas, representa el 0,00% del total del Ingresos, que comparado al periodo anterior genera una variación absoluta de 0 000,00 que corresponde a un Aumento del 0,00% de recursos disponibles.
A12: 4.1.1.02. | B12: Impuestos sobre los ingresos y utilidades de personas jurídicas | D12: =IFERROR(VLOOKUP(A12,BC_ACTUAL!B:G,6,0)/1000,0) -> 0 | E12: =IFERROR(VLOOKUP(A12,BC_ANTERIOR!B:G,6,0)/1000,0) -> 0 | G12: 0 | H12: 0 | I12: 0 | J12: 0 | L12: La cuenta Impuestos sobre los ingresos y utilidades de personas jurídicas, representa el 0,00% del total del Ingresos, que comparado al periodo anterior genera una variación absoluta de 0 000,00 que corresponde a un Aumento del 0,00% de recursos disponibles.
A13: 4.1.1.03. | B13: Impuestos sobre Rentas de Capital | D13: =IFERROR(VLOOKUP(A13,BC_ACTUAL!B:G,6,0)/1000,0) -> 0 | E13: =IFERROR(VLOOKUP(A13,BC_ANTERIOR!B:G,6,0)/1000,0) -> 0 | G13: 0 | H13: 0 | I13: 0 | J13: 0 | L13: La cuenta Impuestos sobre Rentas de Capital, representa el 0,00% del total del Ingresos, que comparado al periodo anterior genera una variación absoluta de 0 000,00 que corresponde a un Aumento del 0,00% de recursos disponibles.
A14: 4.1.1.99. | B14: Otros impuestos sobre los ingresos, las utilidades y las ganancias de capital | D14: =IFERROR(VLOOKUP(A14,BC_ACTUAL!B:G,6,0)/1000,0) -> 0 | E14: =IFERROR(VLOOKUP(A14,BC_ANTERIOR!B:G,6,0)/1000,0) -> 0 | G14: 0 | H14: 0 | I14: 0 | J14: 0 | L14: La cuenta Otros impuestos sobre los ingresos, las utilidades y las ganancias de capital, representa el 0,00% del total del Ingresos, que comparado al periodo anterior genera una variación absoluta de 0 000,00 que corresponde a un Aumento del 0,00% de recursos disponibles.
A15: 4.1.2. | B15: Impuestos sobre la propiedad | C15: 32 | D15: =SUM(D16:D21) -> 648621.2653 | E15: =SUM(E16:E21) -> 707206.0393 | G15: 0.1117322135 | H15: 0.124810896 | I15: -58584.77402 | J15: =IFERROR(I15/E15,0) -> -0.08283975357 | L15: La cuenta Impuestos sobre la propiedad, representa el 11,17% del total del Ingresos, que comparado al periodo anterior genera una variación absoluta de -58 584,77 que corresponde a un Disminución del -8,28% de recursos disponibles.
A16: 4.1.2.01. | B16: Impuesto sobre la propiedad de bienes inmuebles | D16: =IFERROR(VLOOKUP(A16,BC_ACTUAL!B:G,6,0)/1000,0) -> 648621.2653 | E16: =IFERROR(VLOOKUP(A16,BC_ANTERIOR!B:G,6,0)/1000,0) -> 707206.0393 | G16: 0.1117322135 | H16: =IFERROR(E16/$E$133,0) -> 0.124810896 | I16: -58584.77402 | J16: -0.08283975357 | L16: La cuenta Impuesto sobre la propiedad de bienes inmuebles, representa el 11,17% del total del Ingresos, que comparado al periodo anterior genera una variación absoluta de -58 584,77 que corresponde a un Disminución del -8,28% de recursos disponibles.
A17: 4.1.2.02. | B17: Impuesto sobre la propiedad de vehículos, aeronaves y embarcaciones | D17: =IFERROR(VLOOKUP(A17,BC_ACTUAL!B:G,6,0)/1000,0) -> 0 | E17: =IFERROR(VLOOKUP(A17,BC_ANTERIOR!B:G,6,0)/1000,0) -> 0 | G17: 0 | H17: 0 | I17: 0 | J17: 0 | L17: La cuenta Impuesto sobre la propiedad de vehículos, aeronaves y embarcaciones, representa el 0,00% del total del Ingresos, que comparado al periodo anterior genera una variación absoluta de 0 000,00 que corresponde a un Aumento del 0,00% de recursos disponibles.
A18: 4.1.2.03. | B18: Impuesto sobre el patrimonio | D18: =IFERROR(VLOOKUP(A18,BC_ACTUAL!B:G,6,0)/1000,0) -> 0 | E18: =IFERROR(VLOOKUP(A18,BC_ANTERIOR!B:G,6,0)/1000,0) -> 0 | G18: 0 | H18: 0 | I18: 0 | J18: 0 | L18: La cuenta Impuesto sobre el patrimonio, representa el 0,00% del total del Ingresos, que comparado al periodo anterior genera una variación absoluta de 0 000,00 que corresponde a un Aumento del 0,00% de recursos disponibles.
A19: 4.1.2.04. | B19: Impuesto sobre los traspasos de bienes inmuebles | D19: =IFERROR(VLOOKUP(A19,BC_ACTUAL!B:G,6,0)/1000,0) -> 0 | E19: =IFERROR(VLOOKUP(A19,BC_ANTERIOR!B:G,6,0)/1000,0) -> 0 | G19: 0 | H19: 0 | I19: 0 | J19: 0 | L19: La cuenta Impuesto sobre los traspasos de bienes inmuebles, representa el 0,00% del total del Ingresos, que comparado al periodo anterior genera una variación absoluta de 0 000,00 que corresponde a un Aumento del 0,00% de recursos disponibles.
A20: 4.1.2.05. | B20: Impuesto a los traspasos de vehículos, aeronaves y embarcaciones | D20: =IFERROR(VLOOKUP(A20,BC_ACTUAL!B:G,6,0)/1000,0) -> 0 | E20: =IFERROR(VLOOKUP(A20,BC_ANTERIOR!B:G,6,0)/1000,0) -> 0 | G20: 0 | H20: 0 | I20: 0 | J20: 0 | L20: La cuenta Impuesto a los traspasos de vehículos, aeronaves y embarcaciones, representa el 0,00% del total del Ingresos, que comparado al periodo anterior genera una variación absoluta de 0 000,00 que corresponde a un Aumento del 0,00% de recursos disponibles.
A21: 4.1.2.99. | B21: Otros impuestos a la propiedad | D21: =IFERROR(VLOOKUP(A21,BC_ACTUAL!B:G,6,0)/1000,0) -> 0 | E21: =IFERROR(VLOOKUP(A21,BC_ANTERIOR!B:G,6,0)/1000,0) -> 0 | G21: 0 | H21: 0 | I21: 0 | J21: 0 | L21: La cuenta Otros impuestos a la propiedad, representa el 0,00% del total del Ingresos, que comparado al periodo anterior genera una variación absoluta de 0 000,00 que corresponde a un Aumento del 0,00% de recursos disponibles.
A22: 4.1.3. | B22: Impuestos sobre bienes y servicios | C22: 33 | D22: =SUM(D23:D25) -> 396638.1494 | E22: =SUM(E23:E25) -> 428075.5114 | G22: 0.06832532443 | H22: 0.0755486876 | I22: -31437.36205 | J22: -0.07343882378 | L22: La cuenta Impuestos sobre bienes y servicios, representa el 6,83% del total del Ingresos, que comparado al periodo anterior genera una variación absoluta de -31 437,36 que corresponde a un Disminución del -7,34% de recursos disponibles.
A23: 4.1.3.01. | B23: Impuestos generales y selectivos sobre ventas y consumo | D23: =IFERROR(VLOOKUP(A23,BC_ACTUAL!B:G,6,0)/1000,0) -> 308988.1813 | E23: =IFERROR(VLOOKUP(A23,BC_ANTERIOR!B:G,6,0)/1000,0) -> 304514.2248 | G23: 0.05322664439 | H23: 0.05374203715 | I23: 4473.95647 | J23: =IFERROR(I23/E23,0) -> 0.01469210994 | L23: La cuenta Impuestos generales y selectivos sobre ventas y consumo, representa el 5,32% del total del Ingresos, que comparado al periodo anterior genera una variación absoluta de 4 473,96 que corresponde a un Aumento del 1,47% de recursos disponibles.
A24: 4.1.3.02. | B24: Impuestos específicos sobre la producción y consumo de bienes y servicios | D24: =IFERROR(VLOOKUP(A24,BC_ACTUAL!B:G,6,0)/1000,0) -> 81326.94311 | E24: =IFERROR(VLOOKUP(A24,BC_ANTERIOR!B:G,6,0)/1000,0) -> 118061.2866 | G24: 0.01400946879 | H24: 0.02083598576 | I24: -36734.34352 | J24: -0.3111463933 | L24: La cuenta Impuestos específicos sobre la producción y consumo de bienes y servicios, representa el 1,40% del total del Ingresos, que comparado al periodo anterior genera una variación absoluta de -36 734,34 que corresponde a un Disminución del -31,11% de recursos disponibles.
A25: 4.1.3.99. | B25: Otros impuestos sobre bienes y servicios | D25: =IFERROR(VLOOKUP(A25,BC_ACTUAL!B:G,6,0)/1000,0) -> 6323.025 | E25: =IFERROR(VLOOKUP(A25,BC_ANTERIOR!B:G,6,0)/1000,0) -> 5500 | G25: 0.00108921125 | H25: 0.0009706646857 | I25: 823.025 | J25: 0.1496409091 | L25: La cuenta Otros impuestos sobre bienes y servicios, representa el 0,11% del total del Ingresos, que comparado al periodo anterior genera una variación absoluta de 0 823,03 que corresponde a un Aumento del 14,96% de recursos disponibles.
A26: 4.1.4. | B26: Impuestos sobre el comercio exterior y transacciones internacionales | C26: 34 | D26: =SUM(D27:D29) -> 0 | E26: =SUM(E27:E29) -> 0 | G26: 0 | H26: 0 | I26: 0 | J26: 0 | L26: La cuenta Impuestos sobre el comercio exterior y transacciones internacionales, representa el 0,00% del total del Ingresos, que comparado al periodo anterior genera una variación absoluta de 0 000,00 que corresponde a un Aumento del 0,00% de recursos disponibles.
A27: 4.1.4.01. | B27: Impuestos a las importaciones | D27: =IFERROR(VLOOKUP(A27,BC_ACTUAL!B:G,6,0)/1000,0) -> 0 | E27: =IFERROR(VLOOKUP(A27,BC_ANTERIOR!B:G,6,0)/1000,0) -> 0 | G27: 0 | H27: 0 | I27: 0 | J27: 0 | L27: La cuenta Impuestos a las importaciones, representa el 0,00% del total del Ingresos, que comparado al periodo anterior genera una variación absoluta de 0 000,00 que corresponde a un Aumento del 0,00% de recursos disponibles.
A28: 4.1.4.02. | B28: Impuestos a las exportaciones | D28: =IFERROR(VLOOKUP(A28,BC_ACTUAL!B:G,6,0)/1000,0) -> 0 | E28: =IFERROR(VLOOKUP(A28,BC_ANTERIOR!B:G,6,0)/1000,0) -> 0 | G28: 0 | H28: 0 | I28: 0 | J28: 0 | L28: La cuenta Impuestos a las exportaciones, representa el 0,00% del total del Ingresos, que comparado al periodo anterior genera una variación absoluta de 0 000,00 que corresponde a un Aumento del 0,00% de recursos disponibles.
A29: 4.1.4.99. | B29: Otros impuestos sobre el comercio exterior y transacciones internacionales | D29: =IFERROR(VLOOKUP(A29,BC_ACTUAL!B:G,6,0)/1000,0) -> 0 | E29: =IFERROR(VLOOKUP(A29,BC_ANTERIOR!B:G,6,0)/1000,0) -> 0 | G29: 0 | H29: 0 | I29: 0 | J29: 0 | L29: La cuenta Otros impuestos sobre el comercio exterior y transacciones internacionales, representa el 0,00% del total del Ingresos, que comparado al periodo anterior genera una variación absoluta de 0 000,00 que corresponde a un Aumento del 0,00% de recursos disponibles.
A30: 4.1.9. | B30: Otros impuestos | C30: 35 | D30: =SUM(D31) -> 0 | E30: =SUM(E31) -> 0 | G30: 0 | H30: 0 | I30: 0 | J30: 0 | L30: La cuenta Otros impuestos, representa el 0,00% del total del Ingresos, que comparado al periodo anterior genera una variación absoluta de 0 000,00 que corresponde a un Aumento del 0,00% de recursos disponibles.
A31: 4.1.9.99. | B31: Otros impuestos sin discriminar | D31: =IFERROR(VLOOKUP(A31,BC_ACTUAL!B:G,6,0)/1000,0) -> 0 | E31: =IFERROR(VLOOKUP(A31,BC_ANTERIOR!B:G,6,0)/1000,0) -> 0 | G31: 0 | H31: 0 | I31: 0 | J31: 0 | L31: La cuenta Otros impuestos sin discriminar, representa el 0,00% del total del Ingresos, que comparado al periodo anterior genera una variación absoluta de 0 000,00 que corresponde a un Aumento del 0,00% de recursos disponibles.
A32: 4.2. | B32: Contribuciones sociales
A33: 4.2.1. | B33: Contribuciones a la seguridad social | C33: 36 | D33: =SUM(D34:D36) -> 0 | E33: =SUM(E34:E36) -> 0 | G33: =IFERROR(D33/$D$133,0) -> 0 | H33: =IFERROR(E33/$E$133,0) -> 0 | I33: =IFERROR(D33-E33,0) -> 0 | J33: 0 | L33: La cuenta Contribuciones a la seguridad social, representa el 0,00% del total del Ingresos, que comparado al periodo anterior genera una variación absoluta de 0 000,00 que corresponde a un Aumento del 0,00% de recursos disponibles.
A34: 4.2.1.01. | B34: Contribuciones al seguro de pensiones | D34: =IFERROR(VLOOKUP(A34,BC_ACTUAL!B:G,6,0)/1000,0) -> 0 | E34: =IFERROR(VLOOKUP(A34,BC_ANTERIOR!B:G,6,0)/1000,0) -> 0 | G34: 0 | H34: 0 | I34: 0 | J34: 0 | L34: La cuenta Contribuciones al seguro de pensiones, representa el 0,00% del total del Ingresos, que comparado al periodo anterior genera una variación absoluta de 0 000,00 que corresponde a un Aumento del 0,00% de recursos disponibles.
A35: 4.2.1.02. | B35: Contribuciones a regímenes especiales de pensiones | D35: =IFERROR(VLOOKUP(A35,BC_ACTUAL!B:G,6,0)/1000,0) -> 0 | E35: =IFERROR(VLOOKUP(A35,BC_ANTERIOR!B:G,6,0)/1000,0) -> 0 | G35: 0 | H35: 0 | I35: 0 | J35: 0 | L35: La cuenta Contribuciones a regímenes especiales de pensiones, representa el 0,00% del total del Ingresos, que comparado al periodo anterior genera una variación absoluta de 0 000,00 que corresponde a un Aumento del 0,00% de recursos disponibles.
A36: 4.2.1.03. | B36: Contribuciones al seguro de salud | D36: =IFERROR(VLOOKUP(A36,BC_ACTUAL!B:G,6,0)/1000,0) -> 0 | E36: =IFERROR(VLOOKUP(A36,BC_ANTERIOR!B:G,6,0)/1000,0) -> 0 | G36: 0 | H36: 0 | I36: 0 | J36: 0 | L36: La cuenta Contribuciones al seguro de salud, representa el 0,00% del total del Ingresos, que comparado al periodo anterior genera una variación absoluta de 0 000,00 que corresponde a un Aumento del 0,00% de recursos disponibles.
A37: 4.2.9. | B37: Contribuciones sociales diversas | C37: 37 | D37: =SUM(D38) -> 0 | E37: =SUM(E38) -> 0 | G37: 0 | H37: 0 | I37: 0 | J37: 0 | L37: La cuenta Contribuciones sociales diversas, representa el 0,00% del total del Ingresos, que comparado al periodo anterior genera una variación absoluta de 0 000,00 que corresponde a un Aumento del 0,00% de recursos disponibles.
A38: 4.2.9.99. | B38: Otras contribuciones sociales | D38: =IFERROR(VLOOKUP(A38,BC_ACTUAL!B:G,6,0)/1000,0) -> 0 | E38: =IFERROR(VLOOKUP(A38,BC_ANTERIOR!B:G,6,0)/1000,0) -> 0 | G38: 0 | H38: 0 | I38: 0 | J38: 0 | L38: La cuenta Otras contribuciones sociales, representa el 0,00% del total del Ingresos, que comparado al periodo anterior genera una variación absoluta de 0 000,00 que corresponde a un Aumento del 0,00% de recursos disponibles.
A39: 4.3. | B39: Multas, sanciones, remates y confiscaciones de origen no tributario
A40: 4.3.1. | B40: Multas y sanciones administrativas | C40: 38 | D40: =SUM(D41:D44) -> 0 | E40: =SUM(E41:E44) -> 0 | G40: =IFERROR(D40/$D$133,0) -> 0 | H40: =IFERROR(E40/$E$133,0) -> 0 | I40: =IFERROR(D40-E40,0) -> 0 | J40: 0 | L40: La cuenta Multas y sanciones administrativas, representa el 0,00% del total del Ingresos, que comparado al periodo anterior genera una variación absoluta de 0 000,00 que corresponde a un Aumento del 0,00% de recursos disponibles.
A41: 4.3.1.01. | B41: Multas de tránsito | D41: =IFERROR(VLOOKUP(A41,BC_ACTUAL!B:G,6,0)/1000,0) -> 0 | E41: =IFERROR(VLOOKUP(A41,BC_ANTERIOR!B:G,6,0)/1000,0) -> 0 | G41: 0 | H41: 0 | I41: 0 | J41: 0 | L41: La cuenta Multas de tránsito, representa el 0,00% del total del Ingresos, que comparado al periodo anterior genera una variación absoluta de 0 000,00 que corresponde a un Aumento del 0,00% de recursos disponibles.
A42: 4.3.1.02. | B42: Multas por atraso en el pago de bienes y servicios | D42: =IFERROR(VLOOKUP(A42,BC_ACTUAL!B:G,6,0)/1000,0) -> 0 | E42: =IFERROR(VLOOKUP(A42,BC_ANTERIOR!B:G,6,0)/1000,0) -> 0 | G42: 0 | H42: 0 | I42: 0 | J42: 0 | L42: La cuenta Multas por atraso en el pago de bienes y servicios, representa el 0,00% del total del Ingresos, que comparado al periodo anterior genera una variación absoluta de 0 000,00 que corresponde a un Aumento del 0,00% de recursos disponibles.
A43: 4.3.1.03. | B43: Sanciones administrativas | D43: =IFERROR(VLOOKUP(A43,BC_ACTUAL!B:G,6,0)/1000,0) -> 0 | E43: =IFERROR(VLOOKUP(A43,BC_ANTERIOR!B:G,6,0)/1000,0) -> 0 | G43: 0 | H43: 0 | I43: 0 | J43: 0 | L43: La cuenta Sanciones administrativas, representa el 0,00% del total del Ingresos, que comparado al periodo anterior genera una variación absoluta de 0 000,00 que corresponde a un Aumento del 0,00% de recursos disponibles.
A44: 4.3.1.99. | B44: Otras multas | D44: =IFERROR(VLOOKUP(A44,BC_ACTUAL!B:G,6,0)/1000,0) -> 0 | E44: =IFERROR(VLOOKUP(A44,BC_ANTERIOR!B:G,6,0)/1000,0) -> 0 | G44: 0 | H44: 0 | I44: 0 | J44: 0 | L44: La cuenta Otras multas, representa el 0,00% del total del Ingresos, que comparado al periodo anterior genera una variación absoluta de 0 000,00 que corresponde a un Aumento del 0,00% de recursos disponibles.
A45: 4.3.2. | B45: Remates y confiscaciones de origen no tributario | C45: 39 | D45: =SUM(D46) -> 0 | E45: =SUM(E46) -> 0 | G45: 0 | H45: 0 | I45: 0 | J45: 0 | L45: La cuenta Remates y confiscaciones de origen no tributario, representa el 0,00% del total del Ingresos, que comparado al periodo anterior genera una variación absoluta de 0 000,00 que corresponde a un Aumento del 0,00% de recursos disponibles.
A46: 4.3.2.99. | B46: Otros remates y confiscaciones de origen no tributario | D46: =IFERROR(VLOOKUP(A46,BC_ACTUAL!B:G,6,0)/1000,0) -> 0 | E46: =IFERROR(VLOOKUP(A46,BC_ANTERIOR!B:G,6,0)/1000,0) -> 0 | G46: 0 | H46: 0 | I46: 0 | J46: 0 | L46: La cuenta Otros remates y confiscaciones de origen no tributario, representa el 0,00% del total del Ingresos, que comparado al periodo anterior genera una variación absoluta de 0 000,00 que corresponde a un Aumento del 0,00% de recursos disponibles.
A47: 4.3.3. | B47: Intereses Moratorios | C47: 40 | D47: =SUM(D48:D49) -> 0 | E47: =SUM(E48:E49) -> 0 | G47: 0 | H47: 0 | I47: 0 | J47: 0 | L47: La cuenta Intereses Moratorios, representa el 0,00% del total del Ingresos, que comparado al periodo anterior genera una variación absoluta de 0 000,00 que corresponde a un Aumento del 0,00% de recursos disponibles.
A48: 4.3.3.01. | B48: Otros remates y confiscaciones de origen no tributario | D48: =IFERROR(VLOOKUP(A48,BC_ACTUAL!B:G,6,0)/1000,0) -> 0 | E48: =IFERROR(VLOOKUP(A48,BC_ANTERIOR!B:G,6,0)/1000,0) -> 0 | G48: 0 | H48: 0 | I48: 0 | J48: 0 | L48: La cuenta Otros remates y confiscaciones de origen no tributario, representa el 0,00% del total del Ingresos, que comparado al periodo anterior genera una variación absoluta de 0 000,00 que corresponde a un Aumento del 0,00% de recursos disponibles.
A49: 4.3.3.02. | B49: Intereses moratorios por atraso en el pago de multas de transito | D49: =IFERROR(VLOOKUP(A49,BC_ACTUAL!B:G,6,0)/1000,0) -> 0 | E49: =IFERROR(VLOOKUP(A49,BC_ANTERIOR!B:G,6,0)/1000,0) -> 0 | G49: 0 | H49: 0 | I49: 0 | J49: 0 | L49: La cuenta Intereses moratorios por atraso en el pago de multas de transito, representa el 0,00% del total del Ingresos, que comparado al periodo anterior genera una variación absoluta de 0 000,00 que corresponde a un Aumento del 0,00% de recursos disponibles.
A50: 4.4. | B50: Ingresos y resultados positivos por ventas
A51: 4.4.1. | B51: Ventas de bienes y servicios | C51: 41 | D51: =SUM(D52:D53) -> 576873.0451 | E51: =SUM(E52:E53) -> 434850.4115 | G51: =IFERROR(D51/$D$133,0) -> 0.09937278605 | H51: =IFERROR(E51/$E$133,0) -> 0.07674435236 | I51: =IFERROR(D51-E51,0) -> 142022.6336 | J51: 0.326601125 | L51: La cuenta Ventas de bienes y servicios, representa el 9,94% del total del Ingresos, que comparado al periodo anterior genera una variación absoluta de 142 022,63 que corresponde a un Aumento del 32,66% de recursos disponibles.
A52: 4.4.1.01. | B52: Ventas de bienes | D52: =IFERROR(VLOOKUP(A52,BC_ACTUAL!B:G,6,0)/1000,0) -> 0 | E52: =IFERROR(VLOOKUP(A52,BC_ANTERIOR!B:G,6,0)/1000,0) -> 0 | G52: 0 | H52: 0 | I52: 0 | J52: 0 | L52: La cuenta Ventas de bienes, representa el 0,00% del total del Ingresos, que comparado al periodo anterior genera una variación absoluta de 0 000,00 que corresponde a un Aumento del 0,00% de recursos disponibles.
A53: 4.4.1.02. | B53: Ventas de servicios | D53: =IFERROR(VLOOKUP(A53,BC_ACTUAL!B:G,6,0)/1000,0) -> 576873.0451 | E53: =IFERROR(VLOOKUP(A53,BC_ANTERIOR!B:G,6,0)/1000,0) -> 434850.4115 | G53: 0.09937278605 | H53: 0.07674435236 | I53: 142022.6336 | J53: 0.326601125 | L53: La cuenta Ventas de servicios, representa el 9,94% del total del Ingresos, que comparado al periodo anterior genera una variación absoluta de 142 022,63 que corresponde a un Aumento del 32,66% de recursos disponibles.
A54: 4.4.2. | B54: Derechos administrativos | C54: 42 | D54: =SUM(D55:D56) -> 654.51999 | E54: =SUM(E55:E56) -> 706 | G54: 0.0001127483343 | H54: 0.0001245980488 | I54: -51.48001 | J54: -0.07291786119 | L54: La cuenta Derechos administrativos, representa el 0,01% del total del Ingresos, que comparado al periodo anterior genera una variación absoluta de -0 051,48 que corresponde a un Disminución del -7,29% de recursos disponibles.
A55: 4.4.2.01. | B55: Derechos administrativos a los servicios de transporte | D55: =IFERROR(VLOOKUP(A55,BC_ACTUAL!B:G,6,0)/1000,0) -> 440 | E55: =IFERROR(VLOOKUP(A55,BC_ANTERIOR!B:G,6,0)/1000,0) -> 510 | G55: 7.579488457e-05 | H55: 9.000708904e-05 | I55: -70 | J55: -0.137254902 | L55: La cuenta Derechos administrativos a los servicios de transporte, representa el 0,01% del total del Ingresos, que comparado al periodo anterior genera una variación absoluta de -0 070,00 que corresponde a un Disminución del -13,73% de recursos disponibles.
A56: 4.4.2.99. | B56: Otros derechos administrativos | D56: =IFERROR(VLOOKUP(A56,BC_ACTUAL!B:G,6,0)/1000,0) -> 214.51999 | E56: =IFERROR(VLOOKUP(A56,BC_ANTERIOR!B:G,6,0)/1000,0) -> 196 | G56: 3.695344973e-05 | H56: 3.459095971e-05 | I56: 18.51999 | J56: 0.0944897449 | L56: La cuenta Otros derechos administrativos, representa el 0,00% del total del Ingresos, que comparado al periodo anterior genera una variación absoluta de 0 018,52 que corresponde a un Aumento del 9,45% de recursos disponibles.
A57: 4.4.3. | B57: Comisiones por préstamos | C57: 43 | D57: =SUM(D58:D60) -> 0 | E57: =SUM(E58:E60) -> 0 | G57: 0 | H57: 0 | I57: 0 | J57: 0 | L57: La cuenta Comisiones por préstamos, representa el 0,00% del total del Ingresos, que comparado al periodo anterior genera una variación absoluta de 0 000,00 que corresponde a un Aumento del 0,00% de recursos disponibles.
A58: 4.4.3.01. | B58: Comisiones por préstamos al sector privado interno | D58: =IFERROR(VLOOKUP(A58,BC_ACTUAL!B:G,6,0)/1000,0) -> 0 | E58: =IFERROR(VLOOKUP(A58,BC_ANTERIOR!B:G,6,0)/1000,0) -> 0 | G58: 0 | H58: 0 | I58: 0 | J58: 0 | L58: La cuenta Comisiones por préstamos al sector privado interno, representa el 0,00% del total del Ingresos, que comparado al periodo anterior genera una variación absoluta de 0 000,00 que corresponde a un Aumento del 0,00% de recursos disponibles.
A59: 4.4.3.02. | B59: Comisiones por préstamos al sector público interno | D59: =IFERROR(VLOOKUP(A59,BC_ACTUAL!B:G,6,0)/1000,0) -> 0 | E59: =IFERROR(VLOOKUP(A59,BC_ANTERIOR!B:G,6,0)/1000,0) -> 0 | G59: 0 | H59: 0 | I59: 0 | J59: 0 | L59: La cuenta Comisiones por préstamos al sector público interno, representa el 0,00% del total del Ingresos, que comparado al periodo anterior genera una variación absoluta de 0 000,00 que corresponde a un Aumento del 0,00% de recursos disponibles.
A60: 4.4.3.03. | B60: Comisiones por préstamos al sector externo | D60: =IFERROR(VLOOKUP(A60,BC_ACTUAL!B:G,6,0)/1000,0) -> 0 | E60: =IFERROR(VLOOKUP(A60,BC_ANTERIOR!B:G,6,0)/1000,0) -> 0 | G60: 0 | H60: 0 | I60: 0 | J60: 0 | L60: La cuenta Comisiones por préstamos al sector externo, representa el 0,00% del total del Ingresos, que comparado al periodo anterior genera una variación absoluta de 0 000,00 que corresponde a un Aumento del 0,00% de recursos disponibles.
A61: 4.4.4. | B61: Resultados positivos por ventas de inversiones | C61: 44 | D61: =SUM(D62:D63) -> 0 | E61: =SUM(E62:E63) -> 0 | G61: 0 | H61: 0 | I61: 0 | J61: 0 | L61: La cuenta Resultados positivos por ventas de inversiones, representa el 0,00% del total del Ingresos, que comparado al periodo anterior genera una variación absoluta de 0 000,00 que corresponde a un Aumento del 0,00% de recursos disponibles.
A62: 4.4.4.01. | B62: Resultados positivos por ventas de inversiones patrimoniales - Método de participación | D62: =IFERROR(VLOOKUP(A62,BC_ACTUAL!B:G,6,0),0) -> 0 | E62: =IFERROR(VLOOKUP(A62,BC_ANTERIOR!B:G,6,0),0) -> 0 | G62: 0 | H62: 0 | I62: 0 | J62: 0 | L62: La cuenta Resultados positivos por ventas de inversiones patrimoniales - Método de participación, representa el 0,00% del total del Ingresos, que comparado al periodo anterior genera una variación absoluta de 0 000,00 que corresponde a un Aumento del 0,00% de recursos disponibles.
A63: 4.4.4.98. | B63: Resultados positivos por ventas de otras inversiones | D63: =IFERROR(VLOOKUP(A63,BC_ACTUAL!B:G,6,0),0) -> 0 | E63: =IFERROR(VLOOKUP(A63,BC_ANTERIOR!B:G,6,0),0) -> 0 | G63: 0 | H63: 0 | I63: 0 | J63: 0 | L63: La cuenta Resultados positivos por ventas de otras inversiones , representa el 0,00% del total del Ingresos, que comparado al periodo anterior genera una variación absoluta de 0 000,00 que corresponde a un Aumento del 0,00% de recursos disponibles.
A64: 4.4.5. | B64: Resultados positivos por ventas e intercambio de bienes | C64: 45 | D64: =SUM(D65:D74) -> 0 | E64: =SUM(E65:E74) -> 0 | G64: 0 | H64: 0 | I64: 0 | J64: 0 | L64: La cuenta Resultados positivos por ventas e intercambio de bienes, representa el 0,00% del total del Ingresos, que comparado al periodo anterior genera una variación absoluta de 0 000,00 que corresponde a un Aumento del 0,00% de recursos disponibles.
A65: 4.4.5.01. | B65: Resultados positivos por ventas de construcciones terminadas | D65: =IFERROR(VLOOKUP(A65,BC_ACTUAL!B:G,6,0)/1000,0) -> 0 | E65: =IFERROR(VLOOKUP(A65,BC_ANTERIOR!B:G,6,0)/1000,0) -> 0 | G65: 0 | H65: 0 | I65: 0 | J65: 0 | L65: La cuenta Resultados positivos por ventas de construcciones terminadas, representa el 0,00% del total del Ingresos, que comparado al periodo anterior genera una variación absoluta de 0 000,00 que corresponde a un Aumento del 0,00% de recursos disponibles.
A66: 4.4.5.02. | B66: Resultados positivos por ventas de propiedades, planta y equipo | D66: =IFERROR(VLOOKUP(A66,BC_ACTUAL!B:G,6,0)/1000,0) -> 0 | E66: =IFERROR(VLOOKUP(A66,BC_ANTERIOR!B:G,6,0)/1000,0) -> 0 | G66: 0 | H66: 0 | I66: 0 | J66: 0 | L66: La cuenta Resultados positivos por ventas de propiedades, planta y equipo, representa el 0,00% del total del Ingresos, que comparado al periodo anterior genera una variación absoluta de 0 000,00 que corresponde a un Aumento del 0,00% de recursos disponibles.
A67: 4.4.5.03. | B67: Resultados positivos por ventas de activos biológicos | D67: =IFERROR(VLOOKUP(A67,BC_ACTUAL!B:G,6,0)/1000,0) -> 0 | E67: =IFERROR(VLOOKUP(A67,BC_ANTERIOR!B:G,6,0)/1000,0) -> 0 | G67: 0 | H67: 0 | I67: 0 | J67: 0 | L67: La cuenta Resultados positivos por ventas de activos biológicos, representa el 0,00% del total del Ingresos, que comparado al periodo anterior genera una variación absoluta de 0 000,00 que corresponde a un Aumento del 0,00% de recursos disponibles.
A68: 4.4.5.04. | B68: Resultados positivos por ventas de bienes intangibles | D68: =IFERROR(VLOOKUP(A68,BC_ACTUAL!B:G,6,0)/1000,0) -> 0 | E68: =IFERROR(VLOOKUP(A68,BC_ANTERIOR!B:G,6,0)/1000,0) -> 0 | G68: 0 | H68: 0 | I68: 0 | J68: 0 | L68: La cuenta Resultados positivos por ventas de bienes intangibles, representa el 0,00% del total del Ingresos, que comparado al periodo anterior genera una variación absoluta de 0 000,00 que corresponde a un Aumento del 0,00% de recursos disponibles.
A69: 4.4.5.05. | B69: Resultados positivos por ventas por arrendamientos financieros | D69: =IFERROR(VLOOKUP(A69,BC_ACTUAL!B:G,6,0)/1000,0) -> 0 | E69: =IFERROR(VLOOKUP(A69,BC_ANTERIOR!B:G,6,0)/1000,0) -> 0 | G69: 0 | H69: 0 | I69: 0 | J69: 0 | L69: La cuenta Resultados positivos por ventas por arrendamientos financieros, representa el 0,00% del total del Ingresos, que comparado al periodo anterior genera una variación absoluta de 0 000,00 que corresponde a un Aumento del 0,00% de recursos disponibles.
A70: 4.4.5.06. | B70: Resultados positivos por intercambio de propiedades, planta y equipo | D70: =IFERROR(VLOOKUP(A70,BC_ACTUAL!B:G,6,0)/1000,0) -> 0 | E70: =IFERROR(VLOOKUP(A70,BC_ANTERIOR!B:G,6,0)/1000,0) -> 0 | G70: 0 | H70: 0 | I70: 0 | J70: 0 | L70: La cuenta Resultados positivos por intercambio de propiedades, planta y equipo, representa el 0,00% del total del Ingresos, que comparado al periodo anterior genera una variación absoluta de 0 000,00 que corresponde a un Aumento del 0,00% de recursos disponibles.
A71: 4.4.5.07. | B71: Resultados positivos por intercambio de bienes intangibles | D71: =IFERROR(VLOOKUP(A71,BC_ACTUAL!B:G,6,0)/1000,0) -> 0 | E71: =IFERROR(VLOOKUP(A71,BC_ANTERIOR!B:G,6,0)/1000,0) -> 0 | G71: 0 | H71: 0 | I71: 0 | J71: 0 | L71: La cuenta Resultados positivos por intercambio de bienes intangibles, representa el 0,00% del total del Ingresos, que comparado al periodo anterior genera una variación absoluta de 0 000,00 que corresponde a un Aumento del 0,00% de recursos disponibles.
A72: 4.4.5.08. | B72: Resultados positivos por intercambio de Inventario | D72: =IFERROR(VLOOKUP(A72,BC_ACTUAL!B:G,6,0)/1000,0) -> 0 | E72: =IFERROR(VLOOKUP(A72,BC_ANTERIOR!B:G,6,0)/1000,0) -> 0 | G72: 0 | H72: 0 | I72: 0 | J72: 0 | L72: La cuenta Resultados positivos por intercambio de Inventario, representa el 0,00% del total del Ingresos, que comparado al periodo anterior genera una variación absoluta de 0 000,00 que corresponde a un Aumento del 0,00% de recursos disponibles.
A73: 4.4.5.09. | B73: Resultados positivos por la entrega de activos como medio de pago de impuestos | D73: =IFERROR(VLOOKUP(A73,BC_ACTUAL!B:G,6,0)/1000,0) -> 0 | E73: =IFERROR(VLOOKUP(A73,BC_ANTERIOR!B:G,6,0)/1000,0) -> 0 | G73: 0 | H73: 0 | I73: 0 | J73: 0 | L73: La cuenta Resultados positivos por la entrega de activos como medio de pago de impuestos, representa el 0,00% del total del Ingresos, que comparado al periodo anterior genera una variación absoluta de 0 000,00 que corresponde a un Aumento del 0,00% de recursos disponibles.
A74: 4.4.5.10. | B74: Resultados positivos por intercambio de bienes de infraestructura | D74: =IFERROR(VLOOKUP(A74,BC_ACTUAL!B:G,6,0)/1000,0) -> 0 | E74: =IFERROR(VLOOKUP(A74,BC_ANTERIOR!B:G,6,0)/1000,0) -> 0 | G74: =IFERROR(D74/$D$133,0) -> 0 | H74: =IFERROR(E74/$E$133,0) -> 0 | I74: =IFERROR(D74-E74,0) -> 0 | J74: =IFERROR(I74/E74,0) -> 0 | L74: ="La"&" "&"cuenta"&" "&B74&","&" "&"representa"&" "&"el"&" "&TEXT(G74,"0,00%")&" "&"del"&" "&"total"&" "&"del"&" "&IF(MID(A74,1,2)="1.","Activo",IF(MID(A74,1,2)="2.","Pasivo",IF(MID(A74,1,2)="3.","Capital",IF(MID(A74,1,2)="4.","Ingresos",IF(MID(A74,1,2)="5.","Gastos","")))))&","&" "&"que"&" "&"comparado"&" "&"al"&" "&"periodo"&" "&"anterior"&" "&"genera"&" "&"una"&" "&"variación"&" "&"absoluta"&" "&"de"&" "&TEXT(I74,"0 000,00")&" "&"que"&" "&"corresponde"&" "&"a"&" "&"un"&" "&IF(I74<0,"Disminución","Aumento")&" "&"del"&" "&TEXT(J74,"0,00%")&" "&"de"&" "&"recursos"&" "&"disponibles"&"." -> La cuenta Resultados positivos por intercambio de bienes de infraestructura, representa el 0,00% del total del Ingresos, que comparado al periodo anterior genera una variación absoluta de 0 000,00 que corresponde a un Aumento del 0,00% de recursos disponibles.
A75: 4.4.6. | B75: Resultados positivos por la recuperación de dinero mal acreditado de periodos anteriores | C75: 46 | D75: =SUM(D76) -> 0 | E75: =SUM(E76) -> 0 | G75: =IFERROR(D75/$D$133,0) -> 0 | H75: =IFERROR(E75/$E$133,0) -> 0 | I75: =IFERROR(D75-E75,0) -> 0 | J75: 0 | L75: La cuenta Resultados positivos por la recuperación de dinero mal acreditado de periodos anteriores, representa el 0,00% del total del Ingresos, que comparado al periodo anterior genera una variación absoluta de 0 000,00 que corresponde a un Aumento del 0,00% de recursos disponibles.
A76: 4.4.6.01. | B76: Resultados positivos por la recuperación de sumas de periodos anteriores | D76: =IFERROR(VLOOKUP(A76,BC_ACTUAL!B:G,6,0)/1000,0) -> 0 | E76: =IFERROR(VLOOKUP(A76,BC_ANTERIOR!B:G,6,0)/1000,0) -> 0 | G76: =IFERROR(D76/$D$133,0) -> 0 | H76: =IFERROR(E76/$E$133,0) -> 0 | I76: 0 | J76: =IFERROR(I76/E76,0) -> 0 | L76: ="La"&" "&"cuenta"&" "&B76&","&" "&"representa"&" "&"el"&" "&TEXT(G76,"0,00%")&" "&"del"&" "&"total"&" "&"del"&" "&IF(MID(A76,1,2)="1.","Activo",IF(MID(A76,1,2)="2.","Pasivo",IF(MID(A76,1,2)="3.","Capital",IF(MID(A76,1,2)="4.","Ingresos",IF(MID(A76,1,2)="5.","Gastos","")))))&","&" "&"que"&" "&"comparado"&" "&"al"&" "&"periodo"&" "&"anterior"&" "&"genera"&" "&"una"&" "&"variación"&" "&"absoluta"&" "&"de"&" "&TEXT(I76,"0 000,00")&" "&"que"&" "&"corresponde"&" "&"a"&" "&"un"&" "&IF(I76<0,"Disminución","Aumento")&" "&"del"&" "&TEXT(J76,"0,00%")&" "&"de"&" "&"recursos"&" "&"disponibles"&"." -> La cuenta Resultados positivos por la recuperación de sumas de periodos anteriores, representa el 0,00% del total del Ingresos, que comparado al periodo anterior genera una variación absoluta de 0 000,00 que corresponde a un Aumento del 0,00% de recursos disponibles.
A77: 4.5. | B77: Ingresos de la propiedad
A78: 4.5.1. | B78: Rentas de inversiones y de colocación de efectivo | C78: 47 | D78: =SUM(D79:D81) -> 19676.04936 | E78: =SUM(E79:E81) -> 28532.49586 | G78: =IFERROR(D78/$D$133,0) -> 0.003389417932 | H78: =IFERROR(E78/$E$133,0) -> 0.005035542932 | I78: =IFERROR(D78-E78,0) -> -8856.4465 | J78: =IFERROR(I78/E78,0) -> -0.3103985906 | L78: La cuenta Rentas de inversiones y de colocación de efectivo, representa el 0,34% del total del Ingresos, que comparado al periodo anterior genera una variación absoluta de -8 856,45 que corresponde a un Disminución del -31,04% de recursos disponibles.
A79: 4.5.1.01. | B79: Intereses por equivalentes de efectivo | D79: =IFERROR(VLOOKUP(A79,BC_ACTUAL!B:G,6,0)/1000,0) -> 2834.37722 | E79: =IFERROR(VLOOKUP(A79,BC_ANTERIOR!B:G,6,0)/1000,0) -> 5261.22014 | G79: 0.0004882529414 | H79: 0.0009285237443 | I79: -2426.84292 | J79: -0.4612699821 | L79: La cuenta Intereses por equivalentes de efectivo, representa el 0,05% del total del Ingresos, que comparado al periodo anterior genera una variación absoluta de -2 426,84 que corresponde a un Disminución del -46,13% de recursos disponibles.
A80: 4.5.1.02. | B80: Intereses por títulos y valores a costo amortizado | D80: =IFERROR(VLOOKUP(A80,BC_ACTUAL!B:G,6,0)/1000,0) -> 0 | E80: =IFERROR(VLOOKUP(A80,BC_ANTERIOR!B:G,6,0)/1000,0) -> 0 | G80: 0 | H80: 0 | I80: 0 | J80: =IFERROR(I80/E80,0) -> 0 | L80: La cuenta Intereses por títulos y valores a costo amortizado, representa el 0,00% del total del Ingresos, que comparado al periodo anterior genera una variación absoluta de 0 000,00 que corresponde a un Aumento del 0,00% de recursos disponibles.
A81: 4.5.1.98. | B81: Resultados positivos de otras inversiones | D81: =IFERROR(VLOOKUP(A81,BC_ACTUAL!B:G,6,0)/1000,0) -> 16841.67214 | E81: =IFERROR(VLOOKUP(A81,BC_ANTERIOR!B:G,6,0)/1000,0) -> 23271.27572 | G81: 0.002901164991 | H81: 0.004107019188 | I81: -6429.60358 | J81: -0.2762892614 | L81: La cuenta Resultados positivos de otras inversiones, representa el 0,29% del total del Ingresos, que comparado al periodo anterior genera una variación absoluta de -6 429,60 que corresponde a un Disminución del -27,63% de recursos disponibles.
A82: 4.5.2. | B82: Alquileres y derechos sobre bienes | C82: 48 | D82: =SUM(D83:D85) -> 39497.45998 | E82: =SUM(E83:E85) -> 41920.69248 | G82: 0.006803875955 | H82: 0.007398351962 | I82: -2423.2325 | J82: -0.05780516391 | L82: La cuenta Alquileres y derechos sobre bienes, representa el 0,68% del total del Ingresos, que comparado al periodo anterior genera una variación absoluta de -2 423,23 que corresponde a un Disminución del -5,78% de recursos disponibles.
A83: 4.5.2.01. | B83: Alquileres | D83: =IFERROR(VLOOKUP(A83,BC_ACTUAL!B:G,6,0)/1000,0) -> 39497.45998 | E83: =IFERROR(VLOOKUP(A83,BC_ANTERIOR!B:G,6,0)/1000,0) -> 41920.69248 | G83: 0.006803875955 | H83: 0.007398351962 | I83: -2423.2325 | J83: -0.05780516391 | L83: La cuenta Alquileres, representa el 0,68% del total del Ingresos, que comparado al periodo anterior genera una variación absoluta de -2 423,23 que corresponde a un Disminución del -5,78% de recursos disponibles.
A84: 4.5.2.02. | B84: Ingresos por concesiones | D84: =IFERROR(VLOOKUP(A84,BC_ACTUAL!B:G,6,0)/1000,0) -> 0 | E84: =IFERROR(VLOOKUP(A84,BC_ANTERIOR!B:G,6,0)/1000,0) -> 0 | G84: 0 | H84: 0 | I84: 0 | J84: 0 | L84: La cuenta Ingresos por concesiones, representa el 0,00% del total del Ingresos, que comparado al periodo anterior genera una variación absoluta de 0 000,00 que corresponde a un Aumento del 0,00% de recursos disponibles.
A85: 4.5.2.03. | B85: Derechos sobre bienes intangibles | D85: =IFERROR(VLOOKUP(A85,BC_ACTUAL!B:G,6,0)/1000,0) -> 0 | E85: =IFERROR(VLOOKUP(A85,BC_ANTERIOR!B:G,6,0)/1000,0) -> 0 | G85: 0 | H85: 0 | I85: 0 | J85: 0 | L85: La cuenta Derechos sobre bienes intangibles, representa el 0,00% del total del Ingresos, que comparado al periodo anterior genera una variación absoluta de 0 000,00 que corresponde a un Aumento del 0,00% de recursos disponibles.
A86: 4.5.9. | B86: Otros ingresos de la propiedad | C86: 49 | D86: =SUM(D87:D92) -> 0 | E86: =SUM(E87:E92) -> 0 | G86: 0 | H86: 0 | I86: 0 | J86: 0 | L86: La cuenta Otros ingresos de la propiedad, representa el 0,00% del total del Ingresos, que comparado al periodo anterior genera una variación absoluta de 0 000,00 que corresponde a un Aumento del 0,00% de recursos disponibles.
A87: 4.5.9.03. | B87: Intereses por ventas | D87: =IFERROR(VLOOKUP(A87,BC_ACTUAL!B:G,6,0)/1000,0) -> 0 | E87: =IFERROR(VLOOKUP(A87,BC_ANTERIOR!B:G,6,0)/1000,0) -> 0 | G87: 0 | H87: 0 | I87: 0 | J87: 0 | L87: La cuenta Intereses por ventas, representa el 0,00% del total del Ingresos, que comparado al periodo anterior genera una variación absoluta de 0 000,00 que corresponde a un Aumento del 0,00% de recursos disponibles.
A88: 4.5.9.07. | B88: Intereses por préstamos | D88: =IFERROR(VLOOKUP(A88,BC_ACTUAL!B:G,6,0)/1000,0) -> 0 | E88: =IFERROR(VLOOKUP(A88,BC_ANTERIOR!B:G,6,0)/1000,0) -> 0 | G88: 0 | H88: 0 | I88: 0 | J88: 0 | L88: La cuenta Intereses por préstamos, representa el 0,00% del total del Ingresos, que comparado al periodo anterior genera una variación absoluta de 0 000,00 que corresponde a un Aumento del 0,00% de recursos disponibles.
A89: 4.5.9.08. | B89: Intereses por documentos a cobrar | D89: =IFERROR(VLOOKUP(A89,BC_ACTUAL!B:G,6,0)/1000,0) -> 0 | E89: =IFERROR(VLOOKUP(A89,BC_ANTERIOR!B:G,6,0)/1000,0) -> 0 | G89: 0 | H89: 0 | I89: 0 | J89: 0 | L89: La cuenta Intereses por documentos a cobrar, representa el 0,00% del total del Ingresos, que comparado al periodo anterior genera una variación absoluta de 0 000,00 que corresponde a un Aumento del 0,00% de recursos disponibles.
A90: 4.5.9.10. | B90: Intereses por deudores por avales ejecutados | D90: =IFERROR(VLOOKUP(A90,BC_ACTUAL!B:G,6,0)/1000,0) -> 0 | E90: =IFERROR(VLOOKUP(A90,BC_ANTERIOR!B:G,6,0)/1000,0) -> 0 | G90: 0 | H90: 0 | I90: 0 | J90: 0 | L90: La cuenta Intereses por deudores por avales ejecutados, representa el 0,00% del total del Ingresos, que comparado al periodo anterior genera una variación absoluta de 0 000,00 que corresponde a un Aumento del 0,00% de recursos disponibles.
A91: 4.5.9.97. | B91: Intereses por cuentas a cobrar en gestión judicial | D91: =IFERROR(VLOOKUP(A91,BC_ACTUAL!B:G,6,0)/1000,0) -> 0 | E91: =IFERROR(VLOOKUP(A91,BC_ANTERIOR!B:G,6,0)/1000,0) -> 0 | G91: 0 | H91: 0 | I91: 0 | J91: 0 | L91: La cuenta Intereses por cuentas a cobrar en gestión judicial, representa el 0,00% del total del Ingresos, que comparado al periodo anterior genera una variación absoluta de 0 000,00 que corresponde a un Aumento del 0,00% de recursos disponibles.
A92: 4.5.9.99. | B92: Intereses por otras cuentas a cobrar | D92: =IFERROR(VLOOKUP(A92,BC_ACTUAL!B:G,6,0)/1000,0) -> 0 | E92: =IFERROR(VLOOKUP(A92,BC_ANTERIOR!B:G,6,0)/1000,0) -> 0 | G92: 0 | H92: 0 | I92: 0 | J92: 0 | L92: La cuenta Intereses por otras cuentas a cobrar, representa el 0,00% del total del Ingresos, que comparado al periodo anterior genera una variación absoluta de 0 000,00 que corresponde a un Aumento del 0,00% de recursos disponibles.
A93: 4.6. | B93: Transferencias
A94: 4.6.1. | B94: Transferencias corrientes | C94: 50 | D94: =SUM(D95:D97) -> 18241.29303 | E94: =SUM(E95:E97) -> 20317.69336 | G94: =IFERROR(D94/$D$133,0) -> 0.003142265226 | H94: =IFERROR(E94/$E$133,0) -> 0.003585757716 | I94: =IFERROR(D94-E94,0) -> -2076.40033 | J94: -0.1021966565 | L94: La cuenta Transferencias corrientes, representa el 0,31% del total del Ingresos, que comparado al periodo anterior genera una variación absoluta de -2 076,40 que corresponde a un Disminución del -10,22% de recursos disponibles.
A95: 4.6.1.01. | B95: Transferencias corrientes del sector privado interno | D95: =IFERROR(VLOOKUP(A95,BC_ACTUAL!B:G,6,0)/1000,0) -> 0 | E95: =IFERROR(VLOOKUP(A95,BC_ANTERIOR!B:G,6,0)/1000,0) -> 0 | G95: 0 | H95: 0 | I95: 0 | J95: 0 | L95: La cuenta Transferencias corrientes del sector privado interno, representa el 0,00% del total del Ingresos, que comparado al periodo anterior genera una variación absoluta de 0 000,00 que corresponde a un Aumento del 0,00% de recursos disponibles.
A96: 4.6.1.02. | B96: Transferencias corrientes del sector público interno | D96: =IFERROR(VLOOKUP(A96,BC_ACTUAL!B:G,6,0)/1000,0) -> 18241.29303 | E96: =IFERROR(VLOOKUP(A96,BC_ANTERIOR!B:G,6,0)/1000,0) -> 20317.69336 | G96: 0.003142265226 | H96: 0.003585757716 | I96: -2076.40033 | J96: -0.1021966565 | L96: La cuenta Transferencias corrientes del sector público interno, representa el 0,31% del total del Ingresos, que comparado al periodo anterior genera una variación absoluta de -2 076,40 que corresponde a un Disminución del -10,22% de recursos disponibles.
A97: 4.6.1.03. | B97: Transferencias corrientes del sector externo | D97: =IFERROR(VLOOKUP(A97,BC_ACTUAL!B:G,6,0)/1000,0) -> 0 | E97: =IFERROR(VLOOKUP(A97,BC_ANTERIOR!B:G,6,0)/1000,0) -> 0 | G97: 0 | H97: 0 | I97: 0 | J97: 0 | L97: La cuenta Transferencias corrientes del sector externo, representa el 0,00% del total del Ingresos, que comparado al periodo anterior genera una variación absoluta de 0 000,00 que corresponde a un Aumento del 0,00% de recursos disponibles.
A98: 4.6.2. | B98: Transferencias de capital | C98: 51 | D98: =SUM(D99:D101) -> 4102012.638 | E98: =SUM(E99:E101) -> 4004209.238 | G98: 0.7066172146 | H98: 0.7066808186 | I98: 97803.3995 | J98: 0.02442514706 | L98: La cuenta Transferencias de capital, representa el 70,66% del total del Ingresos, que comparado al periodo anterior genera una variación absoluta de 97 803,40 que corresponde a un Aumento del 2,44% de recursos disponibles.
A99: 4.6.2.01. | B99: Transferencias de capital del sector privado interno | D99: =IFERROR(VLOOKUP(A99,BC_ACTUAL!B:G,6,0)/1000,0) -> 0 | E99: =IFERROR(VLOOKUP(A99,BC_ANTERIOR!B:G,6,0)/1000,0) -> 0 | G99: 0 | H99: 0 | I99: 0 | J99: 0 | L99: La cuenta Transferencias de capital del sector privado interno, representa el 0,00% del total del Ingresos, que comparado al periodo anterior genera una variación absoluta de 0 000,00 que corresponde a un Aumento del 0,00% de recursos disponibles.
A100: 4.6.2.02. | B100: Transferencias de capital del sector público interno | D100: =IFERROR(VLOOKUP(A100,BC_ACTUAL!B:G,6,0)/1000,0) -> 4102012.638 | E100: =IFERROR(VLOOKUP(A100,BC_ANTERIOR!B:G,6,0)/1000,0) -> 4004209.238 | G100: 0.7066172146 | H100: 0.7066808186 | I100: 97803.3995 | J100: 0.02442514706 | L100: La cuenta Transferencias de capital del sector público interno, representa el 70,66% del total del Ingresos, que comparado al periodo anterior genera una variación absoluta de 97 803,40 que corresponde a un Aumento del 2,44% de recursos disponibles.
A101: 4.6.2.03. | B101: Transferencias de capital del sector externo | D101: =IFERROR(VLOOKUP(A101,BC_ACTUAL!B:G,6,0)/1000,0) -> 0 | E101: =IFERROR(VLOOKUP(A101,BC_ANTERIOR!B:G,6,0)/1000,0) -> 0 | G101: 0 | H101: 0 | I101: 0 | J101: 0 | L101: La cuenta Transferencias de capital del sector externo, representa el 0,00% del total del Ingresos, que comparado al periodo anterior genera una variación absoluta de 0 000,00 que corresponde a un Aumento del 0,00% de recursos disponibles.
A102: 4.9. | B102: Otros ingresos
A103: 4.9.1. | B103: Resultados positivos por tenencia y por exposición a la inflación | C103: 52 | D103: =SUM(D104:D109) -> 0 | E103: =SUM(E104:E109) -> 0 | G103: =IFERROR(D103/$D$133,0) -> 0 | H103: =IFERROR(E103/$E$133,0) -> 0 | I103: =IFERROR(D103-E103,0) -> 0 | J103: 0 | L103: La cuenta Resultados positivos por tenencia y por exposición a la inflación, representa el 0,00% del total del Ingresos, que comparado al periodo anterior genera una variación absoluta de 0 000,00 que corresponde a un Aumento del 0,00% de recursos disponibles.
A104: 4.9.1.01. | B104: Diferencias de cambio positivas por activos | D104: =IFERROR(VLOOKUP(A104,BC_ACTUAL!B:G,6,0)/1000,0) -> 0 | E104: =IFERROR(VLOOKUP(A104,BC_ANTERIOR!B:G,6,0)/1000,0) -> 0 | G104: 0 | H104: 0 | I104: 0 | J104: 0 | L104: La cuenta Diferencias de cambio positivas por activos, representa el 0,00% del total del Ingresos, que comparado al periodo anterior genera una variación absoluta de 0 000,00 que corresponde a un Aumento del 0,00% de recursos disponibles.
A105: 4.9.1.02. | B105: Diferencias de cambio positivas por pasivos | D105: =IFERROR(VLOOKUP(A105,BC_ACTUAL!B:G,6,0)/1000,0) -> 0 | E105: =IFERROR(VLOOKUP(A105,BC_ANTERIOR!B:G,6,0)/1000,0) -> 0 | G105: 0 | H105: 0 | I105: 0 | J105: 0 | L105: La cuenta Diferencias de cambio positivas por pasivos, representa el 0,00% del total del Ingresos, que comparado al periodo anterior genera una variación absoluta de 0 000,00 que corresponde a un Aumento del 0,00% de recursos disponibles.
A106: 4.9.1.03. | B106: Resultados positivos por tenencia de activos no derivados | D106: =IFERROR(VLOOKUP(A106,BC_ACTUAL!B:G,6,0)/1000,0) -> 0 | E106: =IFERROR(VLOOKUP(A106,BC_ANTERIOR!B:G,6,0)/1000,0) -> 0 | G106: 0 | H106: 0 | I106: 0 | J106: 0 | L106: La cuenta Resultados positivos por tenencia de activos no derivados, representa el 0,00% del total del Ingresos, que comparado al periodo anterior genera una variación absoluta de 0 000,00 que corresponde a un Aumento del 0,00% de recursos disponibles.
A107: 4.9.1.04. | B107: Resultados positivos por tenencia de pasivos no derivados | D107: =IFERROR(VLOOKUP(A107,BC_ACTUAL!B:G,6,0)/1000,0) -> 0 | E107: =IFERROR(VLOOKUP(A107,BC_ANTERIOR!B:G,6,0)/1000,0) -> 0 | G107: 0 | H107: 0 | I107: 0 | J107: 0 | L107: La cuenta Resultados positivos por tenencia de pasivos no derivados, representa el 0,00% del total del Ingresos, que comparado al periodo anterior genera una variación absoluta de 0 000,00 que corresponde a un Aumento del 0,00% de recursos disponibles.
A108: 4.9.1.05. | B108: Resultados positivos por tenencia de instrumentos financieros derivados | D108: =IFERROR(VLOOKUP(A108,BC_ACTUAL!B:G,6,0)/1000,0) -> 0 | E108: =IFERROR(VLOOKUP(A108,BC_ANTERIOR!B:G,6,0)/1000,0) -> 0 | G108: 0 | H108: 0 | I108: 0 | J108: 0 | L108: La cuenta Resultados positivos por tenencia de instrumentos financieros derivados, representa el 0,00% del total del Ingresos, que comparado al periodo anterior genera una variación absoluta de 0 000,00 que corresponde a un Aumento del 0,00% de recursos disponibles.
A109: 4.9.1.06. | B109: Resultado positivo por exposición a la inflación | D109: =IFERROR(VLOOKUP(A109,BC_ACTUAL!B:G,6,0)/1000,0) -> 0 | E109: =IFERROR(VLOOKUP(A109,BC_ANTERIOR!B:G,6,0)/1000,0) -> 0 | G109: 0 | H109: 0 | I109: 0 | J109: 0 | L109: La cuenta Resultado positivo por exposición a la inflación, representa el 0,00% del total del Ingresos, que comparado al periodo anterior genera una variación absoluta de 0 000,00 que corresponde a un Aumento del 0,00% de recursos disponibles.
A110: 4.9.2. | B110: Reversión de consumo de bienes | C110: 53 | D110: =SUM(D111:D112) -> 0 | E110: =SUM(E111:E112) -> 0 | G110: 0 | H110: 0 | I110: 0 | J110: 0 | L110: La cuenta Reversión de consumo de bienes, representa el 0,00% del total del Ingresos, que comparado al periodo anterior genera una variación absoluta de 0 000,00 que corresponde a un Aumento del 0,00% de recursos disponibles.
A111: 4.9.2.01. | B111: Reversión de consumo de bienes no concesionados | D111: =IFERROR(VLOOKUP(A111,BC_ACTUAL!B:G,6,0)/1000,0) -> 0 | E111: =IFERROR(VLOOKUP(A111,BC_ANTERIOR!B:G,6,0)/1000,0) -> 0 | G111: 0 | H111: 0 | I111: 0 | J111: 0 | L111: La cuenta Reversión de consumo de bienes no concesionados, representa el 0,00% del total del Ingresos, que comparado al periodo anterior genera una variación absoluta de 0 000,00 que corresponde a un Aumento del 0,00% de recursos disponibles.
A112: 4.9.2.02. | B112: Reversión de consumo de bienes concesionados | D112: =IFERROR(VLOOKUP(A112,BC_ACTUAL!B:G,6,0)/1000,0) -> 0 | E112: =IFERROR(VLOOKUP(A112,BC_ANTERIOR!B:G,6,0)/1000,0) -> 0 | G112: 0 | H112: 0 | I112: 0 | J112: 0 | L112: La cuenta Reversión de consumo de bienes concesionados, representa el 0,00% del total del Ingresos, que comparado al periodo anterior genera una variación absoluta de 0 000,00 que corresponde a un Aumento del 0,00% de recursos disponibles.
A113: 4.9.3. | B113: Reversión de pérdidas por deterioro y desvalorización de bienes | C113: 54 | D113: =SUM(D114:D118) -> 0 | E113: =SUM(E114:E118) -> 0 | G113: 0 | H113: 0 | I113: 0 | J113: 0 | L113: La cuenta Reversión de pérdidas por deterioro y desvalorización de bienes, representa el 0,00% del total del Ingresos, que comparado al periodo anterior genera una variación absoluta de 0 000,00 que corresponde a un Aumento del 0,00% de recursos disponibles.
A114: 4.9.3.01. | B114: Reversión de deterioro y desvalorización de bienes no concesionados | D114: =IFERROR(VLOOKUP(A114,BC_ACTUAL!B:G,6,0)/1000,0) -> 0 | E114: =IFERROR(VLOOKUP(A114,BC_ANTERIOR!B:G,6,0)/1000,0) -> 0 | G114: 0 | H114: 0 | I114: 0 | J114: 0 | L114: La cuenta Reversión de deterioro y desvalorización de bienes no concesionados, representa el 0,00% del total del Ingresos, que comparado al periodo anterior genera una variación absoluta de 0 000,00 que corresponde a un Aumento del 0,00% de recursos disponibles.
A115: 4.9.3.02. | B115: Reversión de deterioro y desvalorización de bienes concesionados | D115: =IFERROR(VLOOKUP(A115,BC_ACTUAL!B:G,6,0)/1000,0) -> 0 | E115: =IFERROR(VLOOKUP(A115,BC_ANTERIOR!B:G,6,0)/1000,0) -> 0 | G115: 0 | H115: 0 | I115: 0 | J115: 0 | L115: La cuenta Reversión de deterioro y desvalorización de bienes concesionados, representa el 0,00% del total del Ingresos, que comparado al periodo anterior genera una variación absoluta de 0 000,00 que corresponde a un Aumento del 0,00% de recursos disponibles.
A116: 4.9.3.03. | B116: Reversión de deterioro y desvalorización de inventarios por materiales y suministros para consumo y prestación de servicios | D116: =IFERROR(VLOOKUP(A116,BC_ACTUAL!B:G,6,0)/1000,0) -> 0 | E116: =IFERROR(VLOOKUP(A116,BC_ANTERIOR!B:G,6,0)/1000,0) -> 0 | G116: 0 | H116: 0 | I116: 0 | J116: 0 | L116: La cuenta Reversión de deterioro y desvalorización de inventarios por materiales y suministros para consumo y prestación de servicios , representa el 0,00% del total del Ingresos, que comparado al periodo anterior genera una variación absoluta de 0 000,00 que corresponde a un Aumento del 0,00% de recursos disponibles.
A117: 4.9.3.04. | B117: Reversión de deterioro y desvalorización de inventarios por bienes para la venta | D117: =IFERROR(VLOOKUP(A117,BC_ACTUAL!B:G,6,0)/1000,0) -> 0 | E117: =IFERROR(VLOOKUP(A117,BC_ANTERIOR!B:G,6,0)/1000,0) -> 0 | G117: 0 | H117: 0 | I117: 0 | J117: 0 | L117: La cuenta Reversión de deterioro y desvalorización de inventarios por bienes para la venta, representa el 0,00% del total del Ingresos, que comparado al periodo anterior genera una variación absoluta de 0 000,00 que corresponde a un Aumento del 0,00% de recursos disponibles.
A118: 4.9.3.05. | B118: Reversión de deterioro y desvalorización de inventarios por materias primas y bienes en producción | D118: =IFERROR(VLOOKUP(A118,BC_ACTUAL!B:G,6,0)/1000,0) -> 0 | E118: =IFERROR(VLOOKUP(A118,BC_ANTERIOR!B:G,6,0)/1000,0) -> 0 | G118: 0 | H118: 0 | I118: 0 | J118: 0 | L118: La cuenta Reversión de deterioro y desvalorización de inventarios por materias primas y bienes en producción, representa el 0,00% del total del Ingresos, que comparado al periodo anterior genera una variación absoluta de 0 000,00 que corresponde a un Aumento del 0,00% de recursos disponibles.
A119: 4.9.4. | B119: Recuperación de previsiones | C119: 55 | D119: =SUM(D120:D122) -> 0 | E119: =SUM(E120:E122) -> 0 | G119: 0 | H119: 0 | I119: 0 | J119: 0 | L119: La cuenta Recuperación de previsiones, representa el 0,00% del total del Ingresos, que comparado al periodo anterior genera una variación absoluta de 0 000,00 que corresponde a un Aumento del 0,00% de recursos disponibles.
A120: 4.9.4.01. | B120: Recuperación de previsiones para deterioro de inversiones | D120: =IFERROR(VLOOKUP(A120,BC_ACTUAL!B:G,6,0)/1000,0) -> 0 | E120: =IFERROR(VLOOKUP(A120,BC_ANTERIOR!B:G,6,0)/1000,0) -> 0 | G120: 0 | H120: 0 | I120: 0 | J120: 0 | L120: La cuenta Recuperación de previsiones para deterioro de inversiones, representa el 0,00% del total del Ingresos, que comparado al periodo anterior genera una variación absoluta de 0 000,00 que corresponde a un Aumento del 0,00% de recursos disponibles.
A121: 4.9.4.02. | B121: Recuperación de previsiones para deterioro de cuentas a cobrar | D121: =IFERROR(VLOOKUP(A121,BC_ACTUAL!B:G,6,0)/1000,0) -> 0 | E121: =IFERROR(VLOOKUP(A121,BC_ANTERIOR!B:G,6,0)/1000,0) -> 0 | G121: 0 | H121: 0 | I121: 0 | J121: 0 | L121: La cuenta Recuperación de previsiones para deterioro de cuentas a cobrar, representa el 0,00% del total del Ingresos, que comparado al periodo anterior genera una variación absoluta de 0 000,00 que corresponde a un Aumento del 0,00% de recursos disponibles.
A122: 4.9.4.03. | B122: Recuperación de previsiones para deterioro y pérdidas de inventarios | D122: =IFERROR(VLOOKUP(A122,BC_ACTUAL!B:G,6,0)/1000,0) -> 0 | E122: =IFERROR(VLOOKUP(A122,BC_ANTERIOR!B:G,6,0)/1000,0) -> 0 | G122: 0 | H122: 0 | I122: 0 | J122: 0 | L122: La cuenta Recuperación de previsiones para deterioro y pérdidas de inventarios, representa el 0,00% del total del Ingresos, que comparado al periodo anterior genera una variación absoluta de 0 000,00 que corresponde a un Aumento del 0,00% de recursos disponibles.
A123: 4.9.5. | B123: Recuperación de provisiones y reservas técnicas | C123: 56 | D123: =SUM(D124:D127) -> 0 | E123: =SUM(E124:E127) -> 0 | G123: 0 | H123: 0 | I123: 0 | J123: 0 | L123: La cuenta Recuperación de provisiones y reservas técnicas, representa el 0,00% del total del Ingresos, que comparado al periodo anterior genera una variación absoluta de 0 000,00 que corresponde a un Aumento del 0,00% de recursos disponibles.
A124: 4.9.5.01. | B124: Recuperación de provisiones para litigios y demandas | D124: =IFERROR(VLOOKUP(A124,BC_ACTUAL!B:G,6,0)/1000,0) -> 0 | E124: =IFERROR(VLOOKUP(A124,BC_ANTERIOR!B:G,6,0)/1000,0) -> 0 | G124: 0 | H124: 0 | I124: 0 | J124: 0 | L124: La cuenta Recuperación de provisiones para litigios y demandas, representa el 0,00% del total del Ingresos, que comparado al periodo anterior genera una variación absoluta de 0 000,00 que corresponde a un Aumento del 0,00% de recursos disponibles.
A125: 4.9.5.02. | B125: Recuperación de provisiones para reestructuración | D125: =IFERROR(VLOOKUP(A125,BC_ACTUAL!B:G,6,0)/1000,0) -> 0 | E125: =IFERROR(VLOOKUP(A125,BC_ANTERIOR!B:G,6,0)/1000,0) -> 0 | G125: 0 | H125: 0 | I125: 0 | J125: 0 | L125: La cuenta Recuperación de provisiones para reestructuración, representa el 0,00% del total del Ingresos, que comparado al periodo anterior genera una variación absoluta de 0 000,00 que corresponde a un Aumento del 0,00% de recursos disponibles.
A126: 4.9.5.03. | B126: Recuperación de provisiones para beneficios a los empleados | D126: =IFERROR(VLOOKUP(A126,BC_ACTUAL!B:G,6,0)/1000,0) -> 0 | E126: =IFERROR(VLOOKUP(A126,BC_ANTERIOR!B:G,6,0)/1000,0) -> 0 | G126: 0 | H126: 0 | I126: 0 | J126: 0 | L126: La cuenta Recuperación de provisiones para beneficios a los empleados, representa el 0,00% del total del Ingresos, que comparado al periodo anterior genera una variación absoluta de 0 000,00 que corresponde a un Aumento del 0,00% de recursos disponibles.
A127: 4.9.5.99. | B127: Recuperación de otras provisiones y reservas técnicas | D127: =IFERROR(VLOOKUP(A127,BC_ACTUAL!B:G,6,0)/1000,0) -> 0 | E127: =IFERROR(VLOOKUP(A127,BC_ANTERIOR!B:G,6,0)/1000,0) -> 0 | G127: 0 | H127: 0 | I127: 0 | J127: 0 | L127: La cuenta Recuperación de otras provisiones y reservas técnicas, representa el 0,00% del total del Ingresos, que comparado al periodo anterior genera una variación absoluta de 0 000,00 que corresponde a un Aumento del 0,00% de recursos disponibles.
A128: 4.9.6. | B128: Resultados positivos de inversiones patrimoniales y participación de los intereses minoritarios | C128: 57 | D128: =SUM(D129:D130) -> 0 | E128: =SUM(E129:E130) -> 0 | G128: 0 | H128: 0 | I128: 0 | J128: 0 | L128: La cuenta Resultados positivos de inversiones patrimoniales y participación de los intereses minoritarios, representa el 0,00% del total del Ingresos, que comparado al periodo anterior genera una variación absoluta de 0 000,00 que corresponde a un Aumento del 0,00% de recursos disponibles.
A129: 4.9.6.01. | B129: Resultados positivos de inversiones patrimoniales | D129: =IFERROR(VLOOKUP(A129,BC_ACTUAL!B:G,6,0)/1000,0) -> 0 | E129: =IFERROR(VLOOKUP(A129,BC_ANTERIOR!B:G,6,0)/1000,0) -> 0 | G129: 0 | H129: 0 | I129: 0 | J129: 0 | L129: La cuenta Resultados positivos de inversiones patrimoniales, representa el 0,00% del total del Ingresos, que comparado al periodo anterior genera una variación absoluta de 0 000,00 que corresponde a un Aumento del 0,00% de recursos disponibles.
A130: 4.9.6.02. | B130: Participación de los intereses minoritarios en el resultado neto negativo | D130: =IFERROR(VLOOKUP(A130,BC_ACTUAL!B:G,6,0)/1000,0) -> 0 | E130: =IFERROR(VLOOKUP(A130,BC_ANTERIOR!B:G,6,0)/1000,0) -> 0 | G130: 0 | H130: 0 | I130: 0 | J130: 0 | L130: La cuenta Participación de los intereses minoritarios en el resultado neto negativo, representa el 0,00% del total del Ingresos, que comparado al periodo anterior genera una variación absoluta de 0 000,00 que corresponde a un Aumento del 0,00% de recursos disponibles.
A131: 4.9.9. | B131: Otros ingresos y resultados positivos | C131: 58 | D131: =SUM(D132) -> 2926.68528 | E131: =SUM(E132) -> 402.27242 | G131: 0.0005041540295 | H131: 7.099484221e-05 | I131: 2524.41286 | J131: 6.275381395 | L131: La cuenta Otros ingresos y resultados positivos, representa el 0,05% del total del Ingresos, que comparado al periodo anterior genera una variación absoluta de 2 524,41 que corresponde a un Aumento del 627,54% de recursos disponibles.
A132: 4.9.9.99. | B132: Ingresos y resultados positivos varios | D132: =IFERROR(VLOOKUP(A132,BC_ACTUAL!B:G,6,0)/1000,0) -> 2926.68528 | E132: =IFERROR(VLOOKUP(A132,BC_ANTERIOR!B:G,6,0)/1000,0) -> 402.27242 | G132: 0.0005041540295 | H132: 7.099484221e-05 | I132: 2524.41286 | J132: 6.275381395 | L132: La cuenta Ingresos y resultados positivos varios, representa el 0,05% del total del Ingresos, que comparado al periodo anterior genera una variación absoluta de 2 524,41 que corresponde a un Aumento del 627,54% de recursos disponibles.
B133: TOTAL DE INGRESOS | D133: =+D131+D128+D123+D119+D113+D110+D103+D98+D94+D86+D82+D78+D75+D64+D61+D57+D54+D51+D45+D40+D37+D33+D30+D26+D22+D15+D10 -> 5805141.105 | E133: =+E131+E128+E123+E119+E113+E110+E103+E98+E94+E86+E82+E78+E75+E64+E61+E57+E54+E51+E45+E40+E37+E33+E30+E26+E22+E15+E10 -> 5666220.355 | G133: =+G131+G128+G123+G119+G113+G110+G103+G98+G94+G86+G82+G78+G75+G64+G61+G57+G54+G51+G45+G40+G37+G33+G30+G26+G22+G15+G10 -> 1 | H133: =+H131+H128+H123+H119+H113+H110+H103+H98+H94+H86+H82+H78+H75+H64+H61+H57+H54+H51+H45+H40+H37+H33+H30+H26+H22+H15+H10 -> 1 | I133: =IFERROR(D133-E133,0) -> 138920.7505 | J133: 0.02451735758
A135: 5. | B135: GASTOS
A136: 5.1. | B136: Gastos de funcionamiento
A137: 5.1.1. | B137: Gastos en personal | C137: 59 | D137: =SUM(D138:D145) -> 1385399.269 | E137: =SUM(E138:E145) -> 1284241.329 | G137: =IFERROR(D137/$D$232,0) -> 0.2632555978 | H137: =IFERROR(E137/$E$232,0) -> 0.2210505571 | I137: =IFERROR(D137-E137,0) -> 101157.9401 | J137: 0.07876863785 | L137: La cuenta Gastos en personal, representa el 26,33% del total del Gastos, que comparado al periodo anterior genera una variación absoluta de 101 157,94 que corresponde a un Aumento del 7,88% de recursos disponibles.
A138: 5.1.1.01. | B138: Remuneraciones Básicas | D138: =IFERROR(VLOOKUP(A138,BC_ACTUAL!B:G,6,0)/1000,0) -> 746913.1266 | E138: =IFERROR(VLOOKUP(A138,BC_ANTERIOR!B:G,6,0)/1000,0) -> 746186.0116 | G138: =IFERROR(D138/$D$232,0) -> 0.1419295261 | H138: =IFERROR(E138/$E$232,0) -> 0.1284375684 | I138: 727.11497 | J138: 0.0009744419738 | L138: La cuenta Remuneraciones Básicas, representa el 14,19% del total del Gastos, que comparado al periodo anterior genera una variación absoluta de 0 727,11 que corresponde a un Aumento del 0,10% de recursos disponibles.
A139: 5.1.1.02. | B139: Remuneraciones eventuales | D139: =IFERROR(VLOOKUP(A139,BC_ACTUAL!B:G,6,0)/1000,0) -> 70522.29155 | E139: =IFERROR(VLOOKUP(A139,BC_ANTERIOR!B:G,6,0)/1000,0) -> 77287.62543 | G139: =IFERROR(D139/$D$232,0) -> 0.01340074911 | H139: =IFERROR(E139/$E$232,0) -> 0.01330316372 | I139: -6765.33388 | J139: -0.087534503 | L139: La cuenta Remuneraciones eventuales, representa el 1,34% del total del Gastos, que comparado al periodo anterior genera una variación absoluta de -6 765,33 que corresponde a un Disminución del -8,75% de recursos disponibles.
A140: 5.1.1.03. | B140: Incentivos salariales | D140: =IFERROR(VLOOKUP(A140,BC_ACTUAL!B:G,6,0)/1000,0) -> 320697.6515 | E140: =IFERROR(VLOOKUP(A140,BC_ANTERIOR!B:G,6,0)/1000,0) -> 261470.8933 | G140: 0.06093943736 | H140: =IFERROR(E140/$E$232,0) -> 0.04500578304 | I140: =IFERROR(D140-E140,0) -> 59226.75824 | J140: =IFERROR(I140/E140,0) -> 0.2265137718 | L140: ="La"&" "&"cuenta"&" "&B140&","&" "&"representa"&" "&"el"&" "&TEXT(G140,"0,00%")&" "&"del"&" "&"total"&" "&"del"&" "&IF(MID(A140,1,2)="1.","Activo",IF(MID(A140,1,2)="2.","Pasivo",IF(MID(A140,1,2)="3.","Capital",IF(MID(A140,1,2)="4.","Ingresos",IF(MID(A140,1,2)="5.","Gastos","")))))&","&" "&"que"&" "&"comparado"&" "&"al"&" "&"periodo"&" "&"anterior"&" "&"genera"&" "&"una"&" "&"variación"&" "&"absoluta"&" "&"de"&" "&TEXT(I140,"0 000,00")&" "&"que"&" "&"corresponde"&" "&"a"&" "&"un"&" "&IF(I140<0,"Disminución","Aumento")&" "&"del"&" "&TEXT(J140,"0,00%")&" "&"de"&" "&"recursos"&" "&"disponibles"&"." -> La cuenta Incentivos salariales, representa el 6,09% del total del Gastos, que comparado al periodo anterior genera una variación absoluta de 59 226,76 que corresponde a un Aumento del 22,65% de recursos disponibles.
A141: 5.1.1.04. | B141: Contribuciones patronales al desarrollo y la seguridad social | D141: =IFERROR(VLOOKUP(A141,BC_ACTUAL!B:G,6,0)/1000,0) -> 202734.3529 | E141: =IFERROR(VLOOKUP(A141,BC_ANTERIOR!B:G,6,0)/1000,0) -> 176018.1011 | G141: 0.03852387861 | H141: =IFERROR(E141/$E$232,0) -> 0.0302971867 | I141: 26716.25176 | J141: =IFERROR(I141/E141,0) -> 0.1517812747 | L141: La cuenta Contribuciones patronales al desarrollo y la seguridad social, representa el 3,85% del total del Gastos, que comparado al periodo anterior genera una variación absoluta de 26 716,25 que corresponde a un Aumento del 15,18% de recursos disponibles.
A142: 5.1.1.05. | B142: Contribuciones patronales a fondos de pensiones y a otros fondos de capitalización | D142: =IFERROR(VLOOKUP(A142,BC_ACTUAL!B:G,6,0)/1000,0) -> 2962.79636 | E142: =IFERROR(VLOOKUP(A142,BC_ANTERIOR!B:G,6,0)/1000,0) -> 165.46731 | G142: 0.0005629949029 | H142: =IFERROR(E142/$E$232,0) -> 2.848112752e-05 | I142: 2797.32905 | J142: 16.90562958 | L142: La cuenta Contribuciones patronales a fondos de pensiones y a otros fondos de capitalización, representa el 0,06% del total del Gastos, que comparado al periodo anterior genera una variación absoluta de 2 797,33 que corresponde a un Aumento del 1690,56% de recursos disponibles.
A143: 5.1.1.06. | B143: Asistencia social y beneficios al personal | D143: =IFERROR(VLOOKUP(A143,BC_ACTUAL!B:G,6,0)/1000,0) -> 41569.05 | E143: =IFERROR(VLOOKUP(A143,BC_ANTERIOR!B:G,6,0)/1000,0) -> 23113.23 | G143: 0.007899011753 | H143: 0.003978374043 | I143: 18455.82 | J143: 0.7984959264 | L143: La cuenta Asistencia social y beneficios al personal, representa el 0,79% del total del Gastos, que comparado al periodo anterior genera una variación absoluta de 18 455,82 que corresponde a un Aumento del 79,85% de recursos disponibles.
A144: 5.1.1.07. | B144: Contribuciones estatales a la seguridad social | D144: =IFERROR(VLOOKUP(A144,BC_ACTUAL!B:G,6,0)/1000,0) -> 0 | E144: =IFERROR(VLOOKUP(A144,BC_ANTERIOR!B:G,6,0)/1000,0) -> 0 | G144: 0 | H144: 0 | I144: 0 | J144: 0 | L144: La cuenta Contribuciones estatales a la seguridad social, representa el 0,00% del total del Gastos, que comparado al periodo anterior genera una variación absoluta de 0 000,00 que corresponde a un Aumento del 0,00% de recursos disponibles.
A145: 5.1.1.99. | B145: Otros gastos en personal | D145: =IFERROR(VLOOKUP(A145,BC_ACTUAL!B:G,6,0)/1000,0) -> 0 | E145: =IFERROR(VLOOKUP(A145,BC_ANTERIOR!B:G,6,0)/1000,0) -> 0 | G145: 0 | H145: 0 | I145: 0 | J145: 0 | L145: La cuenta Otros gastos en personal, representa el 0,00% del total del Gastos, que comparado al periodo anterior genera una variación absoluta de 0 000,00 que corresponde a un Aumento del 0,00% de recursos disponibles.
A146: 5.1.2. | B146: Servicios | C146: 60 | D146: =SUM(D147:D155) -> 2658062.48 | E146: =SUM(E147:E155) -> 3548386.693 | G146: =IFERROR(D146/$D$232,0) -> 0.5050889248 | H146: 0.6107674917 | I146: -890324.2129 | J146: -0.2509095795 | L146: La cuenta Servicios, representa el 50,51% del total del Gastos, que comparado al periodo anterior genera una variación absoluta de -890 324,21 que corresponde a un Disminución del -25,09% de recursos disponibles.
A147: 5.1.2.01. | B147: Alquileres y derechos sobre bienes | D147: =IFERROR(VLOOKUP(A147,BC_ACTUAL!B:G,6,0)/1000,0) -> 86512.63863 | E147: =IFERROR(VLOOKUP(A147,BC_ANTERIOR!B:G,6,0)/1000,0) -> 177278.1772 | G147: =IFERROR(D147/$D$232,0) -> 0.01643925828 | H147: 0.0305140778 | I147: -90765.53854 | J147: -0.51199499 | L147: La cuenta Alquileres y derechos sobre bienes, representa el 1,64% del total del Gastos, que comparado al periodo anterior genera una variación absoluta de -90 765,54 que corresponde a un Disminución del -51,20% de recursos disponibles.
A148: 5.1.2.02. | B148: Servicios básicos | D148: =IFERROR(VLOOKUP(A148,BC_ACTUAL!B:G,6,0)/1000,0) -> 178594.7743 | E148: =IFERROR(VLOOKUP(A148,BC_ANTERIOR!B:G,6,0)/1000,0) -> 177713.3088 | G148: 0.03393684055 | H148: 0.03058897501 | I148: 881.46551 | J148: 0.004960042193 | L148: La cuenta Servicios básicos, representa el 3,39% del total del Gastos, que comparado al periodo anterior genera una variación absoluta de 0 881,47 que corresponde a un Aumento del 0,50% de recursos disponibles.
A149: 5.1.2.03. | B149: Servicios comerciales y financieros | D149: =IFERROR(VLOOKUP(A149,BC_ACTUAL!B:G,6,0)/1000,0) -> 29661.77932 | E149: =IFERROR(VLOOKUP(A149,BC_ANTERIOR!B:G,6,0)/1000,0) -> 37714.10827 | G149: 0.005636374742 | H149: 0.006491556108 | I149: -8052.32895 | J149: -0.2135097267 | L149: La cuenta Servicios comerciales y financieros, representa el 0,56% del total del Gastos, que comparado al periodo anterior genera una variación absoluta de -8 052,33 que corresponde a un Disminución del -21,35% de recursos disponibles.
A150: 5.1.2.04. | B150: Servicios de gestión y apoyo | D150: =IFERROR(VLOOKUP(A150,BC_ACTUAL!B:G,6,0)/1000,0) -> 129221.9524 | E150: =IFERROR(VLOOKUP(A150,BC_ANTERIOR!B:G,6,0)/1000,0) -> 119626.0661 | G150: 0.02455494462 | H150: 0.02059068491 | I150: 9595.88626 | J150: 0.08021568018 | L150: La cuenta Servicios de gestión y apoyo, representa el 2,46% del total del Gastos, que comparado al periodo anterior genera una variación absoluta de 9 595,89 que corresponde a un Aumento del 8,02% de recursos disponibles.
A151: 5.1.2.05. | B151: Gastos de viaje y transporte | D151: =IFERROR(VLOOKUP(A151,BC_ACTUAL!B:G,6,0)/1000,0) -> 6243.82345 | E151: =IFERROR(VLOOKUP(A151,BC_ANTERIOR!B:G,6,0)/1000,0) -> 8797.11797 | G151: 0.001186460475 | H151: 0.001514207481 | I151: -2553.29452 | J151: -0.2902421598 | L151: La cuenta Gastos de viaje y transporte, representa el 0,12% del total del Gastos, que comparado al periodo anterior genera una variación absoluta de -2 553,29 que corresponde a un Disminución del -29,02% de recursos disponibles.
A152: 5.1.2.06. | B152: Seguros, reaseguros y otras obligaciones | D152: =IFERROR(VLOOKUP(A152,BC_ACTUAL!B:G,6,0)/1000,0) -> 57418.18043 | E152: =IFERROR(VLOOKUP(A152,BC_ANTERIOR!B:G,6,0)/1000,0) -> 53701.05927 | G152: 0.01091068673 | H152: 0.009243316502 | I152: 3717.12116 | J152: 0.06921876794 | L152: La cuenta Seguros, reaseguros y otras obligaciones, representa el 1,09% del total del Gastos, que comparado al periodo anterior genera una variación absoluta de 3 717,12 que corresponde a un Aumento del 6,92% de recursos disponibles.
A153: 5.1.2.07. | B153: Capacitación y protocolo | D153: =IFERROR(VLOOKUP(A153,BC_ACTUAL!B:G,6,0)/1000,0) -> 10860 | E153: =IFERROR(VLOOKUP(A153,BC_ANTERIOR!B:G,6,0)/1000,0) -> 0 | G153: 0.002063633103 | H153: 0 | I153: 10860 | J153: 0 | L153: La cuenta Capacitación y protocolo, representa el 0,21% del total del Gastos, que comparado al periodo anterior genera una variación absoluta de 10 860,00 que corresponde a un Aumento del 0,00% de recursos disponibles.
A154: 5.1.2.08. | B154: Mantenimiento y reparaciones | D154: =IFERROR(VLOOKUP(A154,BC_ACTUAL!B:G,6,0)/1000,0) -> 2159399.331 | E154: =IFERROR(VLOOKUP(A154,BC_ANTERIOR!B:G,6,0)/1000,0) -> 2973406.855 | G154: 0.4103322231 | H154: 0.5117988551 | I154: -814007.5238 | J154: -0.2737625772 | L154: La cuenta Mantenimiento y reparaciones, representa el 41,03% del total del Gastos, que comparado al periodo anterior genera una variación absoluta de -814 007,52 que corresponde a un Disminución del -27,38% de recursos disponibles.
A155: 5.1.2.99. | B155: Otros servicios | D155: =IFERROR(VLOOKUP(A155,BC_ACTUAL!B:G,6,0)/1000,0) -> 150 | E155: =IFERROR(VLOOKUP(A155,BC_ANTERIOR!B:G,6,0)/1000,0) -> 150 | G155: 2.850321965e-05 | H155: 2.581881054e-05 | I155: 0 | J155: 0 | L155: La cuenta Otros servicios, representa el 0,00% del total del Gastos, que comparado al periodo anterior genera una variación absoluta de 0 000,00 que corresponde a un Aumento del 0,00% de recursos disponibles.
A156: 5.1.3. | B156: Materiales y suministros consumidos | C156: 61 | D156: =SUM(D157:D161) -> 591454.2494 | E156: =SUM(E157:E161) -> 539311.4258 | G156: =IFERROR(D156/$D$232,0) -> 0.1123890026 | H156: 0.09282919685 | I156: 52142.82357 | J156: 0.09668406986 | L156: La cuenta Materiales y suministros consumidos, representa el 11,24% del total del Gastos, que comparado al periodo anterior genera una variación absoluta de 52 142,82 que corresponde a un Aumento del 9,67% de recursos disponibles.
A157: 5.1.3.01. | B157: Productos químicos y conexos | D157: =IFERROR(VLOOKUP(A157,BC_ACTUAL!B:G,6,0)/1000,0) -> 171260.9372 | E157: =IFERROR(VLOOKUP(A157,BC_ANTERIOR!B:G,6,0)/1000,0) -> 169525.808 | G157: 0.03254325408 | H157: 0.02917969813 | I157: 1735.12922 | J157: 0.01023519215 | L157: La cuenta Productos químicos y conexos, representa el 3,25% del total del Gastos, que comparado al periodo anterior genera una variación absoluta de 1 735,13 que corresponde a un Aumento del 1,02% de recursos disponibles.
A158: 5.1.3.02. | B158: Alimentos y productos agropecuarios | D158: =IFERROR(VLOOKUP(A158,BC_ACTUAL!B:G,6,0)/1000,0) -> 3213.03709 | E158: =IFERROR(VLOOKUP(A158,BC_ANTERIOR!B:G,6,0)/1000,0) -> 8106.78 | G158: =IFERROR(D158/$D$232,0) -> 0.0006105460129 | H158: 0.00139538278 | I158: -4893.74291 | J158: -0.6036605052 | L158: La cuenta Alimentos y productos agropecuarios, representa el 0,06% del total del Gastos, que comparado al periodo anterior genera una variación absoluta de -4 893,74 que corresponde a un Disminución del -60,37% de recursos disponibles.
A159: 5.1.3.03. | B159: Materiales y productos de uso en la construcción y mantenimiento | D159: =IFERROR(VLOOKUP(A159,BC_ACTUAL!B:G,6,0)/1000,0) -> 221669.2684 | E159: =IFERROR(VLOOKUP(A159,BC_ANTERIOR!B:G,6,0)/1000,0) -> 182412.7368 | G159: 0.04212191899 | H159: 0.03139786595 | I159: 39256.53163 | J159: 0.2152071852 | L159: La cuenta Materiales y productos de uso en la construcción y mantenimiento, representa el 4,21% del total del Gastos, que comparado al periodo anterior genera una variación absoluta de 39 256,53 que corresponde a un Aumento del 21,52% de recursos disponibles.
A160: 5.1.3.04. | B160: Herramientas, repuestos y accesorios | D160: =IFERROR(VLOOKUP(A160,BC_ACTUAL!B:G,6,0)/1000,0) -> 151500.9952 | E160: =IFERROR(VLOOKUP(A160,BC_ANTERIOR!B:G,6,0)/1000,0) -> 152345.6673 | G160: 0.02878844096 | H160: 0.02622255947 | I160: -844.67209 | J160: -0.005544444454 | L160: La cuenta Herramientas, repuestos y accesorios, representa el 2,88% del total del Gastos, que comparado al periodo anterior genera una variación absoluta de -0 844,67 que corresponde a un Disminución del -0,55% de recursos disponibles.
A161: 5.1.3.99. | B161: Útiles, materiales y suministros diversos | D161: =IFERROR(VLOOKUP(A161,BC_ACTUAL!B:G,6,0)/1000,0) -> 43810.0115 | E161: =IFERROR(VLOOKUP(A161,BC_ANTERIOR!B:G,6,0)/1000,0) -> 26920.43378 | G161: 0.008324842539 | H161: 0.00463369053 | I161: 16889.57772 | J161: 0.6273887657 | L161: La cuenta Útiles, materiales y suministros diversos, representa el 0,83% del total del Gastos, que comparado al periodo anterior genera una variación absoluta de 16 889,58 que corresponde a un Aumento del 62,74% de recursos disponibles.
A162: 5.1.4. | B162: Consumo de bienes distintos de inventarios | C162: 62 | D162: =SUM(D163:D164) -> 221860.5991 | E162: =SUM(E163:E164) -> 176031.8154 | G162: 0.04215827593 | H162: 0.03029954728 | I162: 45828.7837 | J162: 0.2603437543 | L162: La cuenta Consumo de bienes distintos de inventarios, representa el 4,22% del total del Gastos, que comparado al periodo anterior genera una variación absoluta de 45 828,78 que corresponde a un Aumento del 26,03% de recursos disponibles.
A163: 5.1.4.01. | B163: Consumo de bienes no concesionados | D163: =IFERROR(VLOOKUP(A163,BC_ACTUAL!B:G,6,0)/1000,0) -> 221860.5991 | E163: =IFERROR(VLOOKUP(A163,BC_ANTERIOR!B:G,6,0)/1000,0) -> 176031.8154 | G163: 0.04215827593 | H163: 0.03029954728 | I163: 45828.7837 | J163: 0.2603437543 | L163: La cuenta Consumo de bienes no concesionados, representa el 4,22% del total del Gastos, que comparado al periodo anterior genera una variación absoluta de 45 828,78 que corresponde a un Aumento del 26,03% de recursos disponibles.
A164: 5.1.4.02. | B164: Consumo de bienes concesionados | D164: =IFERROR(VLOOKUP(A164,BC_ACTUAL!B:G,6,0)/1000,0) -> 0 | E164: =IFERROR(VLOOKUP(A164,BC_ANTERIOR!B:G,6,0)/1000,0) -> 0 | G164: 0 | H164: 0 | I164: 0 | J164: 0 | L164: La cuenta Consumo de bienes concesionados, representa el 0,00% del total del Gastos, que comparado al periodo anterior genera una variación absoluta de 0 000,00 que corresponde a un Aumento del 0,00% de recursos disponibles.
A165: 5.1.5. | B165: Pérdidas por deterioro y desvalorización de bienes | C165: 63 | D165: =SUM(D166:D167) -> 0 | E165: =SUM(E166:E167) -> 155.07773 | G165: 0 | H165: 2.669281687e-05 | I165: -155.07773 | J165: -1 | L165: La cuenta Pérdidas por deterioro y desvalorización de bienes , representa el 0,00% del total del Gastos, que comparado al periodo anterior genera una variación absoluta de -0 155,08 que corresponde a un Disminución del -100,00% de recursos disponibles.
A166: 5.1.5.01. | B166: Deterioro y desvalorización de bienes no concesionados | D166: =IFERROR(VLOOKUP(A166,BC_ACTUAL!B:G,6,0)/1000,0) -> 0 | E166: =IFERROR(VLOOKUP(A166,BC_ANTERIOR!B:G,6,0)/1000,0) -> 155.07773 | G166: 0 | H166: 2.669281687e-05 | I166: -155.07773 | J166: -1 | L166: La cuenta Deterioro y desvalorización de bienes no concesionados, representa el 0,00% del total del Gastos, que comparado al periodo anterior genera una variación absoluta de -0 155,08 que corresponde a un Disminución del -100,00% de recursos disponibles.
A167: 5.1.5.02. | B167: Deterioro y desvalorización de bienes concesionados | D167: =IFERROR(VLOOKUP(A167,BC_ACTUAL!B:G,6,0)/1000,0) -> 0 | E167: =IFERROR(VLOOKUP(A167,BC_ANTERIOR!B:G,6,0)/1000,0) -> 0 | G167: 0 | H167: 0 | I167: 0 | J167: 0 | L167: La cuenta Deterioro y desvalorización de bienes concesionados, representa el 0,00% del total del Gastos, que comparado al periodo anterior genera una variación absoluta de 0 000,00 que corresponde a un Aumento del 0,00% de recursos disponibles.
A168: 5.1.6. | B168: Deterioro y pérdidas de inventarios | C168: 64 | D168: =SUM(D169:D171) -> 0 | E168: =SUM(E169:E171) -> 0 | G168: 0 | H168: 0 | I168: 0 | J168: 0 | L168: La cuenta Deterioro y pérdidas de inventarios, representa el 0,00% del total del Gastos, que comparado al periodo anterior genera una variación absoluta de 0 000,00 que corresponde a un Aumento del 0,00% de recursos disponibles.
A169: 5.1.6.01. | B169: Deterioro y pérdidas de inventarios por materiales y suministros para consumo y prestación de servicios | D169: =IFERROR(VLOOKUP(A169,BC_ACTUAL!B:G,6,0)/1000,0) -> 0 | E169: =IFERROR(VLOOKUP(A169,BC_ANTERIOR!B:G,6,0)/1000,0) -> 0 | G169: 0 | H169: 0 | I169: 0 | J169: 0 | L169: La cuenta Deterioro y pérdidas de inventarios por materiales y suministros para consumo y prestación de servicios, representa el 0,00% del total del Gastos, que comparado al periodo anterior genera una variación absoluta de 0 000,00 que corresponde a un Aumento del 0,00% de recursos disponibles.
A170: 5.1.6.02. | B170: Deterioro y pérdidas de inventarios por bienes para la venta | D170: =IFERROR(VLOOKUP(A170,BC_ACTUAL!B:G,6,0)/1000,0) -> 0 | E170: =IFERROR(VLOOKUP(A170,BC_ANTERIOR!B:G,6,0)/1000,0) -> 0 | G170: 0 | H170: 0 | I170: 0 | J170: 0 | L170: La cuenta Deterioro y pérdidas de inventarios por bienes para la venta, representa el 0,00% del total del Gastos, que comparado al periodo anterior genera una variación absoluta de 0 000,00 que corresponde a un Aumento del 0,00% de recursos disponibles.
A171: 5.1.6.03. | B171: Deterioro y pérdidas de inventarios por materias primas y bienes en producción | D171: =IFERROR(VLOOKUP(A171,BC_ACTUAL!B:G,6,0)/1000,0) -> 0 | E171: =IFERROR(VLOOKUP(A171,BC_ANTERIOR!B:G,6,0)/1000,0) -> 0 | G171: 0 | H171: 0 | I171: 0 | J171: 0 | L171: La cuenta Deterioro y pérdidas de inventarios por materias primas y bienes en producción, representa el 0,00% del total del Gastos, que comparado al periodo anterior genera una variación absoluta de 0 000,00 que corresponde a un Aumento del 0,00% de recursos disponibles.
A172: 5.1.7. | B172: Deterioro de inversiones y cuentas a cobrar | C172: 65 | D172: =SUM(D173:D174) -> 0 | E172: =SUM(E173:E174) -> 0 | G172: 0 | H172: 0 | I172: 0 | J172: 0 | L172: La cuenta Deterioro de inversiones y cuentas a cobrar, representa el 0,00% del total del Gastos, que comparado al periodo anterior genera una variación absoluta de 0 000,00 que corresponde a un Aumento del 0,00% de recursos disponibles.
A173: 5.1.7.01. | B173: Deterioro de inversiones | D173: =IFERROR(VLOOKUP(A173,BC_ACTUAL!B:G,6,0)/1000,0) -> 0 | E173: =IFERROR(VLOOKUP(A173,BC_ANTERIOR!B:G,6,0)/1000,0) -> 0 | G173: 0 | H173: 0 | I173: 0 | J173: 0 | L173: La cuenta Deterioro de inversiones, representa el 0,00% del total del Gastos, que comparado al periodo anterior genera una variación absoluta de 0 000,00 que corresponde a un Aumento del 0,00% de recursos disponibles.
A174: 5.1.7.02. | B174: Deterioro de cuentas a cobrar | D174: =IFERROR(VLOOKUP(A174,BC_ACTUAL!B:G,6,0)/1000,0) -> 0 | E174: =IFERROR(VLOOKUP(A174,BC_ANTERIOR!B:G,6,0)/1000,0) -> 0 | G174: 0 | H174: 0 | I174: 0 | J174: 0 | L174: La cuenta Deterioro de cuentas a cobrar, representa el 0,00% del total del Gastos, que comparado al periodo anterior genera una variación absoluta de 0 000,00 que corresponde a un Aumento del 0,00% de recursos disponibles.
A175: 5.1.8. | B175: Cargos por provisiones y reservas técnicas | C175: 66 | D175: =SUM(D176:D179) -> 121 | E175: =SUM(E176:E179) -> 181.5 | G175: 2.299259719e-05 | H175: 3.124076076e-05 | I175: -60.5 | J175: -0.3333333333 | L175: La cuenta Cargos por provisiones y reservas técnicas, representa el 0,00% del total del Gastos, que comparado al periodo anterior genera una variación absoluta de -0 060,50 que corresponde a un Disminución del -33,33% de recursos disponibles.
A176: 5.1.8.01. | B176: Cargos por litigios y demandas | D176: =IFERROR(VLOOKUP(A176,BC_ACTUAL!B:G,6,0)/1000,0) -> 121 | E176: =IFERROR(VLOOKUP(A176,BC_ANTERIOR!B:G,6,0)/1000,0) -> 181.5 | G176: =IFERROR(D176/$D$232,0) -> 2.299259719e-05 | H176: 3.124076076e-05 | I176: -60.5 | J176: -0.3333333333 | L176: La cuenta Cargos por litigios y demandas, representa el 0,00% del total del Gastos, que comparado al periodo anterior genera una variación absoluta de -0 060,50 que corresponde a un Disminución del -33,33% de recursos disponibles.
A177: 5.1.8.02. | B177: Cargos por reestructuración | D177: =IFERROR(VLOOKUP(A177,BC_ACTUAL!B:G,6,0)/1000,0) -> 0 | E177: =IFERROR(VLOOKUP(A177,BC_ANTERIOR!B:G,6,0)/1000,0) -> 0 | G177: 0 | H177: 0 | I177: 0 | J177: 0 | L177: La cuenta Cargos por reestructuración, representa el 0,00% del total del Gastos, que comparado al periodo anterior genera una variación absoluta de 0 000,00 que corresponde a un Aumento del 0,00% de recursos disponibles.
A178: 5.1.8.03. | B178: Cargos por beneficios a los empleados | D178: =IFERROR(VLOOKUP(A178,BC_ACTUAL!B:G,6,0)/1000,0) -> 0 | E178: =IFERROR(VLOOKUP(A178,BC_ANTERIOR!B:G,6,0)/1000,0) -> 0 | G178: 0 | H178: 0 | I178: 0 | J178: 0 | L178: La cuenta Cargos por beneficios a los empleados, representa el 0,00% del total del Gastos, que comparado al periodo anterior genera una variación absoluta de 0 000,00 que corresponde a un Aumento del 0,00% de recursos disponibles.
A179: 5.1.8.99. | B179: Cargos por otras provisiones y reservas técnicas | D179: =IFERROR(VLOOKUP(A179,BC_ACTUAL!B:G,6,0)/1000,0) -> 0 | E179: =IFERROR(VLOOKUP(A179,BC_ANTERIOR!B:G,6,0)/1000,0) -> 0 | G179: 0 | H179: 0 | I179: 0 | J179: 0 | L179: La cuenta Cargos por otras provisiones y reservas técnicas, representa el 0,00% del total del Gastos, que comparado al periodo anterior genera una variación absoluta de 0 000,00 que corresponde a un Aumento del 0,00% de recursos disponibles.
A180: 5.2. | B180: Gastos financieros | H180: 0
A181: 5.2.1. | B181: Intereses sobre endeudamiento público | C181: 67 | D181: =SUM(D182:D185) -> 107152.3241 | E181: =SUM(E182:E185) -> 106997.6737 | G181: 0.02036124154 | H181: 0.01841701777 | I181: =IFERROR(D181-E181,0) -> 154.65043 | J181: 0.001445362546 | L181: La cuenta Intereses sobre endeudamiento público, representa el 2,04% del total del Gastos, que comparado al periodo anterior genera una variación absoluta de 0 154,65 que corresponde a un Aumento del 0,14% de recursos disponibles.
A182: 5.2.1.01. | B182: Intereses sobre títulos y valores de la deuda pública | D182: =IFERROR(VLOOKUP(A182,BC_ACTUAL!B:G,6,0)/1000,0) -> 0 | E182: =IFERROR(VLOOKUP(A182,BC_ANTERIOR!B:G,6,0)/1000,0) -> 0 | G182: 0 | H182: 0 | I182: 0 | J182: 0 | L182: La cuenta Intereses sobre títulos y valores de la deuda pública, representa el 0,00% del total del Gastos, que comparado al periodo anterior genera una variación absoluta de 0 000,00 que corresponde a un Aumento del 0,00% de recursos disponibles.
A183: 5.2.1.02. | B183: Intereses sobre préstamos | D183: =IFERROR(VLOOKUP(A183,BC_ACTUAL!B:G,6,0)/1000,0) -> 107152.3241 | E183: =IFERROR(VLOOKUP(A183,BC_ANTERIOR!B:G,6,0)/1000,0) -> 106997.6737 | G183: 0.02036124154 | H183: 0.01841701777 | I183: 154.65043 | J183: 0.001445362546 | L183: La cuenta Intereses sobre préstamos, representa el 2,04% del total del Gastos, que comparado al periodo anterior genera una variación absoluta de 0 154,65 que corresponde a un Aumento del 0,14% de recursos disponibles.
A184: 5.2.1.03. | B184: Intereses sobre deudas asumidas | D184: =IFERROR(VLOOKUP(A184,BC_ACTUAL!B:G,6,0)/1000,0) -> 0 | E184: =IFERROR(VLOOKUP(A184,BC_ANTERIOR!B:G,6,0)/1000,0) -> 0 | G184: 0 | H184: 0 | I184: 0 | J184: 0 | L184: La cuenta Intereses sobre deudas asumidas, representa el 0,00% del total del Gastos, que comparado al periodo anterior genera una variación absoluta de 0 000,00 que corresponde a un Aumento del 0,00% de recursos disponibles.
A185: 5.2.1.04. | B185: Intereses sobre endeudamiento de Tesorería | D185: =IFERROR(VLOOKUP(A185,BC_ACTUAL!B:G,6,0)/1000,0) -> 0 | E185: =IFERROR(VLOOKUP(A185,BC_ANTERIOR!B:G,6,0)/1000,0) -> 0 | G185: 0 | H185: 0 | I185: 0 | J185: 0 | L185: La cuenta Intereses sobre endeudamiento de Tesorería, representa el 0,00% del total del Gastos, que comparado al periodo anterior genera una variación absoluta de 0 000,00 que corresponde a un Aumento del 0,00% de recursos disponibles.
A186: 5.2.9. | B186: Otros gastos financieros | C186: 68 | D186: =SUM(D187:D191) -> 0 | E186: =SUM(E187:E191) -> 0 | G186: 0 | H186: 0 | I186: 0 | J186: 0 | L186: La cuenta Otros gastos financieros, representa el 0,00% del total del Gastos, que comparado al periodo anterior genera una variación absoluta de 0 000,00 que corresponde a un Aumento del 0,00% de recursos disponibles.
A187: 5.2.9.01. | B187: Intereses por deudas comerciales | D187: =IFERROR(VLOOKUP(A187,BC_ACTUAL!B:G,6,0)/1000,0) -> 0 | E187: =IFERROR(VLOOKUP(A187,BC_ANTERIOR!B:G,6,0)/1000,0) -> 0 | G187: 0 | H187: 0 | I187: 0 | J187: 0 | L187: La cuenta Intereses por deudas comerciales, representa el 0,00% del total del Gastos, que comparado al periodo anterior genera una variación absoluta de 0 000,00 que corresponde a un Aumento del 0,00% de recursos disponibles.
A188: 5.2.9.02. | B188: Intereses por deudas sociales y fiscales | D188: =IFERROR(VLOOKUP(A188,BC_ACTUAL!B:G,6,0)/1000,0) -> 0 | E188: =IFERROR(VLOOKUP(A188,BC_ANTERIOR!B:G,6,0)/1000,0) -> 0 | G188: 0 | H188: 0 | I188: 0 | J188: 0 | L188: La cuenta Intereses por deudas sociales y fiscales, representa el 0,00% del total del Gastos, que comparado al periodo anterior genera una variación absoluta de 0 000,00 que corresponde a un Aumento del 0,00% de recursos disponibles.
A189: 5.2.9.04. | B189: Intereses por documentos a pagar | D189: =IFERROR(VLOOKUP(A189,BC_ACTUAL!B:G,6,0)/1000,0) -> 0 | E189: =IFERROR(VLOOKUP(A189,BC_ANTERIOR!B:G,6,0)/1000,0) -> 0 | G189: 0 | H189: 0 | I189: 0 | J189: 0 | L189: La cuenta Intereses por documentos a pagar, representa el 0,00% del total del Gastos, que comparado al periodo anterior genera una variación absoluta de 0 000,00 que corresponde a un Aumento del 0,00% de recursos disponibles.
A190: 5.2.9.06. | B190: Intereses sobre deudas por avales ejecutados | D190: =IFERROR(VLOOKUP(A190,BC_ACTUAL!B:G,6,0)/1000,0) -> 0 | E190: =IFERROR(VLOOKUP(A190,BC_ANTERIOR!B:G,6,0)/1000,0) -> 0 | G190: 0 | H190: 0 | I190: 0 | J190: 0 | L190: La cuenta Intereses sobre deudas por avales ejecutados, representa el 0,00% del total del Gastos, que comparado al periodo anterior genera una variación absoluta de 0 000,00 que corresponde a un Aumento del 0,00% de recursos disponibles.
A191: 5.2.9.99. | B191: Otros gastos financieros varios | D191: =IFERROR(VLOOKUP(A191,BC_ACTUAL!B:G,6,0)/1000,0) -> 0 | E191: =IFERROR(VLOOKUP(A191,BC_ANTERIOR!B:G,6,0)/1000,0) -> 0 | G191: 0 | H191: 0 | I191: 0 | J191: 0 | L191: La cuenta Otros gastos financieros varios, representa el 0,00% del total del Gastos, que comparado al periodo anterior genera una variación absoluta de 0 000,00 que corresponde a un Aumento del 0,00% de recursos disponibles.
A192: 5.3. | B192: Gastos y resultados negativos por ventas | H192: =IFERROR(E192/$E$232,0) -> 0 | L192: La cuenta Gastos y resultados negativos por ventas, representa el 0,00% del total del Gastos, que comparado al periodo anterior genera una variación absoluta de 0 000,00 que corresponde a un Aumento del 0,00% de recursos disponibles.
A193: 5.3.1. | B193: Costo de ventas de bienes y servicios | C193: 69 | D193: =SUM(D194:D195) -> 0 | E193: =SUM(E194:E195) -> 0 | G193: 0 | H193: 0 | I193: =IFERROR(D193-E193,0) -> 0 | J193: 0 | L193: La cuenta Costo de ventas de bienes y servicios, representa el 0,00% del total del Gastos, que comparado al periodo anterior genera una variación absoluta de 0 000,00 que corresponde a un Aumento del 0,00% de recursos disponibles.
A194: 5.3.1.01. | B194: Costo de ventas de bienes | D194: =IFERROR(VLOOKUP(A194,BC_ACTUAL!B:G,6,0)/1000,0) -> 0 | E194: =IFERROR(VLOOKUP(A194,BC_ANTERIOR!B:G,6,0)/1000,0) -> 0 | G194: =IFERROR(D194/$D$232,0) -> 0 | H194: 0 | I194: 0 | J194: 0 | L194: La cuenta Costo de ventas de bienes, representa el 0,00% del total del Gastos, que comparado al periodo anterior genera una variación absoluta de 0 000,00 que corresponde a un Aumento del 0,00% de recursos disponibles.
A195: 5.3.1.02. | B195: Costo de ventas de servicios | D195: =IFERROR(VLOOKUP(A195,BC_ACTUAL!B:G,6,0)/1000,0) -> 0 | E195: =IFERROR(VLOOKUP(A195,BC_ANTERIOR!B:G,6,0)/1000,0) -> 0 | G195: 0 | H195: 0 | I195: 0 | J195: 0 | L195: La cuenta Costo de ventas de servicios, representa el 0,00% del total del Gastos, que comparado al periodo anterior genera una variación absoluta de 0 000,00 que corresponde a un Aumento del 0,00% de recursos disponibles.
A196: 5.3.2. | B196: Resultados negativos por ventas de inversiones | C196: 70 | D196: =SUM(D197:D198) -> 0 | E196: =SUM(E197:E198) -> 0 | G196: 0 | H196: 0 | I196: 0 | J196: 0 | L196: La cuenta Resultados negativos por ventas de inversiones, representa el 0,00% del total del Gastos, que comparado al periodo anterior genera una variación absoluta de 0 000,00 que corresponde a un Aumento del 0,00% de recursos disponibles.
A197: 5.3.2.02. | B197: Resultados negativos por ventas de inversiones patrimoniales - Método de participación | D197: =IFERROR(VLOOKUP(A197,BC_ACTUAL!B:G,6,0)/1000,0) -> 0 | E197: =IFERROR(VLOOKUP(A197,BC_ANTERIOR!B:G,6,0)/1000,0) -> 0 | G197: 0 | H197: 0 | I197: 0 | J197: 0 | L197: La cuenta Resultados negativos por ventas de inversiones patrimoniales - Método de participación, representa el 0,00% del total del Gastos, que comparado al periodo anterior genera una variación absoluta de 0 000,00 que corresponde a un Aumento del 0,00% de recursos disponibles.
A198: 5.3.2.99. | B198: Resultados negativos por ventas de otras inversiones | D198: =IFERROR(VLOOKUP(A198,BC_ACTUAL!B:G,6,0)/1000,0) -> 0 | E198: =IFERROR(VLOOKUP(A198,BC_ANTERIOR!B:G,6,0)/1000,0) -> 0 | G198: 0 | H198: 0 | I198: 0 | J198: 0 | L198: La cuenta Resultados negativos por ventas de otras inversiones, representa el 0,00% del total del Gastos, que comparado al periodo anterior genera una variación absoluta de 0 000,00 que corresponde a un Aumento del 0,00% de recursos disponibles.
A199: 5.3.3. | B199: Resultados negativos por ventas e intercambio de bienes | C199: 71 | D199: =SUM(D200:D207) -> 0 | E199: =SUM(E200:E207) -> 0 | G199: =IFERROR(D199/$D$232,0) -> 0 | H199: 0 | I199: 0 | J199: 0 | L199: La cuenta Resultados negativos por ventas e intercambio de bienes, representa el 0,00% del total del Gastos, que comparado al periodo anterior genera una variación absoluta de 0 000,00 que corresponde a un Aumento del 0,00% de recursos disponibles.
A200: 5.3.3.01. | B200: Resultados negativos por ventas de construcciones terminadas | D200: =IFERROR(VLOOKUP(A200,BC_ACTUAL!B:G,6,0)/1000,0) -> 0 | E200: =IFERROR(VLOOKUP(A200,BC_ANTERIOR!B:G,6,0)/1000,0) -> 0 | G200: 0 | H200: 0 | I200: 0 | J200: 0 | L200: La cuenta Resultados negativos por ventas de construcciones terminadas, representa el 0,00% del total del Gastos, que comparado al periodo anterior genera una variación absoluta de 0 000,00 que corresponde a un Aumento del 0,00% de recursos disponibles.
A201: 5.3.3.02. | B201: Resultados negativos por ventas de propiedades, planta y equipo | D201: =IFERROR(VLOOKUP(A201,BC_ACTUAL!B:G,6,0)/1000,0) -> 0 | E201: =IFERROR(VLOOKUP(A201,BC_ANTERIOR!B:G,6,0)/1000,0) -> 0 | G201: 0 | H201: 0 | I201: 0 | J201: 0 | L201: La cuenta Resultados negativos por ventas de propiedades, planta y equipo, representa el 0,00% del total del Gastos, que comparado al periodo anterior genera una variación absoluta de 0 000,00 que corresponde a un Aumento del 0,00% de recursos disponibles.
A202: 5.3.3.03. | B202: Resultados negativos por ventas de activos biológicos | D202: =IFERROR(VLOOKUP(A202,BC_ACTUAL!B:G,6,0)/1000,0) -> 0 | E202: =IFERROR(VLOOKUP(A202,BC_ANTERIOR!B:G,6,0)/1000,0) -> 0 | G202: 0 | H202: =IFERROR(E202/$E$232,0) -> 0 | I202: 0 | J202: 0 | L202: La cuenta Resultados negativos por ventas de activos biológicos, representa el 0,00% del total del Gastos, que comparado al periodo anterior genera una variación absoluta de 0 000,00 que corresponde a un Aumento del 0,00% de recursos disponibles.
A203: 5.3.3.04. | B203: Resultados negativos por ventas de bienes intangibles | D203: =IFERROR(VLOOKUP(A203,BC_ACTUAL!B:G,6,0)/1000,0) -> 0 | E203: =IFERROR(VLOOKUP(A203,BC_ANTERIOR!B:G,6,0)/1000,0) -> 0 | G203: =IFERROR(D203/$D$232,0) -> 0 | H203: 0 | I203: 0 | J203: 0 | L203: La cuenta Resultados negativos por ventas de bienes intangibles, representa el 0,00% del total del Gastos, que comparado al periodo anterior genera una variación absoluta de 0 000,00 que corresponde a un Aumento del 0,00% de recursos disponibles.
... 30 more rows

Sheet EEFF_FLUJO
A1: =DATOS!D13 -> Municipalidad de Buenos Aires | G1: ESTADO DE FLUJO DE EFECTIVO
A2: ESTADO DE FLUJO DE EFECTIVO | G2: Análisis de Variaciones
A3: =DATOS!D15&" "&RIGHT(D5,4) -> Del 01 de Enero al 31 de Diciembre 2024 | G3: =DATOS!D15&" "&RIGHT(D5,4) -> Del 01 de Enero al 31 de Diciembre 2024
A4: En miles de colones
A5: P | B5: Descripción | C5: Nota Nº | D5: =PROPER(DATOS!D17) -> Diciembre 2024 | E5: =PROPER(DATOS!D18) -> Diciembre 2023 | G5: Análisis Vertical (%) | H5: % | I5: Monto Variación Absoluta | J5: Variación relativa (%)
A6: FLUJOS DE EFECTIVO DE LAS ACTIVIDADES DE OPERACIÓN
A7: Cobros | B7: COBROS_OPE | C7: 77 | D7: =SUM(D8:D15) -> 5605726.546 | E7: =SUM(E8:E15) -> 5807268.716 | I7: =IFERROR(D7-E7,0) -> -201542.1699 | J7: =IFERROR(I7/E7,0) -> -0.03470515654 | L7: ="Los"&" "&A7&" "&"de"&" "&"los"&" "&"Flujos"&" "&"de"&" "&"Efectivo"&" "&"de"&" "&"las"&" "&"Actividades"&" "&"de"&" "&"Operación"&","&" "&"comparado"&" "&"al"&" "&"periodo"&" "&"anterior"&" "&"genera"&" "&"una"&" "&"variación"&" "&"absoluta"&" "&"de"&" "&TEXT(I7,"0 000,00")&" "&"que"&" "&"corresponde"&" "&"a"&" "&"un"&" "&IF(I7<0,"Disminución","Aumento")&" "&"del"&" "&TEXT(J7,"0,00%")&" "&"de"&" "&"recursos"&" "&"disponibles"&"." -> Los Cobros de los Flujos de Efectivo de las Actividades de Operación, comparado al periodo anterior genera una variación absoluta de -201 542,17 que corresponde a un Disminución del -3,47% de recursos disponibles.
B8: Cobros por impuestos | D8: 1087600.091 | E8: 1266353.783 | G8: =IFERROR(D8/$D$7,0) -> 0.1940159018 | H8: =IFERROR(E8/$E$7,0) -> 0.218063576 | I8: =IFERROR(D8-E8,0) -> -178753.6917 | J8: =IFERROR(I8/E8,0) -> -0.1411562031
B9: Cobros por contribuciones sociales | D9: 0 | E9: 0 | G9: =IFERROR(D9/$D$7,0) -> 0 | H9: =IFERROR(E9/$E$7,0) -> 0 | I9: =IFERROR(D9-E9,0) -> 0 | J9: =IFERROR(I9/E9,0) -> 0
B10: Cobros por multas, sanciones, remates y confiscaciones de origen no tributario | D10: 4035.645 | E10: 0 | G10: 0.0007199147099 | H10: =IFERROR(E10/$E$7,0) -> 0 | I10: 4035.645 | J10: 0
B11: Cobros por ventas de inventarios, servicios y derechos administrativos | D11: 583291.6334 | E11: 426853.0252 | G11: 0.1040528161 | H11: =IFERROR(E11/$E$7,0) -> 0.07350323294 | I11: 156438.6082 | J11: 0.366492912
B12: Cobros por ingresos de la propiedad | D12: 59173.50934 | E12: 70453.18834 | G12: 0.01055590366 | H12: 0.01213189742 | I12: -11279.679 | J12: -0.1601017536
B13: Cobros por transferencias | D13: 3778419.544 | E13: 4024526.932 | G13: 0.6740285159 | H13: =IFERROR(E13/$E$7,0) -> 0.6930154482 | I13: -246107.3874 | J13: -0.06115187984
B14: Cobros por concesiones | D14: 0 | E14: 0 | G14: 0 | H14: 0 | I14: 0 | J14: 0
B15: Otros cobros por actividades de operación | D15: 93206.12261 | E15: 19081.78758 | G15: 0.01662694779 | H15: 0.003285845466 | I15: 74124.33503 | J15: 3.88455928
A16: Pagos | B16: PAGOS_OPE | C16: 78 | D16: =SUM(D17:D21) -> 4908733.179 | E16: =SUM(E17:E21) -> 5856659.8 | I16: =IFERROR(D16-E16,0) -> -947926.6206 | J16: =IFERROR(I16/E16,0) -> -0.161854479 | L16: ="Los"&" "&A16&" "&"de"&" "&"los"&" "&"Flujos"&" "&"de"&" "&"Efectivo"&" "&"de"&" "&"las"&" "&"Actividades"&" "&"de"&" "&"Operación"&","&" "&"comparado"&" "&"al"&" "&"periodo"&" "&"anterior"&" "&"genera"&" "&"una"&" "&"variación"&" "&"absoluta"&" "&"de"&" "&TEXT(I16,"0 000,00")&" "&"que"&" "&"corresponde"&" "&"a"&" "&"un"&" "&IF(I16<0,"Disminución","Aumento")&" "&"del"&" "&TEXT(J16,"0,00%")&" "&"de"&" "&"recursos"&" "&"disponibles"&"." -> Los Pagos de los Flujos de Efectivo de las Actividades de Operación, comparado al periodo anterior genera una variación absoluta de -947 926,62 que corresponde a un Disminución del -16,19% de recursos disponibles.
B17: Pagos por beneficios al personal | D17: 1139873.49 | E17: 1084944.53 | G17: =IFERROR(D17/$D$16,0) -> 0.2322133732 | H17: =IFERROR(E17/$E$16,0) -> 0.1852497102 | I17: =IFERROR(D17-E17,0) -> 54928.95933 | J17: =IFERROR(I17/E17,0) -> 0.0506283573
B18: Pagos por servicios y adquisiciones de inventarios (incluye anticipos) | D18: 3257216.199 | E18: 4299704.936 | G18: =IFERROR(D18/$D$16,0) -> 0.6635553573 | H18: =IFERROR(E18/$E$16,0) -> 0.7341565129 | I18: =IFERROR(D18-E18,0) -> -1042488.737 | J18: =IFERROR(I18/E18,0) -> -0.2424558784
B19: Pagos por prestaciones de la seguridad social | D19: 198989.9451 | E19: 203448.6368 | G19: 0.04053794285 | H19: 0.03473799806 | I19: -4458.6917 | J19: -0.02191556439
B20: Pagos por otras transferencias | D20: 289073.2252 | E20: 143649.8186 | G20: 0.05888957795 | H20: 0.02452760165 | I20: 145423.4066 | J20: 1.012346608
B21: Otros pagos por actividades de operación | D21: 23580.32056 | E21: 124911.8783 | G21: =IFERROR(D21/$D$16,0) -> 0.004803748686 | H21: 0.02132817725 | I21: -101331.5577 | J21: -0.8112243537
A22: Flujos netos de efectivo por actividades de operación | D22: =+D7-D16 -> 696993.3672 | E22: =+E7-E16 -> -49391.08352 | I22: =IFERROR(D22-E22,0) -> 746384.4507 | J22: =IFERROR(I22/E22,0) -> -15.11172458
A24: FLUJOS DE EFECTIVO DE LAS ACTIVIDADES DE INVERSIÓN
A25: Cobros | B25: COBROS_INV | C25: 79 | D25: =SUM(D26:D30) -> 0 | E25: =SUM(E26:E30) -> 0 | I25: =IFERROR(D25-E25,0) -> 0 | J25: =IFERROR(I25/E25,0) -> 0 | L25: ="Los"&" "&A25&" "&"de"&" "&"los"&" "&"Flujos"&" "&"de"&" "&"Efectivo"&" "&"de"&" "&"las"&" "&"Actividades"&" "&"de"&" "&"Inversión"&","&" "&"comparado"&" "&"al"&" "&"periodo"&" "&"anterior"&" "&"genera"&" "&"una"&" "&"variación"&" "&"absoluta"&" "&"de"&" "&TEXT(I25,"0 000,00")&" "&"que"&" "&"corresponde"&" "&"a"&" "&"un"&" "&IF(I25<0,"Disminución","Aumento")&" "&"del"&" "&TEXT(J25,"0,00%")&" "&"de"&" "&"recursos"&" "&"disponibles"&"." -> Los Cobros de los Flujos de Efectivo de las Actividades de Inversión, comparado al periodo anterior genera una variación absoluta de 0 000,00 que corresponde a un Aumento del 0,00% de recursos disponibles.
B26: Cobros por ventas de bienes distintos de inventarios | D26: 0 | E26: 0 | G26: =IFERROR(D26/$D$25,0) -> 0 | H26: =IFERROR(E26/$E$25,0) -> 0 | I26: =IFERROR(D26-E26,0) -> 0 | J26: =IFERROR(I26/E26,0) -> 0
B27: Cobros por ventas y reembolso de inversiones patrimoniales | D27: 0 | E27: 0 | G27: =IFERROR(D27/$D$25,0) -> 0 | H27: =IFERROR(E27/$E$25,0) -> 0 | I27: =IFERROR(D27-E27,0) -> 0 | J27: =IFERROR(I27/E27,0) -> 0
B28: Cobros por ventas y reembolso de inversiones en otros instrumentos financieros | D28: 0 | E28: 0 | G28: 0 | H28: 0 | I28: 0 | J28: 0
B29: Cobros por reembolsos de préstamos | D29: 0 | E29: 0 | G29: 0 | H29: 0 | I29: 0 | J29: 0
B30: Otros cobros por actividades de inversión | D30: 0 | E30: 0 | G30: 0 | H30: 0 | I30: 0 | J30: 0
A31: Pagos | B31: PAGOS_INV | C31: 80 | D31: =SUM(D32:D36) -> 509414.1776 | E31: =SUM(E32:E36) -> 322891.5093 | I31: =IFERROR(D31-E31,0) -> 186522.6683 | J31: =IFERROR(I31/E31,0) -> 0.5776635894 | L31: ="Los"&" "&A31&" "&"de"&" "&"los"&" "&"Flujos"&" "&"de"&" "&"Efectivo"&" "&"de"&" "&"las"&" "&"Actividades"&" "&"de"&" "&"Inversión"&","&" "&"comparado"&" "&"al"&" "&"periodo"&" "&"anterior"&" "&"genera"&" "&"una"&" "&"variación"&" "&"absoluta"&" "&"de"&" "&TEXT(I31,"0 000,00")&" "&"que"&" "&"corresponde"&" "&"a"&" "&"un"&" "&IF(I31<0,"Disminución","Aumento")&" "&"del"&" "&TEXT(J31,"0,00%")&" "&"de"&" "&"recursos"&" "&"disponibles"&"." -> Los Pagos de los Flujos de Efectivo de las Actividades de Inversión, comparado al periodo anterior genera una variación absoluta de 186 522,67 que corresponde a un Aumento del 57,77% de recursos disponibles.
B32: Pagos por adquisición de bienes distintos de inventarios | D32: 509414.1776 | E32: 322891.5093 | G32: =IFERROR(D32/$D$31,0) -> 1 | H32: =IFERROR(E32/$E$31,0) -> 1 | I32: =IFERROR(D32-E32,0) -> 186522.6683 | J32: =IFERROR(I32/E32,0) -> 0.5776635894
B33: Pagos por adquisición de inversiones patrimoniales | D33: 0 | E33: 0 | G33: =IFERROR(D33/$D$31,0) -> 0 | H33: =IFERROR(E33/$E$31,0) -> 0 | I33: =IFERROR(D33-E33,0) -> 0 | J33: =IFERROR(I33/E33,0) -> 0
B34: Pagos por adquisición de inversiones en otros instrumentos financieros | D34: 0 | E34: 0 | G34: 0 | H34: 0 | I34: 0 | J34: =IFERROR(I34/E34,0) -> 0
B35: Pagos por préstamos otorgados | D35: 0 | E35: 0 | G35: 0 | H35: 0 | I35: 0 | J35: =IFERROR(I35/E35,0) -> 0
B36: Otros pagos por actividades de inversión | D36: 0 | E36: 0 | G36: 0 | H36: =IFERROR(E36/$E$31,0) -> 0 | I36: 0 | J36: 0
A37: Flujos netos de efectivo por actividades de inversión | D37: =+D25-D31 -> -509414.1776 | E37: =+E25-E31 -> -322891.5093 | I37: =IFERROR(D37-E37,0) -> -186522.6683 | J37: =IFERROR(I37/E37,0) -> 0.5776635894
A39: FLUJOS DE EFECTIVO DE LAS ACTIVIDADES DE FINANCIACIÓN
A40: Cobros | B40: COBROS_FIN | C40: 81 | D40: =SUM(D41:D43) -> 1023072.243 | E40: =SUM(E41:E43) -> 203701.81 | I40: =IFERROR(D40-E40,0) -> 819370.4334 | J40: =IFERROR(I40/E40,0) -> 4.02240134 | L40: ="Los"&" "&A40&" "&"de"&" "&"los"&" "&"Flujos"&" "&"de"&" "&"Efectivo"&" "&"de"&" "&"las"&" "&"Actividades"&" "&"de"&" "&"Financiamiento"&","&" "&"comparado"&" "&"al"&" "&"periodo"&" "&"anterior"&" "&"genera"&" "&"una"&" "&"variación"&" "&"absoluta"&" "&"de"&" "&TEXT(I40,"0 000,00")&" "&"que"&" "&"corresponde"&" "&"a"&" "&"un"&" "&IF(I40<0,"Disminución","Aumento")&" "&"del"&" "&TEXT(J40,"0,00%")&" "&"de"&" "&"recursos"&" "&"disponibles"&"." -> Los Cobros de los Flujos de Efectivo de las Actividades de Financiamiento, comparado al periodo anterior genera una variación absoluta de 819 370,43 que corresponde a un Aumento del 402,24% de recursos disponibles.
B41: Cobros por incrementos de capital y transferencias de capital | D41: 0 | E41: 0 | G41: =IFERROR(D41/$D$40,0) -> 0 | H41: =IFERROR(E41/$E$40,0) -> 0 | I41: =IFERROR(D41-E41,0) -> 0 | J41: =IFERROR(I41/E41,0) -> 0
B42: Cobros por endeudamiento público | D42: 0 | E42: 0 | G42: =IFERROR(D42/$D$40,0) -> 0 | H42: =IFERROR(E42/$E$40,0) -> 0 | I42: =IFERROR(D42-E42,0) -> 0 | J42: =IFERROR(I42/E42,0) -> 0
B43: Otros cobros por actividades de financiación | D43: 1023072.243 | E43: 203701.81 | G43: 1 | H43: 1 | I43: 819370.4334 | J43: 4.02240134
A44: Pagos | B44: PAGOS_FIN | C44: 82 | D44: =SUM(D45:D47) -> 538117.6809 | E44: =SUM(E45:E47) -> 430374.6937 | I44: =IFERROR(D44-E44,0) -> 107742.9872 | J44: =IFERROR(I44/E44,0) -> 0.2503469391 | L44: ="Los"&" "&A44&" "&"de"&" "&"los"&" "&"Flujos"&" "&"de"&" "&"Efectivo"&" "&"de"&" "&"las"&" "&"Actividades"&" "&"de"&" "&"Financiamiento"&","&" "&"comparado"&" "&"al"&" "&"periodo"&" "&"anterior"&" "&"genera"&" "&"una"&" "&"variación"&" "&"absoluta"&" "&"de"&" "&TEXT(I44,"0 000,00")&" "&"que"&" "&"corresponde"&" "&"a"&" "&"un"&" "&IF(I44<0,"Disminución","Aumento")&" "&"del"&" "&TEXT(J44,"0,00%")&" "&"de"&" "&"recursos"&" "&"disponibles"&"." -> Los Pagos de los Flujos de Efectivo de las Actividades de Financiamiento, comparado al periodo anterior genera una variación absoluta de 107 742,99 que corresponde a un Aumento del 25,03% de recursos disponibles.
B45: Pagos por disminuciones del patrimonio que no afectan resultados | D45: 0 | E45: 0 | G45: =IFERROR(D45/$D$44,0) -> 0 | H45: =IFERROR(E45/$E$44,0) -> 0 | I45: =IFERROR(D45-E45,0) -> 0 | J45: =IFERROR(I45/E45,0) -> 0
B46: Pagos por amortizaciones de endeudamiento público | D46: 430965.3568 | E46: 323377.02 | G46: 0 | H46: 0 | I46: 0 | J46: 0
B47: Otros pagos por actividades de financiación | D47: 107152.3241 | E47: 106997.6737 | G47: 0 | H47: 0 | I47: 0 | J47: 0
A48: Flujos netos de efectivo por actividades de financiación | D48: =+D40-D44 -> 484954.5625 | E48: =+E40-E44 -> -226672.8837 | I48: =IFERROR(D48-E48,0) -> 711627.4462 | J48: =IFERROR(I48/E48,0) -> -3.139446742
A50: Incremento/Disminución neta de efectivo y equivalentes de efectivo por flujos de actividades | D50: =+D22+D37+D48 -> 672533.7521 | E50: =+E22+E37+E48 -> -598955.4765 | I50: =IFERROR(D50-E50,0) -> 1271489.229 | J50: =IFERROR(I50/E50,0) -> -2.122844316
A52: Incremento/Disminución neta de efectivo y equivalentes de efectivo por diferencias de cambio no realizadas | D52: 0 | E52: 0 | I52: 0 | J52: 0
A53: Efectivo y equivalentes de efectivo al inicio del ejercicio | D53: 2106811.911 | E53: 2705767.39 | I53: -598955.4787 | J53: -0.2213625166
A54: Efectivo y equivalentes de efectivo al final del ejercicio | C54: 83 | D54: =+D50+D52+D53 -> 2779345.663 | E54: =+E50+E52+E53 -> 2106811.914 | I54: 672533.75 | J54: 0.3192186952 | L54: ="La"&" "&"cuenta"&" "&A54&","&" "&"comparado"&" "&"al"&" "&"periodo"&" "&"anterior"&" "&"genera"&" "&"una"&" "&"variación"&" "&"absoluta"&" "&"de"&" "&TEXT(I54,"0 000,00")&" "&"que"&" "&"corresponde"&" "&"a"&" "&"un"&" "&IF(I54<0,"Disminución","Aumento")&" "&"del"&" "&TEXT(J54,"0,00%")&" "&"de"&" "&"recursos"&" "&"disponibles"&"." -> La cuenta Efectivo y equivalentes de efectivo al final del ejercicio, comparado al periodo anterior genera una variación absoluta de 672 533,75 que corresponde a un Aumento del 31,92% de recursos disponibles.
A57: Validaciones
A58: Balanza de comprobación periodo actual saldo final
A59: 1.1.1. | B59: Efectivo y equivalentes de efectivo | D59: =IFERROR(VLOOKUP(A59,BC_ACTUAL!B:G,6,0)/1000,0) -> 2779345.66
B60: No debe haber diferencia con Efectivo y equivalentes de efectivo al final del ejercicio | D60: =+D54-D59 -> 0.003389996476
A62: Balanza de comprobación periodo actual saldo inicial
A63: 1.1.1. | B63: Efectivo y equivalentes de efectivo | D63: =IFERROR(VLOOKUP(A63,BC_ANTERIOR!B:G,6,0)/1000,0) -> 2106811.911
B64: No debe haber diferencia con Efectivo y equivalentes de efectivo al inicio del ejercicio | D64: =+D53-D63 -> 0

Sheet EEFF_CAPITAL
A1: =DATOS!D13 -> Municipalidad de Buenos Aires
A2: Estado de Cambios en el Patrimonio Comparativo | F2: ESTADO DE CAMBIOS EN EL PATRIMONIO
A3: =DATOS!D15&" "&RIGHT(C6,4) -> Del 01 de Enero al 31 de Diciembre 2024 | F3: Análisis de Variaciones
A4: En miles de colones | F4: =DATOS!D15&" "&RIGHT(C6,4) -> Del 01 de Enero al 31 de Diciembre 2024
A6: Cuenta | B6: Concepto | C6: =PROPER(DATOS!D17) -> Diciembre 2024 | D6: =PROPER(DATOS!D18) -> Diciembre 2023 | F6: Análisis Vertical (%) | G6: % | H6: Monto Variación Absoluta | I6: Variación relativa (%)
A7: 3. | B7: ="Saldos"&" "&"al"&" "&"31"&" "&"de"&" "&"Diciembre"&" "&"del"&" "&RIGHT(C6,4)&" "&"y"&" "&RIGHT(D6,4) -> Saldos al 31 de Diciembre del 2024 y 2023 | C7: =IFERROR(VLOOKUP(A7,BC_ACTUAL!B:G,3,0),0)/1000 -> 164134319.2 | D7: =IFERROR(VLOOKUP(A7,BC_ANTERIOR!B:G,3,0),0)/1000 -> 163528314.2
A8: Variaciones del ejercicio
A9: 3.1.1.01. | B9: Capital inicial | C9: =IFERROR((VLOOKUP(A9,BC_ACTUAL!B:G,5,FALSE))-(VLOOKUP(A9,BC_ACTUAL!B:G,4,0)),0)/1000 -> 0 | D9: =IFERROR((VLOOKUP(A9,BC_ANTERIOR!B:G,6,FALSE))-(VLOOKUP(A9,BC_ANTERIOR!B:G,3,0)),0)/1000 -> 0 | F9: =IFERROR(C9/$C$28,0) -> 0 | G9: =IFERROR(D9/$D$28,0) -> 0 | H9: =IFERROR(C9-D9,0) -> 0 | I9: =IFERROR(H9/D9,0) -> 0
A10: 3.1.1.02. | B10: Incorporaciones al capital | C10: =IFERROR((VLOOKUP(A10,BC_ACTUAL!B:G,5,FALSE))-(VLOOKUP(A10,BC_ACTUAL!B:G,4,0)),0)/1000 -> 0 | D10: =IFERROR((VLOOKUP(A10,BC_ANTERIOR!B:G,6,FALSE))-(VLOOKUP(A10,BC_ANTERIOR!B:G,3,0)),0)/1000 -> 0 | F10: =IFERROR(C10/$C$28,0) -> 0 | G10: =IFERROR(D10/$D$28,0) -> 0 | H10: =IFERROR(C10-D10,0) -> 0 | I10: =IFERROR(H10/D10,0) -> 0
A11: 3.1.2.01. | B11: Donaciones de capital | C11: =IFERROR((VLOOKUP(A11,BC_ACTUAL!B:G,5,FALSE))-(VLOOKUP(A11,BC_ACTUAL!B:G,4,0)),0)/1000 -> 0 | D11: =IFERROR((VLOOKUP(A11,BC_ANTERIOR!B:G,6,FALSE))-(VLOOKUP(A11,BC_ANTERIOR!B:G,3,0)),0)/1000 -> 0 | F11: 0 | G11: =IFERROR(D11/$D$28,0) -> 0 | H11: 0 | I11: 0
A12: 3.1.2.99. | B12: Otras transferencias de capital | C12: =IFERROR((VLOOKUP(A12,BC_ACTUAL!B:G,5,FALSE))-(VLOOKUP(A12,BC_ACTUAL!B:G,4,0)),0)/1000 -> 0 | D12: =IFERROR((VLOOKUP(A12,BC_ANTERIOR!B:G,6,FALSE))-(VLOOKUP(A12,BC_ANTERIOR!B:G,3,0)),0)/1000 -> 0 | F12: 0 | G12: 0 | H12: 0 | I12: 0
A13: 3.1.3.01. | B13: Revaluación de bienes | C13: =IFERROR((VLOOKUP(A13,BC_ACTUAL!B:G,5,FALSE))-(VLOOKUP(A13,BC_ACTUAL!B:G,4,0)),0)/1000 -> 0 | D13: =IFERROR((VLOOKUP(A13,BC_ANTERIOR!B:G,6,FALSE))-(VLOOKUP(A13,BC_ANTERIOR!B:G,3,0)),0)/1000 -> 0 | F13: 0 | G13: 0 | H13: 0 | I13: 0
A14: 3.1.3.99. | B14: Otras reservas | C14: =IFERROR((VLOOKUP(A14,BC_ACTUAL!B:G,5,FALSE))-(VLOOKUP(A14,BC_ACTUAL!B:G,4,0)),0)/1000 -> 0 | D14: =IFERROR((VLOOKUP(A14,BC_ANTERIOR!B:G,6,FALSE))-(VLOOKUP(A14,BC_ANTERIOR!B:G,3,0)),0)/1000 -> 0 | F14: 0 | G14: 0 | H14: 0 | I14: 0
A15: 3.1.4.01. | B15: Diferencias de conversión de moneda extranjera | C15: =IFERROR((VLOOKUP(A15,BC_ACTUAL!B:G,5,FALSE))-(VLOOKUP(A15,BC_ACTUAL!B:G,4,0)),0)/1000 -> 0 | D15: =IFERROR((VLOOKUP(A15,BC_ANTERIOR!B:G,6,FALSE))-(VLOOKUP(A15,BC_ANTERIOR!B:G,3,0)),0)/1000 -> 0 | F15: 0 | G15: 0 | H15: 0 | I15: 0
A16: 3.1.4.02. | B16: Diferencias de valor razonable de activos financieros destinados a la venta | C16: =IFERROR((VLOOKUP(A16,BC_ACTUAL!B:G,5,FALSE))-(VLOOKUP(A16,BC_ACTUAL!B:G,4,0)),0)/1000 -> 0 | D16: =IFERROR((VLOOKUP(A16,BC_ANTERIOR!B:G,6,FALSE))-(VLOOKUP(A16,BC_ANTERIOR!B:G,3,0)),0)/1000 -> 0 | F16: 0 | G16: =IFERROR(D16/$D$28,0) -> 0 | H16: 0 | I16: 0
A17: 3.1.4.03. | B17: Diferencias de valor razonable de instrumentos financieros designados como cobertura | C17: =IFERROR((VLOOKUP(A17,BC_ACTUAL!B:G,5,FALSE))-(VLOOKUP(A17,BC_ACTUAL!B:G,4,0)),0)/1000 -> 0 | D17: =IFERROR((VLOOKUP(A17,BC_ANTERIOR!B:G,6,FALSE))-(VLOOKUP(A17,BC_ANTERIOR!B:G,3,0)),0)/1000 -> 0 | F17: 0 | G17: =IFERROR(D17/$D$28,0) -> 0 | H17: 0 | I17: 0
A18: 3.1.4.99. | B18: Otras variaciones no asignables a reservas | C18: =IFERROR((VLOOKUP(A18,BC_ACTUAL!B:G,5,FALSE))-(VLOOKUP(A18,BC_ACTUAL!B:G,4,0)),0)/1000 -> 0 | D18: =IFERROR((VLOOKUP(A18,BC_ANTERIOR!B:G,6,FALSE))-(VLOOKUP(A18,BC_ANTERIOR!B:G,3,0)),0)/1000 -> 0 | F18: 0 | G18: =IFERROR(D18/$D$28,0) -> 0 | H18: 0 | I18: 0
A19: 3.1.5.01. | B19: Resultados acumulados de ejercicios anteriores | C19: =IFERROR((VLOOKUP(A19,BC_ACTUAL!B:G,5,FALSE))-(VLOOKUP(A19,BC_ACTUAL!B:G,4,0)),0)/1000 -> -18617.96974 | D19: =IFERROR((VLOOKUP(A19,BC_ANTERIOR!B:G,6,FALSE))-(VLOOKUP(A19,BC_ANTERIOR!B:G,3,0)),0)/1000 -> 749502.3827 | F19: =IFERROR(C19/$C$28,0) -> -0.0001130703531 | G19: =IFERROR(D19/$D$28,0) -> 0.004566396511 | H19: -768120.3525 | I19: -1.024840441
A20: 3.1.5.02. | B20: Resultado del ejercicio | C20: =IFERROR((VLOOKUP("4.",BC_ACTUAL!B:G,6,FALSE))-(VLOOKUP("5.",BC_ACTUAL!B:G,6,0)),0)/1000 -> 542577.7243 | D20: =(IFERROR(VLOOKUP(A20,BC_ANTERIOR!B:G,6,FALSE)-(VLOOKUP(A20,BC_ANTERIOR!B:G,3,0)),0)+IFERROR((VLOOKUP("4.",BC_ANTERIOR!B:G,6,FALSE))-(VLOOKUP("5.",BC_ANTERIOR!B:G,6,0)),0))/1000 -> -143497.3215 | F20: =IFERROR(C20/$C$28,0) -> 0.00329517427 | G20: =IFERROR(D20/$D$28,0) -> -0.0008742676253 | H20: 686075.0458 | I20: -4.781100013
A21: 3.2.1.01. | B21: Intereses minoritarios - Participaciones en el patrimonio de entidades del sector gobierno general | C21: =IFERROR((VLOOKUP(A21,BC_ACTUAL!B:G,5,FALSE))-(VLOOKUP(A21,BC_ACTUAL!B:G,4,0)),0)/1000 -> 0 | D21: =IFERROR(VLOOKUP(A21,BC_ANTERIOR!B:G,6,0),0) -> 0 | F21: =IFERROR(C21/$C$28,0) -> 0 | G21: =IFERROR(D21/$D$28,0) -> 0 | H21: 0 | I21: 0
A22: 3.2.1.02. | B22: Intereses minoritarios - Participaciones en el patrimonio de empresas públicas e instituciones públicas financieras | C22: =IFERROR((VLOOKUP(A22,BC_ACTUAL!B:G,5,FALSE))-(VLOOKUP(A22,BC_ACTUAL!B:G,4,0)),0)/1000 -> 0 | D22: =IFERROR(VLOOKUP(A22,BC_ANTERIOR!B:G,6,0),0) -> 0 | F22: =IFERROR(C22/$C$28,0) -> 0 | G22: =IFERROR(D22/$D$28,0) -> 0 | H22: 0 | I22: 0
A23: 3.2.2.01. | B23: Intereses minoritarios - Evolución por reservas | C23: =IFERROR((VLOOKUP(A23,BC_ACTUAL!B:G,5,FALSE))-(VLOOKUP(A23,BC_ACTUAL!B:G,4,0)),0)/1000 -> 0 | D23: =IFERROR(VLOOKUP(A23,BC_ANTERIOR!B:G,6,0),0) -> 0 | F23: =IFERROR(C23/$C$28,0) -> 0 | G23: 0 | H23: =IFERROR(C23-D23,0) -> 0 | I23: 0
A24: 3.2.2.02. | B24: Intereses minoritarios - Evolución por variaciones no asignables a reservas | C24: =IFERROR((VLOOKUP(A24,BC_ACTUAL!B:G,5,FALSE))-(VLOOKUP(A24,BC_ACTUAL!B:G,4,0)),0)/1000 -> 0 | D24: =IFERROR(VLOOKUP(A24,BC_ANTERIOR!B:G,6,0),0) -> 0 | F24: 0 | G24: =IFERROR(D24/$D$28,0) -> 0 | H24: 0 | I24: 0
A25: 3.2.2.03. | B25: Intereses minoritarios - Evolución por resultados acumulados | C25: =IFERROR((VLOOKUP(A25,BC_ACTUAL!B:G,5,FALSE))-(VLOOKUP(A25,BC_ACTUAL!B:G,4,0)),0)/1000 -> 0 | D25: =IFERROR(VLOOKUP(A25,BC_ANTERIOR!B:G,6,0),0) -> 0 | F25: =IFERROR(C25/$C$28,0) -> 0 | G25: 0 | H25: 0 | I25: 0
A26: 3.2.2.99. | B26: Intereses minoritarios - Evolución por otros componentes del patrimonio | C26: =IFERROR((VLOOKUP(A24,BC_ACTUAL!B:G,5,FALSE))-(VLOOKUP(A24,BC_ACTUAL!B:G,4,0)),0)/1000 -> 0 | D26: =IFERROR(VLOOKUP(A26,BC_ANTERIOR!B:G,6,0),0) -> 0 | F26: 0 | G26: =IFERROR(D26/$D$28,0) -> 0 | H26: =IFERROR(C26-D26,0) -> 0 | I26: 0
B27: Total de variaciones del ejercicio | C27: =SUM(C9:C26) -> 523959.7545 | D27: =SUM(D9:D26) -> 606005.0612 | F27: 0.003182103917 | G27: =IFERROR(D27/$D$28,0) -> 0.003692128886 | H27: =IFERROR(C27-D27,0) -> -82045.30667 | I27: -0.1353871641
A28: 84 | B28: Saldos del período | C28: =+C7+C27 -> 164658279 | D28: =+D7+D27 -> 164134319.2 | F28: 1 | G28: =IFERROR(D28/$D$28,0) -> 1 | H28: 523959.7545 | I28: 0.003192262026 | K28: ="En"&" "&"el"&" "&"Estado"&" "&"de"&" "&"Cambio"&" "&"al"&" "&"Patrimonio"&","&" "&"el"&" Saldo del periodo al 31 de diciembre 2022, "&"comparado"&" "&"al"&" "&"periodo"&" "&"anterior"&" "&"genera"&" "&"una"&" "&"variación"&" "&"absoluta"&" "&"de"&" "&TEXT(H28,"0 000,00")&" "&"que"&" "&"corresponde"&" "&"a"&" "&"un"&" "&IF(H28<0,"Disminución","Aumento")&" "&"del"&" "&TEXT(I28,"0,00%")&" "&"de"&" "&"recursos"&" "&"disponibles"&"." -> En el Estado de Cambio al Patrimonio, el Saldo del periodo al 31 de diciembre 2022, comparado al periodo anterior genera una variación absoluta de 523 959,75 que corresponde a un Aumento del 0,32% de recursos disponibles.
B29: (*) De uso exclusivo en Estados Contables consolidados
A35: =DATOS!D13 -> Municipalidad de Buenos Aires
A36: ESTADO DE CAMBIOS EN EL PATRIMONIO NETO
A37: =DATOS!D15 -> Del 01 de Enero al 31 de Diciembre
A38: En miles de colones
A39: Cuenta | B39: Concepto | D39: Capital | E39: Transferencias de capital | F39: Reservas | G39: Variaciones no asignables a reservas | H39: Resultados acumulados | I39: Intereses Minoritarios Part. Patrimonio | J39: Intereses Minoritarios Evolución | K39: Total Patrimonio
D42: 3.1.1. | E42: 3.1.2. | F42: 3.1.3. | G42: 3.1.4. | H42: 3.1.5. | I42: 3.2.1. | J42: 3.2.2.
B44: ="Saldo"&" "&"Iniciales"&" "&"al"&" "&"31"&" "&"de"&" "&"Diciembre"&" "&RIGHT(D6,4) -> Saldo Iniciales al 31 de Diciembre 2023 | D44: =IFERROR(VLOOKUP(D42,BC_ACTUAL!$B:$G,3,0),0)/1000 -> 0.5248 | E44: =IFERROR(VLOOKUP(E42,BC_ACTUAL!$B:$G,3,0),0)/1000 -> 0 | F44: =IFERROR(VLOOKUP(F42,BC_ACTUAL!$B:$G,3,0),0)/1000 -> 0 | G44: =IFERROR(VLOOKUP(G42,BC_ACTUAL!$B:$G,3,0),0)/1000 -> 0 | H44: =IFERROR(VLOOKUP(H42,BC_ACTUAL!$B:$G,3,0),0)/1000 -> 164134318.7 | I44: =IFERROR(VLOOKUP(I42,BC_ACTUAL!$B:$G,3,0),0)/1000 -> 0 | J44: =IFERROR(VLOOKUP(J42,BC_ACTUAL!$B:$G,3,0),0)/1000 -> 0 | K44: =SUM(D44:J44) -> 164134319.2
A45: Variaciones del ejercicio
A46: 3.1.1.01. | B46: Capital inicial | D46: =IFERROR((VLOOKUP(A46,BC_ACTUAL!$B:$G,6,FALSE))-(VLOOKUP(A46,BC_ACTUAL!$B:$G,3,0)),0)/1000 -> 0 | K46: =SUM(C46:J46) -> 0
A47: 3.1.1.02. | B47: Incorporaciones al capital | D47: =IFERROR((VLOOKUP(A47,BC_ACTUAL!$B:$G,6,FALSE))-(VLOOKUP(A47,BC_ACTUAL!$B:$G,3,0)),0)/1000 -> 0 | K47: =SUM(C47:J47) -> 0
A48: 3.1.2.01. | B48: Donaciones de capital | E48: =IFERROR((VLOOKUP(A48,BC_ACTUAL!$B:$G,6,FALSE))-(VLOOKUP(A48,BC_ACTUAL!$B:$G,3,0)),0)/1000 -> 0 | K48: =SUM(C48:J48) -> 0
A49: 3.1.2.99. | B49: Otras transferencias de capital | E49: =IFERROR((VLOOKUP(A49,BC_ACTUAL!$B:$G,6,FALSE))-(VLOOKUP(A49,BC_ACTUAL!$B:$G,3,0)),0)/1000 -> 0 | K49: 0
A50: 3.1.3.01. | B50: Revaluación de bienes | F50: =IFERROR((VLOOKUP(A50,BC_ACTUAL!$B:$G,6,FALSE))-(VLOOKUP(A50,BC_ACTUAL!$B:$G,3,0)),0)/1000 -> 0 | K50: 0
A51: 3.1.3.99. | B51: Otras reservas | F51: =IFERROR((VLOOKUP(A51,BC_ACTUAL!$B:$G,6,FALSE))-(VLOOKUP(A51,BC_ACTUAL!$B:$G,3,0)),0)/1000 -> 0 | K51: 0
A52: 3.1.4.01. | B52: Diferencias de conversión de moneda extranjera | G52: =IFERROR((VLOOKUP(A52,BC_ACTUAL!$B:$G,6,FALSE))-(VLOOKUP(A52,BC_ACTUAL!$B:$G,3,0)),0)/1000 -> 0 | K52: 0
A53: 3.1.4.02. | B53: Diferencias de valor razonable de activos financieros destinados a la venta | G53: =IFERROR((VLOOKUP(A53,BC_ACTUAL!$B:$G,6,FALSE))-(VLOOKUP(A53,BC_ACTUAL!$B:$G,3,0)),0)/1000 -> 0 | K53: 0
A54: 3.1.4.03. | B54: Diferencias de valor razonable de instrumentos financieros designados como cobertura | G54: =IFERROR((VLOOKUP(A54,BC_ACTUAL!$B:$G,6,FALSE))-(VLOOKUP(A54,BC_ACTUAL!$B:$G,3,0)),0)/1000 -> 0 | K54: 0
A55: 3.1.4.99. | B55: Otras variaciones no asignables a reservas | G55: =IFERROR((VLOOKUP(A55,BC_ACTUAL!$B:$G,6,FALSE))-(VLOOKUP(A55,BC_ACTUAL!$B:$G,3,0)),0)/1000 -> 0 | K55: 0
A56: 3.1.5.01. | B56: Resultados acumulados de ejercicios anteriores | H56: =IFERROR((VLOOKUP(A56,BC_ACTUAL!$B:$G,6,FALSE))-(VLOOKUP(A56,BC_ACTUAL!$B:$G,3,0)),0)/1000 -> -18617.96974 | K56: =SUM(C56:J56) -> -18617.96974
A57: 3.1.5.02. | B57: Resultado del ejercicio | H57: =IFERROR((VLOOKUP("4.",BC_ACTUAL!B:G,6,FALSE))-(VLOOKUP("5.",BC_ACTUAL!B:G,6,0)),0)/1000 -> 542577.7243 | K57: 542577.7243
A58: 3.2.1.01. | B58: Intereses minoritarios - Participaciones en el patrimonio de entidades del sector gobierno general | I58: =IFERROR((VLOOKUP(A58,BC_ACTUAL!B:G,6,FALSE))-(VLOOKUP(A58,BC_ACTUAL!B:G,3,0)),0)/1000 -> 0 | K58: 0
A59: 3.2.1.02. | B59: Intereses minoritarios - Participaciones en el patrimonio de empresas públicas e instituciones públicas financieras | I59: =IFERROR((VLOOKUP(A59,BC_ACTUAL!B:G,6,FALSE))-(VLOOKUP(A59,BC_ACTUAL!B:G,3,0)),0)/1000 -> 0 | K59: 0
A60: 3.2.2.01. | B60: Intereses minoritarios - Evolución por reservas | J60: =IFERROR((VLOOKUP(A60,BC_ACTUAL!B:G,6,FALSE))-(VLOOKUP(A60,BC_ACTUAL!B:G,3,0)),0)/1000 -> 0 | K60: 0
A61: 3.2.2.02. | B61: Intereses minoritarios - Evolución por variaciones no asignables a reservas | J61: =IFERROR((VLOOKUP(A61,BC_ACTUAL!B:G,6,FALSE))-(VLOOKUP(A61,BC_ACTUAL!B:G,3,0)),0)/1000 -> 0 | K61: 0
A62: 3.2.2.03. | B62: Intereses minoritarios - Evolución por resultados acumulados | J62: =IFERROR((VLOOKUP(A62,BC_ACTUAL!B:G,6,FALSE))-(VLOOKUP(A62,BC_ACTUAL!B:G,3,0)),0)/1000 -> 0 | K62: 0
A63: 3.2.2.99. | B63: Intereses minoritarios - Evolución por otros componentes del patrimonio | J63: =IFERROR((VLOOKUP(A63,BC_ACTUAL!B:G,6,FALSE))-(VLOOKUP(A63,BC_ACTUAL!B:G,3,0)),0)/1000 -> 0 | K63: 0
B64: Total de variaciones del ejercicio | D64: =SUM(D46:D63) -> 0 | E64: =SUM(E46:E63) -> 0 | F64: =SUM(F46:F63) -> 0 | G64: =SUM(G46:G63) -> 0 | H64: =SUM(H46:H63) -> 523959.7545 | I64: =SUM(I46:I63) -> 0 | J64: 0 | K64: =SUM(K46:K63) -> 523959.7545
B65: Saldos del período | D65: =+D64+D44+D45 -> 0.5248 | E65: =+E64+E44+E45 -> 0 | F65: =+F64+F44+F45 -> 0 | G65: =+G64+G44+G45 -> 0 | H65: =+H64+H44+H45 -> 164658278.5 | I65: =+I64+I44+I45 -> 0 | J65: 0 | K65: =+K64+K44+K45 -> 164658279
B66: (*) De uso exclusivo en Estados Contables consolidados
A68: SALDOS BC_ACTUAL | D68: =IFERROR(VLOOKUP(D42,BC_ACTUAL!$B:$G,6,0),0)/1000 -> 0.5248 | E68: =IFERROR(VLOOKUP(E42,BC_ACTUAL!$B:$G,6,0),0)/1000 -> 0 | F68: =IFERROR(VLOOKUP(F42,BC_ACTUAL!$B:$G,6,0),0)/1000 -> 0 | G68: =IFERROR(VLOOKUP(G42,BC_ACTUAL!$B:$G,6,0),0)/1000 -> 0 | H68: =IFERROR(VLOOKUP(H42,BC_ACTUAL!$B:$G,6,0),0)/1000 -> 164115700.7 | I68: =IFERROR(VLOOKUP(I42,BC_ACTUAL!$B:$G,6,0),0)/1000 -> 0 | J68: =IFERROR(VLOOKUP(J42,BC_ACTUAL!$B:$G,6,0),0)/1000 -> 0 | K68: =SUM(D68:J68) -> 164115701.3
A70: AJUSTE_ RESULTADOS | D70: =D65-D68 -> 0 | E70: =E65-E68 -> 0 | F70: =F65-F68 -> 0 | G70: 0 | H70: =H65-H68 -> 542577.7243 | I70: 0 | J70: 0 | K70: =K65-K68 -> 542577.7243
A72: DIFERENCIAS | H72: =H57 -> 542577.7243 | K72: =H57 -> 542577.7243
H74: =H70-H72 -> 0 | K74: =K70-K72 -> 0

Sheet MATRIZ_AUTOVALUACION
D4: =+'[1]Datos Generales'!C4 -> MUNICIPALIDAD DE BUENOS AIRES
D5: =+'[1]Datos Generales'!C6 -> 15603
D6: RESUMEN MATRIZ DE AUTOEVALUACIÓN DEL AVANCE DE LA IMPLEMENTACIÓN NICSP VERSIÓN 2018
D8: VERSIÓN JUNIO 2021 ACTUALIZADA AL 31-12-2024
D10: NICSP | E10: La norma se encuentra Vigente | F10: La norma ha sido adoptada en el país | G10: Aplica/No Aplica | H10: Grado de aplicación NICSP | I10: Plan de acción | J10: Brechas/Acciones | K10: % avance Plan de Acción | L10: Transitorio
D11: NICSP 1 Presentación de Estados Financieros | E11: Si | F11: Si | G11: =+'[1]NICSP 1'!E5 -> Si | H11: =IF(AND(E11="Si",F11="Si",G11="Si"),'[1]NICSP 1'!H266,"") -> 0.9869565217 | I11: =IF(AND(E11="Si",F11="Si",G11="Si"),'[1]NICSP 1'!E278,"") -> Si | J11: =+'[1]NICSP 1'!E284 -> 1 | K11: =+IF(H11=100%,"",IF(AND(E11="Si",F11="Si",G11="Si"),'[1]NICSP 1'!F286,"")) -> 0.95 | L11: =IF(AND(E11="Si",F11="Si",G11="Si"),'[1]NICSP 1'!E276,"") -> Si
D12: NICSP 2 Estados de Flujo de Efectivo | E12: Si | F12: Si | G12: =+'[1]NICSP 2'!E5 -> Si | H12: =IF(AND(E12="Si",F12="Si",G12="Si"),'[1]NICSP 2'!H77,"") -> 1 | I12: =IF(AND(E12="Si",F12="Si",G12="Si"),'[1]NICSP 2'!E89,"") -> 0 | J12: =+'[1]NICSP 2'!E98 -> 0 | L12: =IF(AND(E12="Si",F12="Si",G12="Si"),'[1]NICSP 2'!E87,"") -> 0
D13: NICSP 3 Políticas Contables, Cambios en las Estimaciones Contables y Errores | E13: Si | F13: Si | G13: =+'[1]NICSP 3'!E5 -> Si | H13: =IF(AND(E13="Si",F13="Si",G13="Si"),'[1]NICSP 3'!H78,"") -> 0.9 | I13: =IF(AND(E13="Si",F13="Si",G13="Si"),'[1]NICSP 3'!E90,"") -> Si | J13: =+'[1]NICSP 3'!E98 -> 1 | K13: =+IF(H13=100%,"",IF(AND(E13="Si",F13="Si",G13="Si"),'[1]NICSP 3'!F100,"")) -> 0.9 | L13: =IF(AND(E13="Si",F13="Si",G13="Si"),'[1]NICSP 3'!E88,"") -> No
D14: NICSP 4 Efectos de las Variaciones en las Tasas de Cambio de la Moneda Extranjera | E14: Si | F14: Si | G14: =+'[1]NICSP 4'!E5 -> Si | H14: =IF(AND(E14="Si",F14="Si",G14="Si"),'[1]NICSP 4'!H69,"") -> 0.9142857143 | I14: =IF(AND(E14="Si",F14="Si",G14="Si"),'[1]NICSP 4'!E81,"") -> 0 | J14: =+'[1]NICSP 4'!E90 -> 4 | K14: =+IF(H14=100%,"",IF(AND(E14="Si",F14="Si",G14="Si"),'[1]NICSP 4'!F92,"")) -> 0.5 | L14: =IF(AND(E14="Si",F14="Si",G14="Si"),'[1]NICSP 4'!E79,"") -> 0
D15: NICSP 5 Costos por Préstamos | E15: Si | F15: Si | G15: =+'[1]NICSP 5'!E5 -> Si | H15: =IF(AND(E15="Si",F15="Si",G15="Si"),'[1]NICSP 5'!H46,"") -> 1 | I15: =IF(AND(E15="Si",F15="Si",G15="Si"),'[1]NICSP 5'!E58,"") -> 0 | J15: =+'[1]NICSP 5'!E64 -> 0 | K15: =+IF(H15=100%,"",IF(AND(E15="Si",F15="Si",G15="Si"),'[1]NICSP 4'!F93,"")) ->  | L15: =IF(AND(E15="Si",F15="Si",G15="Si"),'[1]NICSP 5'!E56,"") -> 0
D16: NICSP 9 Ingresos Ordinarios Provenientes deTransacciones de Intercambio | E16: Si | F16: Si | G16: =+'[1]NICSP 9'!E5 -> Si | H16: =IF(AND(E16="Si",F16="Si",G16="Si"),'[1]NICSP 9'!H54,"") -> 1 | I16: =IF(AND(E16="Si",F16="Si",G16="Si"),'[1]NICSP 9'!E66,"") -> 0 | J16: =+'[1]NICSP 5'!E65 -> 0 | K16: =+IF(H16=100%,"",IF(AND(E16="Si",F16="Si",G16="Si"),'[1]NICSP 4'!F94,"")) ->  | L16: =IF(AND(E16="Si",F16="Si",G16="Si"),'[1]NICSP 9'!E64,"") -> 0
D17: NICSP 10 Información Financiera en Economías Hiperinflacionarias | E17: Si | F17: Si | G17: =+'[1]NICSP 10'!E5 -> No | H17: =IF(AND(E17="Si",F17="Si",G17="Si"),'[1]NICSP 10'!H41,"") ->  | I17: =IF(AND(E17="Si",F17="Si",G17="Si"),'[1]NICSP 10'!E53,"") ->  | J17: =+'[1]NICSP 10'!E60 -> 0 | K17: =+IF(H17=100%,"",IF(AND(E17="Si",F17="Si",G17="Si"),'[1]NICSP 10'!F62,"")) ->  | L17: =IF(AND(E17="Si",F17="Si",G17="Si"),'[1]NICSP 10'!E51,"") -> 
D18: NICSP 11 Contratos de Construcción | E18: Si | F18: Si | G18: =+'[1]NICSP 11'!E5 -> No | H18: =IF(AND(E18="Si",F18="Si",G18="Si"),'[1]NICSP 11'!H55,"") ->  | I18: =IF(AND(E18="Si",F18="Si",G18="Si"),'[1]NICSP 11'!E67,"") ->  | J18: =+'[1]NICSP 11'!E74 -> 0 | K18: =+IF(H18=100%,"",IF(AND(E18="Si",F18="Si",G18="Si"),'[1]NICSP 11'!F76,"")) ->  | L18: =IF(AND(E18="Si",F18="Si",G18="Si"),'[1]NICSP 11'!E65,"") -> 
D19: NICSP 12 Inventarios | E19: Si | F19: Si | G19: =+'[1]NICSP 12'!E5 -> Si | H19: =IF(AND(E19="Si",F19="Si",G19="Si"),'[1]NICSP 12'!H55,"") -> 0.97 | I19: =IF(AND(E19="Si",F19="Si",G19="Si"),'[1]NICSP 12'!E67,"") -> Si | J19: =+'[1]NICSP 12'!E75 -> 1 | K19: =+IF(H19=100%,"",IF(AND(E19="Si",F19="Si",G19="Si"),'[1]NICSP 12'!F77,"")) -> 0.95 | L19: =IF(AND(E19="Si",F19="Si",G19="Si"),'[1]NICSP 12'!E65,"") -> Si
D20: NICSP 13 Arrendamientos | E20: Si | F20: Si | G20: =+'[1]NICSP 13'!E5 -> Si | H20: =IF(AND(E20="Si",F20="Si",G20="Si"),'[1]NICSP 13'!H122,"") -> 0.7971428571 | I20: =IF(AND(E20="Si",F20="Si",G20="Si"),'[1]NICSP 13'!E134,"") -> Si | J20: =+'[1]NICSP 13'!E146 -> 5 | K20: =+IF(H20=100%,"",IF(AND(E20="Si",F20="Si",G20="Si"),'[1]NICSP 13'!F148,"")) -> 0.8 | L20: =IF(AND(E20="Si",F20="Si",G20="Si"),'[1]NICSP 13'!E132,"") -> Si
D21: NICSP 14 Hechos Ocurridos Después de la Fecha de Presentación | E21: Si | F21: Si | G21: =+'[1]NICSP 14'!E5 -> Si | H21: =IF(AND(E21="Si",F21="Si",G21="Si"),'[1]NICSP 14'!H41,"") -> 1 | I21: No | J21: 0 | K21: =+IF(H21=100%,"",IF(AND(E21="Si",F21="Si",G21="Si"),'[1]NICSP 14'!F62,"")) ->  | L21: =IF(AND(E21="Si",F21="Si",G21="Si"),'[1]NICSP 14'!E51,"") -> 0
D22: NICSP 16 Propiedades de Inversión | E22: Si | F22: Si | G22: =+'[1]NICSP 16'!E5 -> No | H22: =IF(AND(E22="Si",F22="Si",G22="Si"),'[1]NICSP 16'!H111,"") ->  | I22: =IF(AND(E22="Si",F22="Si",G22="Si"),'[1]NICSP 16'!E123,"") ->  | J22: =+'[1]NICSP 16'!E132 -> 0 | K22: =+IF(H22=100%,"",IF(AND(E22="Si",F22="Si",G22="Si"),'[1]NICSP 16'!F134,"")) ->  | L22: =IF(AND(E22="Si",F22="Si",G22="Si"),'[1]NICSP 16'!E121,"") -> 
D23: NICSP 17 Propiedades, Planta y Equipo | E23: Si | F23: Si | G23: =+'[1]NICSP 17'!E5 -> Si | H23: =IF(AND(E23="Si",F23="Si",G23="Si"),'[1]NICSP 17'!H99,"") -> 0.9625 | I23: =IF(AND(E23="Si",F23="Si",G23="Si"),'[1]NICSP 17'!E111,"") -> Si | J23: =+'[1]NICSP 17'!E120 -> 2 | K23: =+IF(H23=100%,"",IF(AND(E23="Si",F23="Si",G23="Si"),'[1]NICSP 17'!F122,"")) -> 0.9 | L23: =IF(AND(E23="Si",F23="Si",G23="Si"),'[1]NICSP 17'!E109,"") -> Si
D24: NICSP 18 Información Financiera por Segmentos | E24: Si | F24: Si | G24: =+'[1]NICSP 18'!E5 -> No | H24: =IF(AND(E24="Si",F24="Si",G24="Si"),'[1]NICSP 18'!H84,"") ->  | I24: =IF(AND(E24="Si",F24="Si",G24="Si"),'[1]NICSP 18'!E96,"") ->  | J24: =+'[1]NICSP 18'!E103 -> 0 | K24: =+IF(H24=100%,"",IF(AND(E24="Si",F24="Si",G24="Si"),'[1]NICSP 18'!F105,"")) ->  | L24: =IF(AND(E24="Si",F24="Si",G24="Si"),'[1]NICSP 18'!E94,"") -> 
D25: NICSP 19 Provisiones, Activos Contingentes y Pasivos Contingentes | E25: Si | F25: Si | G25: =+'[1]NICSP 19'!E5 -> Si | H25: =IF(AND(E25="Si",F25="Si",G25="Si"),'[1]NICSP 19'!H80,"") -> 0.9384615385 | I25: =IF(AND(E25="Si",F25="Si",G25="Si"),'[1]NICSP 19'!E92,"") -> Si | J25: =+'[1]NICSP 19'!E105 -> 6 | K25: =+IF(H25=100%,"",IF(AND(E25="Si",F25="Si",G25="Si"),'[1]NICSP 19'!F107,"")) -> 0.75 | L25: =IF(AND(E25="Si",F25="Si",G25="Si"),'[1]NICSP 19'!E90,"") -> Si
D26: NICSP 20 Información a Revelar Sobre Partes Relacionadas | E26: Si | F26: Si | G26: =+'[1]NICSP 20'!E5 -> Si | H26: =IF(AND(E26="Si",F26="Si",G26="Si"),'[1]NICSP 20'!H66,"") -> 1 | I26: =IF(AND(E26="Si",F26="Si",G26="Si"),'[1]NICSP 20'!E78,"") -> Si | J26: =+'[1]NICSP 20'!E88 -> 3 | K26: =+IF(H26=100%,"",IF(AND(E26="Si",F26="Si",G26="Si"),'[1]NICSP 20'!F90,"")) ->  | L26: =IF(AND(E26="Si",F26="Si",G26="Si"),'[1]NICSP 20'!E76,"") -> Si
D27: NICSP 21 Deterioro del Valor de Activos No Generadores de Efectivo | E27: Si | F27: Si | G27: =+'[1]NICSP 21'!E5 -> Si | H27: =IF(AND(E27="Si",F27="Si",G27="Si"),'[1]NICSP 21'!H66,"") -> 0.3 | I27: =IF(AND(E27="Si",F27="Si",G27="Si"),'[1]NICSP 21'!E78,"") -> Si | J27: =+'[1]NICSP 21'!E90 -> 6 | K27: =+IF(H27=100%,"",IF(AND(E27="Si",F27="Si",G27="Si"),'[1]NICSP 21'!F92,"")) -> 0.08333333333 | L27: =IF(AND(E27="Si",F27="Si",G27="Si"),'[1]NICSP 21'!E76,"") -> Si
D28: NICSP 22 Revelación de Información Financiera sobre el Sector Gobierno General | E28: Si | F28: Si | G28: =+'[1]NICSP 22'!E5 -> No | H28: =IF(AND(E28="Si",F28="Si",G28="Si"),'[1]NICSP 22'!H50,"") ->  | I28: =IF(AND(E28="Si",F28="Si",G28="Si"),'[1]NICSP 22'!E62,"") ->  | J28: =+'[1]NICSP 22'!E69 -> 0 | K28: =+IF(H28=100%,"",IF(AND(E28="Si",F28="Si",G28="Si"),'[1]NICSP 22'!F71,"")) ->  | L28: =IF(AND(E28="Si",F28="Si",G28="Si"),'[1]NICSP 22'!E60,"") -> 
D29: NICSP 23 Ingresos de Transacciones sin Contraprestación (Impuestos y Transferencias) | E29: Si | F29: Si | G29: =+'[1]NICSP 23'!E5 -> Si | H29: =IF(AND(E29="Si",F29="Si",G29="Si"),'[1]NICSP 23'!H68,"") -> 0.9823529412 | I29: =IF(AND(E29="Si",F29="Si",G29="Si"),'[1]NICSP 23'!E80,"") -> 0 | J29: =+'[1]NICSP 23'!E87 -> 0 | K29: =+IF(H29=100%,"",IF(AND(E29="Si",F29="Si",G29="Si"),'[1]NICSP 23'!F89,"")) -> 0 | L29: =IF(AND(E29="Si",F29="Si",G29="Si"),'[1]NICSP 23'!E78,"") -> Si
D30: NICSP 24 Presentación de Información del Presupuesto en los Estados Financieros | E30: Si | F30: Si | G30: =+'[1]NICSP 24'!E5 -> Si | H30: =IF(AND(E30="Si",F30="Si",G30="Si"),'[1]NICSP 24'!H54,"") -> 0.625 | I30: =IF(AND(E30="Si",F30="Si",G30="Si"),'[1]NICSP 24'!E66,"") -> Si | J30: =+'[1]NICSP 24'!E76 -> 4 | K30: =+IF(H30=100%,"",IF(AND(E30="Si",F30="Si",G30="Si"),'[1]NICSP 24'!F78,"")) -> 0.4875 | L30: =IF(AND(E30="Si",F30="Si",G30="Si"),'[1]NICSP 24'!E64,"") -> No
D31: NICSP 26 Deterioro del Valor de los Activos Generadores de Efectivo | E31: Si | F31: Si | G31: =+'[1]NICSP 26'!E5 -> Si | H31: =IF(AND(E31="Si",F31="Si",G31="Si"),'[1]NICSP 26'!H111,"") -> 0.3214285714 | I31: =IF(AND(E31="Si",F31="Si",G31="Si"),'[1]NICSP 26'!E123,"") -> Si | J31: =+'[1]NICSP 26'!E137 -> 7 | K31: =+IF(H31=100%,"",IF(AND(E31="Si",F31="Si",G31="Si"),'[1]NICSP 26'!F139,"")) -> 0.07142857143 | L31: =IF(AND(E31="Si",F31="Si",G31="Si"),'[1]NICSP 26'!E121,"") -> Si
D32: NICSP 27 Agricultura | E32: Si | F32: Si | G32: =+'[1]NICSP 27'!E5 -> No | H32: =IF(AND(E32="Si",F32="Si",G32="Si"),'[1]NICSP 27'!H82,"") ->  | I32: =IF(AND(E32="Si",F32="Si",G32="Si"),'[1]NICSP 27'!E94,"") ->  | J32: =+'[1]NICSP 27'!E101 -> 0 | K32: =+IF(H32=100%,"",IF(AND(E32="Si",F32="Si",G32="Si"),'[1]NICSP 27'!F103,"")) ->  | L32: =IF(AND(E32="Si",F32="Si",G32="Si"),'[1]NICSP 27'!E92,"") -> 
D33: NICSP 28 Instrumentos Financieros: Presentación | E33: Si | F33: Si | G33: =+'[1]NICSP 28'!E5 -> Si | H33: =IF(AND(E33="Si",F33="Si",G33="Si"),'[1]NICSP 28'!H38,"") -> 1 | I33: No | J33: =+'[1]NICSP 28'!E57 -> 0 | K33: =+IF(H33=100%,"",IF(AND(E33="Si",F33="Si",G33="Si"),'[1]NICSP 28'!F59,"")) ->  | L33: =IF(AND(E33="Si",F33="Si",G33="Si"),'[1]NICSP 28'!E48,"") -> 0
D34: NICSP 29 Instrumentos Financieros: Reconocimiento y medición | E34: Si | F34: Si | G34: =+'[1]NICSP 29'!E5 -> Si | H34: =IF(AND(E34="Si",F34="Si",G34="Si"),'[1]NICSP 29'!H74,"") -> 1 | I34: =IF(AND(E34="Si",F34="Si",G34="Si"),'[1]NICSP 29'!E86,"") -> 0 | J34: =+'[1]NICSP 29'!E93 -> 0 | K34: =+IF(H34=100%,"",IF(AND(E34="Si",F34="Si",G34="Si"),'[1]NICSP 29'!F95,"")) ->  | L34: =IF(AND(E34="Si",F34="Si",G34="Si"),'[1]NICSP 29'!E84,"") -> Si
D35: NICSP 30 Instrumentos Financieros: Información a Revelar | E35: Si | F35: Si | G35: =+'[1]NICSP 30'!E5 -> Si | H35: =IF(AND(E35="Si",F35="Si",G35="Si"),'[1]NICSP 30'!H266,"") -> 0.7121212121 | I35: =IF(AND(E35="Si",F35="Si",G35="Si"),'[1]NICSP 30'!E278,"") -> Si | J35: =+'[1]NICSP 30'!E288 -> 3 | K35: =+IF(H35=100%,"",IF(AND(E35="Si",F35="Si",G35="Si"),'[1]NICSP 30'!F290,"")) -> 0.7333333333 | L35: =IF(AND(E35="Si",F35="Si",G35="Si"),'[1]NICSP 30'!E276,"") -> No
D36: NICSP 31 Activos intangibles | E36: Si | F36: Si | G36: =+'[1]NICSP 31'!E5 -> Si | H36: =IF(AND(E36="Si",F36="Si",G36="Si"),'[1]NICSP 31'!H96,"") -> 0.5333333333 | I36: =IF(AND(E36="Si",F36="Si",G36="Si"),'[1]NICSP 31'!E108,"") -> Si | J36: =+'[1]NICSP 31'!E131 -> 16 | K36: =+IF(H36=100%,"",IF(AND(E36="Si",F36="Si",G36="Si"),'[1]NICSP 31'!F133,"")) -> 0.14 | L36: =IF(AND(E36="Si",F36="Si",G36="Si"),'[1]NICSP 31'!E106,"") -> Si
D37: NICSP 32 Acuerdos de Concesión de Servicios: La concedente | E37: Si | F37: Si | G37: =+'[1]NICSP 32'!E5 -> No | H37: =IF(AND(E37="Si",F37="Si",G37="Si"),'[1]NICSP 32'!H55,"") ->  | I37: =IF(AND(E37="Si",F37="Si",G37="Si"),'[1]NICSP 32'!E67,"") ->  | J37: =+'[1]NICSP 32'!E74 -> 0 | K37: =+IF(H37=100%,"",IF(AND(E37="Si",F37="Si",G37="Si"),'[1]NICSP 32'!F76,"")) ->  | L37: =IF(AND(E37="Si",F37="Si",G37="Si"),'[1]NICSP 32'!E65,"") -> 
D38: NICSP 33 Adopción por primera vez de las Normas Internacionales de Contabilidad del Sector Público de Base de Acumulación (o devengo) (NICSP) | E38: Si | F38: Si | G38: =+'[1]NICSP 33'!E5 -> Si | H38: =IF(AND(E38="Si",F38="Si",G38="Si"),'[1]NICSP 33'!H56,"") -> 0.75 | I38: =IF(AND(E38="Si",F38="Si",G38="Si"),'[1]NICSP 33'!E68,"") -> Si | J38: =+'[1]NICSP 33'!E79 -> 5 | K38: =+IF(H38=100%,"",IF(AND(E38="Si",F38="Si",G38="Si"),'[1]NICSP 33'!F81,"")) -> 0.73 | L38: =IF(AND(E38="Si",F38="Si",G38="Si"),'[1]NICSP 33'!E66,"") -> No
D39: NICSP 34 Estados Financieros Separados | E39: Si | F39: Si | G39: =+'[1]NICSP 34'!E5 -> No | H39: =IF(AND(E39="Si",F39="Si",G39="Si"),'[1]NICSP 34'!H53,"") ->  | I39: =IF(AND(E39="Si",F39="Si",G39="Si"),'[1]NICSP 34'!E65,"") ->  | J39: =+'[1]NICSP 34'!E72 -> 0 | K39: =+IF(H39=100%,"",IF(AND(E39="Si",F39="Si",G39="Si"),'[1]NICSP 34'!F74,"")) ->  | L39: =IF(AND(E39="Si",F39="Si",G39="Si"),'[1]NICSP 34'!E63,"") -> 
D40: NICSP 35 Estados Financieros Consolidados | E40: Si | F40: Si | G40: =+'[1]NICSP 35'!E5 -> Si | H40: =IF(AND(E40="Si",F40="Si",G40="Si"),'[1]NICSP 35'!H72,"") -> 0.4 | I40: =IF(AND(E40="Si",F40="Si",G40="Si"),'[1]NICSP 35'!E84,"") -> Si | J40: =+'[1]NICSP 35'!E92 -> 1 | K40: =+IF(H40=100%,"",IF(AND(E40="Si",F40="Si",G40="Si"),'[1]NICSP 35'!F94,"")) -> 0.5 | L40: =IF(AND(E40="Si",F40="Si",G40="Si"),'[1]NICSP 35'!E82,"") -> Si
D41: NICSP 36 Inversiones en asociadas y negocios conjuntos | E41: Si | F41: Si | G41: =+'[1]NICSP 36'!E5 -> No | H41: =IF(AND(E41="Si",F41="Si",G41="Si"),'[1]NICSP 36'!H33,"") ->  | I41: =IF(AND(E41="Si",F41="Si",G41="Si"),'[1]NICSP 36'!E45,"") ->  | J41: =+'[1]NICSP 36'!E52 -> 0 | K41: =+IF(H41=100%,"",IF(AND(E41="Si",F41="Si",G41="Si"),'[1]NICSP 36'!F54,"")) ->  | L41: =IF(AND(E41="Si",F41="Si",G41="Si"),'[1]NICSP 36'!E43,"") -> 
D42: NICSP 37 Acuerdos Conjuntos | E42: Si | F42: Si | G42: =+'[1]NICSP 37'!E5 -> No | H42: =IF(AND(E42="Si",F42="Si",G42="Si"),'[1]NICSP 37'!H35,"") ->  | I42: =IF(AND(E42="Si",F42="Si",G42="Si"),'[1]NICSP 37'!E47,"") ->  | J42: =+'[1]NICSP 37'!E54 -> 0 | K42: =+IF(H42=100%,"",IF(AND(E42="Si",F42="Si",G42="Si"),'[1]NICSP 37'!F56,"")) ->  | L42: =IF(AND(E42="Si",F42="Si",G42="Si"),'[1]NICSP 37'!E45,"") -> 
D43: NICSP 38 Información a revelar sobre participaciones en otras entidades | E43: Si | F43: Si | G43: =+'[1]NICSP 38'!E5 -> No | H43: =IF(AND(E43="Si",F43="Si",G43="Si"),'[1]NICSP 38'!H161,"") ->  | I43: =IF(AND(E43="Si",F43="Si",G43="Si"),'[1]NICSP 38'!E173,"") ->  | J43: =+'[1]NICSP 38'!E180 -> 0 | K43: =+IF(H43=100%,"",IF(AND(E43="Si",F43="Si",G43="Si"),'[1]NICSP 38'!F182,"")) ->  | L43: =IF(AND(E43="Si",F43="Si",G43="Si"),'[1]NICSP 38'!E171,"") -> 
D44: NICSP 39 Beneficios a los empleados | E44: Si | F44: Si | G44: =+'[1]NICSP 39'!E5 -> Si | H44: =IF(AND(E44="Si",F44="Si",G44="Si"),'[1]NICSP 39'!H142,"") -> 0.88 | I44: =IF(AND(E44="Si",F44="Si",G44="Si"),'[1]NICSP 39'!E154,"") -> Si | J44: =+'[1]NICSP 39'!E163 -> 2 | K44: =+IF(H44=100%,"",IF(AND(E44="Si",F44="Si",G44="Si"),'[1]NICSP 39'!F165,"")) -> 0.75 | L44: =IF(AND(E44="Si",F44="Si",G44="Si"),'[1]NICSP 39'!E152,"") -> Si
D45: NICSP 40 Combinaciones del Sector Público | E45: Si | F45: SI | G45: =+'[1]NICSP 40'!E5 -> No | H45: =IF(AND(E45="Si",F45="Si",G45="Si"),'[1]NICSP 40'!H101,"") ->  | I45: =IF(AND(E45="Si",F45="Si",G45="Si"),'[1]NICSP 40'!E113,"") ->  | J45: =+'[1]NICSP 40'!E120 -> 0 | K45: =+IF(H45=100%,"",IF(AND(E45="Si",F45="Si",G45="Si"),'[1]NICSP 40'!F122,"")) ->  | L45: =IF(AND(E45="Si",F45="Si",G45="Si"),'[1]NICSP 40'!E111,"") -> 
D47: Promedio General Grado de Aplicación NICSP | H47: =IFERROR(AVERAGE(H11:H45),0) -> 0.8249383778
D49: Promedio General de Avance en planes de acción (Cantidad de brechas) | J49: =SUM(J11:J45) -> 67 | K49: =+IFERROR(AVERAGE(K11:K45),0) -> 0.5778497024
D51: Cantidad de normas aplicables / Cantidad de normas que poseen plan | E51: =COUNTIF($E$11:$E$45,"SI") -> 35 | F51: =COUNTIF($F$11:$F$45,"SI") -> 35 | G51: =COUNTIF($G$11:$G$45,"SI") -> 23 | I51: =COUNTIF($I$11:$I$45,"SI") -> 15 | L51: =COUNTIF($L$11:$L$45,"SI") -> 13
D52: Cantidad de normas no aplicables / Cantidad de normas que no poseen plan | G52: =COUNTIF($G$11:$G$45,"NO") -> 12 | I52: =COUNTIF($I$11:$I$45,"NO") -> 2 | L52: =COUNTIF($L$11:$L$45,"NO") -> 4
D54: La entidad se acoge a los siguientes transitorios:
D58: TOTAL NORMAS
D60: ANA MARGOTH MORA NAVARRO
D61: NOMBRE | G61: FIRMA
D62: JERARCA MÁXIMO
D65: NOMBRE | G65: FIRMA
D66: DIRECTOR ADMINISTRATIVO FINANCIERO
D68: GERARDO CORDERO ARGUEDAS
D69: NOMBRE | G69: FIRMA
D70: CONTADOR

Sheet NOTAS_POR_CUENTA
A1: Notas Estado de Situación Financiera o Balance General Comparativo
A2: ACTIVO
A4: Cuenta | B4: Descripción | C4: Nota | D4: Periodo Actual | E4: Periodo Anterior | F4: Diferencia
F5: %
A6: 1.1.1. | B6: =IFERROR(VLOOKUP(A6,EEFF_SITUACION!A:E,2,0),"") -> Efectivo y equivalentes de efectivo | C6: =IFERROR(VLOOKUP(A6,EEFF_SITUACION!A:E,3,0),0) -> 03 | D6: =IFERROR(VLOOKUP(A6,EEFF_SITUACION!A:J,4,0),0) -> 2779345.66 | E6: =IFERROR(VLOOKUP(A6,EEFF_SITUACION!A:J,5,0),0) -> 2106811.911 | F6: =IFERROR(VLOOKUP(A6,EEFF_SITUACION!A:J,10,0),0) -> 0.3192186949 | H6: =IFERROR(VLOOKUP(A6,EEFF_SITUACION!A:L,12,0),0) -> La cuenta Efectivo y equivalentes de efectivo, representa el 1,66% del total del Activo, que comparado al periodo anterior genera una variación absoluta de 672 533,75 que corresponde a un Aumento del 31,92% de recursos disponibles.
A8: Cuenta | B8: Descripción | C8: Nota | D8: Periodo Actual | E8: Periodo Anterior | F8: Diferencia
F9: %
A10: 1.1.2. | B10: =IFERROR(VLOOKUP(A10,EEFF_SITUACION!A:E,2,0),"") -> Inversiones a corto plazo | C10: =IFERROR(VLOOKUP(A10,EEFF_SITUACION!A:E,3,0),0) -> 04 | D10: =IFERROR(VLOOKUP(A10,EEFF_SITUACION!A:J,4,0),0) -> 0 | E10: =IFERROR(VLOOKUP(A10,EEFF_SITUACION!A:J,5,0),0) -> 0 | F10: =IFERROR(VLOOKUP(A10,EEFF_SITUACION!A:J,10,0),0) -> 0 | H10: =IFERROR(VLOOKUP(A10,EEFF_SITUACION!A:L,12,0),0) -> La cuenta Inversiones a corto plazo, representa el 0,00% del total del Activo, que comparado al periodo anterior genera una variación absoluta de 0 000,00 que corresponde a un Aumento del 0,00% de recursos disponibles.
A12: Cuenta | B12: Descripción | C12: Nota | D12: Periodo Actual | E12: Periodo Anterior | F12: Diferencia
F13: %
A14: 1.1.3. | B14: =IFERROR(VLOOKUP(A14,EEFF_SITUACION!A:E,2,0),"") -> Cuentas a cobrar a corto plazo | C14: =IFERROR(VLOOKUP(A14,EEFF_SITUACION!A:E,3,0),0) -> 05 | D14: =IFERROR(VLOOKUP(A14,EEFF_SITUACION!A:J,4,0),0) -> 789317.3934 | E14: =IFERROR(VLOOKUP(A14,EEFF_SITUACION!A:J,5,0),0) -> 495942.4364 | F14: =IFERROR(VLOOKUP(A14,EEFF_SITUACION!A:J,10,0),0) -> 0.5915504209 | H14: =IFERROR(VLOOKUP(A14,EEFF_SITUACION!A:L,12,0),0) -> La cuenta Cuentas a cobrar a corto plazo, representa el 0,47% del total del Activo, que comparado al periodo anterior genera una variación absoluta de 293 374,96 que corresponde a un Aumento del 59,16% de recursos disponibles.
A16: Cuenta | B16: Descripción | C16: Nota | D16: Periodo Actual | E16: Periodo Anterior | F16: Diferencia
F17: %
A18: 1.1.4. | B18: =IFERROR(VLOOKUP(A18,EEFF_SITUACION!A:E,2,0),"") -> Inventarios | C18: =IFERROR(VLOOKUP(A18,EEFF_SITUACION!A:E,3,0),0) -> 06 | D18: =IFERROR(VLOOKUP(A18,EEFF_SITUACION!A:J,4,0),0) -> 200707.856 | E18: =IFERROR(VLOOKUP(A18,EEFF_SITUACION!A:J,5,0),0) -> 192987.0922 | F18: =IFERROR(VLOOKUP(A18,EEFF_SITUACION!A:J,10,0),0) -> 0.04000663325 | H18: =IFERROR(VLOOKUP(A18,EEFF_SITUACION!A:L,12,0),0) -> La cuenta Inventarios, representa el 0,12% del total del Activo, que comparado al periodo anterior genera una variación absoluta de 7 720,76 que corresponde a un Aumento del 4,00% de recursos disponibles.
A20: Cuenta | B20: Descripción | C20: Nota | D20: Periodo Actual | E20: Periodo Anterior | F20: Diferencia
F21: %
A22: 1.1.9. | B22: =IFERROR(VLOOKUP(A22,EEFF_SITUACION!A:E,2,0),"") -> Otros activos a corto plazo | C22: =IFERROR(VLOOKUP(A22,EEFF_SITUACION!A:E,3,0),0) -> 07 | D22: =IFERROR(VLOOKUP(A22,EEFF_SITUACION!A:J,4,0),0) -> 25165.34217 | E22: =IFERROR(VLOOKUP(A22,EEFF_SITUACION!A:J,5,0),0) -> 26295.62224 | F22: =IFERROR(VLOOKUP(A22,EEFF_SITUACION!A:J,10,0),0) -> -0.04298358334 | H22: =IFERROR(VLOOKUP(A22,EEFF_SITUACION!A:L,12,0),0) -> La cuenta Otros activos a corto plazo, representa el 0,02% del total del Activo, que comparado al periodo anterior genera una variación absoluta de -1 130,28 que corresponde a un Disminución del -4,30% de recursos disponibles.
A24: Cuenta | B24: Descripción | C24: Nota | D24: Periodo Actual | E24: Periodo Anterior | F24: Diferencia
F25: %
A26: 1.2.2. | B26: =IFERROR(VLOOKUP(A26,EEFF_SITUACION!A:E,2,0),"") -> Inversiones a largo plazo | C26: =IFERROR(VLOOKUP(A26,EEFF_SITUACION!A:E,3,0),0) -> 08 | D26: =IFERROR(VLOOKUP(A26,EEFF_SITUACION!A:J,4,0),0) -> 0 | E26: =IFERROR(VLOOKUP(A26,EEFF_SITUACION!A:J,5,0),0) -> 0 | F26: =IFERROR(VLOOKUP(A26,EEFF_SITUACION!A:J,10,0),0) -> 0 | H26: =IFERROR(VLOOKUP(A26,EEFF_SITUACION!A:L,12,0),0) -> La cuenta Inversiones a largo plazo, representa el 0,00% del total del Activo, que comparado al periodo anterior genera una variación absoluta de 0 000,00 que corresponde a un Aumento del 0,00% de recursos disponibles.
A28: Cuenta | B28: Descripción | C28: Nota | D28: Periodo Actual | E28: Periodo Anterior | F28: Diferencia
F29: %
A30: 1.2.3. | B30: =IFERROR(VLOOKUP(A30,EEFF_SITUACION!A:E,2,0),"") -> Cuentas a cobrar a largo plazo | C30: =IFERROR(VLOOKUP(A30,EEFF_SITUACION!A:E,3,0),0) -> 09 | D30: =IFERROR(VLOOKUP(A30,EEFF_SITUACION!A:J,4,0),0) -> 0 | E30: =IFERROR(VLOOKUP(A30,EEFF_SITUACION!A:J,5,0),0) -> 0 | F30: =IFERROR(VLOOKUP(A30,EEFF_SITUACION!A:J,10,0),0) -> 0 | H30: =IFERROR(VLOOKUP(A30,EEFF_SITUACION!A:L,12,0),0) -> La cuenta Cuentas a cobrar a largo plazo, representa el 0,00% del total del Activo, que comparado al periodo anterior genera una variación absoluta de 0 000,00 que corresponde a un Aumento del 0,00% de recursos disponibles.
A32: Cuenta | B32: Descripción | C32: Nota | D32: Periodo Actual | E32: Periodo Anterior | F32: Diferencia
F33: %
A34: 1.2.5. | B34: =IFERROR(VLOOKUP(A34,EEFF_SITUACION!A:E,2,0),"") -> Bienes no concesionados | C34: =IFERROR(VLOOKUP(A34,EEFF_SITUACION!A:E,3,0),0) -> 10 | D34: =IFERROR(VLOOKUP(A34,EEFF_SITUACION!A:J,4,0),0) -> 163204401.4 | E34: =IFERROR(VLOOKUP(A34,EEFF_SITUACION!A:J,5,0),0) -> 163010808.3 | F34: =IFERROR(VLOOKUP(A34,EEFF_SITUACION!A:J,10,0),0) -> 0.001187609465 | H34: =IFERROR(VLOOKUP(A34,EEFF_SITUACION!A:L,12,0),0) -> La cuenta Bienes no concesionados, representa el 97,73% del total del Activo, que comparado al periodo anterior genera una variación absoluta de 193 593,18 que corresponde a un Aumento del 0,12% de recursos disponibles.
A36: Cuenta | B36: Descripción | C36: Nota | D36: Periodo Actual | E36: Periodo Anterior | F36: Diferencia
F37: %
A38: 1.2.5.01. | B38: =IFERROR(VLOOKUP(A38,EEFF_SITUACION!A:E,2,0),"") -> Propiedades, planta y equipos explotados | C38: =C34 -> 10 | D38: =IFERROR(VLOOKUP(A38,EEFF_SITUACION!A:J,4,0),0) -> 2240714.457 | E38: =IFERROR(VLOOKUP(A38,EEFF_SITUACION!A:J,5,0),0) -> 2155163.988 | F38: =IFERROR(VLOOKUP(A38,EEFF_SITUACION!A:J,10,0),0) -> 0.03969557242 | H38: =IFERROR(VLOOKUP(A38,EEFF_SITUACION!A:L,12,0),0) -> La cuenta Propiedades, planta y equipos explotados, representa el 1,34% del total del Activo, que comparado al periodo anterior genera una variación absoluta de 85 550,47 que corresponde a un Aumento del 3,97% de recursos disponibles.
A40: Cuenta | B40: Descripción | C40: Nota | D40: Periodo Actual | E40: Periodo Anterior | F40: Diferencia
F41: %
A42: 1.2.5.02. | B42: =IFERROR(VLOOKUP(A42,EEFF_SITUACION!A:E,2,0),"") -> Propiedades de inversión | C42: =C34 -> 10 | D42: =IFERROR(VLOOKUP(A42,EEFF_SITUACION!A:J,4,0),0) -> 0 | E42: =IFERROR(VLOOKUP(A42,EEFF_SITUACION!A:J,5,0),0) -> 0 | F42: =IFERROR(VLOOKUP(A42,EEFF_SITUACION!A:J,10,0),0) -> 0 | H42: =IFERROR(VLOOKUP(A42,EEFF_SITUACION!A:L,12,0),0) -> La cuenta Propiedades de inversión, representa el 0,00% del total del Activo, que comparado al periodo anterior genera una variación absoluta de 0 000,00 que corresponde a un Aumento del 0,00% de recursos disponibles.
A44: Cuenta | B44: Descripción | C44: Nota | D44: Periodo Actual | E44: Periodo Anterior | F44: Diferencia
F45: %
A46: 1.2.5.03. | B46: =IFERROR(VLOOKUP(A46,EEFF_SITUACION!A:E,2,0),"") -> Activos biológicos no concesionados | C46: =C34 -> 10 | D46: =IFERROR(VLOOKUP(A46,EEFF_SITUACION!A:J,4,0),0) -> 0 | E46: =IFERROR(VLOOKUP(A46,EEFF_SITUACION!A:J,5,0),0) -> 0 | F46: =IFERROR(VLOOKUP(A46,EEFF_SITUACION!A:J,10,0),0) -> 0 | H46: =IFERROR(VLOOKUP(A46,EEFF_SITUACION!A:L,12,0),0) -> La cuenta Activos biológicos no concesionados, representa el 0,00% del total del Activo, que comparado al periodo anterior genera una variación absoluta de 0 000,00 que corresponde a un Aumento del 0,00% de recursos disponibles.
A48: Cuenta | B48: Descripción | C48: Nota | D48: Periodo Actual | E48: Periodo Anterior | F48: Diferencia
F49: %
A50: 1.2.5.04. | B50: =IFERROR(VLOOKUP(A50,EEFF_SITUACION!A:E,2,0),"") -> Bienes de infraestructura y de beneficio y uso público en servicio | C50: =C34 -> 10 | D50: =IFERROR(VLOOKUP(A50,EEFF_SITUACION!A:J,4,0),0) -> 160856258.3 | E50: =IFERROR(VLOOKUP(A50,EEFF_SITUACION!A:J,5,0),0) -> 160765498.1 | F50: =IFERROR(VLOOKUP(A50,EEFF_SITUACION!A:J,10,0),0) -> 0.0005645505527 | H50: =IFERROR(VLOOKUP(A50,EEFF_SITUACION!A:L,12,0),0) -> La cuenta Bienes de infraestructura y de beneficio y uso público en servicio, representa el 96,32% del total del Activo, que comparado al periodo anterior genera una variación absoluta de 90 760,25 que corresponde a un Aumento del 0,06% de recursos disponibles.
A52: Cuenta | B52: Descripción | C52: Nota | D52: Periodo Actual | E52: Periodo Anterior | F52: Diferencia
F53: %
A54: 1.2.5.05. | B54: =IFERROR(VLOOKUP(A54,EEFF_SITUACION!A:E,2,0),"") -> Bienes históricos y culturales | C54: =C34 -> 10 | D54: =IFERROR(VLOOKUP(A54,EEFF_SITUACION!A:J,4,0),0) -> 0 | E54: =IFERROR(VLOOKUP(A54,EEFF_SITUACION!A:J,5,0),0) -> 0 | F54: =IFERROR(VLOOKUP(A54,EEFF_SITUACION!A:J,10,0),0) -> 0 | H54: =IFERROR(VLOOKUP(A54,EEFF_SITUACION!A:L,12,0),0) -> La cuenta Bienes históricos y culturales, representa el 0,00% del total del Activo, que comparado al periodo anterior genera una variación absoluta de 0 000,00 que corresponde a un Aumento del 0,00% de recursos disponibles.
A56: Cuenta | B56: Descripción | C56: Nota | D56: Periodo Actual | E56: Periodo Anterior | F56: Diferencia
F57: %
A58: 1.2.5.06. | B58: =IFERROR(VLOOKUP(A58,EEFF_SITUACION!A:E,2,0),"") -> Recursos naturales en explotación | C58: =C34 -> 10 | D58: =IFERROR(VLOOKUP(A58,EEFF_SITUACION!A:J,4,0),0) -> 0 | E58: =IFERROR(VLOOKUP(A58,EEFF_SITUACION!A:J,5,0),0) -> 0 | F58: =IFERROR(VLOOKUP(A58,EEFF_SITUACION!A:J,10,0),0) -> 0 | H58: =IFERROR(VLOOKUP(A58,EEFF_SITUACION!A:L,12,0),0) -> La cuenta Recursos naturales en explotación, representa el 0,00% del total del Activo, que comparado al periodo anterior genera una variación absoluta de 0 000,00 que corresponde a un Aumento del 0,00% de recursos disponibles.
A60: Cuenta | B60: Descripción | C60: Nota | D60: Periodo Actual | E60: Periodo Anterior | F60: Diferencia
F61: %
A62: 1.2.5.07. | B62: =IFERROR(VLOOKUP(A62,EEFF_SITUACION!A:E,2,0),"") -> Recursos naturales en conservación | C62: =C34 -> 10 | D62: =IFERROR(VLOOKUP(A62,EEFF_SITUACION!A:J,4,0),0) -> 0 | E62: =IFERROR(VLOOKUP(A62,EEFF_SITUACION!A:J,5,0),0) -> 0 | F62: =IFERROR(VLOOKUP(A62,EEFF_SITUACION!A:J,10,0),0) -> 0 | H62: =IFERROR(VLOOKUP(A62,EEFF_SITUACION!A:L,12,0),0) -> La cuenta Recursos naturales en conservación, representa el 0,00% del total del Activo, que comparado al periodo anterior genera una variación absoluta de 0 000,00 que corresponde a un Aumento del 0,00% de recursos disponibles.
A64: Cuenta | B64: Descripción | C64: Nota | D64: Periodo Actual | E64: Periodo Anterior | F64: Diferencia
F65: %
A66: 1.2.5.08. | B66: =IFERROR(VLOOKUP(A66,EEFF_SITUACION!A:E,2,0),"") -> Bienes intangibles no concesionados | C66: =C34 -> 10 | D66: =IFERROR(VLOOKUP(A66,EEFF_SITUACION!A:J,4,0),0) -> 9849.50849 | E66: =IFERROR(VLOOKUP(A66,EEFF_SITUACION!A:J,5,0),0) -> 12565.23546 | F66: =IFERROR(VLOOKUP(A66,EEFF_SITUACION!A:J,10,0),0) -> -0.2161302093 | H66: =IFERROR(VLOOKUP(A66,EEFF_SITUACION!A:L,12,0),0) -> La cuenta Bienes intangibles no concesionados, representa el 0,01% del total del Activo, que comparado al periodo anterior genera una variación absoluta de -2 715,73 que corresponde a un Disminución del -21,61% de recursos disponibles.
A68: Cuenta | B68: Descripción | C68: Nota | D68: Periodo Actual | E68: Periodo Anterior | F68: Diferencia
F69: %
A70: 1.2.5.99. | B70: =IFERROR(VLOOKUP(A70,EEFF_SITUACION!A:E,2,0),"") -> Bienes no concesionados en proceso de producción | C70: =C34 -> 10 | D70: =IFERROR(VLOOKUP(A70,EEFF_SITUACION!A:J,4,0),0) -> 97579.14782 | E70: =IFERROR(VLOOKUP(A70,EEFF_SITUACION!A:J,5,0),0) -> 77580.96105 | F70: =IFERROR(VLOOKUP(A70,EEFF_SITUACION!A:J,10,0),0) -> 0.257771836 | H70: =IFERROR(VLOOKUP(A70,EEFF_SITUACION!A:L,12,0),0) -> La cuenta Bienes no concesionados en proceso de producción, representa el 0,06% del total del Activo, que comparado al periodo anterior genera una variación absoluta de 19 998,19 que corresponde a un Aumento del 25,78% de recursos disponibles.
A72: Cuenta | B72: Descripción | C72: Nota | D72: Periodo Actual | E72: Periodo Anterior | F72: Diferencia
F73: %
A74: 1.2.6. | B74: =IFERROR(VLOOKUP(A74,EEFF_SITUACION!A:E,2,0),"") -> Bienes concesionados | C74: =IFERROR(VLOOKUP(A74,EEFF_SITUACION!A:E,3,0),0) -> 11 | D74: =IFERROR(VLOOKUP(A74,EEFF_SITUACION!A:J,4,0),0) -> 0 | E74: =IFERROR(VLOOKUP(A74,EEFF_SITUACION!A:J,5,0),0) -> 0 | F74: =IFERROR(VLOOKUP(A74,EEFF_SITUACION!A:J,10,0),0) -> 0 | H74: =IFERROR(VLOOKUP(A74,EEFF_SITUACION!A:L,12,0),0) -> La cuenta Bienes concesionados, representa el 0,00% del total del Activo, que comparado al periodo anterior genera una variación absoluta de 0 000,00 que corresponde a un Aumento del 0,00% de recursos disponibles.
A76: Cuenta | B76: Descripción | C76: Nota | D76: Periodo Actual | E76: Periodo Anterior | F76: Diferencia
F77: %
A78: 1.2.6.01. | B78: =IFERROR(VLOOKUP(A78,EEFF_SITUACION!A:E,2,0),"") -> Propiedades, planta y equipos concesionados | C78: =C74 -> 11 | D78: =IFERROR(VLOOKUP(A78,EEFF_SITUACION!A:J,4,0),0) -> 0 | E78: =IFERROR(VLOOKUP(A78,EEFF_SITUACION!A:J,5,0),0) -> 0 | F78: =IFERROR(VLOOKUP(A78,EEFF_SITUACION!A:J,10,0),0) -> 0 | H78: =IFERROR(VLOOKUP(A78,EEFF_SITUACION!A:L,12,0),0) -> La cuenta Propiedades, planta y equipos concesionados, representa el 0,00% del total del Activo, que comparado al periodo anterior genera una variación absoluta de 0 000,00 que corresponde a un Aumento del 0,00% de recursos disponibles.
A80: Cuenta | B80: Descripción | C80: Nota | D80: Periodo Actual | E80: Periodo Anterior | F80: Diferencia
F81: %
A82: 1.2.6.03. | B82: =IFERROR(VLOOKUP(A82,EEFF_SITUACION!A:E,2,0),"") -> Activos biológicos concesionados | C82: =C74 -> 11 | D82: =IFERROR(VLOOKUP(A82,EEFF_SITUACION!A:J,4,0),0) -> 0 | E82: =IFERROR(VLOOKUP(A82,EEFF_SITUACION!A:J,5,0),0) -> 0 | F82: =IFERROR(VLOOKUP(A82,EEFF_SITUACION!A:J,10,0),0) -> 0 | H82: =IFERROR(VLOOKUP(A82,EEFF_SITUACION!A:L,12,0),0) -> La cuenta Activos biológicos concesionados, representa el 0,00% del total del Activo, que comparado al periodo anterior genera una variación absoluta de 0 000,00 que corresponde a un Aumento del 0,00% de recursos disponibles.
A84: Cuenta | B84: Descripción | C84: Nota | D84: Periodo Actual | E84: Periodo Anterior | F84: Diferencia
F85: %
A86: 1.2.6.04. | B86: =IFERROR(VLOOKUP(A86,EEFF_SITUACION!A:E,2,0),"") -> Bienes de infraestructura y de beneficio y uso público concesionados | C86: =C74 -> 11 | D86: =IFERROR(VLOOKUP(A86,EEFF_SITUACION!A:J,4,0),0) -> 0 | E86: =IFERROR(VLOOKUP(A86,EEFF_SITUACION!A:J,5,0),0) -> 0 | F86: =IFERROR(VLOOKUP(A86,EEFF_SITUACION!A:J,10,0),0) -> 0 | H86: =IFERROR(VLOOKUP(A86,EEFF_SITUACION!A:L,12,0),0) -> La cuenta Bienes de infraestructura y de beneficio y uso público concesionados, representa el 0,00% del total del Activo, que comparado al periodo anterior genera una variación absoluta de 0 000,00 que corresponde a un Aumento del 0,00% de recursos disponibles.
A88: Cuenta | B88: Descripción | C88: Nota | D88: Periodo Actual | E88: Periodo Anterior | F88: Diferencia
F89: %
A90: 1.2.6.06. | B90: =IFERROR(VLOOKUP(A90,EEFF_SITUACION!A:E,2,0),"") -> Recursos naturales concesionados | C90: =C74 -> 11 | D90: =IFERROR(VLOOKUP(A90,EEFF_SITUACION!A:J,4,0),0) -> 0 | E90: =IFERROR(VLOOKUP(A90,EEFF_SITUACION!A:J,5,0),0) -> 0 | F90: =IFERROR(VLOOKUP(A90,EEFF_SITUACION!A:J,10,0),0) -> 0 | H90: =IFERROR(VLOOKUP(A90,EEFF_SITUACION!A:L,12,0),0) -> La cuenta Recursos naturales concesionados, representa el 0,00% del total del Activo, que comparado al periodo anterior genera una variación absoluta de 0 000,00 que corresponde a un Aumento del 0,00% de recursos disponibles.
A92: Cuenta | B92: Descripción | C92: Nota | D92: Periodo Actual | E92: Periodo Anterior | F92: Diferencia
F93: %
A94: 1.2.6.08. | B94: =IFERROR(VLOOKUP(A94,EEFF_SITUACION!A:E,2,0),"") -> Bienes intangibles concesionados | C94: =C74 -> 11 | D94: =IFERROR(VLOOKUP(A94,EEFF_SITUACION!A:J,4,0),0) -> 0 | E94: =IFERROR(VLOOKUP(A94,EEFF_SITUACION!A:J,5,0),0) -> 0 | F94: =IFERROR(VLOOKUP(A94,EEFF_SITUACION!A:J,10,0),0) -> 0 | H94: =IFERROR(VLOOKUP(A94,EEFF_SITUACION!A:L,12,0),0) -> La cuenta Bienes intangibles concesionados, representa el 0,00% del total del Activo, que comparado al periodo anterior genera una variación absoluta de 0 000,00 que corresponde a un Aumento del 0,00% de recursos disponibles.
A96: Cuenta | B96: Descripción | C96: Nota | D96: Periodo Actual | E96: Periodo Anterior | F96: Diferencia
F97: %
A98: 1.2.6.99. | B98: Bienes concesionados | C98: =C74 -> 11 | D98: 0 | E98: 0 | F98: 0 | H98: =IFERROR(VLOOKUP(A98,EEFF_SITUACION!A:L,12,0),0) -> La cuenta Bienes concesionados en proceso de producción, representa el 0,00% del total del Activo, que comparado al periodo anterior genera una variación absoluta de 0 000,00 que corresponde a un Aumento del 0,00% de recursos disponibles.
A100: Cuenta | B100: Descripción | C100: Nota | D100: Periodo Actual | E100: Periodo Anterior | F100: Diferencia
F101: %
A102: 1.2.7. | B102: =IFERROR(VLOOKUP(A102,EEFF_SITUACION!A:E,2,0),"") -> Inversiones patrimoniales - Método de participación | C102: =IFERROR(VLOOKUP(A102,EEFF_SITUACION!A:E,3,0),0) -> 12 | D102: =IFERROR(VLOOKUP(A102,EEFF_SITUACION!A:J,4,0),0) -> 0 | E102: =IFERROR(VLOOKUP(A102,EEFF_SITUACION!A:J,5,0),0) -> 0 | F102: =IFERROR(VLOOKUP(A102,EEFF_SITUACION!A:J,10,0),0) -> 0 | H102: =IFERROR(VLOOKUP(A102,EEFF_SITUACION!A:L,12,0),0) -> La cuenta Inversiones patrimoniales - Método de participación, representa el 0,00% del total del Activo, que comparado al periodo anterior genera una variación absoluta de 0 000,00 que corresponde a un Aumento del 0,00% de recursos disponibles.
A104: Cuenta | B104: Descripción | C104: Nota | D104: Periodo Actual | E104: Periodo Anterior | F104: Diferencia
F105: %
A106: 1.2.9. | B106: =IFERROR(VLOOKUP(A106,EEFF_SITUACION!A:E,2,0),"") -> Otros activos a largo plazo | C106: =IFERROR(VLOOKUP(A106,EEFF_SITUACION!A:E,3,0),0) -> 13 | D106: =IFERROR(VLOOKUP(A106,EEFF_SITUACION!A:J,4,0),0) -> 0 | E106: =IFERROR(VLOOKUP(A106,EEFF_SITUACION!A:J,5,0),0) -> 0 | F106: =IFERROR(VLOOKUP(A106,EEFF_SITUACION!A:J,10,0),0) -> 0 | H106: =IFERROR(VLOOKUP(A106,EEFF_SITUACION!A:L,12,0),0) -> La cuenta Otros activos a largo plazo, representa el 0,00% del total del Activo, que comparado al periodo anterior genera una variación absoluta de 0 000,00 que corresponde a un Aumento del 0,00% de recursos disponibles.
A108: Cuenta | B108: Descripción | C108: Nota | D108: Periodo Actual | E108: Periodo Anterior | F108: Diferencia
F109: %
A110: 1.2.9.01. | B110: =IFERROR(VLOOKUP(A110,EEFF_SITUACION!A:E,2,0),"") -> Gastos a devengar a largo plazo | C110: =C106 -> 13 | D110: =IFERROR(VLOOKUP(A110,EEFF_SITUACION!A:J,4,0),0) -> 0 | E110: =IFERROR(VLOOKUP(A110,EEFF_SITUACION!A:J,5,0),0) -> 0 | F110: =IFERROR(VLOOKUP(A110,EEFF_SITUACION!A:J,10,0),0) -> 0 | H110: =IFERROR(VLOOKUP(A110,EEFF_SITUACION!A:L,12,0),0) -> La cuenta Gastos a devengar a largo plazo, representa el 0,00% del total del Activo, que comparado al periodo anterior genera una variación absoluta de 0 000,00 que corresponde a un Aumento del 0,00% de recursos disponibles.
A113: PASIVO
A115: Cuenta | B115: Descripción | C115: Nota | D115: Periodo Actual | E115: Periodo Anterior | F115: Diferencia
F116: %
